Workbook

Sheet Datos
A1: Grupo Institucional: | C1: Sector Municipal
A2: Nombre de la Entidad: | C2: Municipalidad de Buenos Aires
A3: Código de Entidad: | C3: 15603
A4: Período Contable: | C4: Del 01 de Enero 2024 al 30 de Abril del 2024
A5: Comparativo | C5: Periodo Actual | D5: 2024-04-30 | E5: Periodo Anterior | F5: 2023-04-30

Sheet AnalisisBS
A1: =+Datos!C2 -> Municipalidad de Buenos Aires
A2: Análisis al Estado de Situación Financiera o Balance General Comparativo
A3: =+Datos!C4 -> Del 01 de Enero 2024 al 30 de Abril del 2024
A4: - En miles de colones -
A6: Cuenta | B6: Descripción | C6: Nota | D6: =+Datos!D5 -> 2024-04-30 | E6: % análisis vertical | F6: =+Datos!F5 -> 2023-04-30 | G6: % | H6: Monto variación Absoluta | I6: % Variación relativa
A8: 1. | B8: ACTIVO
A9: 1.1. | B9: Activo Corriente
A10: 1.1.1. | B10: Efectivo y equivalentes de efectivo | C10: 03 | D10: =SUM(D11:D12) -> 1796241.557 | E10: =+IFERROR(D10/$D$91,0) -> 0.01064084349 | F10: =SUM(F11:F12) -> 1975905.869 | G10: =+IFERROR(F10/$F$91,0) -> 0.01172682641 | H10: =+D10-F10 -> -179664.3118 | I10: =+IFERROR(H10/F10,0) -> -0.09092756629 | J10: =+FIXED(E10,4) -> 0,0106 | K10: =+FIXED(I10,4) -> -0,0909 | L10: =+FIXED(H10,2) -> -179 664,31 | M10: =IF(H10 < 0, "Disminución", "Aumento") -> Disminución | N10: Activo | O10: =+CONCATENATE(Texto!$B$4,AnalisisBS!B10,Texto!$B$6,(AnalisisBS!J10*100),Texto!$B$8,N10,Texto!$B$12,AnalisisBS!L10,Texto!$B$14,AnalisisBS!M10,Texto!$B$16,(AnalisisBS!K10*100),Texto!$B$18) -> La cuenta Efectivo y equivalentes de efectivo, representa el 1,06 % del total de Activo, que comparado al periodo anterior genera una variación absoluta de ¢-179 664,31 que corresponde a un(a) Disminución del -9,09 % de recursos disponibles.
A11: 1.1.1.01. | B11: Efectivo | D11: =SUMIF(BCPAC!$B$10:$B$8000,$A11,BCPAC!$G$10:$G$8000)/1000 -> 1130099.14 | E11: 0.006694649743 | F11: =SUMIF(BCPAN!$B$10:$B$8000,$A11,BCPAN!$G$10:$G$8000)/1000 -> 1518187.498 | G11: 0.009010308404 | H11: =+D11-F11 -> -388088.3581 | I11: =+IFERROR(H11/F11,0) -> -0.2556261058
A12: 1.1.1.02. | B12: Equivalentes de efectivo | D12: =SUMIF(BCPAC!$B$10:$B$8000,$A12,BCPAC!$G$10:$G$8000)/1000 -> 666142.4165 | E12: 0.003946193744 | F12: =SUMIF(BCPAN!$B$10:$B$8000,$A12,BCPAN!$G$10:$G$8000)/1000 -> 457718.3702 | G12: 0.002716518008 | H12: 208424.0463 | I12: =+IFERROR(H12/F12,0) -> 0.4553543397
A13: 1.1.2. | B13: Inversiones a corto plazo | C13: 04 | D13: =SUM(D14:D18) -> 0 | E13: 0 | F13: =SUM(F14:F18) -> 0 | G13: 0 | H13: 0 | I13: =+IFERROR(H13/F13,0) -> 0 | J13: =+FIXED(E13,4) -> 0,0000 | K13: =+FIXED(I13,4) -> 0,0000 | L13: =+FIXED(H13,2) -> 0,00 | M13: =IF(H13 < 0, "Disminución", "Aumento") -> Aumento | N13: Activo | O13: =+CONCATENATE(Texto!$B$4,AnalisisBS!B13,Texto!$B$6,(AnalisisBS!J13*100),Texto!$B$8,N13,Texto!$B$12,AnalisisBS!L13,Texto!$B$14,AnalisisBS!M13,Texto!$B$16,(AnalisisBS!K13*100),Texto!$B$18) -> La cuenta Inversiones a corto plazo, representa el 0 % del total de Activo, que comparado al periodo anterior genera una variación absoluta de ¢0,00 que corresponde a un(a) Aumento del 0 % de recursos disponibles.
A14: 1.1.2.01. | B14: Títulos y valores a valor razonable a corto plazo | D14: =SUMIF(BCPAC!$B$10:$B$8000,$A14,BCPAC!$G$10:$G$8000)/1000 -> 0 | E14: 0 | F14: =SUMIF(BCPAN!$B$10:$B$8000,$A14,BCPAN!$G$10:$G$8000)/1000 -> 0 | G14: 0 | H14: 0 | I14: =+IFERROR(H14/F14,0) -> 0
A15: 1.1.2.02. | B15: Títulos y valores a costo amortizado a corto plazo | D15: =SUMIF(BCPAC!$B$10:$B$8000,$A15,BCPAC!$G$10:$G$8000)/1000 -> 0 | E15: 0 | F15: =SUMIF(BCPAN!$B$10:$B$8000,$A15,BCPAN!$G$10:$G$8000)/1000 -> 0 | G15: 0 | H15: 0 | I15: 0
A16: 1.1.2.03. | B16: Instrumentos Derivados a corto plazo | D16: =SUMIF(BCPAC!$B$10:$B$8000,$A16,BCPAC!$G$10:$G$8000)/1000 -> 0 | E16: 0 | F16: =SUMIF(BCPAN!$B$10:$B$8000,$A16,BCPAN!$G$10:$G$8000)/1000 -> 0 | G16: 0 | H16: 0 | I16: 0
A17: 1.1.2.98. | B17: Otras inversiones a corto plazo | D17: =SUMIF(BCPAC!$B$10:$B$8000,$A17,BCPAC!$G$10:$G$8000)/1000 -> 0 | E17: 0 | F17: =SUMIF(BCPAN!$B$10:$B$8000,$A17,BCPAN!$G$10:$G$8000)/1000 -> 0 | G17: 0 | H17: 0 | I17: 0
A18: 1.1.2.99. | B18: Previsiones para deterioro de inversiones a corto plazo * | D18: =SUMIF(BCPAC!$B$10:$B$8000,$A18,BCPAC!$G$10:$G$8000)/1000 -> 0 | E18: 0 | F18: =SUMIF(BCPAN!$B$10:$B$8000,$A18,BCPAN!$G$10:$G$8000)/1000 -> 0 | G18: 0 | H18: 0 | I18: 0
A19: 1.1.3. | B19: Cuentas a cobrar a corto plazo | C19: 05 | D19: =SUM(D20:D36) -> 3816318.798 | E19: 0.02260767817 | F19: =SUM(F20:F36) -> 3778707.848 | G19: 0.02242629657 | H19: 37610.94984 | I19: =+IFERROR(H19/F19,0) -> 0.009953389188 | J19: =+FIXED(E19,4) -> 0,0226 | K19: =+FIXED(I19,4) -> 0,0100 | L19: =+FIXED(H19,2) -> 37 610,95 | M19: =IF(H19 < 0, "Disminución", "Aumento") -> Aumento | N19: Activo | O19: =+CONCATENATE(Texto!$B$4,AnalisisBS!B19,Texto!$B$6,(AnalisisBS!J19*100),Texto!$B$8,N19,Texto!$B$12,AnalisisBS!L19,Texto!$B$14,AnalisisBS!M19,Texto!$B$16,(AnalisisBS!K19*100),Texto!$B$18) -> La cuenta Cuentas a cobrar a corto plazo, representa el 2,26 % del total de Activo, que comparado al periodo anterior genera una variación absoluta de ¢37 610,95 que corresponde a un(a) Aumento del 1 % de recursos disponibles.
A20: 1.1.3.01. | B20: Impuestos a cobrar a corto plazo | D20: =SUMIF(BCPAC!$B$10:$B$8000,$A20,BCPAC!$G$10:$G$8000)/1000 -> 535412.341 | E20: 0.003171755436 | F20: =SUMIF(BCPAN!$B$10:$B$8000,$A20,BCPAN!$G$10:$G$8000)/1000 -> 552530.8626 | G20: 0.003279221756 | H20: -17118.52158 | I20: =+IFERROR(H20/F20,0) -> -0.03098201881
A21: 1.1.3.02. | B21: Contribuciones sociales a cobrar a corto plazo | D21: =SUMIF(BCPAC!$B$10:$B$8000,$A21,BCPAC!$G$10:$G$8000)/1000 -> 0 | E21: 0 | F21: =SUMIF(BCPAN!$B$10:$B$8000,$A21,BCPAN!$G$10:$G$8000)/1000 -> 0 | G21: 0 | H21: 0 | I21: 0
A22: 1.1.3.03. | B22: Ventas a cobrar a corto plazo | D22: =SUMIF(BCPAC!$B$10:$B$8000,$A22,BCPAC!$G$10:$G$8000)/1000 -> 0 | E22: 0 | F22: =SUMIF(BCPAN!$B$10:$B$8000,$A22,BCPAN!$G$10:$G$8000)/1000 -> 0 | G22: 0 | H22: 0 | I22: 0
A23: 1.1.3.04. | B23: Servicios y derechos a cobrar a corto plazo | D23: =SUMIF(BCPAC!$B$10:$B$8000,$A23,BCPAC!$G$10:$G$8000)/1000 -> 299532.5623 | E23: 0.001774415641 | F23: =SUMIF(BCPAN!$B$10:$B$8000,$A23,BCPAN!$G$10:$G$8000)/1000 -> 222487.9937 | G23: 0.001320446547 | H23: 77044.56853 | I23: 0.3462864096
A24: 1.1.3.05. | B24: Ingresos de la propiedad a cobrar a corto plazo | D24: =SUMIF(BCPAC!$B$10:$B$8000,$A24,BCPAC!$G$10:$G$8000)/1000 -> 0 | E24: 0 | F24: =SUMIF(BCPAN!$B$10:$B$8000,$A24,BCPAN!$G$10:$G$8000)/1000 -> 0 | G24: 0 | H24: 0 | I24: 0
A25: 1.1.3.06. | B25: Transferencias a cobrar a corto plazo | D25: =SUMIF(BCPAC!$B$10:$B$8000,$A25,BCPAC!$G$10:$G$8000)/1000 -> 3151569.494 | E25: 0.01866973715 | F25: =SUMIF(BCPAN!$B$10:$B$8000,$A25,BCPAN!$G$10:$G$8000)/1000 -> 3175207.702 | G25: 0.01884457662 | H25: -23638.20721 | I25: -0.007444617622 | J25: =+FIXED(E25,4) -> 0,0187 | K25: =+FIXED(I25,4) -> -0,0074 | L25: =+FIXED(H25,2) -> -23 638,21 | M25: =IF(H25 < 0, "Disminución", "Aumento") -> Disminución | N25: Activo | O25: =+CONCATENATE(Texto!$B$4,AnalisisBS!B25,Texto!$B$6,(AnalisisBS!J25*100),Texto!$B$8,N25,Texto!$B$12,AnalisisBS!L25,Texto!$B$14,AnalisisBS!M25,Texto!$B$16,(AnalisisBS!K25*100),Texto!$B$18) -> La cuenta Transferencias a cobrar a corto plazo, representa el 1,87 % del total de Activo, que comparado al periodo anterior genera una variación absoluta de ¢-23 638,21 que corresponde a un(a) Disminución del -0,74 % de recursos disponibles.
A26: 1.1.3.07. | B26: Préstamos a corto plazo | D26: =SUMIF(BCPAC!$B$10:$B$8000,$A26,BCPAC!$G$10:$G$8000)/1000 -> 0 | E26: 0 | F26: =SUMIF(BCPAN!$B$10:$B$8000,$A26,BCPAN!$G$10:$G$8000)/1000 -> 0 | G26: 0 | H26: 0 | I26: 0
A27: 1.1.3.08. | B27: Documentos a cobrar a corto plazo | D27: =SUMIF(BCPAC!$B$10:$B$8000,$A27,BCPAC!$G$10:$G$8000)/1000 -> 0 | E27: 0 | F27: =SUMIF(BCPAN!$B$10:$B$8000,$A27,BCPAN!$G$10:$G$8000)/1000 -> 0 | G27: 0 | H27: 0 | I27: 0
A28: 1.1.3.09. | B28: Anticipos a corto plazo | D28: =SUMIF(BCPAC!$B$10:$B$8000,$A28,BCPAC!$G$10:$G$8000)/1000 -> 0 | E28: 0 | F28: =SUMIF(BCPAN!$B$10:$B$8000,$A28,BCPAN!$G$10:$G$8000)/1000 -> 0 | G28: 0 | H28: 0 | I28: 0
A29: 1.1.3.10. | B29: Deudores por avales ejecutados a corto plazo | D29: =SUMIF(BCPAC!$B$10:$B$8000,$A29,BCPAC!$G$10:$G$8000)/1000 -> 0 | E29: 0 | F29: =SUMIF(BCPAN!$B$10:$B$8000,$A29,BCPAN!$G$10:$G$8000)/1000 -> 0 | G29: 0 | H29: 0 | I29: 0
A30: 1.1.3.11. | B30: Planillas salariales | D30: =SUMIF(BCPAC!$B$10:$B$8000,$A30,BCPAC!$G$10:$G$8000)/1000 -> 0 | E30: 0 | F30: =SUMIF(BCPAN!$B$10:$B$8000,$A30,BCPAN!$G$10:$G$8000)/1000 -> 0 | G30: 0 | H30: 0 | I30: 0
A31: 1.1.3.12. | B31: Beneficios Sociales | D31: =SUMIF(BCPAC!$B$10:$B$8000,$A31,BCPAC!$G$10:$G$8000)/1000 -> 0 | E31: 0 | F31: =SUMIF(BCPAN!$B$10:$B$8000,$A31,BCPAN!$G$10:$G$8000)/1000 -> 0 | G31: 0 | H31: 0 | I31: 0
A32: 1.1.3.13. | B32: Beneficios Sociales | D32: =SUMIF(BCPAC!$B$10:$B$8000,$A32,BCPAC!$G$10:$G$8000)/1000 -> 0 | E32: 0 | F32: =SUMIF(BCPAN!$B$10:$B$8000,$A32,BCPAN!$G$10:$G$8000)/1000 -> 0 | G32: 0 | H32: =+D32-F32 -> 0 | I32: =+IFERROR(H32/F32,0) -> 0
A33: 1.1.3.50. | B33: Registro transitorio de transaccion de activo fijo | D33: =SUMIF(BCPAC!$B$10:$B$8000,$A33,BCPAC!$G$10:$G$8000)/1000 -> 0 | E33: 0 | F33: =SUMIF(BCPAN!$B$10:$B$8000,$A33,BCPAN!$G$10:$G$8000)/1000 -> 0 | G33: 0 | H33: =+D33-F33 -> 0 | I33: 0
A34: 1.1.3.97. | B34: Cuentas a cobrar en gestión judicial | D34: =SUMIF(BCPAC!$B$10:$B$8000,$A34,BCPAC!$G$10:$G$8000)/1000 -> 0 | E34: 0 | F34: =SUMIF(BCPAN!$B$10:$B$8000,$A34,BCPAN!$G$10:$G$8000)/1000 -> 0 | G34: 0 | H34: 0 | I34: 0
A35: 1.1.3.98. | B35: Otras cuentas a cobrar a corto plazo | D35: =SUMIF(BCPAC!$B$10:$B$8000,$A35,BCPAC!$G$10:$G$8000)/1000 -> 5182.2976 | E35: 3.069966701e-05 | F35: =SUMIF(BCPAN!$B$10:$B$8000,$A35,BCPAN!$G$10:$G$8000)/1000 -> 3859.1875 | G35: 2.290393618e-05 | H35: 1323.1101 | I35: 0.3428468039
A36: 1.1.3.99. | B36: Previsiones para deterioro de cuentas a cobrar a corto plazo * | D36: =SUMIF(BCPAC!$B$10:$B$8000,$A36,BCPAC!$G$10:$G$8000)/1000 -> -175377.8974 | E36: -0.001038929731 | F36: =SUMIF(BCPAN!$B$10:$B$8000,$A36,BCPAN!$G$10:$G$8000)/1000 -> -175377.8974 | G36: -0.001040852295 | H36: 0 | I36: 0
A37: 1.1.4. | B37: Inventarios | C37: 06 | D37: =SUM(D38:D42) -> 203034.4726 | E37: 0.001202765874 | F37: =SUM(F38:F42) -> 3982.27359 | G37: 2.363444122e-05 | H37: 199052.199 | I37: =+IFERROR(H37/F37,0) -> 49.98456146 | J37: =+FIXED(E37,4) -> 0,0012 | K37: =+FIXED(I37,4) -> 49,9846 | L37: =+FIXED(H37,2) -> 199 052,20 | M37: =IF(H37 < 0, "Disminución", "Aumento") -> Aumento | N37: Activo | O37: =+CONCATENATE(Texto!$B$4,AnalisisBS!B37,Texto!$B$6,(AnalisisBS!J37*100),Texto!$B$8,N37,Texto!$B$12,AnalisisBS!L37,Texto!$B$14,AnalisisBS!M37,Texto!$B$16,(AnalisisBS!K37*100),Texto!$B$18) -> La cuenta Inventarios, representa el 0,12 % del total de Activo, que comparado al periodo anterior genera una variación absoluta de ¢199 052,20 que corresponde a un(a) Aumento del 4998,46 % de recursos disponibles.
A38: 1.1.4.01. | B38: Materiales y suministros para consumo y prestación de servicios | D38: =SUMIF(BCPAC!$B$10:$B$8000,$A38,BCPAC!$G$10:$G$8000)/1000 -> 203034.4726 | E38: =+IFERROR(D38/$D$91,0) -> 0.001202765874 | F38: =SUMIF(BCPAN!$B$10:$B$8000,$A38,BCPAN!$G$10:$G$8000)/1000 -> 3982.27359 | G38: =+IFERROR(F38/$F$91,0) -> 2.363444122e-05 | H38: 199052.199 | I38: =+IFERROR(H38/F38,0) -> 49.98456146
A39: 1.1.4.02. | B39: Bienes para la venta | D39: =SUMIF(BCPAC!$B$10:$B$8000,$A39,BCPAC!$G$10:$G$8000)/1000 -> 0 | E39: 0 | F39: =SUMIF(BCPAN!$B$10:$B$8000,$A39,BCPAN!$G$10:$G$8000)/1000 -> 0 | G39: 0 | H39: 0 | I39: 0
A40: 1.1.4.03. | B40: Materias primas y bienes en producción | D40: =SUMIF(BCPAC!$B$10:$B$8000,$A40,BCPAC!$G$10:$G$8000)/1000 -> 0 | E40: 0 | F40: =SUMIF(BCPAN!$B$10:$B$8000,$A40,BCPAN!$G$10:$G$8000)/1000 -> 0 | G40: 0 | H40: 0 | I40: 0
A41: 1.1.4.04. | B41: Bienes a Transferir sin contraprestación - Donaciones | D41: =SUMIF(BCPAC!$B$10:$B$8000,$A41,BCPAC!$G$10:$G$8000)/1000 -> 0 | E41: 0 | F41: =SUMIF(BCPAN!$B$10:$B$8000,$A41,BCPAN!$G$10:$G$8000)/1000 -> 0 | G41: 0 | H41: 0 | I41: 0
A42: 1.1.4.99. | B42: Previsiones para deterioro y pérdidas de inventario * | D42: =SUMIF(BCPAC!$B$10:$B$8000,$A42,BCPAC!$G$10:$G$8000)/1000 -> 0 | E42: 0 | F42: =SUMIF(BCPAN!$B$10:$B$8000,$A42,BCPAN!$G$10:$G$8000)/1000 -> 0 | G42: 0 | H42: 0 | I42: 0
A43: 1.1.9. | B43: Otros activos a corto plazo | C43: 07 | D43: =SUM(D44:D46) -> 25224.18906 | E43: =+IFERROR(D43/$D$91,0) -> 0.0001494268111 | F43: =SUM(F44:F46) -> 30546.07407 | G43: =+IFERROR(F43/$F$91,0) -> 0.0001812882455 | H43: -5321.88501 | I43: =+IFERROR(H43/F43,0) -> -0.1742248447 | J43: =+FIXED(E43,4) -> 0,0001 | K43: =+FIXED(I43,4) -> -0,1742 | L43: =+FIXED(H43,2) -> -5 321,89 | M43: =IF(H43 < 0, "Disminución", "Aumento") -> Disminución | N43: Activo | O43: =+CONCATENATE(Texto!$B$4,AnalisisBS!B43,Texto!$B$6,(AnalisisBS!J43*100),Texto!$B$8,N43,Texto!$B$12,AnalisisBS!L43,Texto!$B$14,AnalisisBS!M43,Texto!$B$16,(AnalisisBS!K43*100),Texto!$B$18) -> La cuenta Otros activos a corto plazo, representa el 0,01 % del total de Activo, que comparado al periodo anterior genera una variación absoluta de ¢-5 321,89 que corresponde a un(a) Disminución del -17,42 % de recursos disponibles.
A44: 1.1.9.01. | B44: Gastos a devengar a corto plazo | D44: =SUMIF(BCPAC!$B$10:$B$8000,$A44,BCPAC!$G$10:$G$8000)/1000 -> 25224.18906 | E44: =+IFERROR(D44/$D$91,0) -> 0.0001494268111 | F44: =SUMIF(BCPAN!$B$10:$B$8000,$A44,BCPAN!$G$10:$G$8000)/1000 -> 30546.07407 | G44: =+IFERROR(F44/$F$91,0) -> 0.0001812882455 | H44: -5321.88501 | I44: =+IFERROR(H44/F44,0) -> -0.1742248447 | J44: =+FIXED(E44,4) -> 0,0001 | K44: =+FIXED(I44,4) -> -0,1742 | L44: =+FIXED(H44,2) -> -5 321,89 | M44: =IF(H44 < 0, "Disminución", "Aumento") -> Disminución | N44: Activo | O44: =+CONCATENATE(Texto!$B$4,AnalisisBS!B44,Texto!$B$6,(AnalisisBS!J44*100),Texto!$B$8,N44,Texto!$B$12,AnalisisBS!L44,Texto!$B$14,AnalisisBS!M44,Texto!$B$16,(AnalisisBS!K44*100),Texto!$B$18) -> La cuenta Gastos a devengar a corto plazo, representa el 0,01 % del total de Activo, que comparado al periodo anterior genera una variación absoluta de ¢-5 321,89 que corresponde a un(a) Disminución del -17,42 % de recursos disponibles.
A45: 1.1.9.02. | B45: Cuentas transitorias | D45: =SUMIF(BCPAC!$B$10:$B$8000,$A45,BCPAC!$G$10:$G$8000)/1000 -> 0 | E45: 0 | F45: =SUMIF(BCPAN!$B$10:$B$8000,$A45,BCPAN!$G$10:$G$8000)/1000 -> 0 | G45: 0 | H45: 0 | I45: 0
A46: 1.1.9.99. | B46: Activos a corto plazo sujetos a depuración contable | D46: =SUMIF(BCPAC!$B$10:$B$8000,$A46,BCPAC!$G$10:$G$8000)/1000 -> 0 | E46: 0 | F46: =SUMIF(BCPAN!$B$10:$B$8000,$A46,BCPAN!$G$10:$G$8000)/1000 -> 0 | G46: 0 | H46: 0 | I46: 0
B47: Total del Activo Corriente | D47: =+D43++D37+D19+D13+D10 -> 5840819.016 | E47: 0.03460071434 | F47: 5789142.064 | G47: 0.03435804567 | H47: 51676.952 | I47: =+IFERROR(H47/F47,0) -> 0.008926530292
A49: 1.2. | B49: Activo No Corriente
A50: 1.2.2. | B50: Inversiones a largo plazo | C50: 08 | D50: =SUM(D51:D55) -> 0 | E50: =+IFERROR(D50/$D$91,0) -> 0 | F50: =SUM(F51:F55) -> 0 | G50: =+IFERROR(F50/$F$91,0) -> 0 | H50: =+D50-F50 -> 0 | I50: =+IFERROR(H50/F50,0) -> 0 | J50: =+FIXED(E50,4) -> 0,0000 | K50: =+FIXED(I50,4) -> 0,0000 | L50: =+FIXED(H50,2) -> 0,00 | M50: =IF(H50 < 0, "Disminución", "Aumento") -> Aumento | N50: Activo | O50: =+CONCATENATE(Texto!$B$4,AnalisisBS!B50,Texto!$B$6,(AnalisisBS!J50*100),Texto!$B$8,N50,Texto!$B$12,AnalisisBS!L50,Texto!$B$14,AnalisisBS!M50,Texto!$B$16,(AnalisisBS!K50*100),Texto!$B$18) -> La cuenta Inversiones a largo plazo, representa el 0 % del total de Activo, que comparado al periodo anterior genera una variación absoluta de ¢0,00 que corresponde a un(a) Aumento del 0 % de recursos disponibles.
A51: 1.2.2.01. | B51: Títulos y valores a valor razonable a largo plazo | D51: =SUMIF(BCPAC!$B$10:$B$8000,$A51,BCPAC!$G$10:$G$8000)/1000 -> 0 | E51: =+IFERROR(D51/$D$91,0) -> 0 | F51: =SUMIF(BCPAN!$B$10:$B$8000,$A51,BCPAN!$G$10:$G$8000)/1000 -> 0 | G51: =+IFERROR(F51/$F$91,0) -> 0 | H51: 0 | I51: =+IFERROR(H51/F51,0) -> 0
A52: 1.2.2.02. | B52: Títulos y valores a costo amortizado a largo plazo | D52: =SUMIF(BCPAC!$B$10:$B$8000,$A52,BCPAC!$G$10:$G$8000)/1000 -> 0 | E52: =+IFERROR(D52/$D$91,0) -> 0 | F52: =SUMIF(BCPAN!$B$10:$B$8000,$A52,BCPAN!$G$10:$G$8000)/1000 -> 0 | G52: 0 | H52: 0 | I52: 0
A53: 1.2.2.03. | B53: Instrumentos Derivados a largo plazo | D53: =SUMIF(BCPAC!$B$10:$B$8000,$A53,BCPAC!$G$10:$G$8000)/1000 -> 0 | E53: 0 | F53: =SUMIF(BCPAN!$B$10:$B$8000,$A53,BCPAN!$G$10:$G$8000)/1000 -> 0 | G53: 0 | H53: 0 | I53: 0
A54: 1.2.2.98. | B54: Otras inversiones a largo plazo | D54: =SUMIF(BCPAC!$B$10:$B$8000,$A54,BCPAC!$G$10:$G$8000)/1000 -> 0 | E54: 0 | F54: =SUMIF(BCPAN!$B$10:$B$8000,$A54,BCPAN!$G$10:$G$8000)/1000 -> 0 | G54: 0 | H54: 0 | I54: 0
A55: 1.2.2.99. | B55: Previsiones para deterioro de inversiones a largo plazo * | D55: =SUMIF(BCPAC!$B$10:$B$8000,$A55,BCPAC!$G$10:$G$8000)/1000 -> 0 | E55: 0 | F55: =SUMIF(BCPAN!$B$10:$B$8000,$A55,BCPAN!$G$10:$G$8000)/1000 -> 0 | G55: 0 | H55: 0 | I55: 0
A56: 1.2.3. | B56: Cuentas a cobrar a largo plazo | C56: 09 | D56: =SUM(D57:D63) -> 0 | E56: =+IFERROR(D56/$D$91,0) -> 0 | F56: =SUM(F57:F63) -> 0 | G56: =+IFERROR(F56/$F$91,0) -> 0 | H56: 0 | I56: =+IFERROR(H56/F56,0) -> 0 | J56: =+FIXED(E56,4) -> 0,0000 | K56: =+FIXED(I56,4) -> 0,0000 | L56: =+FIXED(H56,2) -> 0,00 | M56: =IF(H56 < 0, "Disminución", "Aumento") -> Aumento | N56: Activo | O56: =+CONCATENATE(Texto!$B$4,AnalisisBS!B56,Texto!$B$6,(AnalisisBS!J56*100),Texto!$B$8,N56,Texto!$B$12,AnalisisBS!L56,Texto!$B$14,AnalisisBS!M56,Texto!$B$16,(AnalisisBS!K56*100),Texto!$B$18) -> La cuenta Cuentas a cobrar a largo plazo, representa el 0 % del total de Activo, que comparado al periodo anterior genera una variación absoluta de ¢0,00 que corresponde a un(a) Aumento del 0 % de recursos disponibles.
A57: 1.2.3.03. | B57: Ventas a cobrar a largo plazo | D57: =SUMIF(BCPAC!$B$10:$B$8000,$A57,BCPAC!$G$10:$G$8000)/1000 -> 0 | E57: =+IFERROR(D57/$D$91,0) -> 0 | F57: =SUMIF(BCPAN!$B$10:$B$8000,$A57,BCPAN!$G$10:$G$8000)/1000 -> 0 | G57: =+IFERROR(F57/$F$91,0) -> 0 | H57: 0 | I57: =+IFERROR(H57/F57,0) -> 0
A58: 1.2.3.07. | B58: Préstamos a largo plazo | D58: =SUMIF(BCPAC!$B$10:$B$8000,$A58,BCPAC!$G$10:$G$8000)/1000 -> 0 | E58: 0 | F58: =SUMIF(BCPAN!$B$10:$B$8000,$A58,BCPAN!$G$10:$G$8000)/1000 -> 0 | G58: 0 | H58: 0 | I58: 0
A59: 1.2.3.08. | B59: Documentos a cobrar a largo plazo | D59: =SUMIF(BCPAC!$B$10:$B$8000,$A59,BCPAC!$G$10:$G$8000)/1000 -> 0 | E59: 0 | F59: =SUMIF(BCPAN!$B$10:$B$8000,$A59,BCPAN!$G$10:$G$8000)/1000 -> 0 | G59: 0 | H59: 0 | I59: 0
A60: 1.2.3.09. | B60: Anticipos a largo plazo | D60: =SUMIF(BCPAC!$B$10:$B$8000,$A60,BCPAC!$G$10:$G$8000)/1000 -> 0 | E60: 0 | F60: =SUMIF(BCPAN!$B$10:$B$8000,$A60,BCPAN!$G$10:$G$8000)/1000 -> 0 | G60: 0 | H60: 0 | I60: 0
A61: 1.2.3.10. | B61: Deudores por avales ejecutados a largo plazo | D61: =SUMIF(BCPAC!$B$10:$B$8000,$A61,BCPAC!$G$10:$G$8000)/1000 -> 0 | E61: 0 | F61: =SUMIF(BCPAN!$B$10:$B$8000,$A61,BCPAN!$G$10:$G$8000)/1000 -> 0 | G61: 0 | H61: 0 | I61: 0
A62: 1.2.3.98. | B62: Otras cuentas a cobrar a largo plazo | D62: =SUMIF(BCPAC!$B$10:$B$8000,$A62,BCPAC!$G$10:$G$8000)/1000 -> 0 | E62: 0 | F62: =SUMIF(BCPAN!$B$10:$B$8000,$A62,BCPAN!$G$10:$G$8000)/1000 -> 0 | G62: 0 | H62: 0 | I62: 0
A63: 1.2.3.99. | B63: Previsiones para deterioro de cuentas a cobrar a largo plazo * | D63: =SUMIF(BCPAC!$B$10:$B$8000,$A63,BCPAC!$G$10:$G$8000)/1000 -> 0 | E63: 0 | F63: =SUMIF(BCPAN!$B$10:$B$8000,$A63,BCPAN!$G$10:$G$8000)/1000 -> 0 | G63: 0 | H63: 0 | I63: 0
A64: 1.2.5. | B64: Bienes no concesionados | C64: 10 | D64: =SUM(D65:D73) -> 162965494 | E64: =+IFERROR(D64/$D$91,0) -> 0.9653992857 | F64: =SUM(F65:F73) -> 162705367.8 | G64: =+IFERROR(F64/$F$91,0) -> 0.9656419543 | H64: 260126.2281 | I64: =+IFERROR(H64/F64,0) -> 0.001598756277 | J64: =+FIXED(E64,4) -> 0,9654 | K64: =+FIXED(I64,4) -> 0,0016 | L64: =+FIXED(H64,2) -> 260 126,23 | M64: =IF(H64 < 0, "Disminución", "Aumento") -> Aumento | N64: Activo | O64: =+CONCATENATE(Texto!$B$4,AnalisisBS!B64,Texto!$B$6,(AnalisisBS!J64*100),Texto!$B$8,N64,Texto!$B$12,AnalisisBS!L64,Texto!$B$14,AnalisisBS!M64,Texto!$B$16,(AnalisisBS!K64*100),Texto!$B$18) -> La cuenta Bienes no concesionados, representa el 96,54 % del total de Activo, que comparado al periodo anterior genera una variación absoluta de ¢260 126,23 que corresponde a un(a) Aumento del 0,16 % de recursos disponibles.
A65: 1.2.5.01. | B65: Propiedades, planta y equipos explotados | D65: =SUMIF(BCPAC!$B$10:$B$8000,$A65,BCPAC!$G$10:$G$8000)/1000 -> 2119407.751 | E65: =+IFERROR(D65/$D$91,0) -> 0.01255526356 | F65: =SUMIF(BCPAN!$B$10:$B$8000,$A65,BCPAN!$G$10:$G$8000)/1000 -> 1906811.53 | G65: =+IFERROR(F65/$F$91,0) -> 0.01131675763 | H65: 212596.2218 | I65: =+IFERROR(H65/F65,0) -> 0.111493044 | J65: =+FIXED(E65,4) -> 0,0126 | K65: =+FIXED(I65,4) -> 0,1115 | L65: =+FIXED(H65,2) -> 212 596,22 | M65: Aumento | N65: Activo | O65: =+CONCATENATE(Texto!$B$4,AnalisisBS!B65,Texto!$B$6,(AnalisisBS!J65*100),Texto!$B$8,N65,Texto!$B$12,AnalisisBS!L65,Texto!$B$14,AnalisisBS!M65,Texto!$B$16,(AnalisisBS!K65*100),Texto!$B$18) -> La cuenta Propiedades, planta y equipos explotados, representa el 1,26 % del total de Activo, que comparado al periodo anterior genera una variación absoluta de ¢212 596,22 que corresponde a un(a) Aumento del 11,15 % de recursos disponibles.
A66: 1.2.5.02. | B66: Propiedades de inversión | D66: =SUMIF(BCPAC!$B$10:$B$8000,$A66,BCPAC!$G$10:$G$8000)/1000 -> 0 | E66: 0 | F66: =SUMIF(BCPAN!$B$10:$B$8000,$A66,BCPAN!$G$10:$G$8000)/1000 -> 0 | G66: 0 | H66: 0 | I66: 0 | J66: 0,0000 | K66: 0,0000 | L66: 0,00 | M66: Aumento | N66: Activo | O66: =+CONCATENATE(Texto!$B$4,AnalisisBS!B66,Texto!$B$6,(AnalisisBS!J66*100),Texto!$B$8,N66,Texto!$B$12,AnalisisBS!L66,Texto!$B$14,AnalisisBS!M66,Texto!$B$16,(AnalisisBS!K66*100),Texto!$B$18) -> La cuenta Propiedades de inversión, representa el 0 % del total de Activo, que comparado al periodo anterior genera una variación absoluta de ¢0,00 que corresponde a un(a) Aumento del 0 % de recursos disponibles.
A67: 1.2.5.03. | B67: Activos biológicos no concesionados | D67: =SUMIF(BCPAC!$B$10:$B$8000,$A67,BCPAC!$G$10:$G$8000)/1000 -> 0 | E67: 0 | F67: =SUMIF(BCPAN!$B$10:$B$8000,$A67,BCPAN!$G$10:$G$8000)/1000 -> 0 | G67: 0 | H67: 0 | I67: 0 | J67: 0,0000 | K67: 0,0000 | L67: 0,00 | M67: Aumento | N67: Activo | O67: =+CONCATENATE(Texto!$B$4,AnalisisBS!B67,Texto!$B$6,(AnalisisBS!J67*100),Texto!$B$8,N67,Texto!$B$12,AnalisisBS!L67,Texto!$B$14,AnalisisBS!M67,Texto!$B$16,(AnalisisBS!K67*100),Texto!$B$18) -> La cuenta Activos biológicos no concesionados, representa el 0 % del total de Activo, que comparado al periodo anterior genera una variación absoluta de ¢0,00 que corresponde a un(a) Aumento del 0 % de recursos disponibles.
A68: 1.2.5.04. | B68: Bienes de infraestructura y de beneficio y uso público en servicio | D68: =SUMIF(BCPAC!$B$10:$B$8000,$A68,BCPAC!$G$10:$G$8000)/1000 -> 160765498.1 | E68: 0.9523666217 | F68: =SUMIF(BCPAN!$B$10:$B$8000,$A68,BCPAN!$G$10:$G$8000)/1000 -> 160765498.1 | G68: 0.9541289993 | H68: 0 | I68: 0 | J68: 0,9524 | K68: 0,0000 | L68: 0,00 | M68: Aumento | N68: Activo | O68: =+CONCATENATE(Texto!$B$4,AnalisisBS!B68,Texto!$B$6,(AnalisisBS!J68*100),Texto!$B$8,N68,Texto!$B$12,AnalisisBS!L68,Texto!$B$14,AnalisisBS!M68,Texto!$B$16,(AnalisisBS!K68*100),Texto!$B$18) -> La cuenta Bienes de infraestructura y de beneficio y uso público en servicio, representa el 95,24 % del total de Activo, que comparado al periodo anterior genera una variación absoluta de ¢0,00 que corresponde a un(a) Aumento del 0 % de recursos disponibles.
A69: 1.2.5.05. | B69: Bienes históricos y culturales | D69: =SUMIF(BCPAC!$B$10:$B$8000,$A69,BCPAC!$G$10:$G$8000)/1000 -> 0 | E69: 0 | F69: =SUMIF(BCPAN!$B$10:$B$8000,$A69,BCPAN!$G$10:$G$8000)/1000 -> 0 | G69: 0 | H69: 0 | I69: 0 | J69: 0,0000 | K69: 0,0000 | L69: 0,00 | M69: Aumento | N69: Activo | O69: =+CONCATENATE(Texto!$B$4,AnalisisBS!B69,Texto!$B$6,(AnalisisBS!J69*100),Texto!$B$8,N69,Texto!$B$12,AnalisisBS!L69,Texto!$B$14,AnalisisBS!M69,Texto!$B$16,(AnalisisBS!K69*100),Texto!$B$18) -> La cuenta Bienes históricos y culturales, representa el 0 % del total de Activo, que comparado al periodo anterior genera una variación absoluta de ¢0,00 que corresponde a un(a) Aumento del 0 % de recursos disponibles.
A70: 1.2.5.06. | B70: Recursos naturales en explotación | D70: =SUMIF(BCPAC!$B$10:$B$8000,$A70,BCPAC!$G$10:$G$8000)/1000 -> 0 | E70: 0 | F70: =SUMIF(BCPAN!$B$10:$B$8000,$A70,BCPAN!$G$10:$G$8000)/1000 -> 0 | G70: 0 | H70: 0 | I70: 0 | J70: 0,0000 | K70: 0,0000 | L70: 0,00 | M70: Aumento | N70: Activo | O70: =+CONCATENATE(Texto!$B$4,AnalisisBS!B70,Texto!$B$6,(AnalisisBS!J70*100),Texto!$B$8,N70,Texto!$B$12,AnalisisBS!L70,Texto!$B$14,AnalisisBS!M70,Texto!$B$16,(AnalisisBS!K70*100),Texto!$B$18) -> La cuenta Recursos naturales en explotación, representa el 0 % del total de Activo, que comparado al periodo anterior genera una variación absoluta de ¢0,00 que corresponde a un(a) Aumento del 0 % de recursos disponibles.
A71: 1.2.5.07. | B71: Recursos naturales en conservación | D71: =SUMIF(BCPAC!$B$10:$B$8000,$A71,BCPAC!$G$10:$G$8000)/1000 -> 0 | E71: 0 | F71: =SUMIF(BCPAN!$B$10:$B$8000,$A71,BCPAN!$G$10:$G$8000)/1000 -> 0 | G71: 0 | H71: 0 | I71: 0 | J71: 0,0000 | K71: 0,0000 | L71: 0,00 | M71: Aumento | N71: Activo | O71: =+CONCATENATE(Texto!$B$4,AnalisisBS!B71,Texto!$B$6,(AnalisisBS!J71*100),Texto!$B$8,N71,Texto!$B$12,AnalisisBS!L71,Texto!$B$14,AnalisisBS!M71,Texto!$B$16,(AnalisisBS!K71*100),Texto!$B$18) -> La cuenta Recursos naturales en conservación, representa el 0 % del total de Activo, que comparado al periodo anterior genera una variación absoluta de ¢0,00 que corresponde a un(a) Aumento del 0 % de recursos disponibles.
A72: 1.2.5.08. | B72: Bienes intangibles no concesionados | D72: =SUMIF(BCPAC!$B$10:$B$8000,$A72,BCPAC!$G$10:$G$8000)/1000 -> 3007.2369 | E72: 1.781471822e-05 | F72: =SUMIF(BCPAN!$B$10:$B$8000,$A72,BCPAN!$G$10:$G$8000)/1000 -> 7987.29414 | G72: 4.740388364e-05 | H72: -4980.05724 | I72: =+IFERROR(H72/F72,0) -> -0.6234974139 | J72: 0,0000 | K72: -0,6235 | L72: -4 980,06 | M72: Disminución | N72: Activo | O72: =+CONCATENATE(Texto!$B$4,AnalisisBS!B72,Texto!$B$6,(AnalisisBS!J72*100),Texto!$B$8,N72,Texto!$B$12,AnalisisBS!L72,Texto!$B$14,AnalisisBS!M72,Texto!$B$16,(AnalisisBS!K72*100),Texto!$B$18) -> La cuenta Bienes intangibles no concesionados, representa el 0 % del total de Activo, que comparado al periodo anterior genera una variación absoluta de ¢-4 980,06 que corresponde a un(a) Disminución del -62,35 % de recursos disponibles.
A73: 1.2.5.99. | B73: Bienes no concesionados en proceso de producción | D73: =SUMIF(BCPAC!$B$10:$B$8000,$A73,BCPAC!$G$10:$G$8000)/1000 -> 77580.96105 | E73: 0.0004595856615 | F73: =SUMIF(BCPAN!$B$10:$B$8000,$A73,BCPAN!$G$10:$G$8000)/1000 -> 25070.89757 | G73: 0.0001487935577 | H73: 52510.06348 | I73: 2.094462846 | J73: 0,0005 | K73: 2,0945 | L73: 52 510,06 | M73: Aumento | N73: Activo | O73: =+CONCATENATE(Texto!$B$4,AnalisisBS!B73,Texto!$B$6,(AnalisisBS!J73*100),Texto!$B$8,N73,Texto!$B$12,AnalisisBS!L73,Texto!$B$14,AnalisisBS!M73,Texto!$B$16,(AnalisisBS!K73*100),Texto!$B$18) -> La cuenta Bienes no concesionados en proceso de producción, representa el 0,05 % del total de Activo, que comparado al periodo anterior genera una variación absoluta de ¢52 510,06 que corresponde a un(a) Aumento del 209,45 % de recursos disponibles.
A74: 1.2.6. | B74: Bienes concesionados | C74: 11 | D74: =SUM(D75:D80) -> 0 | E74: =+IFERROR(D74/$D$91,0) -> 0 | F74: =SUM(F75:F80) -> 0 | G74: =+IFERROR(F74/$F$91,0) -> 0 | H74: 0 | I74: =+IFERROR(H74/F74,0) -> 0 | J74: =+FIXED(E74,4) -> 0,0000 | K74: =+FIXED(I74,4) -> 0,0000 | L74: =+FIXED(H74,2) -> 0,00 | M74: Aumento | N74: Activo | O74: =+CONCATENATE(Texto!$B$4,AnalisisBS!B74,Texto!$B$6,(AnalisisBS!J74*100),Texto!$B$8,N74,Texto!$B$12,AnalisisBS!L74,Texto!$B$14,AnalisisBS!M74,Texto!$B$16,(AnalisisBS!K74*100),Texto!$B$18) -> La cuenta Bienes concesionados, representa el 0 % del total de Activo, que comparado al periodo anterior genera una variación absoluta de ¢0,00 que corresponde a un(a) Aumento del 0 % de recursos disponibles.
A75: 1.2.6.01. | B75: Propiedades, planta y equipos concesionados | D75: =SUMIF(BCPAC!$B$10:$B$8000,$A75,BCPAC!$G$10:$G$8000)/1000 -> 0 | E75: =+IFERROR(D75/$D$91,0) -> 0 | F75: =SUMIF(BCPAN!$B$10:$B$8000,$A75,BCPAN!$G$10:$G$8000)/1000 -> 0 | G75: =+IFERROR(F75/$F$91,0) -> 0 | H75: 0 | I75: =+IFERROR(H75/F75,0) -> 0 | J75: =+FIXED(E75,4) -> 0,0000 | K75: =+FIXED(I75,4) -> 0,0000 | L75: =+FIXED(H75,2) -> 0,00 | M75: Aumento | N75: Activo | O75: =+CONCATENATE(Texto!$B$4,AnalisisBS!B75,Texto!$B$6,(AnalisisBS!J75*100),Texto!$B$8,N75,Texto!$B$12,AnalisisBS!L75,Texto!$B$14,AnalisisBS!M75,Texto!$B$16,(AnalisisBS!K75*100),Texto!$B$18) -> La cuenta Propiedades, planta y equipos concesionados, representa el 0 % del total de Activo, que comparado al periodo anterior genera una variación absoluta de ¢0,00 que corresponde a un(a) Aumento del 0 % de recursos disponibles.
A76: 1.2.6.03. | B76: Activos biológicos concesionados | D76: =SUMIF(BCPAC!$B$10:$B$8000,$A76,BCPAC!$G$10:$G$8000)/1000 -> 0 | E76: 0 | F76: =SUMIF(BCPAN!$B$10:$B$8000,$A76,BCPAN!$G$10:$G$8000)/1000 -> 0 | G76: 0 | H76: 0 | I76: 0 | J76: =+FIXED(E76,4) -> 0,0000 | K76: =+FIXED(I76,4) -> 0,0000 | L76: =+FIXED(H76,2) -> 0,00 | M76: Aumento | N76: Activo | O76: =+CONCATENATE(Texto!$B$4,AnalisisBS!B76,Texto!$B$6,(AnalisisBS!J76*100),Texto!$B$8,N76,Texto!$B$12,AnalisisBS!L76,Texto!$B$14,AnalisisBS!M76,Texto!$B$16,(AnalisisBS!K76*100),Texto!$B$18) -> La cuenta Activos biológicos concesionados, representa el 0 % del total de Activo, que comparado al periodo anterior genera una variación absoluta de ¢0,00 que corresponde a un(a) Aumento del 0 % de recursos disponibles.
A77: 1.2.6.04. | B77: Bienes de infraestructura y de beneficio y uso público concesionados | D77: =SUMIF(BCPAC!$B$10:$B$8000,$A77,BCPAC!$G$10:$G$8000)/1000 -> 0 | E77: 0 | F77: =SUMIF(BCPAN!$B$10:$B$8000,$A77,BCPAN!$G$10:$G$8000)/1000 -> 0 | G77: 0 | H77: 0 | I77: 0 | J77: 0,0000 | K77: 0,0000 | L77: 0,00 | M77: Aumento | N77: Activo | O77: =+CONCATENATE(Texto!$B$4,AnalisisBS!B77,Texto!$B$6,(AnalisisBS!J77*100),Texto!$B$8,N77,Texto!$B$12,AnalisisBS!L77,Texto!$B$14,AnalisisBS!M77,Texto!$B$16,(AnalisisBS!K77*100),Texto!$B$18) -> La cuenta Bienes de infraestructura y de beneficio y uso público concesionados, representa el 0 % del total de Activo, que comparado al periodo anterior genera una variación absoluta de ¢0,00 que corresponde a un(a) Aumento del 0 % de recursos disponibles.
A78: 1.2.6.06. | B78: Recursos naturales concesionados | D78: =SUMIF(BCPAC!$B$10:$B$8000,$A78,BCPAC!$G$10:$G$8000)/1000 -> 0 | E78: 0 | F78: =SUMIF(BCPAN!$B$10:$B$8000,$A78,BCPAN!$G$10:$G$8000)/1000 -> 0 | G78: 0 | H78: 0 | I78: 0 | J78: 0,0000 | K78: 0,0000 | L78: 0,00 | M78: Aumento | N78: Activo | O78: =+CONCATENATE(Texto!$B$4,AnalisisBS!B78,Texto!$B$6,(AnalisisBS!J78*100),Texto!$B$8,N78,Texto!$B$12,AnalisisBS!L78,Texto!$B$14,AnalisisBS!M78,Texto!$B$16,(AnalisisBS!K78*100),Texto!$B$18) -> La cuenta Recursos naturales concesionados, representa el 0 % del total de Activo, que comparado al periodo anterior genera una variación absoluta de ¢0,00 que corresponde a un(a) Aumento del 0 % de recursos disponibles.
A79: 1.2.6.08. | B79: Bienes intangibles concesionados | D79: =SUMIF(BCPAC!$B$10:$B$8000,$A79,BCPAC!$G$10:$G$8000)/1000 -> 0 | E79: 0 | F79: =SUMIF(BCPAN!$B$10:$B$8000,$A79,BCPAN!$G$10:$G$8000)/1000 -> 0 | G79: 0 | H79: 0 | I79: 0 | J79: 0,0000 | K79: 0,0000 | L79: 0,00 | M79: Aumento | N79: Activo | O79: =+CONCATENATE(Texto!$B$4,AnalisisBS!B79,Texto!$B$6,(AnalisisBS!J79*100),Texto!$B$8,N79,Texto!$B$12,AnalisisBS!L79,Texto!$B$14,AnalisisBS!M79,Texto!$B$16,(AnalisisBS!K79*100),Texto!$B$18) -> La cuenta Bienes intangibles concesionados, representa el 0 % del total de Activo, que comparado al periodo anterior genera una variación absoluta de ¢0,00 que corresponde a un(a) Aumento del 0 % de recursos disponibles.
A80: 1.2.6.99. | B80: Bienes concesionados en proceso de producción | D80: =SUMIF(BCPAC!$B$10:$B$8000,$A80,BCPAC!$G$10:$G$8000)/1000 -> 0 | E80: 0 | F80: =SUMIF(BCPAN!$B$10:$B$8000,$A80,BCPAN!$G$10:$G$8000)/1000 -> 0 | G80: 0 | H80: 0 | I80: 0 | J80: 0,0000 | K80: 0,0000 | L80: 0,00 | M80: Aumento | N80: Activo | O80: =+CONCATENATE(Texto!$B$4,AnalisisBS!B80,Texto!$B$6,(AnalisisBS!J80*100),Texto!$B$8,N80,Texto!$B$12,AnalisisBS!L80,Texto!$B$14,AnalisisBS!M80,Texto!$B$16,(AnalisisBS!K80*100),Texto!$B$18) -> La cuenta Bienes concesionados en proceso de producción, representa el 0 % del total de Activo, que comparado al periodo anterior genera una variación absoluta de ¢0,00 que corresponde a un(a) Aumento del 0 % de recursos disponibles.
A81: 1.2.7. | B81: Inversiones patrimoniales - Método de participación | C81: 12 | D81: =SUM(D82:D85) -> 0 | E81: =+IFERROR(D81/$D$91,0) -> 0 | F81: =SUM(F82:F85) -> 0 | G81: =+IFERROR(F81/$F$91,0) -> 0 | H81: 0 | I81: =+IFERROR(H81/F81,0) -> 0 | J81: =+FIXED(E81,4) -> 0,0000 | K81: =+FIXED(I81,4) -> 0,0000 | L81: =+FIXED(H81,2) -> 0,00 | M81: Aumento | N81: Activo | O81: =+CONCATENATE(Texto!$B$4,AnalisisBS!B81,Texto!$B$6,(AnalisisBS!J81*100),Texto!$B$8,N81,Texto!$B$12,AnalisisBS!L81,Texto!$B$14,AnalisisBS!M81,Texto!$B$16,(AnalisisBS!K81*100),Texto!$B$18) -> La cuenta Inversiones patrimoniales - Método de participación, representa el 0 % del total de Activo, que comparado al periodo anterior genera una variación absoluta de ¢0,00 que corresponde a un(a) Aumento del 0 % de recursos disponibles.
A82: 1.2.7.01. | B82: Inversiones patrimoniales en el sector privado interno | D82: =SUMIF(BCPAC!$B$10:$B$8000,$A82,BCPAC!$G$10:$G$8000)/1000 -> 0 | E82: =+IFERROR(D82/$D$91,0) -> 0 | F82: =SUMIF(BCPAN!$B$10:$B$8000,$A82,BCPAN!$G$10:$G$8000)/1000 -> 0 | G82: =+IFERROR(F82/$F$91,0) -> 0 | H82: 0 | I82: =+IFERROR(H82/F82,0) -> 0
A83: 1.2.7.02. | B83: Inversiones patrimoniales en el sector público interno | D83: =SUMIF(BCPAC!$B$10:$B$8000,$A83,BCPAC!$G$10:$G$8000)/1000 -> 0 | E83: 0 | F83: =SUMIF(BCPAN!$B$10:$B$8000,$A83,BCPAN!$G$10:$G$8000)/1000 -> 0 | G83: 0 | H83: 0 | I83: 0
A84: 1.2.7.03. | B84: Inversiones patrimoniales en el sector externo | D84: =SUMIF(BCPAC!$B$10:$B$8000,$A84,BCPAC!$G$10:$G$8000)/1000 -> 0 | E84: 0 | F84: =SUMIF(BCPAN!$B$10:$B$8000,$A84,BCPAN!$G$10:$G$8000)/1000 -> 0 | G84: 0 | H84: 0 | I84: 0
A85: 1.2.7.04. | B85: Inversiones patrimoniales en fideicomisos | D85: =SUMIF(BCPAC!$B$10:$B$8000,$A85,BCPAC!$G$10:$G$8000)/1000 -> 0 | E85: 0 | F85: =SUMIF(BCPAN!$B$10:$B$8000,$A85,BCPAN!$G$10:$G$8000)/1000 -> 0 | G85: 0 | H85: 0 | I85: 0
A86: 1.2.9. | B86: Otros activos a largo plazo | C86: 13 | D86: =SUM(D87:D89) -> 0 | E86: =+IFERROR(D86/$D$91,0) -> 0 | F86: =SUM(F87:F89) -> 0 | G86: =+IFERROR(F86/$F$91,0) -> 0 | H86: 0 | I86: =+IFERROR(H86/F86,0) -> 0 | J86: =+FIXED(E86,4) -> 0,0000 | K86: =+FIXED(I86,4) -> 0,0000 | L86: =+FIXED(H86,2) -> 0,00 | M86: =IF(H86 < 0, "Disminución", "Aumento") -> Aumento | N86: Activo | O86: =+CONCATENATE(Texto!$B$4,AnalisisBS!B86,Texto!$B$6,(AnalisisBS!J86*100),Texto!$B$8,N86,Texto!$B$12,AnalisisBS!L86,Texto!$B$14,AnalisisBS!M86,Texto!$B$16,(AnalisisBS!K86*100),Texto!$B$18) -> La cuenta Otros activos a largo plazo, representa el 0 % del total de Activo, que comparado al periodo anterior genera una variación absoluta de ¢0,00 que corresponde a un(a) Aumento del 0 % de recursos disponibles.
A87: 1.2.9.01. | B87: Gastos a devengar a largo plazo | D87: =SUMIF(BCPAC!$B$10:$B$8000,$A87,BCPAC!$G$10:$G$8000)/1000 -> 0 | E87: =+IFERROR(D87/$D$91,0) -> 0 | F87: =SUMIF(BCPAN!$B$10:$B$8000,$A87,BCPAN!$G$10:$G$8000)/1000 -> 0 | G87: =+IFERROR(F87/$F$91,0) -> 0 | H87: 0 | I87: =+IFERROR(H87/F87,0) -> 0 | J87: =+FIXED(E87,4) -> 0,0000 | K87: =+FIXED(I87,4) -> 0,0000 | L87: =+FIXED(H87,2) -> 0,00 | M87: =IF(H87 < 0, "Disminución", "Aumento") -> Aumento | N87: Activo | O87: =+CONCATENATE(Texto!$B$4,AnalisisBS!B87,Texto!$B$6,(AnalisisBS!J87*100),Texto!$B$8,N87,Texto!$B$12,AnalisisBS!L87,Texto!$B$14,AnalisisBS!M87,Texto!$B$16,(AnalisisBS!K87*100),Texto!$B$18) -> La cuenta Gastos a devengar a largo plazo, representa el 0 % del total de Activo, que comparado al periodo anterior genera una variación absoluta de ¢0,00 que corresponde a un(a) Aumento del 0 % de recursos disponibles.
A88: 1.2.9.03. | B88: Objetos de valor | D88: =SUMIF(BCPAC!$B$10:$B$8000,$A88,BCPAC!$G$10:$G$8000)/1000 -> 0 | E88: 0 | F88: =SUMIF(BCPAN!$B$10:$B$8000,$A88,BCPAN!$G$10:$G$8000)/1000 -> 0 | G88: 0 | H88: 0 | I88: 0
A89: 1.2.9.99. | B89: Activos a largo plazo sujetos a depuración contable | D89: =SUMIF(BCPAC!$B$10:$B$8000,$A89,BCPAC!$G$10:$G$8000)/1000 -> 0 | E89: =+IFERROR(D89/$D$91,0) -> 0 | F89: =SUMIF(BCPAN!$B$10:$B$8000,$A89,BCPAN!$G$10:$G$8000)/1000 -> 0 | G89: 0 | H89: 0 | I89: 0
B90: Total del Activo no Corriente | D90: =+D86+D81+D74+D64+D56+D50 -> 162965494 | E90: 0.9653992857 | F90: 162705367.8 | G90: 0.9656419543 | H90: 260126.2281 | I90: =+IFERROR(H90/F90,0) -> 0.001598756277
B91: TOTAL DEL ACTIVO | D91: =+D90+D47 -> 168806313 | E91: 1 | F91: 168494509.9 | G91: 1 | H91: 311803.1801 | I91: =+IFERROR(H91/F91,0) -> 0.001850524271
A93: 2. | B93: PASIVO
A94: 2.1. | B94: Pasivo Corriente
A95: 2.1.1. | B95: Deudas a corto plazo | C95: 14 | D95: =SUM(D96:D105) -> 239029.7017 | E95: =+IFERROR(D95/$D$151,0) -> 0.1294559488 | F95: =SUM(F96:F105) -> 340728.0141 | G95: =+IFERROR(F95/$F$151,0) -> 0.1244641799 | H95: =+D95-F95 -> -101698.3124 | I95: =+IFERROR(H95/F95,0) -> -0.2984735866 | J95: =+FIXED(E95,4) -> 0,1295 | K95: =+FIXED(I95,4) -> -0,2985 | L95: =+FIXED(H95,2) -> -101 698,31 | M95: =IF(H95 < 0, "Disminución", "Aumento") -> Disminución | N95: Pasivo | O95: =+CONCATENATE(Texto!$B$4,AnalisisBS!B95,Texto!$B$6,(AnalisisBS!J95*100),Texto!$B$8,N95,Texto!$B$12,AnalisisBS!L95,Texto!$B$14,AnalisisBS!M95,Texto!$B$16,(AnalisisBS!K95*100),Texto!$B$18) -> La cuenta Deudas a corto plazo, representa el 12,95 % del total de Pasivo, que comparado al periodo anterior genera una variación absoluta de ¢-101 698,31 que corresponde a un(a) Disminución del -29,85 % de recursos disponibles.
A96: 2.1.1.01. | B96: Deudas comerciales a corto plazo | D96: =SUMIF(BCPAC!$B$10:$B$8000,$A96,BCPAC!$G$10:$G$8000)/1000 -> 140741.7424 | E96: 0.07622423355 | F96: =SUMIF(BCPAN!$B$10:$B$8000,$A96,BCPAN!$G$10:$G$8000)/1000 -> 196506.7077 | G96: 0.07178172976 | H96: -55764.96531 | I96: =+IFERROR(H96/F96,0) -> -0.2837814849
A97: 2.1.1.02. | B97: Deudas sociales y fiscales a corto plazo | D97: =SUMIF(BCPAC!$B$10:$B$8000,$A97,BCPAC!$G$10:$G$8000)/1000 -> 72095.46516 | E97: 0.03904613855 | F97: =SUMIF(BCPAN!$B$10:$B$8000,$A97,BCPAN!$G$10:$G$8000)/1000 -> 135782.6762 | G97: 0.0495999118 | H97: -63687.21109 | I97: -0.4690378246 | J97: =+FIXED(E97,4) -> 0,0390 | K97: =+FIXED(I97,4) -> -0,4690 | L97: =+FIXED(H97,2) -> -63 687,21 | M97: =IF(H97 < 0, "Disminución", "Aumento") -> Disminución | N97: Pasivo | O97: =+CONCATENATE(Texto!$B$4,AnalisisBS!B97,Texto!$B$6,(AnalisisBS!J97*100),Texto!$B$8,N97,Texto!$B$12,AnalisisBS!L97,Texto!$B$14,AnalisisBS!M97,Texto!$B$16,(AnalisisBS!K97*100),Texto!$B$18) -> La cuenta Deudas sociales y fiscales a corto plazo, representa el 3,9 % del total de Pasivo, que comparado al periodo anterior genera una variación absoluta de ¢-63 687,21 que corresponde a un(a) Disminución del -46,9 % de recursos disponibles.
A98: 2.1.1.03. | B98: Transferencias a pagar a corto plazo | D98: =SUMIF(BCPAC!$B$10:$B$8000,$A98,BCPAC!$G$10:$G$8000)/1000 -> 26192.49409 | E98: 0.01418557673 | F98: =SUMIF(BCPAN!$B$10:$B$8000,$A98,BCPAN!$G$10:$G$8000)/1000 -> 8438.63011 | G98: 0.003082538368 | H98: 17753.86398 | I98: 2.103879865 | J98: =+FIXED(E98,4) -> 0,0142 | K98: =+FIXED(I98,4) -> 2,1039 | L98: =+FIXED(H98,2) -> 17 753,86 | M98: =IF(H98 < 0, "Disminución", "Aumento") -> Aumento | N98: Pasivo | O98: =+CONCATENATE(Texto!$B$4,AnalisisBS!B98,Texto!$B$6,(AnalisisBS!J98*100),Texto!$B$8,N98,Texto!$B$12,AnalisisBS!L98,Texto!$B$14,AnalisisBS!M98,Texto!$B$16,(AnalisisBS!K98*100),Texto!$B$18) -> La cuenta Transferencias a pagar a corto plazo, representa el 1,42 % del total de Pasivo, que comparado al periodo anterior genera una variación absoluta de ¢17 753,86 que corresponde a un(a) Aumento del 210,39 % de recursos disponibles.
A99: 2.1.1.04. | B99: Documentos a pagar a corto plazo | D99: =SUMIF(BCPAC!$B$10:$B$8000,$A99,BCPAC!$G$10:$G$8000)/1000 -> 0 | E99: 0 | F99: =SUMIF(BCPAN!$B$10:$B$8000,$A99,BCPAN!$G$10:$G$8000)/1000 -> 0 | G99: 0 | H99: 0 | I99: 0
A100: 2.1.1.05. | B100: Inversiones patrimoniales a pagar a corto plazo | D100: =SUMIF(BCPAC!$B$10:$B$8000,$A100,BCPAC!$G$10:$G$8000)/1000 -> 0 | E100: 0 | F100: =SUMIF(BCPAN!$B$10:$B$8000,$A100,BCPAN!$G$10:$G$8000)/1000 -> 0 | G100: 0 | H100: 0 | I100: 0
A101: 2.1.1.06. | B101: Deudas por avales ejecutados a corto plazo | D101: =SUMIF(BCPAC!$B$10:$B$8000,$A101,BCPAC!$G$10:$G$8000)/1000 -> 0 | E101: 0 | F101: =SUMIF(BCPAN!$B$10:$B$8000,$A101,BCPAN!$G$10:$G$8000)/1000 -> 0 | G101: 0 | H101: 0 | I101: 0
A102: 2.1.1.07. | B102: Deudas por anticipos a corto plazo | D102: =SUMIF(BCPAC!$B$10:$B$8000,$A102,BCPAC!$G$10:$G$8000)/1000 -> 0 | E102: 0 | F102: =SUMIF(BCPAN!$B$10:$B$8000,$A102,BCPAN!$G$10:$G$8000)/1000 -> 0 | G102: 0 | H102: 0 | I102: 0
A103: 2.1.1.08. | B103: Deudas por Planillas salariales | D103: =SUMIF(BCPAC!$B$10:$B$8000,$A103,BCPAC!$G$10:$G$8000)/1000 -> 0 | E103: 0 | F103: =SUMIF(BCPAN!$B$10:$B$8000,$A103,BCPAN!$G$10:$G$8000)/1000 -> 0 | G103: 0 | H103: 0 | I103: 0
A104: 2.1.1.13. | B104: Deudas por Creditos Fiscales a favor de terceros c/p | D104: =SUMIF(BCPAC!$B$10:$B$8000,$A104,BCPAC!$G$10:$G$8000)/1000 -> 0 | E104: 0 | F104: =SUMIF(BCPAN!$B$10:$B$8000,$A104,BCPAN!$G$10:$G$8000)/1000 -> 0 | G104: 0 | H104: 0 | I104: 0
A105: 2.1.1.99. | B105: Otras deudas a corto plazo | D105: =SUMIF(BCPAC!$B$10:$B$8000,$A105,BCPAC!$G$10:$G$8000)/1000 -> 0 | E105: 0 | F105: =SUMIF(BCPAN!$B$10:$B$8000,$A105,BCPAN!$G$10:$G$8000)/1000 -> 0 | G105: 0 | H105: 0 | I105: 0
A106: 2.1.2. | B106: Endeudamiento público a corto plazo | C106: 15 | D106: =SUM(D107:D111) -> 485546.5996 | E106: 0.2629668837 | F106: =SUM(F107:F111) -> 329795.988 | G106: 0.1204708315 | H106: 155750.6117 | I106: =+IFERROR(H106/F106,0) -> 0.4722635125 | J106: =+FIXED(E106,4) -> 0,2630 | K106: =+FIXED(I106,4) -> 0,4723 | L106: =+FIXED(H106,2) -> 155 750,61 | M106: =IF(H106 < 0, "Disminución", "Aumento") -> Aumento | N106: Pasivo | O106: =+CONCATENATE(Texto!$B$4,AnalisisBS!B106,Texto!$B$6,(AnalisisBS!J106*100),Texto!$B$8,N106,Texto!$B$12,AnalisisBS!L106,Texto!$B$14,AnalisisBS!M106,Texto!$B$16,(AnalisisBS!K106*100),Texto!$B$18) -> La cuenta Endeudamiento público a corto plazo, representa el 26,3 % del total de Pasivo, que comparado al periodo anterior genera una variación absoluta de ¢155 750,61 que corresponde a un(a) Aumento del 47,23 % de recursos disponibles.
A107: 2.1.2.01. | B107: Títulos y valores de la deuda pública a pagar a corto plazo | D107: =SUMIF(BCPAC!$B$10:$B$8000,$A107,BCPAC!$G$10:$G$8000)/1000 -> 0 | E107: 0 | F107: =SUMIF(BCPAN!$B$10:$B$8000,$A107,BCPAN!$G$10:$G$8000)/1000 -> 0 | G107: 0 | H107: 0 | I107: =+IFERROR(H107/F107,0) -> 0
A108: 2.1.2.02. | B108: Préstamos a pagar a corto plazo | D108: =SUMIF(BCPAC!$B$10:$B$8000,$A108,BCPAC!$G$10:$G$8000)/1000 -> 485546.5996 | E108: 0.2629668837 | F108: =SUMIF(BCPAN!$B$10:$B$8000,$A108,BCPAN!$G$10:$G$8000)/1000 -> 329795.988 | G108: 0.1204708315 | H108: 155750.6117 | I108: 0.4722635125
A109: 2.1.2.03. | B109: Deudas asumidas a corto plazo | D109: =SUMIF(BCPAC!$B$10:$B$8000,$A109,BCPAC!$G$10:$G$8000)/1000 -> 0 | E109: 0 | F109: =SUMIF(BCPAN!$B$10:$B$8000,$A109,BCPAN!$G$10:$G$8000)/1000 -> 0 | G109: 0 | H109: 0 | I109: 0
A110: 2.1.2.04. | B110: Endeudamiento de Tesorería a corto plazo | D110: =SUMIF(BCPAC!$B$10:$B$8000,$A110,BCPAC!$G$10:$G$8000)/1000 -> 0 | E110: 0 | F110: =SUMIF(BCPAN!$B$10:$B$8000,$A110,BCPAN!$G$10:$G$8000)/1000 -> 0 | G110: 0 | H110: 0 | I110: 0
A111: 2.1.2.05. | B111: Endeudamiento público a valor razonable | D111: =SUMIF(BCPAC!$B$10:$B$8000,$A111,BCPAC!$G$10:$G$8000)/1000 -> 0 | E111: 0 | F111: =SUMIF(BCPAN!$B$10:$B$8000,$A111,BCPAN!$G$10:$G$8000)/1000 -> 0 | G111: 0 | H111: 0 | I111: 0
A112: 2.1.3. | B112: Fondos de terceros y en garantía | C112: 16 | D112: =SUM(D113:D117) -> 51401.59523 | E112: 0.02783855829 | F112: =SUM(F113:F117) -> 913377.1952 | G112: 0.3336466004 | H112: -861975.6 | I112: =+IFERROR(H112/F112,0) -> -0.9437235838 | J112: =+FIXED(E112,4) -> 0,0278 | K112: =+FIXED(I112,4) -> -0,9437 | L112: =+FIXED(H112,2) -> -861 975,60 | M112: =IF(H112 < 0, "Disminución", "Aumento") -> Disminución | N112: Pasivo | O112: =+CONCATENATE(Texto!$B$4,AnalisisBS!B112,Texto!$B$6,(AnalisisBS!J112*100),Texto!$B$8,N112,Texto!$B$12,AnalisisBS!L112,Texto!$B$14,AnalisisBS!M112,Texto!$B$16,(AnalisisBS!K112*100),Texto!$B$18) -> La cuenta Fondos de terceros y en garantía, representa el 2,78 % del total de Pasivo, que comparado al periodo anterior genera una variación absoluta de ¢-861 975,60 que corresponde a un(a) Disminución del -94,37 % de recursos disponibles.
A113: 2.1.3.01. | B113: Fondos de terceros en la Caja Única | D113: =SUMIF(BCPAC!$B$10:$B$8000,$A113,BCPAC!$G$10:$G$8000)/1000 -> 0 | E113: 0 | F113: =SUMIF(BCPAN!$B$10:$B$8000,$A113,BCPAN!$G$10:$G$8000)/1000 -> 0 | G113: 0 | H113: 0 | I113: =+IFERROR(H113/F113,0) -> 0
A114: 2.1.3.02. | B114: Recaudación por cuenta de terceros | D114: =SUMIF(BCPAC!$B$10:$B$8000,$A114,BCPAC!$G$10:$G$8000)/1000 -> 0 | E114: 0 | F114: =SUMIF(BCPAN!$B$10:$B$8000,$A114,BCPAN!$G$10:$G$8000)/1000 -> 0 | G114: 0 | H114: 0 | I114: 0
A115: 2.1.3.03. | B115: Depósitos en garantía | D115: =SUMIF(BCPAC!$B$10:$B$8000,$A115,BCPAC!$G$10:$G$8000)/1000 -> 51401.59523 | E115: 0.02783855829 | F115: =SUMIF(BCPAN!$B$10:$B$8000,$A115,BCPAN!$G$10:$G$8000)/1000 -> 72428.85758 | G115: 0.02645746164 | H115: -21027.26235 | I115: -0.2903160847 | J115: =+FIXED(E115,4) -> 0,0278 | K115: =+FIXED(I115,4) -> -0,2903 | L115: =+FIXED(H115,2) -> -21 027,26 | M115: =IF(H115 < 0, "Disminución", "Aumento") -> Disminución | N115: Pasivo | O115: =+CONCATENATE(Texto!$B$4,AnalisisBS!B115,Texto!$B$6,(AnalisisBS!J115*100),Texto!$B$8,N115,Texto!$B$12,AnalisisBS!L115,Texto!$B$14,AnalisisBS!M115,Texto!$B$16,(AnalisisBS!K115*100),Texto!$B$18) -> La cuenta Depósitos en garantía, representa el 2,78 % del total de Pasivo, que comparado al periodo anterior genera una variación absoluta de ¢-21 027,26 que corresponde a un(a) Disminución del -29,03 % de recursos disponibles.
A116: 2.1.3.90. | B116: Cuentas Asociadas ( Deudores ) CP | D116: =SUMIF(BCPAC!$B$10:$B$8000,$A116,BCPAC!$G$10:$G$8000)/1000 -> 0 | E116: 0 | F116: =SUMIF(BCPAN!$B$10:$B$8000,$A116,BCPAN!$G$10:$G$8000)/1000 -> 0 | G116: 0 | H116: 0 | I116: 0
A117: 2.1.3.99. | B117: Otros fondos de terceros | D117: =SUMIF(BCPAC!$B$10:$B$8000,$A117,BCPAC!$G$10:$G$8000)/1000 -> 0 | E117: 0 | F117: =SUMIF(BCPAN!$B$10:$B$8000,$A117,BCPAN!$G$10:$G$8000)/1000 -> 840948.3377 | G117: 0.3071891388 | H117: -840948.3377 | I117: -1
A118: 2.1.4. | B118: Provisiones y reservas técnicas a corto plazo | C118: 17 | D118: =SUM(D119:D120) -> 0 | E118: 0 | F118: =SUM(F119:F120) -> 0 | G118: 0 | H118: 0 | I118: =+IFERROR(H118/F118,0) -> 0 | J118: =+FIXED(E118,4) -> 0,0000 | K118: =+FIXED(I118,4) -> 0,0000 | L118: =+FIXED(H118,2) -> 0,00 | M118: =IF(H118 < 0, "Disminución", "Aumento") -> Aumento | N118: Pasivo | O118: =+CONCATENATE(Texto!$B$4,AnalisisBS!B118,Texto!$B$6,(AnalisisBS!J118*100),Texto!$B$8,N118,Texto!$B$12,AnalisisBS!L118,Texto!$B$14,AnalisisBS!M118,Texto!$B$16,(AnalisisBS!K118*100),Texto!$B$18) -> La cuenta Provisiones y reservas técnicas a corto plazo, representa el 0 % del total de Pasivo, que comparado al periodo anterior genera una variación absoluta de ¢0,00 que corresponde a un(a) Aumento del 0 % de recursos disponibles.
A119: 2.1.4.01. | B119: Provisiones a corto plazo | D119: =SUMIF(BCPAC!$B$10:$B$8000,$A119,BCPAC!$G$10:$G$8000)/1000 -> 0 | E119: =+IFERROR(D119/$D$151,0) -> 0 | F119: =SUMIF(BCPAN!$B$10:$B$8000,$A119,BCPAN!$G$10:$G$8000)/1000 -> 0 | G119: =+IFERROR(F119/$F$151,0) -> 0 | H119: 0 | I119: =+IFERROR(H119/F119,0) -> 0 | J119: =+FIXED(E119,4) -> 0,0000 | K119: =+FIXED(I119,4) -> 0,0000 | L119: =+FIXED(H119,2) -> 0,00 | M119: =IF(H119 < 0, "Disminución", "Aumento") -> Aumento | N119: Pasivo | O119: =+CONCATENATE(Texto!$B$4,AnalisisBS!B119,Texto!$B$6,(AnalisisBS!J119*100),Texto!$B$8,N119,Texto!$B$12,AnalisisBS!L119,Texto!$B$14,AnalisisBS!M119,Texto!$B$16,(AnalisisBS!K119*100),Texto!$B$18) -> La cuenta Provisiones a corto plazo, representa el 0 % del total de Pasivo, que comparado al periodo anterior genera una variación absoluta de ¢0,00 que corresponde a un(a) Aumento del 0 % de recursos disponibles.
A120: 2.1.4.02. | B120: Reservas técnicas a corto plazo | D120: =SUMIF(BCPAC!$B$10:$B$8000,$A120,BCPAC!$G$10:$G$8000)/1000 -> 0 | E120: 0 | F120: =SUMIF(BCPAN!$B$10:$B$8000,$A120,BCPAN!$G$10:$G$8000)/1000 -> 0 | G120: 0 | H120: 0 | I120: 0
A121: 2.1.9. | B121: Otros pasivos a corto plazo | C121: 18 | D121: =SUM(D122:D124) -> 0 | E121: =+IFERROR(D121/$D$151,0) -> 0 | F121: =SUM(F122:F124) -> 556.53649 | G121: =+IFERROR(F121/$F$151,0) -> 0.0002032966324 | H121: -556.53649 | I121: =+IFERROR(H121/F121,0) -> -1 | J121: =+FIXED(E121,4) -> 0,0000 | K121: =+FIXED(I121,4) -> -1,0000 | L121: =+FIXED(H121,2) -> -556,54 | M121: =IF(H121 < 0, "Disminución", "Aumento") -> Disminución | N121: Pasivo | O121: =+CONCATENATE(Texto!$B$4,AnalisisBS!B121,Texto!$B$6,(AnalisisBS!J121*100),Texto!$B$8,N121,Texto!$B$12,AnalisisBS!L121,Texto!$B$14,AnalisisBS!M121,Texto!$B$16,(AnalisisBS!K121*100),Texto!$B$18) -> La cuenta Otros pasivos a corto plazo, representa el 0 % del total de Pasivo, que comparado al periodo anterior genera una variación absoluta de ¢-556,54 que corresponde a un(a) Disminución del -100 % de recursos disponibles.
A122: 2.1.9.01. | B122: Ingresos a devengar a corto plazo | D122: =SUMIF(BCPAC!$B$10:$B$8000,$A122,BCPAC!$G$10:$G$8000)/1000 -> 0 | E122: =+IFERROR(D122/$D$151,0) -> 0 | F122: =SUMIF(BCPAN!$B$10:$B$8000,$A122,BCPAN!$G$10:$G$8000)/1000 -> 0 | G122: =+IFERROR(F122/$F$151,0) -> 0 | H122: 0 | I122: 0 | J122: =+FIXED(E122,4) -> 0,0000 | K122: =+FIXED(I122,4) -> 0,0000 | L122: =+FIXED(H122,2) -> 0,00 | M122: =IF(H122 < 0, "Disminución", "Aumento") -> Aumento | N122: Pasivo | O122: =+CONCATENATE(Texto!$B$4,AnalisisBS!B122,Texto!$B$6,(AnalisisBS!J122*100),Texto!$B$8,N122,Texto!$B$12,AnalisisBS!L122,Texto!$B$14,AnalisisBS!M122,Texto!$B$16,(AnalisisBS!K122*100),Texto!$B$18) -> La cuenta Ingresos a devengar a corto plazo, representa el 0 % del total de Pasivo, que comparado al periodo anterior genera una variación absoluta de ¢0,00 que corresponde a un(a) Aumento del 0 % de recursos disponibles.
A123: 2.1.9.02. | B123: Instrumentos Derivados a pagar a corto plazo | D123: =SUMIF(BCPAC!$B$10:$B$8000,$A123,BCPAC!$G$10:$G$8000)/1000 -> 0 | E123: 0 | F123: =SUMIF(BCPAN!$B$10:$B$8000,$A123,BCPAN!$G$10:$G$8000)/1000 -> 0 | G123: 0 | H123: 0 | I123: 0
A124: 2.1.9.99. | B124: Pasivos a corto plazo sujetos a depuración contable | D124: =SUMIF(BCPAC!$B$10:$B$8000,$A124,BCPAC!$G$10:$G$8000)/1000 -> 0 | E124: 0 | F124: =SUMIF(BCPAN!$B$10:$B$8000,$A124,BCPAN!$G$10:$G$8000)/1000 -> 556.53649 | G124: 0.0002032966324 | H124: -556.53649 | I124: -1
B125: Total del Pasivo Corriente | D125: =+D95+D106+D112+D118+D121 -> 775977.8965 | E125: 0.4202613908 | F125: 1584457.734 | G125: 0.5787849085 | H125: -808479.8373 | I125: =+IFERROR(H125/F125,0) -> -0.5102564871
A127: 2.2. | B127: Pasivo No Corriente
A128: 2.2.1. | B128: Deudas a largo plazo | C128: 19 | D128: =SUM(D129:D135) -> 0 | E128: =+IFERROR(D128/$D$151,0) -> 0 | F128: =SUM(F129:F135) -> 0 | G128: =+IFERROR(F128/$F$151,0) -> 0 | H128: =+D128-F128 -> 0 | I128: =+IFERROR(H128/F128,0) -> 0 | J128: =+FIXED(E128,4) -> 0,0000 | K128: =+FIXED(I128,4) -> 0,0000 | L128: =+FIXED(H128,2) -> 0,00 | M128: =IF(H128 < 0, "Disminución", "Aumento") -> Aumento | N128: Pasivo | O128: =+CONCATENATE(Texto!$B$4,AnalisisBS!B128,Texto!$B$6,(AnalisisBS!J128*100),Texto!$B$8,N128,Texto!$B$12,AnalisisBS!L128,Texto!$B$14,AnalisisBS!M128,Texto!$B$16,(AnalisisBS!K128*100),Texto!$B$18) -> La cuenta Deudas a largo plazo, representa el 0 % del total de Pasivo, que comparado al periodo anterior genera una variación absoluta de ¢0,00 que corresponde a un(a) Aumento del 0 % de recursos disponibles.
A129: 2.2.1.01. | B129: Deudas comerciales a largo plazo | D129: =SUMIF(BCPAC!$B$10:$B$8000,$A129,BCPAC!$G$10:$G$8000)/1000 -> 0 | E129: =+IFERROR(D129/$D$151,0) -> 0 | F129: =SUMIF(BCPAN!$B$10:$B$8000,$A129,BCPAN!$G$10:$G$8000)/1000 -> 0 | G129: =+IFERROR(F129/$F$151,0) -> 0 | H129: 0 | I129: =+IFERROR(H129/F129,0) -> 0
A130: 2.2.1.02. | B130: Deudas sociales y fiscales a largo plazo | D130: =SUMIF(BCPAC!$B$10:$B$8000,$A130,BCPAC!$G$10:$G$8000)/1000 -> 0 | E130: 0 | F130: =SUMIF(BCPAN!$B$10:$B$8000,$A130,BCPAN!$G$10:$G$8000)/1000 -> 0 | G130: 0 | H130: 0 | I130: 0
A131: 2.2.1.04. | B131: Documentos a pagar a largo plazo | D131: =SUMIF(BCPAC!$B$10:$B$8000,$A131,BCPAC!$G$10:$G$8000)/1000 -> 0 | E131: 0 | F131: =SUMIF(BCPAN!$B$10:$B$8000,$A131,BCPAN!$G$10:$G$8000)/1000 -> 0 | G131: 0 | H131: 0 | I131: 0
A132: 2.2.1.05. | B132: Inversiones patrimoniales a pagar a largo plazo | D132: =SUMIF(BCPAC!$B$10:$B$8000,$A132,BCPAC!$G$10:$G$8000)/1000 -> 0 | E132: 0 | F132: =SUMIF(BCPAN!$B$10:$B$8000,$A132,BCPAN!$G$10:$G$8000)/1000 -> 0 | G132: 0 | H132: 0 | I132: 0
A133: 2.2.1.06. | B133: Deudas por avales ejecutados a largo plazo | D133: =SUMIF(BCPAC!$B$10:$B$8000,$A133,BCPAC!$G$10:$G$8000)/1000 -> 0 | E133: 0 | F133: =SUMIF(BCPAN!$B$10:$B$8000,$A133,BCPAN!$G$10:$G$8000)/1000 -> 0 | G133: 0 | H133: 0 | I133: 0
A134: 2.2.1.07. | B134: Deudas por anticipos a largo plazo | D134: =SUMIF(BCPAC!$B$10:$B$8000,$A134,BCPAC!$G$10:$G$8000)/1000 -> 0 | E134: 0 | F134: =SUMIF(BCPAN!$B$10:$B$8000,$A134,BCPAN!$G$10:$G$8000)/1000 -> 0 | G134: 0 | H134: 0 | I134: 0
A135: 2.2.1.99. | B135: Otras deudas a largo plazo | D135: =SUMIF(BCPAC!$B$10:$B$8000,$A135,BCPAC!$G$10:$G$8000)/1000 -> 0 | E135: 0 | F135: =SUMIF(BCPAN!$B$10:$B$8000,$A135,BCPAN!$G$10:$G$8000)/1000 -> 0 | G135: 0 | H135: 0 | I135: 0
A136: 2.2.2. | B136: Endeudamiento público a largo plazo | C136: 20 | D136: =SUM(D137:D139) -> 1034982.149 | E136: =+IFERROR(D136/$D$151,0) -> 0.5605353444 | F136: =SUM(F137:F139) -> 1153101.091 | G136: =+IFERROR(F136/$F$151,0) -> 0.4212150915 | H136: =+D136-F136 -> -118118.9415 | I136: =+IFERROR(H136/F136,0) -> -0.1024358943 | J136: =+FIXED(E136,4) -> 0,5605 | K136: =+FIXED(I136,4) -> -0,1024 | L136: =+FIXED(H136,2) -> -118 118,94 | M136: =IF(H136 < 0, "Disminución", "Aumento") -> Disminución | N136: Pasivo | O136: =+CONCATENATE(Texto!$B$4,AnalisisBS!B136,Texto!$B$6,(AnalisisBS!J136*100),Texto!$B$8,N136,Texto!$B$12,AnalisisBS!L136,Texto!$B$14,AnalisisBS!M136,Texto!$B$16,(AnalisisBS!K136*100),Texto!$B$18) -> La cuenta Endeudamiento público a largo plazo, representa el 56,05 % del total de Pasivo, que comparado al periodo anterior genera una variación absoluta de ¢-118 118,94 que corresponde a un(a) Disminución del -10,24 % de recursos disponibles.
A137: 2.2.2.01. | B137: Títulos y valores de la deuda pública a pagar a largo plazo | D137: =SUMIF(BCPAC!$B$10:$B$8000,$A137,BCPAC!$G$10:$G$8000)/1000 -> 0 | E137: =+IFERROR(D137/$D$151,0) -> 0 | F137: =SUMIF(BCPAN!$B$10:$B$8000,$A137,BCPAN!$G$10:$G$8000)/1000 -> 0 | G137: =+IFERROR(F137/$F$151,0) -> 0 | H137: =+D137-F137 -> 0 | I137: =+IFERROR(H137/F137,0) -> 0
A138: 2.2.2.02. | B138: Préstamos a pagar a largo plazo | D138: =SUMIF(BCPAC!$B$10:$B$8000,$A138,BCPAC!$G$10:$G$8000)/1000 -> 1034982.149 | E138: 0.5605353444 | F138: =SUMIF(BCPAN!$B$10:$B$8000,$A138,BCPAN!$G$10:$G$8000)/1000 -> 1153101.091 | G138: 0.4212150915 | H138: -118118.9415 | I138: -0.1024358943
A139: 2.2.2.03. | B139: Deudas asumidas a largo plazo | D139: =SUMIF(BCPAC!$B$10:$B$8000,$A139,BCPAC!$G$10:$G$8000)/1000 -> 0 | E139: 0 | F139: =SUMIF(BCPAN!$B$10:$B$8000,$A139,BCPAN!$G$10:$G$8000)/1000 -> 0 | G139: 0 | H139: 0 | I139: 0
A140: 2.2.3. | B140: Fondos de terceros y en garantía | C140: 21 | D140: =SUM(D141:D142) -> 0 | E140: =+IFERROR(D140/$D$151,0) -> 0 | F140: =SUM(F141:F142) -> 0 | G140: =+IFERROR(F140/$F$151,0) -> 0 | H140: 0 | I140: =+IFERROR(H140/F140,0) -> 0 | J140: =+FIXED(E140,4) -> 0,0000 | K140: =+FIXED(I140,4) -> 0,0000 | L140: =+FIXED(H140,2) -> 0,00 | M140: =IF(H140 < 0, "Disminución", "Aumento") -> Aumento | N140: Pasivo | O140: =+CONCATENATE(Texto!$B$4,AnalisisBS!B140,Texto!$B$6,(AnalisisBS!J140*100),Texto!$B$8,N140,Texto!$B$12,AnalisisBS!L140,Texto!$B$14,AnalisisBS!M140,Texto!$B$16,(AnalisisBS!K140*100),Texto!$B$18) -> La cuenta Fondos de terceros y en garantía, representa el 0 % del total de Pasivo, que comparado al periodo anterior genera una variación absoluta de ¢0,00 que corresponde a un(a) Aumento del 0 % de recursos disponibles.
A141: 2.2.3.01. | B141: Fondos de terceros en la Caja Única | D141: =SUMIF(BCPAC!$B$10:$B$8000,$A141,BCPAC!$G$10:$G$8000)/1000 -> 0 | E141: =+IFERROR(D141/$D$151,0) -> 0 | F141: =SUMIF(BCPAN!$B$10:$B$8000,$A141,BCPAN!$G$10:$G$8000)/1000 -> 0 | G141: =+IFERROR(F141/$F$151,0) -> 0 | H141: 0 | I141: =+IFERROR(H141/F141,0) -> 0
A142: 2.2.3.99. | B142: Otros fondos de terceros | D142: =SUMIF(BCPAC!$B$10:$B$8000,$A142,BCPAC!$G$10:$G$8000)/1000 -> 0 | E142: 0 | F142: =SUMIF(BCPAN!$B$10:$B$8000,$A142,BCPAN!$G$10:$G$8000)/1000 -> 0 | G142: 0 | H142: 0 | I142: 0
A143: 2.2.4. | B143: Provisiones y reservas técnicas a largo plazo | C143: 22 | D143: =SUM(D144:D145) -> 35457.24 | E143: =+IFERROR(D143/$D$151,0) -> 0.01920326476 | F143: =SUM(F144:F145) -> 0 | G143: =+IFERROR(F143/$F$151,0) -> 0 | H143: 35457.24 | I143: =+IFERROR(H143/F143,0) -> 0 | J143: =+FIXED(E143,4) -> 0,0192 | K143: =+FIXED(I143,4) -> 0,0000 | L143: =+FIXED(H143,2) -> 35 457,24 | M143: =IF(H143 < 0, "Disminución", "Aumento") -> Aumento | N143: Pasivo | O143: =+CONCATENATE(Texto!$B$4,AnalisisBS!B143,Texto!$B$6,(AnalisisBS!J143*100),Texto!$B$8,N143,Texto!$B$12,AnalisisBS!L143,Texto!$B$14,AnalisisBS!M143,Texto!$B$16,(AnalisisBS!K143*100),Texto!$B$18) -> La cuenta Provisiones y reservas técnicas a largo plazo, representa el 1,92 % del total de Pasivo, que comparado al periodo anterior genera una variación absoluta de ¢35 457,24 que corresponde a un(a) Aumento del 0 % de recursos disponibles.
A144: 2.2.4.01. | B144: Provisiones a largo plazo | D144: =SUMIF(BCPAC!$B$10:$B$8000,$A144,BCPAC!$G$10:$G$8000)/1000 -> 35457.24 | E144: =+IFERROR(D144/$D$151,0) -> 0.01920326476 | F144: =SUMIF(BCPAN!$B$10:$B$8000,$A144,BCPAN!$G$10:$G$8000)/1000 -> 0 | G144: =+IFERROR(F144/$F$151,0) -> 0 | H144: 35457.24 | I144: =+IFERROR(H144/F144,0) -> 0 | J144: =+FIXED(E144,4) -> 0,0192 | K144: =+FIXED(I144,4) -> 0,0000 | L144: =+FIXED(H144,2) -> 35 457,24 | M144: =IF(H144 < 0, "Disminución", "Aumento") -> Aumento | N144: Pasivo | O144: =+CONCATENATE(Texto!$B$4,AnalisisBS!B144,Texto!$B$6,(AnalisisBS!J144*100),Texto!$B$8,N144,Texto!$B$12,AnalisisBS!L144,Texto!$B$14,AnalisisBS!M144,Texto!$B$16,(AnalisisBS!K144*100),Texto!$B$18) -> La cuenta Provisiones a largo plazo, representa el 1,92 % del total de Pasivo, que comparado al periodo anterior genera una variación absoluta de ¢35 457,24 que corresponde a un(a) Aumento del 0 % de recursos disponibles.
A145: 2.2.4.02. | B145: Reservas técnicas a largo plazo | D145: =SUMIF(BCPAC!$B$10:$B$8000,$A145,BCPAC!$G$10:$G$8000)/1000 -> 0 | E145: 0 | F145: =SUMIF(BCPAN!$B$10:$B$8000,$A145,BCPAN!$G$10:$G$8000)/1000 -> 0 | G145: 0 | H145: 0 | I145: 0
A146: 2.2.9. | B146: Otros pasivos a largo plazo | C146: 23 | D146: =SUM(D147:D149) -> 0 | E146: =+IFERROR(D146/$D$151,0) -> 0 | F146: =SUM(F147:F149) -> 0 | G146: =+IFERROR(F146/$F$151,0) -> 0 | H146: 0 | I146: =+IFERROR(H146/F146,0) -> 0 | J146: =+FIXED(E146,4) -> 0,0000 | K146: =+FIXED(I146,4) -> 0,0000 | L146: =+FIXED(H146,2) -> 0,00 | M146: =IF(H146 < 0, "Disminución", "Aumento") -> Aumento | N146: Pasivo | O146: =+CONCATENATE(Texto!$B$4,AnalisisBS!B146,Texto!$B$6,(AnalisisBS!J146*100),Texto!$B$8,N146,Texto!$B$12,AnalisisBS!L146,Texto!$B$14,AnalisisBS!M146,Texto!$B$16,(AnalisisBS!K146*100),Texto!$B$18) -> La cuenta Otros pasivos a largo plazo, representa el 0 % del total de Pasivo, que comparado al periodo anterior genera una variación absoluta de ¢0,00 que corresponde a un(a) Aumento del 0 % de recursos disponibles.
A147: 2.2.9.01. | B147: Ingresos a devengar a largo plazo | D147: =SUMIF(BCPAC!$B$10:$B$8000,$A147,BCPAC!$G$10:$G$8000)/1000 -> 0 | E147: =+IFERROR(D147/$D$151,0) -> 0 | F147: =SUMIF(BCPAN!$B$10:$B$8000,$A147,BCPAN!$G$10:$G$8000)/1000 -> 0 | G147: =+IFERROR(F147/$F$151,0) -> 0 | H147: 0 | I147: =+IFERROR(H147/F147,0) -> 0 | J147: =+FIXED(E147,4) -> 0,0000 | K147: =+FIXED(I147,4) -> 0,0000 | L147: =+FIXED(H147,2) -> 0,00 | M147: =IF(H147 < 0, "Disminución", "Aumento") -> Aumento | N147: Pasivo | O147: =+CONCATENATE(Texto!$B$4,AnalisisBS!B147,Texto!$B$6,(AnalisisBS!J147*100),Texto!$B$8,N147,Texto!$B$12,AnalisisBS!L147,Texto!$B$14,AnalisisBS!M147,Texto!$B$16,(AnalisisBS!K147*100),Texto!$B$18) -> La cuenta Ingresos a devengar a largo plazo, representa el 0 % del total de Pasivo, que comparado al periodo anterior genera una variación absoluta de ¢0,00 que corresponde a un(a) Aumento del 0 % de recursos disponibles.
A148: 2.2.9.02. | B148: Instrumentos Derivados a pagar a largo plazo | D148: =SUMIF(BCPAC!$B$10:$B$8000,$A148,BCPAC!$G$10:$G$8000)/1000 -> 0 | E148: 0 | F148: =SUMIF(BCPAN!$B$10:$B$8000,$A148,BCPAN!$G$10:$G$8000)/1000 -> 0 | G148: 0 | H148: 0 | I148: 0
A149: 2.2.9.99. | B149: Pasivos a largo plazo sujetos a depuración contable | D149: =SUMIF(BCPAC!$B$10:$B$8000,$A149,BCPAC!$G$10:$G$8000)/1000 -> 0 | E149: =+IFERROR(D149/$D$151,0) -> 0 | F149: =SUMIF(BCPAN!$B$10:$B$8000,$A149,BCPAN!$G$10:$G$8000)/1000 -> 0 | G149: 0 | H149: 0 | I149: 0
B150: Total del Pasivo no Corriente | D150: =+D146+D143+D140+D136+D128 -> 1070439.389 | E150: 0.5797386092 | F150: 1153101.091 | G150: 0.4212150915 | H150: -82661.70146 | I150: =+IFERROR(H150/F150,0) -> -0.07168643073
B151: TOTAL DEL PASIVO | D151: =+D150+D125 -> 1846417.286 | E151: 1 | F151: 2737558.824 | G151: 1 | H151: -891141.5387 | I151: =+IFERROR(H151/F151,0) -> -0.3255241607
A153: 3. | B153: PATRIMONIO
A154: 3.1. | B154: Patrimonio público
A155: 3.1.1. | B155: Capital | C155: 24 | D155: =SUM(D156:D157) -> 0.5248 | E155: =+IFERROR(D155/$D$181,0) -> 3.143269811e-09 | F155: =SUM(F156:F157) -> 0.5248 | G155: =+IFERROR(F155/$F$181,0) -> 3.166081402e-09 | H155: =+D155-F155 -> 0 | I155: =+IFERROR(H155/F155,0) -> 0 | J155: =+FIXED(E155,4) -> 0,0000 | K155: =+FIXED(I155,4) -> 0,0000 | L155: =+FIXED(H155,2) -> 0,00 | M155: =IF(H155 < 0, "Disminución", "Aumento") -> Aumento | N155: Patrimonio | O155: =+CONCATENATE(Texto!$B$4,AnalisisBS!B155,Texto!$B$6,(AnalisisBS!J155*100),Texto!$B$8,N155,Texto!$B$12,AnalisisBS!L155,Texto!$B$14,AnalisisBS!M155,Texto!$B$16,(AnalisisBS!K155*100),Texto!$B$18) -> La cuenta Capital, representa el 0 % del total de Patrimonio, que comparado al periodo anterior genera una variación absoluta de ¢0,00 que corresponde a un(a) Aumento del 0 % de recursos disponibles.
A156: 3.1.1.01. | B156: Capital inicial | D156: =SUMIF(BCPAC!$B$10:$B$8000,$A156,BCPAC!$G$10:$G$8000)/1000 -> 0.5248 | E156: =+IFERROR(D156/$D$181,0) -> 3.143269811e-09 | F156: =SUMIF(BCPAN!$B$10:$B$8000,$A156,BCPAN!$G$10:$G$8000)/1000 -> 0.5248 | G156: =+IFERROR(F156/$F$181,0) -> 3.166081402e-09 | H156: 0 | I156: =+IFERROR(H156/F156,0) -> 0 | J156: =+FIXED(E156,4) -> 0,0000 | K156: =+FIXED(I156,4) -> 0,0000 | L156: =+FIXED(H156,2) -> 0,00 | M156: =IF(H156 < 0, "Disminución", "Aumento") -> Aumento | N156: Patrimonio | O156: =+CONCATENATE(Texto!$B$4,AnalisisBS!B156,Texto!$B$6,(AnalisisBS!J156*100),Texto!$B$8,N156,Texto!$B$12,AnalisisBS!L156,Texto!$B$14,AnalisisBS!M156,Texto!$B$16,(AnalisisBS!K156*100),Texto!$B$18) -> La cuenta Capital inicial, representa el 0 % del total de Patrimonio, que comparado al periodo anterior genera una variación absoluta de ¢0,00 que corresponde a un(a) Aumento del 0 % de recursos disponibles.
A157: 3.1.1.02. | B157: Incorporaciones al capital | D157: =SUMIF(BCPAC!$B$10:$B$8000,$A157,BCPAC!$G$10:$G$8000)/1000 -> 0 | E157: =+IFERROR(D157/$D$181,0) -> 0 | F157: =SUMIF(BCPAN!$B$10:$B$8000,$A157,BCPAN!$G$10:$G$8000)/1000 -> 0 | G157: =+IFERROR(F157/$F$181,0) -> 0 | H157: 0 | I157: 0 | J157: 0,0000 | K157: 0,0000 | L157: 0,00 | M157: =IF(H157 < 0, "Disminución", "Aumento") -> Aumento | N157: Patrimonio | O157: =+CONCATENATE(Texto!$B$4,AnalisisBS!B157,Texto!$B$6,(AnalisisBS!J157*100),Texto!$B$8,N157,Texto!$B$12,AnalisisBS!L157,Texto!$B$14,AnalisisBS!M157,Texto!$B$16,(AnalisisBS!K157*100),Texto!$B$18) -> La cuenta Incorporaciones al capital, representa el 0 % del total de Patrimonio, que comparado al periodo anterior genera una variación absoluta de ¢0,00 que corresponde a un(a) Aumento del 0 % de recursos disponibles.
A158: 3.1.2. | B158: Transferencias de capital | C158: 25 | D158: =SUM(D159:D160) -> 0 | E158: =+IFERROR(D158/$D$181,0) -> 0 | F158: =SUM(F159:F160) -> 0 | G158: =+IFERROR(F158/$F$181,0) -> 0 | H158: 0 | I158: =+IFERROR(H158/F158,0) -> 0 | J158: =+FIXED(E158,4) -> 0,0000 | K158: =+FIXED(I158,4) -> 0,0000 | L158: =+FIXED(H158,2) -> 0,00 | M158: =IF(H158 < 0, "Disminución", "Aumento") -> Aumento | N158: Patrimonio | O158: =+CONCATENATE(Texto!$B$4,AnalisisBS!B158,Texto!$B$6,(AnalisisBS!J158*100),Texto!$B$8,N158,Texto!$B$12,AnalisisBS!L158,Texto!$B$14,AnalisisBS!M158,Texto!$B$16,(AnalisisBS!K158*100),Texto!$B$18) -> La cuenta Transferencias de capital, representa el 0 % del total de Patrimonio, que comparado al periodo anterior genera una variación absoluta de ¢0,00 que corresponde a un(a) Aumento del 0 % de recursos disponibles.
A159: 3.1.2.01. | B159: Donaciones de capital | D159: =SUMIF(BCPAC!$B$10:$B$8000,$A159,BCPAC!$G$10:$G$8000)/1000 -> 0 | E159: =+IFERROR(D159/$D$181,0) -> 0 | F159: =SUMIF(BCPAN!$B$10:$B$8000,$A159,BCPAN!$G$10:$G$8000)/1000 -> 0 | G159: =+IFERROR(F159/$F$181,0) -> 0 | H159: 0 | I159: =+IFERROR(H159/F159,0) -> 0
A160: 3.1.2.99. | B160: Otras transferencias de capital | D160: =SUMIF(BCPAC!$B$10:$B$8000,$A160,BCPAC!$G$10:$G$8000)/1000 -> 0 | E160: 0 | F160: =SUMIF(BCPAN!$B$10:$B$8000,$A160,BCPAN!$G$10:$G$8000)/1000 -> 0 | G160: 0 | H160: 0 | I160: 0
A161: 3.1.3. | B161: Reservas | C161: 26 | D161: =SUM(D162:D163) -> 0 | E161: =+IFERROR(D161/$D$181,0) -> 0 | F161: =SUM(F162:F163) -> 0 | G161: =+IFERROR(F161/$F$181,0) -> 0 | H161: 0 | I161: =+IFERROR(H161/F161,0) -> 0 | J161: =+FIXED(E161,4) -> 0,0000 | K161: =+FIXED(I161,4) -> 0,0000 | L161: =+FIXED(H161,2) -> 0,00 | M161: =IF(H161 < 0, "Disminución", "Aumento") -> Aumento | N161: Patrimonio | O161: =+CONCATENATE(Texto!$B$4,AnalisisBS!B161,Texto!$B$6,(AnalisisBS!J161*100),Texto!$B$8,N161,Texto!$B$12,AnalisisBS!L161,Texto!$B$14,AnalisisBS!M161,Texto!$B$16,(AnalisisBS!K161*100),Texto!$B$18) -> La cuenta Reservas, representa el 0 % del total de Patrimonio, que comparado al periodo anterior genera una variación absoluta de ¢0,00 que corresponde a un(a) Aumento del 0 % de recursos disponibles.
A162: 3.1.3.01. | B162: Revaluación de bienes | D162: =SUMIF(BCPAC!$B$10:$B$8000,$A162,BCPAC!$G$10:$G$8000)/1000 -> 0 | E162: =+IFERROR(D162/$D$181,0) -> 0 | F162: =SUMIF(BCPAN!$B$10:$B$8000,$A162,BCPAN!$G$10:$G$8000)/1000 -> 0 | G162: =+IFERROR(F162/$F$181,0) -> 0 | H162: 0 | I162: =+IFERROR(H162/F162,0) -> 0
A163: 3.1.3.99. | B163: Otras reservas | D163: =SUMIF(BCPAC!$B$10:$B$8000,$A163,BCPAC!$G$10:$G$8000)/1000 -> 0 | E163: 0 | F163: =SUMIF(BCPAN!$B$10:$B$8000,$A163,BCPAN!$G$10:$G$8000)/1000 -> 0 | G163: 0 | H163: 0 | I163: 0
A164: 3.1.4. | B164: Variaciones no asignables a reservas | C164: 27 | D164: =SUM(D165:D168) -> 0 | E164: =+IFERROR(D164/$D$181,0) -> 0 | F164: =SUM(F165:F168) -> 0 | G164: =+IFERROR(F164/$F$181,0) -> 0 | H164: 0 | I164: =+IFERROR(H164/F164,0) -> 0 | J164: =+FIXED(E164,4) -> 0,0000 | K164: =+FIXED(I164,4) -> 0,0000 | L164: =+FIXED(H164,2) -> 0,00 | M164: =IF(H164 < 0, "Disminución", "Aumento") -> Aumento | N164: Patrimonio | O164: =+CONCATENATE(Texto!$B$4,AnalisisBS!B164,Texto!$B$6,(AnalisisBS!J164*100),Texto!$B$8,N164,Texto!$B$12,AnalisisBS!L164,Texto!$B$14,AnalisisBS!M164,Texto!$B$16,(AnalisisBS!K164*100),Texto!$B$18) -> La cuenta Variaciones no asignables a reservas, representa el 0 % del total de Patrimonio, que comparado al periodo anterior genera una variación absoluta de ¢0,00 que corresponde a un(a) Aumento del 0 % de recursos disponibles.
A165: 3.1.4.01. | B165: Diferencias de conversión de moneda extranjera | D165: =SUMIF(BCPAC!$B$10:$B$8000,$A165,BCPAC!$G$10:$G$8000)/1000 -> 0 | E165: =+IFERROR(D165/$D$181,0) -> 0 | F165: =SUMIF(BCPAN!$B$10:$B$8000,$A165,BCPAN!$G$10:$G$8000)/1000 -> 0 | G165: =+IFERROR(F165/$F$181,0) -> 0 | H165: 0 | I165: =+IFERROR(H165/F165,0) -> 0
A166: 3.1.4.02. | B166: Diferencias de valor razonable de activos financieros destinados a la venta | D166: =SUMIF(BCPAC!$B$10:$B$8000,$A166,BCPAC!$G$10:$G$8000)/1000 -> 0 | E166: 0 | F166: =SUMIF(BCPAN!$B$10:$B$8000,$A166,BCPAN!$G$10:$G$8000)/1000 -> 0 | G166: 0 | H166: 0 | I166: 0
A167: 3.1.4.03. | B167: Diferencias de valor razonable de instrumentos financieros designados como cobertura | D167: =SUMIF(BCPAC!$B$10:$B$8000,$A167,BCPAC!$G$10:$G$8000)/1000 -> 0 | E167: 0 | F167: =SUMIF(BCPAN!$B$10:$B$8000,$A167,BCPAN!$G$10:$G$8000)/1000 -> 0 | G167: 0 | H167: 0 | I167: 0
A168: 3.1.4.99. | B168: Otras variaciones no asignables a reservas | D168: =SUMIF(BCPAC!$B$10:$B$8000,$A168,BCPAC!$G$10:$G$8000)/1000 -> 0 | E168: 0 | F168: =SUMIF(BCPAN!$B$10:$B$8000,$A168,BCPAN!$G$10:$G$8000)/1000 -> 0 | G168: 0 | H168: 0 | I168: 0
A169: 3.1.5. | B169: Resultados acumulados | C169: 28 | D169: =SUM(D170:D171) -> 166959895.2 | E169: =+IFERROR(D169/$D$181,0) -> 0.9999999969 | F169: =SUM(F170:F171) -> 165756950.5 | G169: =+IFERROR(F169/$F$181,0) -> 0.9999999968 | H169: 1202944.719 | I169: =+IFERROR(H169/F169,0) -> 0.007257280706 | J169: =+FIXED(E169,4) -> 1,0000 | K169: =+FIXED(I169,4) -> 0,0073 | L169: =+FIXED(H169,2) -> 1 202 944,72 | M169: =IF(H169 < 0, "Disminución", "Aumento") -> Aumento | N169: Patrimonio | O169: =+CONCATENATE(Texto!$B$4,AnalisisBS!B169,Texto!$B$6,(AnalisisBS!J169*100),Texto!$B$8,N169,Texto!$B$12,AnalisisBS!L169,Texto!$B$14,AnalisisBS!M169,Texto!$B$16,(AnalisisBS!K169*100),Texto!$B$18) -> La cuenta Resultados acumulados, representa el 100 % del total de Patrimonio, que comparado al periodo anterior genera una variación absoluta de ¢1 202 944,72 que corresponde a un(a) Aumento del 0,73 % de recursos disponibles.
A170: 3.1.5.01. | B170: Resultados acumulados de ejercicios anteriores | D170: =SUMIF(BCPAC!$B$10:$B$8000,$A170,BCPAC!$G$10:$G$8000)/1000 -> 164049655.9 | E170: =+IFERROR(D170/$D$181,0) -> 0.9825692279 | F170: =SUMIF(BCPAN!$B$10:$B$8000,$A170,BCPAN!$G$10:$G$8000)/1000 -> 163193551.5 | G170: =+IFERROR(F170/$F$181,0) -> 0.9845351916 | H170: 856104.3265 | I170: =+IFERROR(H170/F170,0) -> 0.005245944576 | J170: =+FIXED(E170,4) -> 0,9826 | K170: =+FIXED(I170,4) -> 0,0052 | L170: =+FIXED(H170,2) -> 856 104,33 | M170: =IF(H170 < 0, "Disminución", "Aumento") -> Aumento | N170: Patrimonio | O170: =+CONCATENATE(Texto!$B$4,AnalisisBS!B170,Texto!$B$6,(AnalisisBS!J170*100),Texto!$B$8,N170,Texto!$B$12,AnalisisBS!L170,Texto!$B$14,AnalisisBS!M170,Texto!$B$16,(AnalisisBS!K170*100),Texto!$B$18) -> La cuenta Resultados acumulados de ejercicios anteriores, representa el 98,26 % del total de Patrimonio, que comparado al periodo anterior genera una variación absoluta de ¢856 104,33 que corresponde a un(a) Aumento del 0,52 % de recursos disponibles.
A171: 3.1.5.02. | B171: Resultado del ejercicio | D171: =+((SUMIF(BCPAC!B:B,"4.",BCPAC!G:G)-SUMIF(BCPAC!B:B,"5.",BCPAC!G:G))/1000) -> 2910239.362 | E171: 0.01743076892 | F171: =+((SUMIF(BCPAN!B:B,"4.",BCPAN!G:G)-SUMIF(BCPAN!B:B,"5.",BCPAN!G:G))/1000) -> 2563398.969 | G171: 0.01546480527 | H171: 346840.3923 | I171: 0.1353048809 | J171: 0,0174 | K171: 0,1353 | L171: 346 840,39 | M171: =IF(H171 < 0, "Disminución", "Aumento") -> Aumento | N171: Patrimonio | O171: =+CONCATENATE(Texto!$B$4,AnalisisBS!B171,Texto!$B$6,(AnalisisBS!J171*100),Texto!$B$8,N171,Texto!$B$12,AnalisisBS!L171,Texto!$B$14,AnalisisBS!M171,Texto!$B$16,(AnalisisBS!K171*100),Texto!$B$18) -> La cuenta Resultado del ejercicio, representa el 1,74 % del total de Patrimonio, que comparado al periodo anterior genera una variación absoluta de ¢346 840,39 que corresponde a un(a) Aumento del 13,53 % de recursos disponibles.
A172: 3.2. | B172: Intereses minoritarios | D172: =SUMIF(BCPAC!$B$10:$B$8000,$A172,BCPAC!$G$10:$G$8000)/1000 -> 0 | E172: 0 | F172: =SUMIF(BCPAN!$B$10:$B$8000,$A172,BCPAN!$G$10:$G$8000)/1000 -> 0 | G172: 0 | H172: 0 | I172: 0
A173: 3.2.1. | B173: Intereses minoritarios - Participaciones en el patrimonio de entidades controladas | C173: 29 | D173: =SUM(D174:D175) -> 0 | E173: =+IFERROR(D173/$D$181,0) -> 0 | F173: =SUM(F174:F175) -> 0 | G173: =+IFERROR(F173/$F$181,0) -> 0 | H173: 0 | I173: =+IFERROR(H173/F173,0) -> 0 | J173: =+FIXED(E173,4) -> 0,0000 | K173: =+FIXED(I173,4) -> 0,0000 | L173: =+FIXED(H173,2) -> 0,00 | M173: =IF(H173 < 0, "Disminución", "Aumento") -> Aumento | N173: Patrimonio | O173: =+CONCATENATE(Texto!$B$4,AnalisisBS!B173,Texto!$B$6,(AnalisisBS!J173*100),Texto!$B$8,N173,Texto!$B$12,AnalisisBS!L173,Texto!$B$14,AnalisisBS!M173,Texto!$B$16,(AnalisisBS!K173*100),Texto!$B$18) -> La cuenta Intereses minoritarios - Participaciones en el patrimonio de entidades controladas, representa el 0 % del total de Patrimonio, que comparado al periodo anterior genera una variación absoluta de ¢0,00 que corresponde a un(a) Aumento del 0 % de recursos disponibles.
A174: 3.2.1.01. | B174: Intereses minoritarios - Participaciones en el patrimonio de entidades del sector gobierno general | D174: =SUMIF(BCPAC!$B$10:$B$8000,$A174,BCPAC!$G$10:$G$8000)/1000 -> 0 | E174: =+IFERROR(D174/$D$181,0) -> 0 | F174: =SUMIF(BCPAN!$B$10:$B$8000,$A174,BCPAN!$G$10:$G$8000)/1000 -> 0 | G174: =+IFERROR(F174/$F$181,0) -> 0 | H174: 0 | I174: =+IFERROR(H174/F174,0) -> 0
A175: 3.2.1.02. | B175: Intereses minoritarios - Participaciones en el patrimonio de empresas públicas e instituciones públicas financieras | D175: =SUMIF(BCPAC!$B$10:$B$8000,$A175,BCPAC!$G$10:$G$8000)/1000 -> 0 | E175: 0 | F175: =SUMIF(BCPAN!$B$10:$B$8000,$A175,BCPAN!$G$10:$G$8000)/1000 -> 0 | G175: 0 | H175: 0 | I175: 0
A176: 3.2.2. | B176: Intereses minoritarios - Evolución | C176: 30 | D176: =SUM(D177:D180) -> 0 | E176: =+IFERROR(D176/$D$181,0) -> 0 | F176: =SUM(F177:F180) -> 0 | G176: =+IFERROR(F176/$F$181,0) -> 0 | H176: 0 | I176: =+IFERROR(H176/F176,0) -> 0 | J176: =+FIXED(E176,4) -> 0,0000 | K176: =+FIXED(I176,4) -> 0,0000 | L176: =+FIXED(H176,2) -> 0,00 | M176: =IF(H176 < 0, "Disminución", "Aumento") -> Aumento | N176: Patrimonio | O176: =+CONCATENATE(Texto!$B$4,AnalisisBS!B176,Texto!$B$6,(AnalisisBS!J176*100),Texto!$B$8,N176,Texto!$B$12,AnalisisBS!L176,Texto!$B$14,AnalisisBS!M176,Texto!$B$16,(AnalisisBS!K176*100),Texto!$B$18) -> La cuenta Intereses minoritarios - Evolución, representa el 0 % del total de Patrimonio, que comparado al periodo anterior genera una variación absoluta de ¢0,00 que corresponde a un(a) Aumento del 0 % de recursos disponibles.
A177: 3.2.2.01. | B177: Intereses minoritarios - Evolución por reservas | D177: =SUMIF(BCPAC!$B$10:$B$8000,$A177,BCPAC!$G$10:$G$8000)/1000 -> 0 | E177: =+IFERROR(D177/$D$181,0) -> 0 | F177: =SUMIF(BCPAN!$B$10:$B$8000,$A177,BCPAN!$G$10:$G$8000)/1000 -> 0 | G177: =+IFERROR(F177/$F$181,0) -> 0 | H177: 0 | I177: =+IFERROR(H177/F177,0) -> 0
A178: 3.2.2.02. | B178: Intereses minoritarios - Evolución por variaciones no asignables a reservas | D178: =SUMIF(BCPAC!$B$10:$B$8000,$A178,BCPAC!$G$10:$G$8000)/1000 -> 0 | E178: 0 | F178: =SUMIF(BCPAN!$B$10:$B$8000,$A178,BCPAN!$G$10:$G$8000)/1000 -> 0 | G178: 0 | H178: 0 | I178: 0
A179: 3.2.2.03. | B179: Intereses minoritarios - Evolución por resultados acumulados | D179: =SUMIF(BCPAC!$B$10:$B$8000,$A179,BCPAC!$G$10:$G$8000)/1000 -> 0 | E179: 0 | F179: =SUMIF(BCPAN!$B$10:$B$8000,$A179,BCPAN!$G$10:$G$8000)/1000 -> 0 | G179: 0 | H179: 0 | I179: 0
A180: 3.2.2.99. | B180: Intereses minoritarios - Evolución por otros componentes del patrimonio | D180: =SUMIF(BCPAC!$B$10:$B$8000,$A180,BCPAC!$G$10:$G$8000)/1000 -> 0 | E180: 0 | F180: =SUMIF(BCPAN!$B$10:$B$8000,$A180,BCPAN!$G$10:$G$8000)/1000 -> 0 | G180: 0 | H180: 0 | I180: 0
B181: TOTAL DEL PATRIMONIO | D181: =+D176+D173+D169+D164+D161+D158+D155 -> 166959895.8 | E181: 1 | F181: 165756951 | G181: 1 | H181: 1202944.719 | I181: =+IFERROR(H181/F181,0) -> 0.007257280683
B182: TOTAL DEL PASIVO Y PATRIMONIO | D182: =+D181+D151 -> 168806313 | F182: =+F181+F151 -> 168494509.9 | H182: 311803.1801 | I182: =+IFERROR(H182/F182,0) -> 0.001850524271
F184: =+F91-F151-F181 -> -9.953975677e-06

Sheet AnalisisER
A1: =+Datos!C2 -> Municipalidad de Buenos Aires
A2: Análisis al Estado de Rendimiento Financiero Comparativo
A3: =+Datos!C4 -> Del 01 de Enero 2024 al 30 de Abril del 2024
A4: - En miles de colones -
A6: Cuenta | B6: Descripción | C6: Nota | D6: =+Datos!D5 -> 2024-04-30 | E6: % análisis vertical | F6: =+Datos!F5 -> 2023-04-30 | G6: % | H6: Monto variación Absoluta | I6: % Variación relativa
A8: 4. | B8: INGRESOS
A9: 4.1. | B9: Impuestos
A10: 4.1.1. | B10: Impuestos sobre los ingresos, las utilidades y las ganancias de capital | C10: 31 | D10: =SUM(D11:D14) -> 0 | E10: =+IFERROR(D10/$D$133,0) -> 0 | F10: =SUM(F11:F14) -> 0 | G10: =+IFERROR(F10/$F$133,0) -> 0 | H10: =+D10-F10 -> 0 | I10: =+IFERROR(H10/F10,0) -> 0 | J10: =+FIXED(E10,4) -> 0,0000 | K10: =+FIXED(I10,4) -> 0,0000 | L10: =+FIXED(H10,2) -> 0,00 | M10: =IF(H10 < 0, "Disminución", "Aumento") -> Aumento | N10: Ingresos | O10: =+CONCATENATE(Texto!$B$4,AnalisisER!B10,Texto!$B$6,(AnalisisER!J10*100),Texto!$B$8,N10,Texto!$B$12,AnalisisER!L10,Texto!$B$14,AnalisisER!M10,Texto!$B$16,(AnalisisER!K10*100),Texto!$B$18) -> La cuenta Impuestos sobre los ingresos, las utilidades y las ganancias de capital, representa el 0 % del total de Ingresos, que comparado al periodo anterior genera una variación absoluta de ¢0,00 que corresponde a un(a) Aumento del 0 % de recursos disponibles.
A11: 4.1.1.01. | B11: Impuestos sobre los ingresos y utilidades de personas físicas | D11: =SUMIF(BCPAC!$B$10:$B$8000,$A11,BCPAC!$G$10:$G$8000)/1000 -> 0 | E11: =+IFERROR(D11/$D$133,0) -> 0 | F11: =SUMIF(BCPAN!$B$10:$B$8000,$A11,BCPAN!$G$10:$G$8000)/1000 -> 0 | G11: =+IFERROR(F11/$F$133,0) -> 0 | H11: 0 | I11: =+IFERROR(H11/F11,0) -> 0
A12: 4.1.1.02. | B12: Impuestos sobre los ingresos y utilidades de personas jurídicas | D12: =SUMIF(BCPAC!$B$10:$B$8000,$A12,BCPAC!$G$10:$G$8000)/1000 -> 0 | E12: =+IFERROR(D12/$D$133,0) -> 0 | F12: =SUMIF(BCPAN!$B$10:$B$8000,$A12,BCPAN!$G$10:$G$8000)/1000 -> 0 | G12: =+IFERROR(F12/$F$133,0) -> 0 | H12: 0 | I12: 0
A13: 4.1.1.03. | B13: Impuestos sobre dividendos e intereses de títulos valores | D13: =SUMIF(BCPAC!$B$10:$B$8000,$A13,BCPAC!$G$10:$G$8000)/1000 -> 0 | E13: 0 | F13: =SUMIF(BCPAN!$B$10:$B$8000,$A13,BCPAN!$G$10:$G$8000)/1000 -> 0 | G13: 0 | H13: 0 | I13: 0
A14: 4.1.1.99. | B14: Otros impuestos sobre los ingresos, las utilidades y las ganancias de capital | D14: =SUMIF(BCPAC!$B$10:$B$8000,$A14,BCPAC!$G$10:$G$8000)/1000 -> 0 | E14: 0 | F14: =SUMIF(BCPAN!$B$10:$B$8000,$A14,BCPAN!$G$10:$G$8000)/1000 -> 0 | G14: 0 | H14: 0 | I14: 0
A15: 4.1.2. | B15: Impuestos sobre la propiedad | C15: 32 | D15: =SUM(D16:D21) -> 328557.6523 | E15: =+IFERROR(D15/$D$133,0) -> 0.07068254304 | F15: =SUM(F16:F21) -> 385026.3634 | G15: =+IFERROR(F15/$F$133,0) -> 0.08376365754 | H15: -56468.71115 | I15: -0.1466619341 | J15: =+FIXED(E15,4) -> 0,0707 | K15: =+FIXED(I15,4) -> -0,1467 | L15: =+FIXED(H15,2) -> -56 468,71 | M15: =IF(H15 < 0, "Disminución", "Aumento") -> Disminución | N15: Ingresos | O15: =+CONCATENATE(Texto!$B$4,AnalisisER!B15,Texto!$B$6,(AnalisisER!J15*100),Texto!$B$8,N15,Texto!$B$12,AnalisisER!L15,Texto!$B$14,AnalisisER!M15,Texto!$B$16,(AnalisisER!K15*100),Texto!$B$18) -> La cuenta Impuestos sobre la propiedad, representa el 7,07 % del total de Ingresos, que comparado al periodo anterior genera una variación absoluta de ¢-56 468,71 que corresponde a un(a) Disminución del -14,67 % de recursos disponibles.
A16: 4.1.2.01. | B16: Impuesto sobre la propiedad de bienes inmuebles | D16: =SUMIF(BCPAC!$B$10:$B$8000,$A16,BCPAC!$G$10:$G$8000)/1000 -> 328557.6523 | E16: =+IFERROR(D16/$D$133,0) -> 0.07068254304 | F16: =SUMIF(BCPAN!$B$10:$B$8000,$A16,BCPAN!$G$10:$G$8000)/1000 -> 385026.3634 | G16: =+IFERROR(F16/$F$133,0) -> 0.08376365754 | H16: -56468.71115 | I16: -0.1466619341
A17: 4.1.2.02. | B17: Impuesto sobre la propiedad de vehículos, aeronaves y embarcaciones | D17: =SUMIF(BCPAC!$B$10:$B$8000,$A17,BCPAC!$G$10:$G$8000)/1000 -> 0 | E17: 0 | F17: =SUMIF(BCPAN!$B$10:$B$8000,$A17,BCPAN!$G$10:$G$8000)/1000 -> 0 | G17: 0 | H17: 0 | I17: 0
A18: 4.1.2.03. | B18: Impuesto sobre el patrimonio | D18: =SUMIF(BCPAC!$B$10:$B$8000,$A18,BCPAC!$G$10:$G$8000)/1000 -> 0 | E18: 0 | F18: =SUMIF(BCPAN!$B$10:$B$8000,$A18,BCPAN!$G$10:$G$8000)/1000 -> 0 | G18: 0 | H18: 0 | I18: 0
A19: 4.1.2.04. | B19: Impuesto sobre los traspasos de bienes inmuebles | D19: =SUMIF(BCPAC!$B$10:$B$8000,$A19,BCPAC!$G$10:$G$8000)/1000 -> 0 | E19: 0 | F19: =SUMIF(BCPAN!$B$10:$B$8000,$A19,BCPAN!$G$10:$G$8000)/1000 -> 0 | G19: 0 | H19: 0 | I19: 0
A20: 4.1.2.05. | B20: Impuesto a los traspasos de vehículos, aeronaves y embarcaciones | D20: =SUMIF(BCPAC!$B$10:$B$8000,$A20,BCPAC!$G$10:$G$8000)/1000 -> 0 | E20: 0 | F20: =SUMIF(BCPAN!$B$10:$B$8000,$A20,BCPAN!$G$10:$G$8000)/1000 -> 0 | G20: 0 | H20: 0 | I20: 0
A21: 4.1.2.99. | B21: Otros impuestos a la propiedad | D21: =SUMIF(BCPAC!$B$10:$B$8000,$A21,BCPAC!$G$10:$G$8000)/1000 -> 0 | E21: 0 | F21: =SUMIF(BCPAN!$B$10:$B$8000,$A21,BCPAN!$G$10:$G$8000)/1000 -> 0 | G21: 0 | H21: 0 | I21: 0
A22: 4.1.3. | B22: Impuestos sobre bienes y servicios | C22: 33 | D22: =SUM(D23:D25) -> 178441.6063 | E22: =+IFERROR(D22/$D$133,0) -> 0.03838810764 | F22: =SUM(F23:F25) -> 170191.7957 | G22: =+IFERROR(F22/$F$133,0) -> 0.03702574329 | H22: 8249.81063 | I22: 0.04847360941 | J22: =+FIXED(E22,4) -> 0,0384 | K22: =+FIXED(I22,4) -> 0,0485 | L22: =+FIXED(H22,2) -> 8 249,81 | M22: =IF(H22 < 0, "Disminución", "Aumento") -> Aumento | N22: Ingresos | O22: =+CONCATENATE(Texto!$B$4,AnalisisER!B22,Texto!$B$6,(AnalisisER!J22*100),Texto!$B$8,N22,Texto!$B$12,AnalisisER!L22,Texto!$B$14,AnalisisER!M22,Texto!$B$16,(AnalisisER!K22*100),Texto!$B$18) -> La cuenta Impuestos sobre bienes y servicios, representa el 3,84 % del total de Ingresos, que comparado al periodo anterior genera una variación absoluta de ¢8 249,81 que corresponde a un(a) Aumento del 4,85 % de recursos disponibles.
A23: 4.1.3.01. | B23: Impuestos generales y selectivos sobre ventas y consumo | D23: =SUMIF(BCPAC!$B$10:$B$8000,$A23,BCPAC!$G$10:$G$8000)/1000 -> 153999.9811 | E23: =+IFERROR(D23/$D$133,0) -> 0.03312998561 | F23: =SUMIF(BCPAN!$B$10:$B$8000,$A23,BCPAN!$G$10:$G$8000)/1000 -> 147942.9831 | G23: =+IFERROR(F23/$F$133,0) -> 0.03218544637 | H23: 6056.99801 | I23: 0.0409414349
A24: 4.1.3.02. | B24: Impuestos específicos sobre la producción y consumo de bienes y servicios | D24: =SUMIF(BCPAC!$B$10:$B$8000,$A24,BCPAC!$G$10:$G$8000)/1000 -> 21191.62526 | E24: 0.004558950169 | F24: =SUMIF(BCPAN!$B$10:$B$8000,$A24,BCPAN!$G$10:$G$8000)/1000 -> 19498.81264 | G24: 0.004242026052 | H24: 1692.81262 | I24: 0.08681618985
A25: 4.1.3.99. | B25: Otros impuestos sobre bienes y servicios | D25: =SUMIF(BCPAC!$B$10:$B$8000,$A25,BCPAC!$G$10:$G$8000)/1000 -> 3250 | E25: 0.0006991718601 | F25: =SUMIF(BCPAN!$B$10:$B$8000,$A25,BCPAN!$G$10:$G$8000)/1000 -> 2750 | G25: 0.0005982708721 | H25: 500 | I25: 0.1818181818
A26: 4.1.4. | B26: Impuestos sobre el comercio exterior y transacciones internacionales | C26: 34 | D26: =SUM(D27:D29) -> 0 | E26: =+IFERROR(D26/$D$133,0) -> 0 | F26: =SUM(F27:F29) -> 0 | G26: =+IFERROR(F26/$F$133,0) -> 0 | H26: 0 | I26: 0 | J26: =+FIXED(E26,4) -> 0,0000 | K26: =+FIXED(I26,4) -> 0,0000 | L26: =+FIXED(H26,2) -> 0,00 | M26: =IF(H26 < 0, "Disminución", "Aumento") -> Aumento | N26: Ingresos | O26: =+CONCATENATE(Texto!$B$4,AnalisisER!B26,Texto!$B$6,(AnalisisER!J26*100),Texto!$B$8,N26,Texto!$B$12,AnalisisER!L26,Texto!$B$14,AnalisisER!M26,Texto!$B$16,(AnalisisER!K26*100),Texto!$B$18) -> La cuenta Impuestos sobre el comercio exterior y transacciones internacionales, representa el 0 % del total de Ingresos, que comparado al periodo anterior genera una variación absoluta de ¢0,00 que corresponde a un(a) Aumento del 0 % de recursos disponibles.
A27: 4.1.4.01. | B27: Impuestos a las importaciones | D27: =SUMIF(BCPAC!$B$10:$B$8000,$A27,BCPAC!$G$10:$G$8000)/1000 -> 0 | E27: =+IFERROR(D27/$D$133,0) -> 0 | F27: =SUMIF(BCPAN!$B$10:$B$8000,$A27,BCPAN!$G$10:$G$8000)/1000 -> 0 | G27: =+IFERROR(F27/$F$133,0) -> 0 | H27: 0 | I27: =+IFERROR(H27/F27,0) -> 0
A28: 4.1.4.02. | B28: Impuestos a las exportaciones | D28: =SUMIF(BCPAC!$B$10:$B$8000,$A28,BCPAC!$G$10:$G$8000)/1000 -> 0 | E28: 0 | F28: =SUMIF(BCPAN!$B$10:$B$8000,$A28,BCPAN!$G$10:$G$8000)/1000 -> 0 | G28: 0 | H28: 0 | I28: 0
A29: 4.1.4.99. | B29: Otros impuestos sobre el comercio exterior y transacciones internacionales | D29: =SUMIF(BCPAC!$B$10:$B$8000,$A29,BCPAC!$G$10:$G$8000)/1000 -> 0 | E29: 0 | F29: =SUMIF(BCPAN!$B$10:$B$8000,$A29,BCPAN!$G$10:$G$8000)/1000 -> 0 | G29: 0 | H29: 0 | I29: 0
A30: 4.1.9. | B30: Otros impuestos | C30: 35 | D30: =SUM(D31:D32) -> 0 | E30: =+IFERROR(D30/$D$133,0) -> 0 | F30: =SUM(F31:F32) -> 0 | G30: =+IFERROR(F30/$F$133,0) -> 0 | H30: 0 | I30: =+IFERROR(H30/F30,0) -> 0 | J30: =+FIXED(E30,4) -> 0,0000 | K30: =+FIXED(I30,4) -> 0,0000 | L30: =+FIXED(H30,2) -> 0,00 | M30: =IF(H30 < 0, "Disminución", "Aumento") -> Aumento | N30: Ingresos | O30: =+CONCATENATE(Texto!$B$4,AnalisisER!B30,Texto!$B$6,(AnalisisER!J30*100),Texto!$B$8,N30,Texto!$B$12,AnalisisER!L30,Texto!$B$14,AnalisisER!M30,Texto!$B$16,(AnalisisER!K30*100),Texto!$B$18) -> La cuenta Otros impuestos, representa el 0 % del total de Ingresos, que comparado al periodo anterior genera una variación absoluta de ¢0,00 que corresponde a un(a) Aumento del 0 % de recursos disponibles.
A31: 4.1.9.99. | B31: Otros impuestos sin discriminar | D31: =SUMIF(BCPAC!$B$10:$B$8000,$A31,BCPAC!$G$10:$G$8000)/1000 -> 0 | E31: =+IFERROR(D31/$D$133,0) -> 0 | F31: =SUMIF(BCPAN!$B$10:$B$8000,$A31,BCPAN!$G$10:$G$8000)/1000 -> 0 | G31: =+IFERROR(F31/$F$133,0) -> 0 | H31: 0 | I31: =+IFERROR(H31/F31,0) -> 0
A32: 4.2. | B32: Contribuciones sociales
A33: 4.2.1. | B33: Contribuciones a la seguridad social | C33: 36 | D33: =SUM(D34:D36) -> 0 | E33: =+IFERROR(D33/$D$133,0) -> 0 | F33: =SUM(F34:F36) -> 0 | G33: =+IFERROR(F33/$F$133,0) -> 0 | H33: =+D33-F33 -> 0 | I33: =+IFERROR(H33/F33,0) -> 0 | J33: =+FIXED(E33,4) -> 0,0000 | K33: =+FIXED(I33,4) -> 0,0000 | L33: =+FIXED(H33,2) -> 0,00 | M33: =IF(H33 < 0, "Disminución", "Aumento") -> Aumento | N33: Ingresos | O33: =+CONCATENATE(Texto!$B$4,AnalisisER!B33,Texto!$B$6,(AnalisisER!J33*100),Texto!$B$8,N33,Texto!$B$12,AnalisisER!L33,Texto!$B$14,AnalisisER!M33,Texto!$B$16,(AnalisisER!K33*100),Texto!$B$18) -> La cuenta Contribuciones a la seguridad social, representa el 0 % del total de Ingresos, que comparado al periodo anterior genera una variación absoluta de ¢0,00 que corresponde a un(a) Aumento del 0 % de recursos disponibles.
A34: 4.2.1.01. | B34: Contribuciones al seguro de pensiones | D34: =SUMIF(BCPAC!$B$10:$B$8000,$A34,BCPAC!$G$10:$G$8000)/1000 -> 0 | E34: =+IFERROR(D34/$D$133,0) -> 0 | F34: =SUMIF(BCPAN!$B$10:$B$8000,$A34,BCPAN!$G$10:$G$8000)/1000 -> 0 | G34: =+IFERROR(F34/$F$133,0) -> 0 | H34: 0 | I34: =+IFERROR(H34/F34,0) -> 0
A35: 4.2.1.02. | B35: Contribuciones a regímenes especiales de pensiones | D35: =SUMIF(BCPAC!$B$10:$B$8000,$A35,BCPAC!$G$10:$G$8000)/1000 -> 0 | E35: 0 | F35: =SUMIF(BCPAN!$B$10:$B$8000,$A35,BCPAN!$G$10:$G$8000)/1000 -> 0 | G35: 0 | H35: 0 | I35: 0
A36: 4.2.1.03. | B36: Contribuciones al seguro de salud | D36: =SUMIF(BCPAC!$B$10:$B$8000,$A36,BCPAC!$G$10:$G$8000)/1000 -> 0 | E36: 0 | F36: =SUMIF(BCPAN!$B$10:$B$8000,$A36,BCPAN!$G$10:$G$8000)/1000 -> 0 | G36: 0 | H36: 0 | I36: 0
A37: 4.2.9. | B37: Contribuciones sociales diversas | C37: 37 | D37: =SUM(D38:D39) -> 0 | E37: =+IFERROR(D37/$D$133,0) -> 0 | F37: =SUM(F38:F39) -> 0 | G37: =+IFERROR(F37/$F$133,0) -> 0 | H37: 0 | I37: =+IFERROR(H37/F37,0) -> 0 | J37: =+FIXED(E37,4) -> 0,0000 | K37: =+FIXED(I37,4) -> 0,0000 | L37: =+FIXED(H37,2) -> 0,00 | M37: =IF(H37 < 0, "Disminución", "Aumento") -> Aumento | N37: Ingresos | O37: =+CONCATENATE(Texto!$B$4,AnalisisER!B37,Texto!$B$6,(AnalisisER!J37*100),Texto!$B$8,N37,Texto!$B$12,AnalisisER!L37,Texto!$B$14,AnalisisER!M37,Texto!$B$16,(AnalisisER!K37*100),Texto!$B$18) -> La cuenta Contribuciones sociales diversas, representa el 0 % del total de Ingresos, que comparado al periodo anterior genera una variación absoluta de ¢0,00 que corresponde a un(a) Aumento del 0 % de recursos disponibles.
A38: 4.2.9.99. | B38: Otras contribuciones sociales | D38: =SUMIF(BCPAC!$B$10:$B$8000,$A38,BCPAC!$G$10:$G$8000)/1000 -> 0 | E38: =+IFERROR(D38/$D$133,0) -> 0 | F38: =SUMIF(BCPAN!$B$10:$B$8000,$A38,BCPAN!$G$10:$G$8000)/1000 -> 0 | G38: =+IFERROR(F38/$F$133,0) -> 0 | H38: 0 | I38: =+IFERROR(H38/F38,0) -> 0
A39: 4.3. | B39: Multas, sanciones, remates y confiscaciones de origen no tributario
A40: 4.3.1. | B40: Multas y sanciones administrativas | C40: 38 | D40: =SUM(D41:D44) -> 0 | E40: =+IFERROR(D40/$D$133,0) -> 0 | F40: =SUM(F41:F44) -> 0 | G40: =+IFERROR(F40/$F$133,0) -> 0 | H40: =+D40-F40 -> 0 | I40: =+IFERROR(H40/F40,0) -> 0 | J40: =+FIXED(E40,4) -> 0,0000 | K40: =+FIXED(I40,4) -> 0,0000 | L40: =+FIXED(H40,2) -> 0,00 | M40: =IF(H40 < 0, "Disminución", "Aumento") -> Aumento | N40: Ingresos | O40: =+CONCATENATE(Texto!$B$4,AnalisisER!B40,Texto!$B$6,(AnalisisER!J40*100),Texto!$B$8,N40,Texto!$B$12,AnalisisER!L40,Texto!$B$14,AnalisisER!M40,Texto!$B$16,(AnalisisER!K40*100),Texto!$B$18) -> La cuenta Multas y sanciones administrativas, representa el 0 % del total de Ingresos, que comparado al periodo anterior genera una variación absoluta de ¢0,00 que corresponde a un(a) Aumento del 0 % de recursos disponibles.
A41: 4.3.1.01. | B41: Multas de tránsito | D41: =SUMIF(BCPAC!$B$10:$B$8000,$A41,BCPAC!$G$10:$G$8000)/1000 -> 0 | E41: =+IFERROR(D41/$D$133,0) -> 0 | F41: =SUMIF(BCPAN!$B$10:$B$8000,$A41,BCPAN!$G$10:$G$8000)/1000 -> 0 | G41: =+IFERROR(F41/$F$133,0) -> 0 | H41: 0 | I41: =+IFERROR(H41/F41,0) -> 0
A42: 4.3.1.02. | B42: Multas por atraso en el pago de bienes y servicios | D42: =SUMIF(BCPAC!$B$10:$B$8000,$A42,BCPAC!$G$10:$G$8000)/1000 -> 0 | E42: 0 | F42: =SUMIF(BCPAN!$B$10:$B$8000,$A42,BCPAN!$G$10:$G$8000)/1000 -> 0 | G42: 0 | H42: 0 | I42: 0
A43: 4.3.1.03. | B43: Sanciones administrativas | D43: =SUMIF(BCPAC!$B$10:$B$8000,$A43,BCPAC!$G$10:$G$8000)/1000 -> 0 | E43: 0 | F43: =SUMIF(BCPAN!$B$10:$B$8000,$A43,BCPAN!$G$10:$G$8000)/1000 -> 0 | G43: 0 | H43: 0 | I43: 0
A44: 4.3.1.99. | B44: Otras multas | D44: =SUMIF(BCPAC!$B$10:$B$8000,$A44,BCPAC!$G$10:$G$8000)/1000 -> 0 | E44: 0 | F44: =SUMIF(BCPAN!$B$10:$B$8000,$A44,BCPAN!$G$10:$G$8000)/1000 -> 0 | G44: 0 | H44: 0 | I44: 0
A45: 4.3.2. | B45: Remates y confiscaciones de origen no tributario | C45: 39 | D45: =SUM(D46) -> 0 | E45: =+IFERROR(D45/$D$133,0) -> 0 | F45: =SUM(F46) -> 0 | G45: =+IFERROR(F45/$F$133,0) -> 0 | H45: =+D45-F45 -> 0 | I45: =+IFERROR(H45/F45,0) -> 0 | J45: =+FIXED(E45,4) -> 0,0000 | K45: =+FIXED(I45,4) -> 0,0000 | L45: =+FIXED(H45,2) -> 0,00 | M45: =IF(H45 < 0, "Disminución", "Aumento") -> Aumento | N45: Ingresos | O45: =+CONCATENATE(Texto!$B$4,AnalisisER!B45,Texto!$B$6,(AnalisisER!J45*100),Texto!$B$8,N45,Texto!$B$12,AnalisisER!L45,Texto!$B$14,AnalisisER!M45,Texto!$B$16,(AnalisisER!K45*100),Texto!$B$18) -> La cuenta Remates y confiscaciones de origen no tributario, representa el 0 % del total de Ingresos, que comparado al periodo anterior genera una variación absoluta de ¢0,00 que corresponde a un(a) Aumento del 0 % de recursos disponibles.
A46: 4.3.2.99. | B46: Otros remates y confiscaciones de origen no tributario | D46: =SUMIF(BCPAC!$B$10:$B$8000,$A46,BCPAC!$G$10:$G$8000)/1000 -> 0 | E46: =+IFERROR(D46/$D$133,0) -> 0 | F46: =SUMIF(BCPAN!$B$10:$B$8000,$A46,BCPAN!$G$10:$G$8000)/1000 -> 0 | G46: =+IFERROR(F46/$F$133,0) -> 0 | H46: 0 | I46: =+IFERROR(H46/F46,0) -> 0
A47: 4.3.3. | B47: Intereses Moratorios | C47: 40 | D47: =SUM(D48:D49) -> 0 | E47: =+IFERROR(D47/$D$133,0) -> 0 | F47: =SUM(F48:F49) -> 0 | G47: =+IFERROR(F47/$F$133,0) -> 0 | H47: =+D47-F47 -> 0 | I47: =+IFERROR(H47/F47,0) -> 0 | J47: =+FIXED(E47,4) -> 0,0000 | K47: =+FIXED(I47,4) -> 0,0000 | L47: =+FIXED(H47,2) -> 0,00 | M47: =IF(H47 < 0, "Disminución", "Aumento") -> Aumento | N47: Ingresos | O47: =+CONCATENATE(Texto!$B$4,AnalisisER!B47,Texto!$B$6,(AnalisisER!J47*100),Texto!$B$8,N47,Texto!$B$12,AnalisisER!L47,Texto!$B$14,AnalisisER!M47,Texto!$B$16,(AnalisisER!K47*100),Texto!$B$18) -> La cuenta Intereses Moratorios, representa el 0 % del total de Ingresos, que comparado al periodo anterior genera una variación absoluta de ¢0,00 que corresponde a un(a) Aumento del 0 % de recursos disponibles.
A48: 4.3.3.01. | B48: Otros remates y confiscaciones de origen no tributario | D48: =SUMIF(BCPAC!$B$10:$B$8000,$A48,BCPAC!$G$10:$G$8000)/1000 -> 0 | E48: =+IFERROR(D48/$D$133,0) -> 0 | F48: =SUMIF(BCPAN!$B$10:$B$8000,$A48,BCPAN!$G$10:$G$8000)/1000 -> 0 | G48: =+IFERROR(F48/$F$133,0) -> 0 | H48: =+D48-F48 -> 0 | I48: =+IFERROR(H48/F48,0) -> 0
A49: 4.3.3.02. | B49: Intereses moratorios por atraso en el pago de multas de transito | D49: =SUMIF(BCPAC!$B$10:$B$8000,$A49,BCPAC!$G$10:$G$8000)/1000 -> 0 | E49: =+IFERROR(D49/$D$133,0) -> 0 | F49: =SUMIF(BCPAN!$B$10:$B$8000,$A49,BCPAN!$G$10:$G$8000)/1000 -> 0 | G49: =+IFERROR(F49/$F$133,0) -> 0 | H49: =+D49-F49 -> 0 | I49: =+IFERROR(H49/F49,0) -> 0
A50: 4.4. | B50: Ingresos y resultados positivos por ventas
A51: 4.4.1. | B51: Ventas de bienes y servicios | C51: 41 | D51: =SUM(D52:D53) -> 335196.7247 | E51: =+IFERROR(D51/$D$133,0) -> 0.07211080539 | F51: =SUM(F52:F53) -> 207274.0643 | G51: =+IFERROR(F51/$F$133,0) -> 0.04509310371 | H51: =+D51-F51 -> 127922.6605 | I51: =+IFERROR(H51/F51,0) -> 0.6171667494 | J51: =+FIXED(E51,4) -> 0,0721 | K51: =+FIXED(I51,4) -> 0,6172 | L51: =+FIXED(H51,2) -> 127 922,66 | M51: =IF(H51 < 0, "Disminución", "Aumento") -> Aumento | N51: Ingresos | O51: =+CONCATENATE(Texto!$B$4,AnalisisER!B51,Texto!$B$6,(AnalisisER!J51*100),Texto!$B$8,N51,Texto!$B$12,AnalisisER!L51,Texto!$B$14,AnalisisER!M51,Texto!$B$16,(AnalisisER!K51*100),Texto!$B$18) -> La cuenta Ventas de bienes y servicios, representa el 7,21 % del total de Ingresos, que comparado al periodo anterior genera una variación absoluta de ¢127 922,66 que corresponde a un(a) Aumento del 61,72 % de recursos disponibles.
A52: 4.4.1.01. | B52: Ventas de bienes | D52: =SUMIF(BCPAC!$B$10:$B$8000,$A52,BCPAC!$G$10:$G$8000)/1000 -> 0 | E52: =+IFERROR(D52/$D$133,0) -> 0 | F52: =SUMIF(BCPAN!$B$10:$B$8000,$A52,BCPAN!$G$10:$G$8000)/1000 -> 0 | G52: =+IFERROR(F52/$F$133,0) -> 0 | H52: 0 | I52: =+IFERROR(H52/F52,0) -> 0
A53: 4.4.1.02. | B53: Ventas de servicios | D53: =SUMIF(BCPAC!$B$10:$B$8000,$A53,BCPAC!$G$10:$G$8000)/1000 -> 335196.7247 | E53: 0.07211080539 | F53: =SUMIF(BCPAN!$B$10:$B$8000,$A53,BCPAN!$G$10:$G$8000)/1000 -> 207274.0643 | G53: 0.04509310371 | H53: 127922.6605 | I53: 0.6171667494
A54: 4.4.2. | B54: Derechos administrativos | C54: 42 | D54: =SUM(D55:D56) -> 288.93333 | E54: =+IFERROR(D54/$D$133,0) -> 6.215817039e-05 | F54: =SUM(F55:F56) -> 258 | G54: =+IFERROR(F54/$F$133,0) -> 5.612868546e-05 | H54: 30.93333 | I54: =+IFERROR(H54/F54,0) -> 0.1198966279 | J54: =+FIXED(E54,4) -> 0,0001 | K54: =+FIXED(I54,4) -> 0,1199 | L54: =+FIXED(H54,2) -> 30,93 | M54: =IF(H54 < 0, "Disminución", "Aumento") -> Aumento | N54: Ingresos | O54: =+CONCATENATE(Texto!$B$4,AnalisisER!B54,Texto!$B$6,(AnalisisER!J54*100),Texto!$B$8,N54,Texto!$B$12,AnalisisER!L54,Texto!$B$14,AnalisisER!M54,Texto!$B$16,(AnalisisER!K54*100),Texto!$B$18) -> La cuenta Derechos administrativos, representa el 0,01 % del total de Ingresos, que comparado al periodo anterior genera una variación absoluta de ¢30,93 que corresponde a un(a) Aumento del 11,99 % de recursos disponibles.
A55: 4.4.2.01. | B55: Derechos administrativos a los servicios de transporte | D55: =SUMIF(BCPAC!$B$10:$B$8000,$A55,BCPAC!$G$10:$G$8000)/1000 -> 160 | E55: =+IFERROR(D55/$D$133,0) -> 3.442076849e-05 | F55: =SUMIF(BCPAN!$B$10:$B$8000,$A55,BCPAN!$G$10:$G$8000)/1000 -> 160 | G55: =+IFERROR(F55/$F$133,0) -> 3.480848711e-05 | H55: 0 | I55: =+IFERROR(H55/F55,0) -> 0
A56: 4.4.2.99. | B56: Otros derechos administrativos | D56: =SUMIF(BCPAC!$B$10:$B$8000,$A56,BCPAC!$G$10:$G$8000)/1000 -> 128.93333 | E56: 2.773740189e-05 | F56: =SUMIF(BCPAN!$B$10:$B$8000,$A56,BCPAN!$G$10:$G$8000)/1000 -> 98 | G56: 2.132019835e-05 | H56: 30.93333 | I56: 0.3156462245
A57: 4.4.3. | B57: Comisiones por préstamos | C57: 43 | D57: =SUM(D58:D60) -> 0 | E57: =+IFERROR(D57/$D$133,0) -> 0 | F57: =SUM(F58:F60) -> 0 | G57: =+IFERROR(F57/$F$133,0) -> 0 | H57: 0 | I57: =+IFERROR(H57/F57,0) -> 0 | J57: =+FIXED(E57,4) -> 0,0000 | K57: =+FIXED(I57,4) -> 0,0000 | L57: =+FIXED(H57,2) -> 0,00 | M57: =IF(H57 < 0, "Disminución", "Aumento") -> Aumento | N57: Ingresos | O57: =+CONCATENATE(Texto!$B$4,AnalisisER!B57,Texto!$B$6,(AnalisisER!J57*100),Texto!$B$8,N57,Texto!$B$12,AnalisisER!L57,Texto!$B$14,AnalisisER!M57,Texto!$B$16,(AnalisisER!K57*100),Texto!$B$18) -> La cuenta Comisiones por préstamos, representa el 0 % del total de Ingresos, que comparado al periodo anterior genera una variación absoluta de ¢0,00 que corresponde a un(a) Aumento del 0 % de recursos disponibles.
A58: 4.4.3.01. | B58: Comisiones por préstamos al sector privado interno | D58: =SUMIF(BCPAC!$B$10:$B$8000,$A58,BCPAC!$G$10:$G$8000)/1000 -> 0 | E58: =+IFERROR(D58/$D$133,0) -> 0 | F58: =SUMIF(BCPAN!$B$10:$B$8000,$A58,BCPAN!$G$10:$G$8000)/1000 -> 0 | G58: =+IFERROR(F58/$F$133,0) -> 0 | H58: 0 | I58: =+IFERROR(H58/F58,0) -> 0
A59: 4.4.3.02. | B59: Comisiones por préstamos al sector público interno | D59: =SUMIF(BCPAC!$B$10:$B$8000,$A59,BCPAC!$G$10:$G$8000)/1000 -> 0 | E59: 0 | F59: =SUMIF(BCPAN!$B$10:$B$8000,$A59,BCPAN!$G$10:$G$8000)/1000 -> 0 | G59: 0 | H59: 0 | I59: 0
A60: 4.4.3.03. | B60: Comisiones por préstamos al sector externo | D60: =SUMIF(BCPAC!$B$10:$B$8000,$A60,BCPAC!$G$10:$G$8000)/1000 -> 0 | E60: 0 | F60: =SUMIF(BCPAN!$B$10:$B$8000,$A60,BCPAN!$G$10:$G$8000)/1000 -> 0 | G60: 0 | H60: 0 | I60: 0
A61: 4.4.4. | B61: Resultados positivos por ventas de inversiones | C61: 44 | D61: =SUM(D62:D63) -> 0 | E61: =+IFERROR(D61/$D$133,0) -> 0 | F61: =SUM(F62:F63) -> 0 | G61: =+IFERROR(F61/$F$133,0) -> 0 | H61: 0 | I61: =+IFERROR(H61/F61,0) -> 0 | J61: =+FIXED(E61,4) -> 0,0000 | K61: =+FIXED(I61,4) -> 0,0000 | L61: =+FIXED(H61,2) -> 0,00 | M61: =IF(H61 < 0, "Disminución", "Aumento") -> Aumento | N61: Ingresos | O61: =+CONCATENATE(Texto!$B$4,AnalisisER!B61,Texto!$B$6,(AnalisisER!J61*100),Texto!$B$8,N61,Texto!$B$12,AnalisisER!L61,Texto!$B$14,AnalisisER!M61,Texto!$B$16,(AnalisisER!K61*100),Texto!$B$18) -> La cuenta Resultados positivos por ventas de inversiones, representa el 0 % del total de Ingresos, que comparado al periodo anterior genera una variación absoluta de ¢0,00 que corresponde a un(a) Aumento del 0 % de recursos disponibles.
A62: 4.4.4.01. | B62: Resultados positivos por ventas de inversiones patrimoniales - Método de participación | D62: =SUMIF(BCPAC!$B$10:$B$8000,$A62,BCPAC!$G$10:$G$8000)/1000 -> 0 | E62: =+IFERROR(D62/$D$133,0) -> 0 | F62: =SUMIF(BCPAN!$B$10:$B$8000,$A62,BCPAN!$G$10:$G$8000)/1000 -> 0 | G62: =+IFERROR(F62/$F$133,0) -> 0 | H62: 0 | I62: =+IFERROR(H62/F62,0) -> 0
A63: 4.4.4.98. | B63: Resultados positivos por ventas de otras inversiones | D63: =SUMIF(BCPAC!$B$10:$B$8000,$A63,BCPAC!$G$10:$G$8000)/1000 -> 0 | E63: 0 | F63: =SUMIF(BCPAN!$B$10:$B$8000,$A63,BCPAN!$G$10:$G$8000)/1000 -> 0 | G63: 0 | H63: 0 | I63: 0
A64: 4.4.5. | B64: Resultados positivos por ventas e intercambio de bienes | C64: 45 | D64: =SUM(D65:D74) -> 0 | E64: =+IFERROR(D64/$D$133,0) -> 0 | F64: =SUM(F65:F74) -> 0 | G64: =+IFERROR(F64/$F$133,0) -> 0 | H64: =+D64-F64 -> 0 | I64: =+IFERROR(H64/F64,0) -> 0 | J64: =+FIXED(E64,4) -> 0,0000 | K64: =+FIXED(I64,4) -> 0,0000 | L64: =+FIXED(H64,2) -> 0,00 | M64: =IF(H64 < 0, "Disminución", "Aumento") -> Aumento | N64: Ingresos | O64: =+CONCATENATE(Texto!$B$4,AnalisisER!B64,Texto!$B$6,(AnalisisER!J64*100),Texto!$B$8,N64,Texto!$B$12,AnalisisER!L64,Texto!$B$14,AnalisisER!M64,Texto!$B$16,(AnalisisER!K64*100),Texto!$B$18) -> La cuenta Resultados positivos por ventas e intercambio de bienes, representa el 0 % del total de Ingresos, que comparado al periodo anterior genera una variación absoluta de ¢0,00 que corresponde a un(a) Aumento del 0 % de recursos disponibles.
A65: 4.4.5.01. | B65: Resultados positivos por ventas de construcciones terminadas | D65: =SUMIF(BCPAC!$B$10:$B$8000,$A65,BCPAC!$G$10:$G$8000)/1000 -> 0 | E65: =+IFERROR(D65/$D$133,0) -> 0 | F65: =SUMIF(BCPAN!$B$10:$B$8000,$A65,BCPAN!$G$10:$G$8000)/1000 -> 0 | G65: =+IFERROR(F65/$F$133,0) -> 0 | H65: 0 | I65: =+IFERROR(H65/F65,0) -> 0
A66: 4.4.5.02. | B66: Resultados positivos por ventas de propiedades, planta y equipo | D66: =SUMIF(BCPAC!$B$10:$B$8000,$A66,BCPAC!$G$10:$G$8000)/1000 -> 0 | E66: 0 | F66: =SUMIF(BCPAN!$B$10:$B$8000,$A66,BCPAN!$G$10:$G$8000)/1000 -> 0 | G66: 0 | H66: 0 | I66: 0
A67: 4.4.5.03. | B67: Resultados positivos por ventas de activos biológicos | D67: =SUMIF(BCPAC!$B$10:$B$8000,$A67,BCPAC!$G$10:$G$8000)/1000 -> 0 | E67: 0 | F67: =SUMIF(BCPAN!$B$10:$B$8000,$A67,BCPAN!$G$10:$G$8000)/1000 -> 0 | G67: 0 | H67: 0 | I67: 0
A68: 4.4.5.04. | B68: Resultados positivos por ventas de bienes intangibles | D68: =SUMIF(BCPAC!$B$10:$B$8000,$A68,BCPAC!$G$10:$G$8000)/1000 -> 0 | E68: 0 | F68: =SUMIF(BCPAN!$B$10:$B$8000,$A68,BCPAN!$G$10:$G$8000)/1000 -> 0 | G68: 0 | H68: 0 | I68: 0
A69: 4.4.5.05. | B69: Resultados positivos por ventas por arrendamientos financieros | D69: =SUMIF(BCPAC!$B$10:$B$8000,$A69,BCPAC!$G$10:$G$8000)/1000 -> 0 | E69: 0 | F69: =SUMIF(BCPAN!$B$10:$B$8000,$A69,BCPAN!$G$10:$G$8000)/1000 -> 0 | G69: 0 | H69: 0 | I69: 0
A70: 4.4.5.06. | B70: Resultados positivos por intercambio de propiedades, planta y equipo | D70: =SUMIF(BCPAC!$B$10:$B$8000,$A70,BCPAC!$G$10:$G$8000)/1000 -> 0 | E70: 0 | F70: =SUMIF(BCPAN!$B$10:$B$8000,$A70,BCPAN!$G$10:$G$8000)/1000 -> 0 | G70: 0 | H70: 0 | I70: 0
A71: 4.4.5.07. | B71: Resultados positivos por intercambio de bienes intangibles | D71: =SUMIF(BCPAC!$B$10:$B$8000,$A71,BCPAC!$G$10:$G$8000)/1000 -> 0 | E71: 0 | F71: =SUMIF(BCPAN!$B$10:$B$8000,$A71,BCPAN!$G$10:$G$8000)/1000 -> 0 | G71: 0 | H71: 0 | I71: 0
A72: 4.4.5.08. | B72: Resultados positivos por intercambio de Inventario | D72: =SUMIF(BCPAC!$B$10:$B$8000,$A72,BCPAC!$G$10:$G$8000)/1000 -> 0 | E72: 0 | F72: =SUMIF(BCPAN!$B$10:$B$8000,$A72,BCPAN!$G$10:$G$8000)/1000 -> 0 | G72: 0 | H72: 0 | I72: 0
A73: 4.4.5.09. | B73: Resultados positivos por la entrega de activos como medio de pago de impuestos | D73: =SUMIF(BCPAC!$B$10:$B$8000,$A73,BCPAC!$G$10:$G$8000)/1000 -> 0 | E73: 0 | F73: =SUMIF(BCPAN!$B$10:$B$8000,$A73,BCPAN!$G$10:$G$8000)/1000 -> 0 | G73: 0 | H73: 0 | I73: 0
A74: 4.4.5.10. | B74: Resultados positivos por intercambio de Infra | D74: =SUMIF(BCPAC!$B$10:$B$8000,$A74,BCPAC!$G$10:$G$8000)/1000 -> 0 | E74: 0 | F74: =SUMIF(BCPAN!$B$10:$B$8000,$A74,BCPAN!$G$10:$G$8000)/1000 -> 0 | G74: 0 | H74: 0 | I74: 0
A75: 4.4.6. | B75: Resultados positivos por la recuperación de dinero mal acreditado de periodos anteriores | C75: 46 | D75: =SUM(D76:D77) -> 0 | E75: =+IFERROR(D75/$D$133,0) -> 0 | F75: =SUM(F76:F77) -> 0 | G75: =+IFERROR(F75/$F$133,0) -> 0 | H75: 0 | I75: =+IFERROR(H75/F75,0) -> 0 | J75: =+FIXED(E75,4) -> 0,0000 | K75: =+FIXED(I75,4) -> 0,0000 | L75: =+FIXED(H75,2) -> 0,00 | M75: =IF(H75 < 0, "Disminución", "Aumento") -> Aumento | N75: Ingresos | O75: =+CONCATENATE(Texto!$B$4,AnalisisER!B75,Texto!$B$6,(AnalisisER!J75*100),Texto!$B$8,N75,Texto!$B$12,AnalisisER!L75,Texto!$B$14,AnalisisER!M75,Texto!$B$16,(AnalisisER!K75*100),Texto!$B$18) -> La cuenta Resultados positivos por la recuperación de dinero mal acreditado de periodos anteriores, representa el 0 % del total de Ingresos, que comparado al periodo anterior genera una variación absoluta de ¢0,00 que corresponde a un(a) Aumento del 0 % de recursos disponibles.
A76: 4.4.6.01. | B76: Resultados positivos por la recuperacion de sumas de periodos anteriores | D76: =SUMIF(BCPAC!$B$10:$B$8000,$A76,BCPAC!$G$10:$G$8000)/1000 -> 0 | E76: =+IFERROR(D76/$D$133,0) -> 0 | F76: =SUMIF(BCPAN!$B$10:$B$8000,$A76,BCPAN!$G$10:$G$8000)/1000 -> 0 | G76: =+IFERROR(F76/$F$133,0) -> 0 | H76: 0 | I76: =+IFERROR(H76/F76,0) -> 0
A77: 4.5. | B77: Ingresos de la propiedad
A78: 4.5.1. | B78: Rentas de inversiones y de colocación de efectivo | C78: 47 | D78: =SUM(D79:D81) -> 7249.3435 | E78: =+IFERROR(D78/$D$133,0) -> 0.00155954984 | F78: =SUM(F79:F81) -> 8165.16393 | G78: =+IFERROR(F78/$F$133,0) -> 0.001776356271 | H78: =+D78-F78 -> -915.82043 | I78: =+IFERROR(H78/F78,0) -> -0.1121619159 | J78: =+FIXED(E78,4) -> 0,0016 | K78: =+FIXED(I78,4) -> -0,1122 | L78: =+FIXED(H78,2) -> -915,82 | M78: =IF(H78 < 0, "Disminución", "Aumento") -> Disminución | N78: Ingresos | O78: =+CONCATENATE(Texto!$B$4,AnalisisER!B78,Texto!$B$6,(AnalisisER!J78*100),Texto!$B$8,N78,Texto!$B$12,AnalisisER!L78,Texto!$B$14,AnalisisER!M78,Texto!$B$16,(AnalisisER!K78*100),Texto!$B$18) -> La cuenta Rentas de inversiones y de colocación de efectivo, representa el 0,16 % del total de Ingresos, que comparado al periodo anterior genera una variación absoluta de ¢-915,82 que corresponde a un(a) Disminución del -11,22 % de recursos disponibles.
A79: 4.5.1.01. | B79: Intereses por equivalentes de efectivo | D79: =SUMIF(BCPAC!$B$10:$B$8000,$A79,BCPAC!$G$10:$G$8000)/1000 -> 1106.92699 | E79: =+IFERROR(D79/$D$133,0) -> 0.0002381329854 | F79: =SUMIF(BCPAN!$B$10:$B$8000,$A79,BCPAN!$G$10:$G$8000)/1000 -> 446.79369 | G79: =+IFERROR(F79/$F$133,0) -> 9.720132748e-05 | H79: 660.1333 | I79: =+IFERROR(H79/F79,0) -> 1.477490204
A80: 4.5.1.02. | B80: Intereses por títulos y valores a costo amortizado | D80: =SUMIF(BCPAC!$B$10:$B$8000,$A80,BCPAC!$G$10:$G$8000)/1000 -> 0 | E80: 0 | F80: =SUMIF(BCPAN!$B$10:$B$8000,$A80,BCPAN!$G$10:$G$8000)/1000 -> 0 | G80: 0 | H80: 0 | I80: 0
A81: 4.5.1.98. | B81: Resultados positivos de otras inversiones | D81: =SUMIF(BCPAC!$B$10:$B$8000,$A81,BCPAC!$G$10:$G$8000)/1000 -> 6142.41651 | E81: 0.001321416854 | F81: =SUMIF(BCPAN!$B$10:$B$8000,$A81,BCPAN!$G$10:$G$8000)/1000 -> 7718.37024 | G81: 0.001679154944 | H81: -1575.95373 | I81: -0.2041821889
A82: 4.5.2. | B82: Alquileres y derechos sobre bienes | C82: 48 | D82: =SUM(D83:D85) -> 14362.71272 | E82: =+IFERROR(D82/$D$133,0) -> 0.003089847559 | F82: =SUM(F83:F85) -> 13973.56416 | G82: =+IFERROR(F82/$F$133,0) -> 0.003039991424 | H82: 389.14856 | I82: =+IFERROR(H82/F82,0) -> 0.0278489121 | J82: =+FIXED(E82,4) -> 0,0031 | K82: =+FIXED(I82,4) -> 0,0278 | L82: =+FIXED(H82,2) -> 389,15 | M82: =IF(H82 < 0, "Disminución", "Aumento") -> Aumento | N82: Ingresos | O82: =+CONCATENATE(Texto!$B$4,AnalisisER!B82,Texto!$B$6,(AnalisisER!J82*100),Texto!$B$8,N82,Texto!$B$12,AnalisisER!L82,Texto!$B$14,AnalisisER!M82,Texto!$B$16,(AnalisisER!K82*100),Texto!$B$18) -> La cuenta Alquileres y derechos sobre bienes, representa el 0,31 % del total de Ingresos, que comparado al periodo anterior genera una variación absoluta de ¢389,15 que corresponde a un(a) Aumento del 2,78 % de recursos disponibles.
A83: 4.5.2.01. | B83: Alquileres | D83: =SUMIF(BCPAC!$B$10:$B$8000,$A83,BCPAC!$G$10:$G$8000)/1000 -> 14362.71272 | E83: =+IFERROR(D83/$D$133,0) -> 0.003089847559 | F83: =SUMIF(BCPAN!$B$10:$B$8000,$A83,BCPAN!$G$10:$G$8000)/1000 -> 13973.56416 | G83: =+IFERROR(F83/$F$133,0) -> 0.003039991424 | H83: 389.14856 | I83: =+IFERROR(H83/F83,0) -> 0.0278489121 | J83: =+FIXED(E83,4) -> 0,0031 | K83: =+FIXED(I83,4) -> 0,0278 | L83: =+FIXED(H83,2) -> 389,15 | M83: =IF(H83 < 0, "Disminución", "Aumento") -> Aumento | N83: Ingresos | O83: =+CONCATENATE(Texto!$B$4,AnalisisER!B83,Texto!$B$6,(AnalisisER!J83*100),Texto!$B$8,N83,Texto!$B$12,AnalisisER!L83,Texto!$B$14,AnalisisER!M83,Texto!$B$16,(AnalisisER!K83*100),Texto!$B$18) -> La cuenta Alquileres, representa el 0,31 % del total de Ingresos, que comparado al periodo anterior genera una variación absoluta de ¢389,15 que corresponde a un(a) Aumento del 2,78 % de recursos disponibles.
A84: 4.5.2.02. | B84: Ingresos por concesiones | D84: =SUMIF(BCPAC!$B$10:$B$8000,$A84,BCPAC!$G$10:$G$8000)/1000 -> 0 | E84: 0 | F84: =SUMIF(BCPAN!$B$10:$B$8000,$A84,BCPAN!$G$10:$G$8000)/1000 -> 0 | G84: 0 | H84: 0 | I84: 0
A85: 4.5.2.03. | B85: Derechos sobre bienes intangibles | D85: =SUMIF(BCPAC!$B$10:$B$8000,$A85,BCPAC!$G$10:$G$8000)/1000 -> 0 | E85: 0 | F85: =SUMIF(BCPAN!$B$10:$B$8000,$A85,BCPAN!$G$10:$G$8000)/1000 -> 0 | G85: 0 | H85: 0 | I85: 0
A86: 4.5.9. | B86: Otros ingresos de la propiedad | C86: 49 | D86: =SUM(D87:D93) -> 0 | E86: =+IFERROR(D86/$D$133,0) -> 0 | F86: =SUM(F87:F93) -> 0 | G86: =+IFERROR(F86/$F$133,0) -> 0 | H86: 0 | I86: =+IFERROR(H86/F86,0) -> 0 | J86: =+FIXED(E86,4) -> 0,0000 | K86: =+FIXED(I86,4) -> 0,0000 | L86: =+FIXED(H86,2) -> 0,00 | M86: =IF(H86 < 0, "Disminución", "Aumento") -> Aumento | N86: Ingresos | O86: =+CONCATENATE(Texto!$B$4,AnalisisER!B86,Texto!$B$6,(AnalisisER!J86*100),Texto!$B$8,N86,Texto!$B$12,AnalisisER!L86,Texto!$B$14,AnalisisER!M86,Texto!$B$16,(AnalisisER!K86*100),Texto!$B$18) -> La cuenta Otros ingresos de la propiedad, representa el 0 % del total de Ingresos, que comparado al periodo anterior genera una variación absoluta de ¢0,00 que corresponde a un(a) Aumento del 0 % de recursos disponibles.
A87: 4.5.9.03. | B87: Intereses por ventas | D87: =SUMIF(BCPAC!$B$10:$B$8000,$A87,BCPAC!$G$10:$G$8000)/1000 -> 0 | E87: =+IFERROR(D87/$D$133,0) -> 0 | F87: =SUMIF(BCPAN!$B$10:$B$8000,$A87,BCPAN!$G$10:$G$8000)/1000 -> 0 | G87: =+IFERROR(F87/$F$133,0) -> 0 | H87: 0 | I87: =+IFERROR(H87/F87,0) -> 0
A88: 4.5.9.07. | B88: Intereses por préstamos | D88: =SUMIF(BCPAC!$B$10:$B$8000,$A88,BCPAC!$G$10:$G$8000)/1000 -> 0 | E88: 0 | F88: =SUMIF(BCPAN!$B$10:$B$8000,$A88,BCPAN!$G$10:$G$8000)/1000 -> 0 | G88: 0 | H88: 0 | I88: 0
A89: 4.5.9.08. | B89: Intereses por documentos a cobrar | D89: =SUMIF(BCPAC!$B$10:$B$8000,$A89,BCPAC!$G$10:$G$8000)/1000 -> 0 | E89: 0 | F89: =SUMIF(BCPAN!$B$10:$B$8000,$A89,BCPAN!$G$10:$G$8000)/1000 -> 0 | G89: 0 | H89: 0 | I89: 0
A90: 4.5.9.10. | B90: Intereses por deudores por avales ejecutados | D90: =SUMIF(BCPAC!$B$10:$B$8000,$A90,BCPAC!$G$10:$G$8000)/1000 -> 0 | E90: 0 | F90: =SUMIF(BCPAN!$B$10:$B$8000,$A90,BCPAN!$G$10:$G$8000)/1000 -> 0 | G90: 0 | H90: 0 | I90: 0
A91: 4.5.9.97. | B91: Intereses por cuentas a cobrar en gestión judicial | D91: =SUMIF(BCPAC!$B$10:$B$8000,$A91,BCPAC!$G$10:$G$8000)/1000 -> 0 | E91: 0 | F91: =SUMIF(BCPAN!$B$10:$B$8000,$A91,BCPAN!$G$10:$G$8000)/1000 -> 0 | G91: 0 | H91: 0 | I91: 0
A92: 4.5.9.99. | B92: Intereses por otras cuentas a cobrar | D92: =SUMIF(BCPAC!$B$10:$B$8000,$A92,BCPAC!$G$10:$G$8000)/1000 -> 0 | E92: 0 | F92: =SUMIF(BCPAN!$B$10:$B$8000,$A92,BCPAN!$G$10:$G$8000)/1000 -> 0 | G92: 0 | H92: 0 | I92: 0
A93: 4.6. | B93: Transferencias
A94: 4.6.1. | B94: Transferencias corrientes | C94: 50 | D94: =SUM(D95:D97) -> 11322.83007 | E94: =+IFERROR(D94/$D$133,0) -> 0.002435878203 | F94: =SUM(F95:F97) -> 11962.12578 | G94: =+IFERROR(F94/$F$133,0) -> 0.002602396881 | H94: =+D94-F94 -> -639.29571 | I94: =+IFERROR(H94/F94,0) -> -0.0534433195 | J94: =+FIXED(E94,4) -> 0,0024 | K94: =+FIXED(I94,4) -> -0,0534 | L94: =+FIXED(H94,2) -> -639,30 | M94: =IF(H94 < 0, "Disminución", "Aumento") -> Disminución | N94: Ingresos | O94: =+CONCATENATE(Texto!$B$4,AnalisisER!B94,Texto!$B$6,(AnalisisER!J94*100),Texto!$B$8,N94,Texto!$B$12,AnalisisER!L94,Texto!$B$14,AnalisisER!M94,Texto!$B$16,(AnalisisER!K94*100),Texto!$B$18) -> La cuenta Transferencias corrientes, representa el 0,24 % del total de Ingresos, que comparado al periodo anterior genera una variación absoluta de ¢-639,30 que corresponde a un(a) Disminución del -5,34 % de recursos disponibles.
A95: 4.6.1.01. | B95: Transferencias corrientes del sector privado interno | D95: =SUMIF(BCPAC!$B$10:$B$8000,$A95,BCPAC!$G$10:$G$8000)/1000 -> 0 | E95: =+IFERROR(D95/$D$133,0) -> 0 | F95: =SUMIF(BCPAN!$B$10:$B$8000,$A95,BCPAN!$G$10:$G$8000)/1000 -> 0 | G95: =+IFERROR(F95/$F$133,0) -> 0 | H95: 0 | I95: =+IFERROR(H95/F95,0) -> 0
A96: 4.6.1.02. | B96: Transferencias corrientes del sector público interno | D96: =SUMIF(BCPAC!$B$10:$B$8000,$A96,BCPAC!$G$10:$G$8000)/1000 -> 11322.83007 | E96: 0.002435878203 | F96: =SUMIF(BCPAN!$B$10:$B$8000,$A96,BCPAN!$G$10:$G$8000)/1000 -> 11962.12578 | G96: 0.002602396881 | H96: -639.29571 | I96: -0.0534433195 | J96: =+FIXED(E96,4) -> 0,0024 | K96: =+FIXED(I96,4) -> -0,0534 | L96: =+FIXED(H96,2) -> -639,30 | M96: =IF(H96 < 0, "Disminución", "Aumento") -> Disminución | N96: Ingresos | O96: =+CONCATENATE(Texto!$B$4,AnalisisER!B96,Texto!$B$6,(AnalisisER!J96*100),Texto!$B$8,N96,Texto!$B$12,AnalisisER!L96,Texto!$B$14,AnalisisER!M96,Texto!$B$16,(AnalisisER!K96*100),Texto!$B$18) -> La cuenta Transferencias corrientes del sector público interno, representa el 0,24 % del total de Ingresos, que comparado al periodo anterior genera una variación absoluta de ¢-639,30 que corresponde a un(a) Disminución del -5,34 % de recursos disponibles.
A97: 4.6.1.03. | B97: Transferencias corrientes del sector externo | D97: =SUMIF(BCPAC!$B$10:$B$8000,$A97,BCPAC!$G$10:$G$8000)/1000 -> 0 | E97: 0 | F97: =SUMIF(BCPAN!$B$10:$B$8000,$A97,BCPAN!$G$10:$G$8000)/1000 -> 0 | G97: 0 | H97: 0 | I97: 0
A98: 4.6.2. | B98: Transferencias de capital | C98: 51 | D98: =SUM(D99:D102) -> 3772816.719 | E98: =+IFERROR(D98/$D$133,0) -> 0.8116453179 | F98: =SUM(F99:F102) -> 3799661.728 | G98: =+IFERROR(F98/$F$133,0) -> 0.8266279766 | H98: -26845.009 | I98: =+IFERROR(H98/F98,0) -> -0.007065104981 | J98: =+FIXED(E98,4) -> 0,8116 | K98: =+FIXED(I98,4) -> -0,0071 | L98: =+FIXED(H98,2) -> -26 845,01 | M98: =IF(H98 < 0, "Disminución", "Aumento") -> Disminución | N98: Ingresos | O98: =+CONCATENATE(Texto!$B$4,AnalisisER!B98,Texto!$B$6,(AnalisisER!J98*100),Texto!$B$8,N98,Texto!$B$12,AnalisisER!L98,Texto!$B$14,AnalisisER!M98,Texto!$B$16,(AnalisisER!K98*100),Texto!$B$18) -> La cuenta Transferencias de capital, representa el 81,16 % del total de Ingresos, que comparado al periodo anterior genera una variación absoluta de ¢-26 845,01 que corresponde a un(a) Disminución del -0,71 % de recursos disponibles.
A99: 4.6.2.01. | B99: Transferencias de capital del sector privado interno | D99: =SUMIF(BCPAC!$B$10:$B$8000,$A99,BCPAC!$G$10:$G$8000)/1000 -> 0 | E99: =+IFERROR(D99/$D$133,0) -> 0 | F99: =SUMIF(BCPAN!$B$10:$B$8000,$A99,BCPAN!$G$10:$G$8000)/1000 -> 0 | G99: =+IFERROR(F99/$F$133,0) -> 0 | H99: 0 | I99: =+IFERROR(H99/F99,0) -> 0
A100: 4.6.2.02. | B100: Transferencias de capital del sector público interno | D100: =SUMIF(BCPAC!$B$10:$B$8000,$A100,BCPAC!$G$10:$G$8000)/1000 -> 3772816.719 | E100: 0.8116453179 | F100: =SUMIF(BCPAN!$B$10:$B$8000,$A100,BCPAN!$G$10:$G$8000)/1000 -> 3799661.728 | G100: 0.8266279766 | H100: -26845.009 | I100: -0.007065104981 | J100: =+FIXED(E100,4) -> 0,8116 | K100: =+FIXED(I100,4) -> -0,0071 | L100: =+FIXED(H100,2) -> -26 845,01 | M100: =IF(H100 < 0, "Disminución", "Aumento") -> Disminución | N100: Ingresos | O100: =+CONCATENATE(Texto!$B$4,AnalisisER!B100,Texto!$B$6,(AnalisisER!J100*100),Texto!$B$8,N100,Texto!$B$12,AnalisisER!L100,Texto!$B$14,AnalisisER!M100,Texto!$B$16,(AnalisisER!K100*100),Texto!$B$18) -> La cuenta Transferencias de capital del sector público interno, representa el 81,16 % del total de Ingresos, que comparado al periodo anterior genera una variación absoluta de ¢-26 845,01 que corresponde a un(a) Disminución del -0,71 % de recursos disponibles.
A101: 4.6.2.03. | B101: Transferencias de capital del sector externo | D101: =SUMIF(BCPAC!$B$10:$B$8000,$A101,BCPAC!$G$10:$G$8000)/1000 -> 0 | E101: 0 | F101: =SUMIF(BCPAN!$B$10:$B$8000,$A101,BCPAN!$G$10:$G$8000)/1000 -> 0 | G101: 0 | H101: 0 | I101: 0
A102: 4.9. | B102: Otros ingresos
A103: 4.9.1. | B103: Resultados positivos por tenencia y por exposición a la inflación | C103: 52 | D103: =SUM(D104:D109) -> 0 | E103: =+IFERROR(D103/$D$133,0) -> 0 | F103: =SUM(F104:F109) -> 0 | G103: =+IFERROR(F103/$F$133,0) -> 0 | H103: =+D103-F103 -> 0 | I103: =+IFERROR(H103/F103,0) -> 0 | J103: =+FIXED(E103,4) -> 0,0000 | K103: =+FIXED(I103,4) -> 0,0000 | L103: =+FIXED(H103,2) -> 0,00 | M103: =IF(H103 < 0, "Disminución", "Aumento") -> Aumento | N103: Ingresos | O103: =+CONCATENATE(Texto!$B$4,AnalisisER!B103,Texto!$B$6,(AnalisisER!J103*100),Texto!$B$8,N103,Texto!$B$12,AnalisisER!L103,Texto!$B$14,AnalisisER!M103,Texto!$B$16,(AnalisisER!K103*100),Texto!$B$18) -> La cuenta Resultados positivos por tenencia y por exposición a la inflación, representa el 0 % del total de Ingresos, que comparado al periodo anterior genera una variación absoluta de ¢0,00 que corresponde a un(a) Aumento del 0 % de recursos disponibles.
A104: 4.9.1.01. | B104: Diferencias de cambio positivas por activos | D104: =SUMIF(BCPAC!$B$10:$B$8000,$A104,BCPAC!$G$10:$G$8000)/1000 -> 0 | E104: =+IFERROR(D104/$D$133,0) -> 0 | F104: =SUMIF(BCPAN!$B$10:$B$8000,$A104,BCPAN!$G$10:$G$8000)/1000 -> 0 | G104: =+IFERROR(F104/$F$133,0) -> 0 | H104: 0 | I104: =+IFERROR(H104/F104,0) -> 0
A105: 4.9.1.02. | B105: Diferencias de cambio positivas por pasivos | D105: =SUMIF(BCPAC!$B$10:$B$8000,$A105,BCPAC!$G$10:$G$8000)/1000 -> 0 | E105: 0 | F105: =SUMIF(BCPAN!$B$10:$B$8000,$A105,BCPAN!$G$10:$G$8000)/1000 -> 0 | G105: 0 | H105: 0 | I105: 0
A106: 4.9.1.03. | B106: Resultados positivos por tenencia de activos no derivados | D106: =SUMIF(BCPAC!$B$10:$B$8000,$A106,BCPAC!$G$10:$G$8000)/1000 -> 0 | E106: 0 | F106: =SUMIF(BCPAN!$B$10:$B$8000,$A106,BCPAN!$G$10:$G$8000)/1000 -> 0 | G106: 0 | H106: 0 | I106: 0
A107: 4.9.1.04. | B107: Resultados positivos por tenencia de pasivos no derivados | D107: =SUMIF(BCPAC!$B$10:$B$8000,$A107,BCPAC!$G$10:$G$8000)/1000 -> 0 | E107: 0 | F107: =SUMIF(BCPAN!$B$10:$B$8000,$A107,BCPAN!$G$10:$G$8000)/1000 -> 0 | G107: 0 | H107: 0 | I107: 0
A108: 4.9.1.05. | B108: Resultados positivos por tenencia de instrumentos financieros derivados | D108: =SUMIF(BCPAC!$B$10:$B$8000,$A108,BCPAC!$G$10:$G$8000)/1000 -> 0 | E108: 0 | F108: =SUMIF(BCPAN!$B$10:$B$8000,$A108,BCPAN!$G$10:$G$8000)/1000 -> 0 | G108: 0 | H108: 0 | I108: 0
A109: 4.9.1.06. | B109: Resultado positivo por exposición a la inflación | D109: =SUMIF(BCPAC!$B$10:$B$8000,$A109,BCPAC!$G$10:$G$8000)/1000 -> 0 | E109: 0 | F109: =SUMIF(BCPAN!$B$10:$B$8000,$A109,BCPAN!$G$10:$G$8000)/1000 -> 0 | G109: 0 | H109: 0 | I109: 0
A110: 4.9.2. | B110: Reversión de consumo de bienes | C110: 53 | D110: =SUM(D111:D112) -> 0 | E110: =+IFERROR(D110/$D$133,0) -> 0 | F110: =SUM(F111:F112) -> 0 | G110: =+IFERROR(F110/$F$133,0) -> 0 | H110: 0 | I110: =+IFERROR(H110/F110,0) -> 0 | J110: =+FIXED(E110,4) -> 0,0000 | K110: =+FIXED(I110,4) -> 0,0000 | L110: =+FIXED(H110,2) -> 0,00 | M110: =IF(H110 < 0, "Disminución", "Aumento") -> Aumento | N110: Ingresos | O110: =+CONCATENATE(Texto!$B$4,AnalisisER!B110,Texto!$B$6,(AnalisisER!J110*100),Texto!$B$8,N110,Texto!$B$12,AnalisisER!L110,Texto!$B$14,AnalisisER!M110,Texto!$B$16,(AnalisisER!K110*100),Texto!$B$18) -> La cuenta Reversión de consumo de bienes, representa el 0 % del total de Ingresos, que comparado al periodo anterior genera una variación absoluta de ¢0,00 que corresponde a un(a) Aumento del 0 % de recursos disponibles.
A111: 4.9.2.01. | B111: Reversión de consumo de bienes no concesionados | D111: =SUMIF(BCPAC!$B$10:$B$8000,$A111,BCPAC!$G$10:$G$8000)/1000 -> 0 | E111: =+IFERROR(D111/$D$133,0) -> 0 | F111: =SUMIF(BCPAN!$B$10:$B$8000,$A111,BCPAN!$G$10:$G$8000)/1000 -> 0 | G111: =+IFERROR(F111/$F$133,0) -> 0 | H111: 0 | I111: =+IFERROR(H111/F111,0) -> 0
A112: 4.9.2.02. | B112: Reversión de consumo de bienes concesionados | D112: =SUMIF(BCPAC!$B$10:$B$8000,$A112,BCPAC!$G$10:$G$8000)/1000 -> 0 | E112: 0 | F112: =SUMIF(BCPAN!$B$10:$B$8000,$A112,BCPAN!$G$10:$G$8000)/1000 -> 0 | G112: 0 | H112: 0 | I112: 0
A113: 4.9.3. | B113: Reversión de pérdidas por deterioro y desvalorización de bienes | C113: 54 | D113: =SUM(D114:D118) -> 0 | E113: =+IFERROR(D113/$D$133,0) -> 0 | F113: =SUM(F114:F118) -> 0 | G113: =+IFERROR(F113/$F$133,0) -> 0 | H113: 0 | I113: =+IFERROR(H113/F113,0) -> 0 | J113: =+FIXED(E113,4) -> 0,0000 | K113: =+FIXED(I113,4) -> 0,0000 | L113: =+FIXED(H113,2) -> 0,00 | M113: =IF(H113 < 0, "Disminución", "Aumento") -> Aumento | N113: Ingresos | O113: =+CONCATENATE(Texto!$B$4,AnalisisER!B113,Texto!$B$6,(AnalisisER!J113*100),Texto!$B$8,N113,Texto!$B$12,AnalisisER!L113,Texto!$B$14,AnalisisER!M113,Texto!$B$16,(AnalisisER!K113*100),Texto!$B$18) -> La cuenta Reversión de pérdidas por deterioro y desvalorización de bienes, representa el 0 % del total de Ingresos, que comparado al periodo anterior genera una variación absoluta de ¢0,00 que corresponde a un(a) Aumento del 0 % de recursos disponibles.
A114: 4.9.3.01. | B114: Reversión de deterioro y desvalorización de bienes no concesionados | D114: =SUMIF(BCPAC!$B$10:$B$8000,$A114,BCPAC!$G$10:$G$8000)/1000 -> 0 | E114: =+IFERROR(D114/$D$133,0) -> 0 | F114: =SUMIF(BCPAN!$B$10:$B$8000,$A114,BCPAN!$G$10:$G$8000)/1000 -> 0 | G114: =+IFERROR(F114/$F$133,0) -> 0 | H114: 0 | I114: =+IFERROR(H114/F114,0) -> 0
A115: 4.9.3.02. | B115: Reversión de deterioro y desvalorización de bienes concesionados | D115: =SUMIF(BCPAC!$B$10:$B$8000,$A115,BCPAC!$G$10:$G$8000)/1000 -> 0 | E115: 0 | F115: =SUMIF(BCPAN!$B$10:$B$8000,$A115,BCPAN!$G$10:$G$8000)/1000 -> 0 | G115: 0 | H115: 0 | I115: 0
A116: 4.9.3.03. | B116: Reversión de deterioro y desvalorización de inventarios por materiales y suministros para consumo y prestación de servicios | D116: =SUMIF(BCPAC!$B$10:$B$8000,$A116,BCPAC!$G$10:$G$8000)/1000 -> 0 | E116: 0 | F116: =SUMIF(BCPAN!$B$10:$B$8000,$A116,BCPAN!$G$10:$G$8000)/1000 -> 0 | G116: 0 | H116: 0 | I116: 0
A117: 4.9.3.04. | B117: Reversión de deterioro y desvalorización de inventarios por bienes para la venta | D117: =SUMIF(BCPAC!$B$10:$B$8000,$A117,BCPAC!$G$10:$G$8000)/1000 -> 0 | E117: 0 | F117: =SUMIF(BCPAN!$B$10:$B$8000,$A117,BCPAN!$G$10:$G$8000)/1000 -> 0 | G117: 0 | H117: 0 | I117: 0
A118: 4.9.3.05. | B118: Reversión de deterioro y desvalorización de inventarios por materias primas y bienes en producción | D118: =SUMIF(BCPAC!$B$10:$B$8000,$A118,BCPAC!$G$10:$G$8000)/1000 -> 0 | E118: 0 | F118: =SUMIF(BCPAN!$B$10:$B$8000,$A118,BCPAN!$G$10:$G$8000)/1000 -> 0 | G118: 0 | H118: 0 | I118: 0
A119: 4.9.4. | B119: Recuperación de previsiones | C119: 55 | D119: =SUM(D120:D122) -> 0 | E119: =+IFERROR(D119/$D$133,0) -> 0 | F119: =SUM(F120:F122) -> 0 | G119: =+IFERROR(F119/$F$133,0) -> 0 | H119: 0 | I119: =+IFERROR(H119/F119,0) -> 0 | J119: =+FIXED(E119,4) -> 0,0000 | K119: =+FIXED(I119,4) -> 0,0000 | L119: =+FIXED(H119,2) -> 0,00 | M119: =IF(H119 < 0, "Disminución", "Aumento") -> Aumento | N119: Ingresos | O119: =+CONCATENATE(Texto!$B$4,AnalisisER!B119,Texto!$B$6,(AnalisisER!J119*100),Texto!$B$8,N119,Texto!$B$12,AnalisisER!L119,Texto!$B$14,AnalisisER!M119,Texto!$B$16,(AnalisisER!K119*100),Texto!$B$18) -> La cuenta Recuperación de previsiones, representa el 0 % del total de Ingresos, que comparado al periodo anterior genera una variación absoluta de ¢0,00 que corresponde a un(a) Aumento del 0 % de recursos disponibles.
A120: 4.9.4.01. | B120: Recuperación de previsiones para deterioro de inversiones | D120: =SUMIF(BCPAC!$B$10:$B$8000,$A120,BCPAC!$G$10:$G$8000)/1000 -> 0 | E120: =+IFERROR(D120/$D$133,0) -> 0 | F120: =SUMIF(BCPAN!$B$10:$B$8000,$A120,BCPAN!$G$10:$G$8000)/1000 -> 0 | G120: =+IFERROR(F120/$F$133,0) -> 0 | H120: 0 | I120: =+IFERROR(H120/F120,0) -> 0
A121: 4.9.4.02. | B121: Recuperación de previsiones para deterioro de cuentas a cobrar | D121: =SUMIF(BCPAC!$B$10:$B$8000,$A121,BCPAC!$G$10:$G$8000)/1000 -> 0 | E121: 0 | F121: =SUMIF(BCPAN!$B$10:$B$8000,$A121,BCPAN!$G$10:$G$8000)/1000 -> 0 | G121: 0 | H121: 0 | I121: 0
A122: 4.9.4.03. | B122: Recuperación de previsiones para deterioro y pérdidas de inventarios | D122: =SUMIF(BCPAC!$B$10:$B$8000,$A122,BCPAC!$G$10:$G$8000)/1000 -> 0 | E122: 0 | F122: =SUMIF(BCPAN!$B$10:$B$8000,$A122,BCPAN!$G$10:$G$8000)/1000 -> 0 | G122: 0 | H122: 0 | I122: 0
A123: 4.9.5. | B123: Recuperación de provisiones y reservas técnicas | C123: 56 | D123: =SUM(D124:D127) -> 0 | E123: =+IFERROR(D123/$D$133,0) -> 0 | F123: =SUM(F124:F127) -> 0 | G123: =+IFERROR(F123/$F$133,0) -> 0 | H123: 0 | I123: =+IFERROR(H123/F123,0) -> 0 | J123: =+FIXED(E123,4) -> 0,0000 | K123: =+FIXED(I123,4) -> 0,0000 | L123: =+FIXED(H123,2) -> 0,00 | M123: =IF(H123 < 0, "Disminución", "Aumento") -> Aumento | N123: Ingresos | O123: =+CONCATENATE(Texto!$B$4,AnalisisER!B123,Texto!$B$6,(AnalisisER!J123*100),Texto!$B$8,N123,Texto!$B$12,AnalisisER!L123,Texto!$B$14,AnalisisER!M123,Texto!$B$16,(AnalisisER!K123*100),Texto!$B$18) -> La cuenta Recuperación de provisiones y reservas técnicas, representa el 0 % del total de Ingresos, que comparado al periodo anterior genera una variación absoluta de ¢0,00 que corresponde a un(a) Aumento del 0 % de recursos disponibles.
A124: 4.9.5.01. | B124: Recuperación de provisiones para litigios y demandas | D124: =SUMIF(BCPAC!$B$10:$B$8000,$A124,BCPAC!$G$10:$G$8000)/1000 -> 0 | E124: =+IFERROR(D124/$D$133,0) -> 0 | F124: =SUMIF(BCPAN!$B$10:$B$8000,$A124,BCPAN!$G$10:$G$8000)/1000 -> 0 | G124: =+IFERROR(F124/$F$133,0) -> 0 | H124: 0 | I124: =+IFERROR(H124/F124,0) -> 0
A125: 4.9.5.02. | B125: Recuperación de provisiones para reestructuración | D125: =SUMIF(BCPAC!$B$10:$B$8000,$A125,BCPAC!$G$10:$G$8000)/1000 -> 0 | E125: 0 | F125: =SUMIF(BCPAN!$B$10:$B$8000,$A125,BCPAN!$G$10:$G$8000)/1000 -> 0 | G125: 0 | H125: 0 | I125: 0
A126: 4.9.5.03. | B126: Recuperación de provisiones para beneficios a los empleados | D126: =SUMIF(BCPAC!$B$10:$B$8000,$A126,BCPAC!$G$10:$G$8000)/1000 -> 0 | E126: 0 | F126: =SUMIF(BCPAN!$B$10:$B$8000,$A126,BCPAN!$G$10:$G$8000)/1000 -> 0 | G126: 0 | H126: 0 | I126: 0
A127: 4.9.5.99. | B127: Recuperación de otras provisiones y reservas técnicas | D127: =SUMIF(BCPAC!$B$10:$B$8000,$A127,BCPAC!$G$10:$G$8000)/1000 -> 0 | E127: 0 | F127: =SUMIF(BCPAN!$B$10:$B$8000,$A127,BCPAN!$G$10:$G$8000)/1000 -> 0 | G127: 0 | H127: 0 | I127: 0
A128: 4.9.6. | B128: Resultados positivos de inversiones patrimoniales y participación de los intereses minoritarios | C128: 57 | D128: =SUM(D129:D130) -> 0 | E128: =+IFERROR(D128/$D$133,0) -> 0 | F128: =SUM(F129:F130) -> 0 | G128: =+IFERROR(F128/$F$133,0) -> 0 | H128: 0 | I128: =+IFERROR(H128/F128,0) -> 0 | J128: =+FIXED(E128,4) -> 0,0000 | K128: =+FIXED(I128,4) -> 0,0000 | L128: =+FIXED(H128,2) -> 0,00 | M128: =IF(H128 < 0, "Disminución", "Aumento") -> Aumento | N128: Ingresos | O128: =+CONCATENATE(Texto!$B$4,AnalisisER!B128,Texto!$B$6,(AnalisisER!J128*100),Texto!$B$8,N128,Texto!$B$12,AnalisisER!L128,Texto!$B$14,AnalisisER!M128,Texto!$B$16,(AnalisisER!K128*100),Texto!$B$18) -> La cuenta Resultados positivos de inversiones patrimoniales y participación de los intereses minoritarios, representa el 0 % del total de Ingresos, que comparado al periodo anterior genera una variación absoluta de ¢0,00 que corresponde a un(a) Aumento del 0 % de recursos disponibles.
A129: 4.9.6.01. | B129: Resultados positivos de inversiones patrimoniales | D129: =SUMIF(BCPAC!$B$10:$B$8000,$A129,BCPAC!$G$10:$G$8000)/1000 -> 0 | E129: =+IFERROR(D129/$D$133,0) -> 0 | F129: =SUMIF(BCPAN!$B$10:$B$8000,$A129,BCPAN!$G$10:$G$8000)/1000 -> 0 | G129: 0 | H129: 0 | I129: =+IFERROR(H129/F129,0) -> 0
A130: 4.9.6.02. | B130: Participación de los intereses minoritarios en el resultado neto negativo | D130: =SUMIF(BCPAC!$B$10:$B$8000,$A130,BCPAC!$G$10:$G$8000)/1000 -> 0 | E130: 0 | F130: =SUMIF(BCPAN!$B$10:$B$8000,$A130,BCPAN!$G$10:$G$8000)/1000 -> 0 | G130: 0 | H130: 0 | I130: 0
A131: 4.9.9. | B131: Otros ingresos y resultados positivos | C131: 58 | D131: =SUM(D132) -> 119.89178 | E131: =+IFERROR(D131/$D$133,0) -> 2.579229502e-05 | F131: =SUM(F132) -> 67.31947 | G131: 1.464555565e-05 | H131: 52.57231 | I131: =+IFERROR(H131/F131,0) -> 0.7809376693 | J131: =+FIXED(E131,4) -> 0,0000 | K131: =+FIXED(I131,4) -> 0,7809 | L131: =+FIXED(H131,2) -> 52,57 | M131: =IF(H131 < 0, "Disminución", "Aumento") -> Aumento | N131: Ingresos | O131: =+CONCATENATE(Texto!$B$4,AnalisisER!B131,Texto!$B$6,(AnalisisER!J131*100),Texto!$B$8,N131,Texto!$B$12,AnalisisER!L131,Texto!$B$14,AnalisisER!M131,Texto!$B$16,(AnalisisER!K131*100),Texto!$B$18) -> La cuenta Otros ingresos y resultados positivos, representa el 0 % del total de Ingresos, que comparado al periodo anterior genera una variación absoluta de ¢52,57 que corresponde a un(a) Aumento del 78,09 % de recursos disponibles.
A132: 4.9.9.99. | B132: Ingresos y resultados positivos varios | D132: =SUMIF(BCPAC!$B$10:$B$8000,$A132,BCPAC!$G$10:$G$8000)/1000 -> 119.89178 | E132: =+IFERROR(D132/$D$133,0) -> 2.579229502e-05 | F132: =SUMIF(BCPAN!$B$10:$B$8000,$A132,BCPAN!$G$10:$G$8000)/1000 -> 67.31947 | G132: 1.464555565e-05 | H132: 52.57231 | I132: =+IFERROR(H132/F132,0) -> 0.7809376693
B133: TOTAL DE INGRESOS | D133: =+D131+D128+D123+D119+D113+D110+D103+D98+D94+D86+D82+D78+D75+D64+D61+D57+D54+D51+D45+D40+D37+D33+D30+D26+D22+D15+D10 -> 4648356.414 | E133: =+IFERROR(D133/$D$133,0) -> 1 | F133: =+F131+F128+F123+F119+F113+F110+F103+F98+F94+F86+F82+F78+F75+F64+F61+F57+F54+F51+F45+F40+F37+F33+F30+F26+F22+F15+F10 -> 4596580.125 | G133: 1 | H133: 51776.28902 | I133: =+IFERROR(H133/F133,0) -> 0.0112640893
A135: 5. | B135: GASTOS
A136: 5.1. | B136: Gastos de funcionamiento
A137: 5.1.1. | B137: Gastos en personal | C137: 59 | D137: =SUM(D138:D145) -> 483805.0675 | E137: =+IFERROR(D137/$D$233,0) -> 0.278350107 | F137: =SUM(F138:F145) -> 450855.1102 | G137: =+IFERROR(F137/$F$233,0) -> 0.2217486174 | H137: =+D137-F137 -> 32949.9573 | I137: =+IFERROR(H137/F137,0) -> 0.07308325126 | J137: =+FIXED(E137,4) -> 0,2784 | K137: =+FIXED(I137,4) -> 0,0731 | L137: =+FIXED(H137,2) -> 32 949,96 | M137: =IF(H137 < 0, "Disminución", "Aumento") -> Aumento | N137: Gastos | O137: =+CONCATENATE(Texto!$B$4,AnalisisER!B137,Texto!$B$6,(AnalisisER!J137*100),Texto!$B$8,N137,Texto!$B$12,AnalisisER!L137,Texto!$B$14,AnalisisER!M137,Texto!$B$16,(AnalisisER!K137*100),Texto!$B$18) -> La cuenta Gastos en personal, representa el 27,84 % del total de Gastos, que comparado al periodo anterior genera una variación absoluta de ¢32 949,96 que corresponde a un(a) Aumento del 7,31 % de recursos disponibles.
A138: 5.1.1.01. | B138: Remuneraciones Básicas | D138: =SUMIF(BCPAC!$B$10:$B$8000,$A138,BCPAC!$G$10:$G$8000)/1000 -> 247854.874 | E138: =+IFERROR(D138/$D$233,0) -> 0.1425996447 | F138: =SUMIF(BCPAN!$B$10:$B$8000,$A138,BCPAN!$G$10:$G$8000)/1000 -> 290274.926 | G138: =+IFERROR(F138/$F$233,0) -> 0.1427688454 | H138: -42420.05203 | I138: =+IFERROR(H138/F138,0) -> -0.1461375001
A139: 5.1.1.02. | B139: Remuneraciones eventuales | D139: =SUMIF(BCPAC!$B$10:$B$8000,$A139,BCPAC!$G$10:$G$8000)/1000 -> 33291.09402 | E139: =+IFERROR(D139/$D$233,0) -> 0.01915353973 | F139: =SUMIF(BCPAN!$B$10:$B$8000,$A139,BCPAN!$G$10:$G$8000)/1000 -> 19564.22675 | G139: =+IFERROR(F139/$F$233,0) -> 0.009622471022 | H139: 13726.86727 | I139: 0.7016309638
A140: 5.1.1.03. | B140: Incentivos salariales | D140: =SUMIF(BCPAC!$B$10:$B$8000,$A140,BCPAC!$G$10:$G$8000)/1000 -> 107661.2911 | E140: 0.0619413353 | F140: =SUMIF(BCPAN!$B$10:$B$8000,$A140,BCPAN!$G$10:$G$8000)/1000 -> 71447.685 | G140: 0.03514083574 | H140: 36213.60611 | I140: 0.5068548562
A141: 5.1.1.04. | B141: Contribuciones patronales al desarrollo y la seguridad social | D141: =SUMIF(BCPAC!$B$10:$B$8000,$A141,BCPAC!$G$10:$G$8000)/1000 -> 81570.19837 | E141: 0.04693021006 | F141: =SUMIF(BCPAN!$B$10:$B$8000,$A141,BCPAN!$G$10:$G$8000)/1000 -> 69568.27242 | G141: 0.03421646528 | H141: 12001.92595 | I141: 0.1725201091
A142: 5.1.1.05. | B142: Contribuciones patronales a fondos de pensiones y a otros fondos de capitalización | D142: =SUMIF(BCPAC!$B$10:$B$8000,$A142,BCPAC!$G$10:$G$8000)/1000 -> 0 | E142: 0 | F142: =SUMIF(BCPAN!$B$10:$B$8000,$A142,BCPAN!$G$10:$G$8000)/1000 -> 0 | G142: 0 | H142: 0 | I142: 0
A143: 5.1.1.06. | B143: Asistencia social y beneficios al personal | D143: =SUMIF(BCPAC!$B$10:$B$8000,$A143,BCPAC!$G$10:$G$8000)/1000 -> 13427.61 | E143: 0.007725377289 | F143: =SUMIF(BCPAN!$B$10:$B$8000,$A143,BCPAN!$G$10:$G$8000)/1000 -> 0 | G143: 0 | H143: 13427.61 | I143: 0
A144: 5.1.1.07. | B144: Contribuciones estatales a la seguridad social | D144: =SUMIF(BCPAC!$B$10:$B$8000,$A144,BCPAC!$G$10:$G$8000)/1000 -> 0 | E144: 0 | F144: =SUMIF(BCPAN!$B$10:$B$8000,$A144,BCPAN!$G$10:$G$8000)/1000 -> 0 | G144: 0 | H144: 0 | I144: 0
A145: 5.1.1.99. | B145: Otros gastos en personal | D145: =SUMIF(BCPAC!$B$10:$B$8000,$A145,BCPAC!$G$10:$G$8000)/1000 -> 0 | E145: 0 | F145: =SUMIF(BCPAN!$B$10:$B$8000,$A145,BCPAN!$G$10:$G$8000)/1000 -> 0 | G145: 0 | H145: 0 | I145: 0
A146: 5.1.2. | B146: Servicios | C146: 60 | D146: =SUM(D147:D155) -> 916890.0539 | E146: =+IFERROR(D146/$D$233,0) -> 0.5275191638 | F146: =SUM(F147:F155) -> 1270453.382 | G146: =+IFERROR(F146/$F$233,0) -> 0.6248599041 | H146: -353563.3278 | I146: =+IFERROR(H146/F146,0) -> -0.2782969709 | J146: =+FIXED(E146,4) -> 0,5275 | K146: =+FIXED(I146,4) -> -0,2783 | L146: =+FIXED(H146,2) -> -353 563,33 | M146: =IF(H146 < 0, "Disminución", "Aumento") -> Disminución | N146: Gastos | O146: =+CONCATENATE(Texto!$B$4,AnalisisER!B146,Texto!$B$6,(AnalisisER!J146*100),Texto!$B$8,N146,Texto!$B$12,AnalisisER!L146,Texto!$B$14,AnalisisER!M146,Texto!$B$16,(AnalisisER!K146*100),Texto!$B$18) -> La cuenta Servicios, representa el 52,75 % del total de Gastos, que comparado al periodo anterior genera una variación absoluta de ¢-353 563,33 que corresponde a un(a) Disminución del -27,83 % de recursos disponibles.
A147: 5.1.2.01. | B147: Alquileres y derechos sobre bienes | D147: =SUMIF(BCPAC!$B$10:$B$8000,$A147,BCPAC!$G$10:$G$8000)/1000 -> 50383.23783 | E147: =+IFERROR(D147/$D$233,0) -> 0.02898725248 | F147: =SUMIF(BCPAN!$B$10:$B$8000,$A147,BCPAN!$G$10:$G$8000)/1000 -> 57401.00726 | G147: =+IFERROR(F147/$F$233,0) -> 0.02823211651 | H147: -7017.76943 | I147: =+IFERROR(H147/F147,0) -> -0.1222586461 | J147: =+FIXED(E147,4) -> 0,0290 | K147: =+FIXED(I147,4) -> -0,1223 | L147: =+FIXED(H147,2) -> -7 017,77 | M147: =IF(H147 < 0, "Disminución", "Aumento") -> Disminución | N147: Gastos | O147: =+CONCATENATE(Texto!$B$4,AnalisisER!B147,Texto!$B$6,(AnalisisER!J147*100),Texto!$B$8,N147,Texto!$B$12,AnalisisER!L147,Texto!$B$14,AnalisisER!M147,Texto!$B$16,(AnalisisER!K147*100),Texto!$B$18) -> La cuenta Alquileres y derechos sobre bienes, representa el 2,9 % del total de Gastos, que comparado al periodo anterior genera una variación absoluta de ¢-7 017,77 que corresponde a un(a) Disminución del -12,23 % de recursos disponibles.
A148: 5.1.2.02. | B148: Servicios básicos | D148: =SUMIF(BCPAC!$B$10:$B$8000,$A148,BCPAC!$G$10:$G$8000)/1000 -> 54515.2607 | E148: 0.03136455087 | F148: =SUMIF(BCPAN!$B$10:$B$8000,$A148,BCPAN!$G$10:$G$8000)/1000 -> 54200.72485 | G148: 0.02665808932 | H148: 314.53585 | I148: 0.005803166856
A149: 5.1.2.03. | B149: Servicios comerciales y financieros | D149: =SUMIF(BCPAC!$B$10:$B$8000,$A149,BCPAC!$G$10:$G$8000)/1000 -> 10958.75012 | E149: 0.006304955185 | F149: =SUMIF(BCPAN!$B$10:$B$8000,$A149,BCPAN!$G$10:$G$8000)/1000 -> 13545.07535 | G149: 0.006662011063 | H149: -2586.32523 | I149: -0.1909421072
A150: 5.1.2.04. | B150: Servicios de gestión y apoyo | D150: =SUMIF(BCPAC!$B$10:$B$8000,$A150,BCPAC!$G$10:$G$8000)/1000 -> 49966.68431 | E150: 0.02874759456 | F150: =SUMIF(BCPAN!$B$10:$B$8000,$A150,BCPAN!$G$10:$G$8000)/1000 -> 70075.6098 | G150: 0.03446599415 | H150: -20108.92549 | I150: -0.2869604067
A151: 5.1.2.05. | B151: Gastos de viaje y transporte | D151: =SUMIF(BCPAC!$B$10:$B$8000,$A151,BCPAC!$G$10:$G$8000)/1000 -> 2983.23071 | E151: 0.001716357771 | F151: =SUMIF(BCPAN!$B$10:$B$8000,$A151,BCPAN!$G$10:$G$8000)/1000 -> 2091.05465 | G151: 0.001028464505 | H151: 892.17606 | I151: 0.426663196
A152: 5.1.2.06. | B152: Seguros, reaseguros y otras obligaciones | D152: =SUMIF(BCPAC!$B$10:$B$8000,$A152,BCPAC!$G$10:$G$8000)/1000 -> 23549.69118 | E152: 0.01354896734 | F152: =SUMIF(BCPAN!$B$10:$B$8000,$A152,BCPAN!$G$10:$G$8000)/1000 -> 21011.91644 | G152: 0.01033450285 | H152: 2537.77474 | I152: 0.1207778808
A153: 5.1.2.07. | B153: Capacitación y protocolo | D153: =SUMIF(BCPAC!$B$10:$B$8000,$A153,BCPAC!$G$10:$G$8000)/1000 -> 10860 | E153: 0.006248140761 | F153: =SUMIF(BCPAN!$B$10:$B$8000,$A153,BCPAN!$G$10:$G$8000)/1000 -> 0 | G153: 0 | H153: 10860 | I153: 0
A154: 5.1.2.08. | B154: Mantenimiento y reparaciones | D154: =SUMIF(BCPAC!$B$10:$B$8000,$A154,BCPAC!$G$10:$G$8000)/1000 -> 713673.199 | E154: 0.4106013448 | F154: =SUMIF(BCPAN!$B$10:$B$8000,$A154,BCPAN!$G$10:$G$8000)/1000 -> 1051977.993 | G154: 0.5174049497 | H154: -338304.7943 | I154: -0.3215892314
A155: 5.1.2.99. | B155: Otros servicios | D155: =SUMIF(BCPAC!$B$10:$B$8000,$A155,BCPAC!$G$10:$G$8000)/1000 -> 0 | E155: 0 | F155: =SUMIF(BCPAN!$B$10:$B$8000,$A155,BCPAN!$G$10:$G$8000)/1000 -> 150 | G155: 7.377601332e-05 | H155: -150 | I155: -1
A156: 5.1.3. | B156: Materiales y suministros consumidos | C156: 61 | D156: =SUM(D157:D161) -> 117643.0277 | E156: =+IFERROR(D156/$D$233,0) -> 0.06768418017 | F156: =SUM(F157:F161) -> 117171.5003 | G156: =+IFERROR(F156/$F$233,0) -> 0.05762964113 | H156: 471.52738 | I156: =+IFERROR(H156/F156,0) -> 0.004024249742 | J156: =+FIXED(E156,4) -> 0,0677 | K156: =+FIXED(I156,4) -> 0,0040 | L156: =+FIXED(H156,2) -> 471,53 | M156: =IF(H156 < 0, "Disminución", "Aumento") -> Aumento | N156: Gastos | O156: =+CONCATENATE(Texto!$B$4,AnalisisER!B156,Texto!$B$6,(AnalisisER!J156*100),Texto!$B$8,N156,Texto!$B$12,AnalisisER!L156,Texto!$B$14,AnalisisER!M156,Texto!$B$16,(AnalisisER!K156*100),Texto!$B$18) -> La cuenta Materiales y suministros consumidos, representa el 6,77 % del total de Gastos, que comparado al periodo anterior genera una variación absoluta de ¢471,53 que corresponde a un(a) Aumento del 0,4 % de recursos disponibles.
A157: 5.1.3.01. | B157: Productos químicos y conexos | D157: =SUMIF(BCPAC!$B$10:$B$8000,$A157,BCPAC!$G$10:$G$8000)/1000 -> 54049.23522 | E157: =+IFERROR(D157/$D$233,0) -> 0.03109642999 | F157: =SUMIF(BCPAN!$B$10:$B$8000,$A157,BCPAN!$G$10:$G$8000)/1000 -> 44515.96833 | G157: =+IFERROR(F157/$F$233,0) -> 0.02189473782 | H157: 9533.26689 | I157: =+IFERROR(H157/F157,0) -> 0.2141538699
A158: 5.1.3.02. | B158: Alimentos y productos agropecuarios | D158: =SUMIF(BCPAC!$B$10:$B$8000,$A158,BCPAC!$G$10:$G$8000)/1000 -> 2460.705 | E158: =+IFERROR(D158/$D$233,0) -> 0.001415730314 | F158: =SUMIF(BCPAN!$B$10:$B$8000,$A158,BCPAN!$G$10:$G$8000)/1000 -> 570 | G158: 0.0002803488506 | H158: 1890.705 | I158: 3.317026316
A159: 5.1.3.03. | B159: Materiales y productos de uso en la construcción y mantenimiento | D159: =SUMIF(BCPAC!$B$10:$B$8000,$A159,BCPAC!$G$10:$G$8000)/1000 -> 20087.90091 | E159: 0.01155727739 | F159: =SUMIF(BCPAN!$B$10:$B$8000,$A159,BCPAN!$G$10:$G$8000)/1000 -> 3444.867 | G159: 0.001694323691 | H159: 16643.03391 | I159: 4.831255869
A160: 5.1.3.04. | B160: Herramientas, repuestos y accesorios | D160: =SUMIF(BCPAC!$B$10:$B$8000,$A160,BCPAC!$G$10:$G$8000)/1000 -> 26759.37484 | E160: 0.01539561148 | F160: =SUMIF(BCPAN!$B$10:$B$8000,$A160,BCPAN!$G$10:$G$8000)/1000 -> 57306.16476 | G160: 0.02818546916 | H160: -30546.78992 | I160: -0.5330454419
A161: 5.1.3.99. | B161: Útiles, materiales y suministros diversos | D161: =SUMIF(BCPAC!$B$10:$B$8000,$A161,BCPAC!$G$10:$G$8000)/1000 -> 14285.81174 | E161: 0.008219130997 | F161: =SUMIF(BCPAN!$B$10:$B$8000,$A161,BCPAN!$G$10:$G$8000)/1000 -> 11334.50024 | G161: 0.005574761605 | H161: 2951.3115 | I161: 0.2603830286
A162: 5.1.4. | B162: Consumo de bienes distintos de inventarios | C162: 62 | D162: =SUM(D163:D164) -> 62646.26226 | E162: =+IFERROR(D162/$D$233,0) -> 0.03604260265 | F162: =SUM(F163:F164) -> 131874.1343 | G162: =+IFERROR(F162/$F$233,0) -> 0.06486098594 | H162: -69227.87207 | I162: =+IFERROR(H162/F162,0) -> -0.5249541347 | J162: =+FIXED(E162,4) -> 0,0360 | K162: =+FIXED(I162,4) -> -0,5250 | L162: =+FIXED(H162,2) -> -69 227,87 | M162: =IF(H162 < 0, "Disminución", "Aumento") -> Disminución | N162: Gastos | O162: =+CONCATENATE(Texto!$B$4,AnalisisER!B162,Texto!$B$6,(AnalisisER!J162*100),Texto!$B$8,N162,Texto!$B$12,AnalisisER!L162,Texto!$B$14,AnalisisER!M162,Texto!$B$16,(AnalisisER!K162*100),Texto!$B$18) -> La cuenta Consumo de bienes distintos de inventarios, representa el 3,6 % del total de Gastos, que comparado al periodo anterior genera una variación absoluta de ¢-69 227,87 que corresponde a un(a) Disminución del -52,5 % de recursos disponibles.
A163: 5.1.4.01. | B163: Consumo de bienes no concesionados | D163: =SUMIF(BCPAC!$B$10:$B$8000,$A163,BCPAC!$G$10:$G$8000)/1000 -> 62646.26226 | E163: 0.03604260265 | F163: =SUMIF(BCPAN!$B$10:$B$8000,$A163,BCPAN!$G$10:$G$8000)/1000 -> 131874.1343 | G163: =+IFERROR(F163/$F$233,0) -> 0.06486098594 | H163: -69227.87207 | I163: =+IFERROR(H163/F163,0) -> -0.5249541347
A164: 5.1.4.02. | B164: Consumo de bienes concesionados | D164: =SUMIF(BCPAC!$B$10:$B$8000,$A164,BCPAC!$G$10:$G$8000)/1000 -> 0 | E164: 0 | F164: =SUMIF(BCPAN!$B$10:$B$8000,$A164,BCPAN!$G$10:$G$8000)/1000 -> 0 | G164: 0 | H164: 0 | I164: 0
A165: 5.1.5. | B165: Pérdidas por deterioro y desvalorización de bienes | C165: 63 | D165: =SUM(D166:D167) -> 0 | E165: =+IFERROR(D165/$D$233,0) -> 0 | F165: =SUM(F166:F167) -> 0 | G165: =+IFERROR(F165/$F$233,0) -> 0 | H165: 0 | I165: =+IFERROR(H165/F165,0) -> 0 | J165: =+FIXED(E165,4) -> 0,0000 | K165: =+FIXED(I165,4) -> 0,0000 | L165: =+FIXED(H165,2) -> 0,00 | M165: =IF(H165 < 0, "Disminución", "Aumento") -> Aumento | N165: Gastos | O165: =+CONCATENATE(Texto!$B$4,AnalisisER!B165,Texto!$B$6,(AnalisisER!J165*100),Texto!$B$8,N165,Texto!$B$12,AnalisisER!L165,Texto!$B$14,AnalisisER!M165,Texto!$B$16,(AnalisisER!K165*100),Texto!$B$18) -> La cuenta Pérdidas por deterioro y desvalorización de bienes, representa el 0 % del total de Gastos, que comparado al periodo anterior genera una variación absoluta de ¢0,00 que corresponde a un(a) Aumento del 0 % de recursos disponibles.
A166: 5.1.5.01. | B166: Deterioro y desvalorización de bienes no concesionados | D166: =SUMIF(BCPAC!$B$10:$B$8000,$A166,BCPAC!$G$10:$G$8000)/1000 -> 0 | E166: 0 | F166: =SUMIF(BCPAN!$B$10:$B$8000,$A166,BCPAN!$G$10:$G$8000)/1000 -> 0 | G166: =+IFERROR(F166/$F$233,0) -> 0 | H166: 0 | I166: =+IFERROR(H166/F166,0) -> 0
A167: 5.1.5.02. | B167: Deterioro y desvalorización de bienes concesionados | D167: =SUMIF(BCPAC!$B$10:$B$8000,$A167,BCPAC!$G$10:$G$8000)/1000 -> 0 | E167: 0 | F167: =SUMIF(BCPAN!$B$10:$B$8000,$A167,BCPAN!$G$10:$G$8000)/1000 -> 0 | G167: 0 | H167: 0 | I167: 0
A168: 5.1.6. | B168: Deterioro y pérdidas de inventarios | C168: 64 | D168: =SUM(D169:D171) -> 0 | E168: =+IFERROR(D168/$D$233,0) -> 0 | F168: =SUM(F169:F171) -> 0 | G168: =+IFERROR(F168/$F$233,0) -> 0 | H168: 0 | I168: =+IFERROR(H168/F168,0) -> 0 | J168: =+FIXED(E168,4) -> 0,0000 | K168: =+FIXED(I168,4) -> 0,0000 | L168: =+FIXED(H168,2) -> 0,00 | M168: =IF(H168 < 0, "Disminución", "Aumento") -> Aumento | N168: Gastos | O168: =+CONCATENATE(Texto!$B$4,AnalisisER!B168,Texto!$B$6,(AnalisisER!J168*100),Texto!$B$8,N168,Texto!$B$12,AnalisisER!L168,Texto!$B$14,AnalisisER!M168,Texto!$B$16,(AnalisisER!K168*100),Texto!$B$18) -> La cuenta Deterioro y pérdidas de inventarios, representa el 0 % del total de Gastos, que comparado al periodo anterior genera una variación absoluta de ¢0,00 que corresponde a un(a) Aumento del 0 % de recursos disponibles.
A169: 5.1.6.01. | B169: Deterioro y pérdidas de inventarios por materiales y suministros para consumo y prestación de servicios | D169: =SUMIF(BCPAC!$B$10:$B$8000,$A169,BCPAC!$G$10:$G$8000)/1000 -> 0 | E169: 0 | F169: =SUMIF(BCPAN!$B$10:$B$8000,$A169,BCPAN!$G$10:$G$8000)/1000 -> 0 | G169: =+IFERROR(F169/$F$233,0) -> 0 | H169: 0 | I169: =+IFERROR(H169/F169,0) -> 0
A170: 5.1.6.02. | B170: Deterioro y pérdidas de inventarios por bienes para la venta | D170: =SUMIF(BCPAC!$B$10:$B$8000,$A170,BCPAC!$G$10:$G$8000)/1000 -> 0 | E170: 0 | F170: =SUMIF(BCPAN!$B$10:$B$8000,$A170,BCPAN!$G$10:$G$8000)/1000 -> 0 | G170: 0 | H170: 0 | I170: 0
A171: 5.1.6.03. | B171: Deterioro y pérdidas de inventarios por materias primas y bienes en producción | D171: =SUMIF(BCPAC!$B$10:$B$8000,$A171,BCPAC!$G$10:$G$8000)/1000 -> 0 | E171: 0 | F171: =SUMIF(BCPAN!$B$10:$B$8000,$A171,BCPAN!$G$10:$G$8000)/1000 -> 0 | G171: 0 | H171: 0 | I171: 0
A172: 5.1.7. | B172: Deterioro de inversiones y cuentas a cobrar | C172: 65 | D172: =SUM(D173:D174) -> 0 | E172: =+IFERROR(D172/$D$233,0) -> 0 | F172: =SUM(F173:F174) -> 0 | G172: =+IFERROR(F172/$F$233,0) -> 0 | H172: 0 | I172: =+IFERROR(H172/F172,0) -> 0 | J172: =+FIXED(E172,4) -> 0,0000 | K172: =+FIXED(I172,4) -> 0,0000 | L172: =+FIXED(H172,2) -> 0,00 | M172: =IF(H172 < 0, "Disminución", "Aumento") -> Aumento | N172: Gastos | O172: =+CONCATENATE(Texto!$B$4,AnalisisER!B172,Texto!$B$6,(AnalisisER!J172*100),Texto!$B$8,N172,Texto!$B$12,AnalisisER!L172,Texto!$B$14,AnalisisER!M172,Texto!$B$16,(AnalisisER!K172*100),Texto!$B$18) -> La cuenta Deterioro de inversiones y cuentas a cobrar, representa el 0 % del total de Gastos, que comparado al periodo anterior genera una variación absoluta de ¢0,00 que corresponde a un(a) Aumento del 0 % de recursos disponibles.
A173: 5.1.7.01. | B173: Deterioro de inversiones | D173: =SUMIF(BCPAC!$B$10:$B$8000,$A173,BCPAC!$G$10:$G$8000)/1000 -> 0 | E173: 0 | F173: =SUMIF(BCPAN!$B$10:$B$8000,$A173,BCPAN!$G$10:$G$8000)/1000 -> 0 | G173: =+IFERROR(F173/$F$233,0) -> 0 | H173: 0 | I173: =+IFERROR(H173/F173,0) -> 0
A174: 5.1.7.02. | B174: Deterioro de cuentas a cobrar | D174: =SUMIF(BCPAC!$B$10:$B$8000,$A174,BCPAC!$G$10:$G$8000)/1000 -> 0 | E174: 0 | F174: =SUMIF(BCPAN!$B$10:$B$8000,$A174,BCPAN!$G$10:$G$8000)/1000 -> 0 | G174: 0 | H174: 0 | I174: 0
A175: 5.1.8. | B175: Cargos por provisiones y reservas técnicas | C175: 66 | D175: =SUM(D176:D180) -> 0 | E175: =+IFERROR(D175/$D$233,0) -> 0 | F175: =SUM(F176:F180) -> 0 | G175: =+IFERROR(F175/$F$233,0) -> 0 | H175: 0 | I175: =+IFERROR(H175/F175,0) -> 0 | J175: =+FIXED(E175,4) -> 0,0000 | K175: =+FIXED(I175,4) -> 0,0000 | L175: =+FIXED(H175,2) -> 0,00 | M175: =IF(H175 < 0, "Disminución", "Aumento") -> Aumento | N175: Gastos | O175: =+CONCATENATE(Texto!$B$4,AnalisisER!B175,Texto!$B$6,(AnalisisER!J175*100),Texto!$B$8,N175,Texto!$B$12,AnalisisER!L175,Texto!$B$14,AnalisisER!M175,Texto!$B$16,(AnalisisER!K175*100),Texto!$B$18) -> La cuenta Cargos por provisiones y reservas técnicas, representa el 0 % del total de Gastos, que comparado al periodo anterior genera una variación absoluta de ¢0,00 que corresponde a un(a) Aumento del 0 % de recursos disponibles.
A176: 5.1.8.01. | B176: Cargos por litigios y demandas | D176: =SUMIF(BCPAC!$B$10:$B$8000,$A176,BCPAC!$G$10:$G$8000)/1000 -> 0 | E176: 0 | F176: =SUMIF(BCPAN!$B$10:$B$8000,$A176,BCPAN!$G$10:$G$8000)/1000 -> 0 | G176: =+IFERROR(F176/$F$233,0) -> 0 | H176: 0 | I176: =+IFERROR(H176/F176,0) -> 0 | J176: =+FIXED(E176,4) -> 0,0000 | K176: =+FIXED(I176,4) -> 0,0000 | L176: =+FIXED(H176,2) -> 0,00 | M176: =IF(H176 < 0, "Disminución", "Aumento") -> Aumento | N176: Gastos | O176: =+CONCATENATE(Texto!$B$4,AnalisisER!B176,Texto!$B$6,(AnalisisER!J176*100),Texto!$B$8,N176,Texto!$B$12,AnalisisER!L176,Texto!$B$14,AnalisisER!M176,Texto!$B$16,(AnalisisER!K176*100),Texto!$B$18) -> La cuenta Cargos por litigios y demandas, representa el 0 % del total de Gastos, que comparado al periodo anterior genera una variación absoluta de ¢0,00 que corresponde a un(a) Aumento del 0 % de recursos disponibles.
A177: 5.1.8.02. | B177: Cargos por reestructuración | D177: =SUMIF(BCPAC!$B$10:$B$8000,$A177,BCPAC!$G$10:$G$8000)/1000 -> 0 | E177: 0 | F177: =SUMIF(BCPAN!$B$10:$B$8000,$A177,BCPAN!$G$10:$G$8000)/1000 -> 0 | G177: 0 | H177: 0 | I177: 0
A178: 5.1.8.03. | B178: Cargos por beneficios a los empleados | D178: =SUMIF(BCPAC!$B$10:$B$8000,$A178,BCPAC!$G$10:$G$8000)/1000 -> 0 | E178: 0 | F178: =SUMIF(BCPAN!$B$10:$B$8000,$A178,BCPAN!$G$10:$G$8000)/1000 -> 0 | G178: 0 | H178: 0 | I178: 0
A179: 5.1.8.99. | B179: Cargos por otras provisiones y reservas técnicas | D179: =SUMIF(BCPAC!$B$10:$B$8000,$A179,BCPAC!$G$10:$G$8000)/1000 -> 0 | E179: 0 | F179: =SUMIF(BCPAN!$B$10:$B$8000,$A179,BCPAN!$G$10:$G$8000)/1000 -> 0 | G179: 0 | H179: 0 | I179: 0
A180: 5.2. | B180: Gastos financieros
A181: 5.2.1. | B181: Intereses sobre endeudamiento público | C181: 67 | D181: =SUM(D182:D185) -> 54399.29999 | E181: =+IFERROR(D181/$D$233,0) -> 0.03129783459 | F181: =SUM(F182:F185) -> 56507.79962 | G181: =+IFERROR(F181/$F$233,0) -> 0.02779280118 | H181: =+D181-F181 -> -2108.49963 | I181: =+IFERROR(H181/F181,0) -> -0.03731342654 | J181: =+FIXED(E181,4) -> 0,0313 | K181: =+FIXED(I181,4) -> -0,0373 | L181: =+FIXED(H181,2) -> -2 108,50 | M181: =IF(H181 < 0, "Disminución", "Aumento") -> Disminución | N181: Gastos | O181: =+CONCATENATE(Texto!$B$4,AnalisisER!B181,Texto!$B$6,(AnalisisER!J181*100),Texto!$B$8,N181,Texto!$B$12,AnalisisER!L181,Texto!$B$14,AnalisisER!M181,Texto!$B$16,(AnalisisER!K181*100),Texto!$B$18) -> La cuenta Intereses sobre endeudamiento público, representa el 3,13 % del total de Gastos, que comparado al periodo anterior genera una variación absoluta de ¢-2 108,50 que corresponde a un(a) Disminución del -3,73 % de recursos disponibles.
A182: 5.2.1.01. | B182: Intereses sobre títulos y valores de la deuda pública | D182: =SUMIF(BCPAC!$B$10:$B$8000,$A182,BCPAC!$G$10:$G$8000)/1000 -> 0 | E182: =+IFERROR(D182/$D$233,0) -> 0 | F182: =SUMIF(BCPAN!$B$10:$B$8000,$A182,BCPAN!$G$10:$G$8000)/1000 -> 0 | G182: =+IFERROR(F182/$F$233,0) -> 0 | H182: 0 | I182: =+IFERROR(H182/F182,0) -> 0
A183: 5.2.1.02. | B183: Intereses sobre préstamos | D183: =SUMIF(BCPAC!$B$10:$B$8000,$A183,BCPAC!$G$10:$G$8000)/1000 -> 54399.29999 | E183: 0.03129783459 | F183: =SUMIF(BCPAN!$B$10:$B$8000,$A183,BCPAN!$G$10:$G$8000)/1000 -> 56507.79962 | G183: 0.02779280118 | H183: -2108.49963 | I183: -0.03731342654
A184: 5.2.1.03. | B184: Intereses sobre deudas asumidas | D184: =SUMIF(BCPAC!$B$10:$B$8000,$A184,BCPAC!$G$10:$G$8000)/1000 -> 0 | E184: 0 | F184: =SUMIF(BCPAN!$B$10:$B$8000,$A184,BCPAN!$G$10:$G$8000)/1000 -> 0 | G184: 0 | H184: 0 | I184: 0
A185: 5.2.1.04. | B185: Intereses sobre endeudamiento de Tesorería | D185: =SUMIF(BCPAC!$B$10:$B$8000,$A185,BCPAC!$G$10:$G$8000)/1000 -> 0 | E185: 0 | F185: =SUMIF(BCPAN!$B$10:$B$8000,$A185,BCPAN!$G$10:$G$8000)/1000 -> 0 | G185: 0 | H185: 0 | I185: 0
A186: 5.2.9. | B186: Otros gastos financieros | C186: 68 | D186: =SUM(D187:D192) -> 0 | E186: =+IFERROR(D186/$D$233,0) -> 0 | F186: =SUM(F187:F192) -> 0 | G186: =+IFERROR(F186/$F$233,0) -> 0 | H186: 0 | I186: =+IFERROR(H186/F186,0) -> 0 | J186: =+FIXED(E186,4) -> 0,0000 | K186: =+FIXED(I186,4) -> 0,0000 | L186: =+FIXED(H186,2) -> 0,00 | M186: =IF(H186 < 0, "Disminución", "Aumento") -> Aumento | N186: Gastos | O186: =+CONCATENATE(Texto!$B$4,AnalisisER!B186,Texto!$B$6,(AnalisisER!J186*100),Texto!$B$8,N186,Texto!$B$12,AnalisisER!L186,Texto!$B$14,AnalisisER!M186,Texto!$B$16,(AnalisisER!K186*100),Texto!$B$18) -> La cuenta Otros gastos financieros, representa el 0 % del total de Gastos, que comparado al periodo anterior genera una variación absoluta de ¢0,00 que corresponde a un(a) Aumento del 0 % de recursos disponibles.
A187: 5.2.9.01. | B187: Intereses por deudas comerciales | D187: =SUMIF(BCPAC!$B$10:$B$8000,$A187,BCPAC!$G$10:$G$8000)/1000 -> 0 | E187: =+IFERROR(D187/$D$233,0) -> 0 | F187: =SUMIF(BCPAN!$B$10:$B$8000,$A187,BCPAN!$G$10:$G$8000)/1000 -> 0 | G187: =+IFERROR(F187/$F$233,0) -> 0 | H187: 0 | I187: =+IFERROR(H187/F187,0) -> 0
A188: 5.2.9.02. | B188: Intereses por deudas sociales y fiscales | D188: =SUMIF(BCPAC!$B$10:$B$8000,$A188,BCPAC!$G$10:$G$8000)/1000 -> 0 | E188: 0 | F188: =SUMIF(BCPAN!$B$10:$B$8000,$A188,BCPAN!$G$10:$G$8000)/1000 -> 0 | G188: 0 | H188: 0 | I188: 0
A189: 5.2.9.04. | B189: Intereses por documentos a pagar | D189: =SUMIF(BCPAC!$B$10:$B$8000,$A189,BCPAC!$G$10:$G$8000)/1000 -> 0 | E189: 0 | F189: =SUMIF(BCPAN!$B$10:$B$8000,$A189,BCPAN!$G$10:$G$8000)/1000 -> 0 | G189: 0 | H189: 0 | I189: 0
A190: 5.2.9.06. | B190: Intereses sobre deudas por avales ejecutados | D190: =SUMIF(BCPAC!$B$10:$B$8000,$A190,BCPAC!$G$10:$G$8000)/1000 -> 0 | E190: 0 | F190: =SUMIF(BCPAN!$B$10:$B$8000,$A190,BCPAN!$G$10:$G$8000)/1000 -> 0 | G190: 0 | H190: 0 | I190: 0
A191: 5.2.9.99. | B191: Otros gastos financieros varios | D191: =SUMIF(BCPAC!$B$10:$B$8000,$A191,BCPAC!$G$10:$G$8000)/1000 -> 0 | E191: 0 | F191: =SUMIF(BCPAN!$B$10:$B$8000,$A191,BCPAN!$G$10:$G$8000)/1000 -> 0 | G191: 0 | H191: 0 | I191: 0
A192: 5.3. | B192: Gastos y resultados negativos por ventas
A193: 5.3.1. | B193: Costo de ventas de bienes y servicios | C193: 69 | D193: =SUM(D194:D195) -> 0 | E193: =+IFERROR(D193/$D$233,0) -> 0 | F193: =SUM(F194:F195) -> 0 | G193: =+IFERROR(F193/$F$233,0) -> 0 | H193: =+D193-F193 -> 0 | I193: =+IFERROR(H193/F193,0) -> 0 | J193: =+FIXED(E193,4) -> 0,0000 | K193: =+FIXED(I193,4) -> 0,0000 | L193: =+FIXED(H193,2) -> 0,00 | M193: =IF(H193 < 0, "Disminución", "Aumento") -> Aumento | N193: Gastos | O193: =+CONCATENATE(Texto!$B$4,AnalisisER!B193,Texto!$B$6,(AnalisisER!J193*100),Texto!$B$8,N193,Texto!$B$12,AnalisisER!L193,Texto!$B$14,AnalisisER!M193,Texto!$B$16,(AnalisisER!K193*100),Texto!$B$18) -> La cuenta Costo de ventas de bienes y servicios, representa el 0 % del total de Gastos, que comparado al periodo anterior genera una variación absoluta de ¢0,00 que corresponde a un(a) Aumento del 0 % de recursos disponibles.
A194: 5.3.1.01. | B194: Costo de ventas de bienes | D194: =SUMIF(BCPAC!$B$10:$B$8000,$A194,BCPAC!$G$10:$G$8000)/1000 -> 0 | E194: =+IFERROR(D194/$D$233,0) -> 0 | F194: =SUMIF(BCPAN!$B$10:$B$8000,$A194,BCPAN!$G$10:$G$8000)/1000 -> 0 | G194: =+IFERROR(F194/$F$233,0) -> 0 | H194: 0 | I194: =+IFERROR(H194/F194,0) -> 0
A195: 5.3.1.02. | B195: Costo de ventas de servicios | D195: =SUMIF(BCPAC!$B$10:$B$8000,$A195,BCPAC!$G$10:$G$8000)/1000 -> 0 | E195: 0 | F195: =SUMIF(BCPAN!$B$10:$B$8000,$A195,BCPAN!$G$10:$G$8000)/1000 -> 0 | G195: 0 | H195: 0 | I195: 0
A196: 5.3.2. | B196: Resultados negativos por ventas de inversiones | C196: 70 | D196: =SUM(D197:D198) -> 0 | E196: =+IFERROR(D196/$D$233,0) -> 0 | F196: =SUM(F197:F198) -> 0 | G196: =+IFERROR(F196/$F$233,0) -> 0 | H196: 0 | I196: =+IFERROR(H196/F196,0) -> 0 | J196: =+FIXED(E196,4) -> 0,0000 | K196: =+FIXED(I196,4) -> 0,0000 | L196: =+FIXED(H196,2) -> 0,00 | M196: =IF(H196 < 0, "Disminución", "Aumento") -> Aumento | N196: Gastos | O196: =+CONCATENATE(Texto!$B$4,AnalisisER!B196,Texto!$B$6,(AnalisisER!J196*100),Texto!$B$8,N196,Texto!$B$12,AnalisisER!L196,Texto!$B$14,AnalisisER!M196,Texto!$B$16,(AnalisisER!K196*100),Texto!$B$18) -> La cuenta Resultados negativos por ventas de inversiones, representa el 0 % del total de Gastos, que comparado al periodo anterior genera una variación absoluta de ¢0,00 que corresponde a un(a) Aumento del 0 % de recursos disponibles.
A197: 5.3.2.02. | B197: Resultados negativos por ventas de inversiones patrimoniales - Método de participación | D197: =SUMIF(BCPAC!$B$10:$B$8000,$A197,BCPAC!$G$10:$G$8000)/1000 -> 0 | E197: =+IFERROR(D197/$D$233,0) -> 0 | F197: =SUMIF(BCPAN!$B$10:$B$8000,$A197,BCPAN!$G$10:$G$8000)/1000 -> 0 | G197: =+IFERROR(F197/$F$233,0) -> 0 | H197: 0 | I197: =+IFERROR(H197/F197,0) -> 0
A198: 5.3.2.99. | B198: Resultados negativos por ventas de otras inversiones | D198: =SUMIF(BCPAC!$B$10:$B$8000,$A198,BCPAC!$G$10:$G$8000)/1000 -> 0 | E198: 0 | F198: =SUMIF(BCPAN!$B$10:$B$8000,$A198,BCPAN!$G$10:$G$8000)/1000 -> 0 | G198: 0 | H198: 0 | I198: 0
A199: 5.3.3. | B199: Resultados negativos por ventas e intercambio de bienes | C199: 71 | D199: =SUM(D200:D208) -> 0 | E199: =+IFERROR(D199/$D$233,0) -> 0 | F199: =SUM(F200:F208) -> 0 | G199: =+IFERROR(F199/$F$233,0) -> 0 | H199: =+D199-F199 -> 0 | I199: =+IFERROR(H199/F199,0) -> 0 | J199: =+FIXED(E199,4) -> 0,0000 | K199: =+FIXED(I199,4) -> 0,0000 | L199: =+FIXED(H199,2) -> 0,00 | M199: =IF(H199 < 0, "Disminución", "Aumento") -> Aumento | N199: Gastos | O199: =+CONCATENATE(Texto!$B$4,AnalisisER!B199,Texto!$B$6,(AnalisisER!J199*100),Texto!$B$8,N199,Texto!$B$12,AnalisisER!L199,Texto!$B$14,AnalisisER!M199,Texto!$B$16,(AnalisisER!K199*100),Texto!$B$18) -> La cuenta Resultados negativos por ventas e intercambio de bienes, representa el 0 % del total de Gastos, que comparado al periodo anterior genera una variación absoluta de ¢0,00 que corresponde a un(a) Aumento del 0 % de recursos disponibles.
A200: 5.3.3.01. | B200: Resultados negativos por ventas de construcciones terminadas | D200: =SUMIF(BCPAC!$B$10:$B$8000,$A200,BCPAC!$G$10:$G$8000)/1000 -> 0 | E200: =+IFERROR(D200/$D$233,0) -> 0 | F200: =SUMIF(BCPAN!$B$10:$B$8000,$A200,BCPAN!$G$10:$G$8000)/1000 -> 0 | G200: =+IFERROR(F200/$F$233,0) -> 0 | H200: 0 | I200: =+IFERROR(H200/F200,0) -> 0
A201: 5.3.3.02. | B201: Resultados negativos por ventas de propiedades, planta y equipo | D201: =SUMIF(BCPAC!$B$10:$B$8000,$A201,BCPAC!$G$10:$G$8000)/1000 -> 0 | E201: 0 | F201: =SUMIF(BCPAN!$B$10:$B$8000,$A201,BCPAN!$G$10:$G$8000)/1000 -> 0 | G201: 0 | H201: 0 | I201: 0
A202: 5.3.3.03. | B202: Resultados negativos por ventas de activos biológicos | D202: =SUMIF(BCPAC!$B$10:$B$8000,$A202,BCPAC!$G$10:$G$8000)/1000 -> 0 | E202: 0 | F202: =SUMIF(BCPAN!$B$10:$B$8000,$A202,BCPAN!$G$10:$G$8000)/1000 -> 0 | G202: 0 | H202: 0 | I202: 0
A203: 5.3.3.04. | B203: Resultados negativos por ventas de bienes intangibles | D203: =SUMIF(BCPAC!$B$10:$B$8000,$A203,BCPAC!$G$10:$G$8000)/1000 -> 0 | E203: 0 | F203: =SUMIF(BCPAN!$B$10:$B$8000,$A203,BCPAN!$G$10:$G$8000)/1000 -> 0 | G203: 0 | H203: 0 | I203: 0
... 31 more rows

Sheet AnalisisFlujo
A1: =+Datos!C2 -> Municipalidad de Buenos Aires
A2: Análisis al Estado de Flujo de Efectivo Comparativo
A3: =+Datos!C4 -> Del 01 de Enero 2024 al 30 de Abril del 2024 | M3: ¢
A4: - En miles de colones -
D5: TOTAL SECTOR MUNICIPAL 2019 | F5: TOTAL SECTOR MUNICIPAL 2018
B7: Descripción | C7: Nota Nº | D7: =+Datos!D5 -> 2024-04-30 | E7: % análisis vertical | F7: =+Datos!F5 -> 2023-04-30 | G7: % | H7: Monto variación Absoluta | I7: % Variación relativa
A8: FLUJOS DE EFECTIVO DE LAS ACTIVIDADES DE OPERACIÓN
A9: Cobros | C9: 77 | D9: =SUM(D10:D17) -> 1337882.139 | F9: =SUM(F10:F17) -> 1366946.308 | H9: =+D9-F9 -> -29064.16917 | I9: =+IFERROR(H9/F9,0) -> -0.02126211469 | K9: =+I9*100 -> -2.126211469 | L9: =+FIXED(H9,2) -> -29 064,17 | M9: =IF(H9 < 0, "Disminución", "Aumento") -> Disminución | N9: =+CONCATENATE("Los Cobros de los Flujos de Efectivo de las Actividades de Operación, comparado al periodo anterior genera una variación absoluta de ¢",L9," que corresponde a un(a) ",M9," del ",K9," % de recursos disponibles, producto de:") -> Los Cobros de los Flujos de Efectivo de las Actividades de Operación, comparado al periodo anterior genera una variación absoluta de ¢-29 064,17 que corresponde a un(a) Disminución del -2,12621146906021 % de recursos disponibles, producto de:
B10: Cobros por impuestos | D10: 461388.7286 | E10: =+IFERROR(D10/$D$9,0) -> 0.3448650037 | F10: 565094.7351 | G10: =+IFERROR(F10/$F$9,0) -> 0.4133993647 | H10: -103706.0065 | I10: -0.1835196827
B11: Cobros por contribuciones sociales | D11: 0 | E11: 0 | F11: 0 | G11: =+IFERROR(F11/$F$9,0) -> 0 | H11: 0 | I11: 0
B12: Cobros por multas, sanciones, remates y confiscaciones de origen no tributario | D12: -3847.41263 | E12: -0.002875748558 | F12: 0 | G12: 0 | H12: -3847.41263 | I12: 0
B13: Cobros por ventas de inventarios, servicios y derechos administrativos | D13: 216136.7336 | E13: 0.1615514008 | F13: 137329.1226 | G13: 0.1004641673 | H13: 78807.61105 | I13: 0.573859423
B14: Cobros por ingresos de la propiedad | D14: 21612.05622 | E14: 0.01615393135 | F14: 16112.29811 | G14: 0.01178707461 | H14: 5499.75811 | I14: 0.3413391481
B15: Cobros por transferencias | D15: 632570.0546 | E15: 0.4728144852 | F15: 637489.3844 | G15: 0.4663602227 | H15: -4919.32985 | I15: -0.007716724341
B16: Cobros por concesiones | D16: 0 | E16: 0 | F16: 0 | G16: 0 | H16: 0 | I16: 0
B17: Otros cobros por actividades de operación | D17: 10021.97808 | E17: 0.007490927483 | F17: 10920.76744 | G17: =+IFERROR(F17/$F$9,0) -> 0.007989170737 | H17: -898.78936 | I17: -0.08230093397
A18: Pagos | C18: 78 | D18: =SUM(D19:D23) -> 1564421.955 | F18: =SUM(F19:F23) -> 1628497.101 | H18: =+D18-F18 -> -64075.14599 | I18: -0.03934618363 | K18: =+I18*100 -> -3.934618363 | L18: =+FIXED(H18,2) -> -64 075,15 | M18: =IF(H18 < 0, "Disminución", "Aumento") -> Disminución | N18: =+CONCATENATE("Los Pagos de los Flujos de Efectivo de las Actividades de Operación, comparado al periodo anterior genera una variación absoluta de ¢",L18," que corresponde a un(a) ",M18," del ",K18, "% de recursos disponibles, producto de:") -> Los Pagos de los Flujos de Efectivo de las Actividades de Operación, comparado al periodo anterior genera una variación absoluta de ¢-64 075,15 que corresponde a un(a) Disminución del -3,93461836344274% de recursos disponibles, producto de:
B19: Pagos por beneficios al personal | D19: 389890.8591 | E19: =+IFERROR(D19/$D$18,0) -> 0.249223592 | F19: 292687.313 | G19: =+IFERROR(F19/$F$18,0) -> 0.1797284827 | H19: 97203.54611 | I19: 0.3321071389
B20: Pagos por servicios y adquisiciones de inventarios (incluye anticipos) | D20: 903876.2721 | E20: =+IFERROR(D20/$D$18,0) -> 0.5777701272 | F20: 995770.476 | G20: =+IFERROR(F20/$F$18,0) -> 0.6114659187 | H20: -91894.20393 | I20: -0.09228452354
B21: Pagos por prestaciones de la seguridad social | D21: 31020.40562 | E21: 0.01982866932 | F21: 0 | G21: 0 | H21: 31020.40562 | I21: 0
B22: Pagos por otras transferencias | D22: 140147.9156 | E22: 0.08958447252 | F22: 57949.15821 | G22: 0.03558444051 | H22: 82198.75744 | I22: 1.418463356
B23: Otros pagos por actividades de operación | D23: 99486.50266 | E23: 0.06359313888 | F23: 282090.1539 | G23: =+IFERROR(F23/$F$18,0) -> 0.1732211581 | H23: -182603.6512 | I23: -0.6473237322
A24: Flujos netos de efectivo por actividades de operación | D24: =+D9-D18 -> -226539.8166 | F24: =+F9-F18 -> -261550.7935 | H24: 35010.97682 | I24: -0.1338591879
A26: FLUJOS DE EFECTIVO DE LAS ACTIVIDADES DE INVERSIÓN
A27: Cobros | C27: 79 | D27: =SUM(D28:D32) -> 0 | F27: =SUM(F28:F32) -> 0 | H27: =+D27-F27 -> 0 | I27: =+IFERROR(H27/F27,0) -> 0 | K27: =+I27*100 -> 0 | L27: =+FIXED(H27,2) -> 0,00 | M27: =IF(H27 < 0, "Disminución", "Aumento") -> Aumento | N27: =+CONCATENATE("Los Cobros de los Flujos de Efectivo de las Actividades de Inversión, comparado al periodo anterior genera una variación absoluta de ¢",L27," que corresponde a un(a) ",M27," del ",K27,"% de recursos disponibles, producto de:") -> Los Cobros de los Flujos de Efectivo de las Actividades de Inversión, comparado al periodo anterior genera una variación absoluta de ¢0,00 que corresponde a un(a) Aumento del 0% de recursos disponibles, producto de:
B28: Cobros por ventas de bienes distintos de inventarios | D28: 0 | E28: =+IFERROR(D28/$D$27,0) -> 0 | F28: 0 | G28: =+IFERROR(F28/$F$27,0) -> 0 | H28: 0 | I28: 0
B29: Cobros por ventas y reembolso de inversiones patrimoniales | D29: 0 | E29: =+IFERROR(D29/$D$27,0) -> 0 | F29: 0 | G29: =+IFERROR(F29/$F$27,0) -> 0 | H29: 0 | I29: 0
B30: Cobros por ventas y reembolso de inversiones en otros instrumentos financieros | D30: 0 | E30: 0 | F30: 0 | G30: 0 | H30: 0 | I30: 0
B31: Cobros por reembolsos de préstamos | D31: 0 | E31: 0 | F31: 0 | G31: 0 | H31: 0 | I31: 0
B32: Otros cobros por actividades de inversión | D32: 0 | E32: 0 | F32: 0 | G32: =+IFERROR(F32/$F$27,0) -> 0 | H32: 0 | I32: 0
A33: Pagos | C33: 80 | D33: =SUM(D34:D38) -> 27234.11012 | F33: =SUM(F34:F38) -> 17147.7506 | H33: 10086.35952 | I33: 0.5882030685 | K33: =+I33*100 -> 58.82030685 | L33: =+FIXED(H33,2) -> 10 086,36 | M33: =IF(H33 < 0, "Disminución", "Aumento") -> Aumento | N33: =+CONCATENATE("Los Pagos de los Flujos de Efectivo de las Actividades de Inversión, comparado al periodo anterior genera una variación absoluta de ¢",L33," que corresponde a un(a) ",M33," del ",K33,"% de recursos disponibles, producto de:") -> Los Pagos de los Flujos de Efectivo de las Actividades de Inversión, comparado al periodo anterior genera una variación absoluta de ¢10 086,36 que corresponde a un(a) Aumento del 58,8203068453762% de recursos disponibles, producto de:
B34: Pagos por adquisición de bienes distintos de inventarios | D34: 27234.11012 | E34: =+IFERROR(D34/$D$33,0) -> 1 | F34: 17147.7506 | G34: =+IFERROR(F34/F33,0) -> 1 | H34: 10086.35952 | I34: 0.5882030685
B35: Pagos por adquisición de inversiones patrimoniales | D35: 0 | E35: =+IFERROR(D35/$D$33,0) -> 0 | F35: 0 | G35: =+IFERROR(F35/F34,0) -> 0 | H35: 0 | I35: 0
B36: Pagos por adquisición de inversiones en otros instrumentos financieros | D36: 0 | E36: 0 | F36: 0 | G36: 0 | H36: 0 | I36: 0
B37: Pagos por préstamos otorgados | D37: 0 | E37: 0 | F37: 0 | G37: 0 | H37: 0 | I37: 0
B38: Otros pagos por actividades de inversión | D38: 0 | E38: 0 | F38: 0 | G38: =+IFERROR(F38/F37,0) -> 0 | H38: 0 | I38: 0
A39: Flujos netos de efectivo por actividades de inversión | D39: =+D27-D33 -> -27234.11012 | F39: =+F27-F33 -> -17147.7506 | H39: -10086.35952 | I39: 0.5882030685
A41: FLUJOS DE EFECTIVO DE LAS ACTIVIDADES DE FINANCIACIÓN
A42: Cobros | C42: 81 | D42: =SUM(D43:D45) -> 191813.241 | F42: =SUM(F43:F45) -> 0 | H42: =+D42-F42 -> 191813.241 | I42: =+IFERROR(H42/F42,0) -> 0 | K42: =+I42*100 -> 0 | L42: =+FIXED(H42,2) -> 191 813,24 | M42: =IF(H42 < 0, "Disminución", "Aumento") -> Aumento | N42: =+CONCATENATE("Los Cobros de los Flujos de Efectivo de las Actividades de Financiamiento, comparado al periodo anterior genera una variación absoluta de ¢",L42," que corresponde a un(a) ",M42," del ",K42,"% de recursos disponibles, producto de:") -> Los Cobros de los Flujos de Efectivo de las Actividades de Financiamiento, comparado al periodo anterior genera una variación absoluta de ¢191 813,24 que corresponde a un(a) Aumento del 0% de recursos disponibles, producto de:
B43: Cobros por incrementos de capital y transferencias de capital | D43: 0 | E43: =+IFERROR(D43/$D$42,0) -> 0 | F43: 0 | G43: =+IFERROR(F43/$F$42,0) -> 0 | H43: 0 | I43: 0
B44: Cobros por endeudamiento público | D44: 0 | E44: =+IFERROR(D44/$D$42,0) -> 0 | F44: 0 | G44: =+IFERROR(F44/$F$42,0) -> 0 | H44: 0 | I44: 0
B45: Otros cobros por actividades de financiación | D45: 191813.241 | E45: 1 | F45: 0 | G45: =+IFERROR(F45/$F$42,0) -> 0 | H45: 191813.241 | I45: 0
A46: Pagos | C46: 82 | D46: =SUM(D47:D49) -> 248609.6704 | F46: =SUM(F47:F49) -> 108316.9975 | H46: 140292.6729 | I46: 1.295204596 | K46: =+I46*100 -> 129.5204596 | L46: =+FIXED(H46,2) -> 140 292,67 | M46: =IF(H46 < 0, "Disminución", "Aumento") -> Aumento | N46: =+CONCATENATE("Los Pagos de los Flujos de Efectivo de las Actividades de Financiamiento, comparado al periodo anterior genera una variación absoluta de ¢",L46," que corresponde a un(a) ",M46," del ",K46,"% de recursos disponibles, producto de:") -> Los Pagos de los Flujos de Efectivo de las Actividades de Financiamiento, comparado al periodo anterior genera una variación absoluta de ¢140 292,67 que corresponde a un(a) Aumento del 129,520459567584% de recursos disponibles, producto de:
B47: Pagos por disminuciones del patrimonio que no afectan resultados | D47: 0 | E47: =+IFERROR(D47/$D$46,0) -> 0 | F47: 0 | G47: =+IFERROR(F47/$F$46,0) -> 0 | H47: 0 | I47: 0
B48: Pagos por amortizaciones de endeudamiento público | D48: 194210.3704 | E48: =+IFERROR(D48/$D$46,0) -> 0.7811859052 | F48: 79159.3616 | G48: =+IFERROR(F48/$F$46,0) -> 0.7308120005 | H48: 115051.0088 | I48: 1.453410013
B49: Otros pagos por actividades de financiación | D49: 54399.29999 | E49: 0.2188140948 | F49: 29157.63586 | G49: 0.2691879995 | H49: 25241.66413 | I49: 0.865696528
A50: Flujos netos de efectivo por actividades de financiación | D50: =+D42-D46 -> -56796.42938 | F50: =+F42-F46 -> -108316.9975 | H50: =+D50-F50 -> 51520.56808 | I50: -0.4756461985
A52: Incremento/Disminución neta de efectivo y equivalentes de efectivo por flujos de actividades | D52: =+D24+D39+D50 -> -310570.3561 | F52: =+F24+F39+F50 -> -387015.5415 | H52: =+D52-F52 -> 76445.18538 | I52: =+IFERROR(H52/F52,0) -> -0.1975248464
F53: 0 | H53: =+D53-F53 -> 0 | I53: =+IFERROR(H53/F53,0) -> 0
A54: Incremento/Disminución neta de efectivo y equivalentes de efectivo por diferencias de cambio no realizadas | D54: 0 | F54: 0 | H54: =+D54-F54 -> 0 | I54: =+IFERROR(H54/F54,0) -> 0
A55: Efectivo y equivalentes de efectivo al inicio del ejercicio | D55: 2106811.911 | F55: 2705767.389 | H55: =+D55-F55 -> -598955.478 | I55: =+IFERROR(H55/F55,0) -> -0.2213625164
A56: Efectivo y equivalentes de efectivo al final del ejercicio | C56: 83 | D56: =+D52+D54+D55 -> 1796241.555 | F56: =+F52+F54+F55 -> 2318751.848 | H56: =+D56-F56 -> -522510.2926 | I56: =+IFERROR(H56/F56,0) -> -0.2253411865 | K56: =+I56*100 -> -22.53411865 | L56: =+FIXED(H56,2) -> -522 510,29 | M56: =IF(H56 < 0, "Disminución", "Aumento") -> Disminución | N56: =+CONCATENATE("La cuenta Efectivo y Equivalentes de Efectivo al final de ejercicio, comparado al periodo anterior genera una variación absoluta de ¢",L56," que corresponde a un(a) ",M56," del ",K56,"% de recursos disponibles, producto de:") -> La cuenta Efectivo y Equivalentes de Efectivo al final de ejercicio, comparado al periodo anterior genera una variación absoluta de ¢-522 510,29 que corresponde a un(a) Disminución del -22,5341186509578% de recursos disponibles, producto de:
A59: Validaciones
A60: Balanza de comprobación periodo actual saldo final
A61: 1.1.1. | B61: Efectivo y equivalentes de efectivo | D61: =+BCPAC!G12/1000 -> 1796241.557
B62: No debe haber diferencia con Efectivo y equivalentes de efectivo al final del ejercicio | D62: =+D56-D61 -> -0.001540031284
A64: Balanza de comprobación periodo actual saldo inicial
A65: 1.1.1. | B65: Efectivo y equivalentes de efectivo | D65: =+BCPAC!D12/1000 -> 2106811.911
B66: No debe haber diferencia con Efectivo y equivalentes de efectivo al inicio del ejercicio | D66: =+D55-D65 -> 0

Sheet AnalisisECP
A1: =+Datos!C2 -> Municipalidad de Buenos Aires
A2: Análisis al Estado de Cambios en el Patrimonio Comparativo
A3: =+Datos!C4 -> Del 01 de Enero 2024 al 30 de Abril del 2024
A4: - En miles de colones -
A6: Cuenta | B6: Concepto | C6: =+Datos!D5 -> 2024-04-30 | D6: % análisis vertical | E6: =+Datos!F5 -> 2023-04-30 | F6: % | G6: Monto variación Absoluta | H6: % Variación relativa
A7: 3. | B7: Saldos al 31 de Mayo del 2022 y 2021 | C7: =SUMIF(BCPAC!$B$10:$B$8000,$A7,BCPAC!$D$10:$D$8000)/1000 -> 164134319.2 | E7: =SUMIF(BCPAN!$B$10:$B$8000,$A7,BCPAN!$D$10:$D$8000)/1000 -> 163528314.2
A8: Variaciones del ejercicio
A9: 3.1.1.01. | B9: Capital inicial | C9: =+SUMIF(BCPAC!$B$10:$B$8000,$A9,BCPAC!$F$10:$F$8000)/1000-SUMIF(BCPAC!$B$10:$B$8000,$A9,BCPAC!$E$10:$E$8000)/1000 -> 0 | D9: =+IFERROR(C9/$C$28,0) -> 0 | E9: =+SUMIF(BCPAN!$B$10:$B$8000,$A9,BCPAN!$G$10:$G$8000)/1000-(SUMIF(BCPAN!$B$10:$B$8000,$A9,BCPAN!$D$10:$D$8000)/1000) -> 0 | F9: =+IFERROR(E9/$E$28,0) -> 0 | G9: =+C9-E9 -> 0 | H9: =+IFERROR(G9/E9,0) -> 0
A10: 3.1.1.02. | B10: Incorporaciones al capital | C10: =+SUMIF(BCPAC!$B$10:$B$8000,$A10,BCPAC!$F$10:$F$8000)/1000-SUMIF(BCPAC!$B$10:$B$8000,$A10,BCPAC!$E$10:$E$8000)/1000 -> 0 | D10: =+IFERROR(C10/$C$28,0) -> 0 | E10: =+SUMIF(BCPAN!$B$10:$B$8000,$A10,BCPAN!$G$10:$G$8000)/1000-(SUMIF(BCPAN!$B$10:$B$8000,$A10,BCPAN!$D$10:$D$8000)/1000) -> 0 | F10: =+IFERROR(E10/$E$28,0) -> 0 | G10: 0 | H10: 0
A11: 3.1.2.01. | B11: Donaciones de capital | C11: =+SUMIF(BCPAC!$B$10:$B$8000,$A11,BCPAC!$F$10:$F$8000)/1000-SUMIF(BCPAC!$B$10:$B$8000,$A11,BCPAC!$E$10:$E$8000)/1000 -> 0 | D11: 0 | E11: =+SUMIF(BCPAN!$B$10:$B$8000,$A11,BCPAN!$G$10:$G$8000)/1000-(SUMIF(BCPAN!$B$10:$B$8000,$A11,BCPAN!$D$10:$D$8000)/1000) -> 0 | F11: 0 | G11: 0 | H11: 0
A12: 3.1.2.99. | B12: Otras transferencias de capital | C12: =+SUMIF(BCPAC!$B$10:$B$8000,$A12,BCPAC!$F$10:$F$8000)/1000-SUMIF(BCPAC!$B$10:$B$8000,$A12,BCPAC!$E$10:$E$8000)/1000 -> 0 | D12: 0 | E12: =+SUMIF(BCPAN!$B$10:$B$8000,$A12,BCPAN!$G$10:$G$8000)/1000-(SUMIF(BCPAN!$B$10:$B$8000,$A12,BCPAN!$D$10:$D$8000)/1000) -> 0 | F12: 0 | G12: 0 | H12: 0
A13: 3.1.3.01. | B13: Revaluación de bienes | C13: =+SUMIF(BCPAC!$B$10:$B$8000,$A13,BCPAC!$F$10:$F$8000)/1000-SUMIF(BCPAC!$B$10:$B$8000,$A13,BCPAC!$E$10:$E$8000)/1000 -> 0 | D13: 0 | E13: =+SUMIF(BCPAN!$B$10:$B$8000,$A13,BCPAN!$G$10:$G$8000)/1000-(SUMIF(BCPAN!$B$10:$B$8000,$A13,BCPAN!$D$10:$D$8000)/1000) -> 0 | F13: 0 | G13: 0 | H13: 0
A14: 3.1.3.99. | B14: Otras reservas | C14: =+SUMIF(BCPAC!$B$10:$B$8000,$A14,BCPAC!$F$10:$F$8000)/1000-SUMIF(BCPAC!$B$10:$B$8000,$A14,BCPAC!$E$10:$E$8000)/1000 -> 0 | D14: 0 | E14: =+SUMIF(BCPAN!$B$10:$B$8000,$A14,BCPAN!$G$10:$G$8000)/1000-(SUMIF(BCPAN!$B$10:$B$8000,$A14,BCPAN!$D$10:$D$8000)/1000) -> 0 | F14: 0 | G14: 0 | H14: 0
A15: 3.1.4.01. | B15: Diferencias de conversión de moneda extranjera | C15: =+SUMIF(BCPAC!$B$10:$B$8000,$A15,BCPAC!$F$10:$F$8000)/1000-SUMIF(BCPAC!$B$10:$B$8000,$A15,BCPAC!$E$10:$E$8000)/1000 -> 0 | D15: 0 | E15: =+SUMIF(BCPAN!$B$10:$B$8000,$A15,BCPAN!$G$10:$G$8000)/1000-(SUMIF(BCPAN!$B$10:$B$8000,$A15,BCPAN!$D$10:$D$8000)/1000) -> 0 | F15: 0 | G15: 0 | H15: 0
A16: 3.1.4.02. | B16: Diferencias de valor razonable de activos financieros destinados a la venta | C16: =+SUMIF(BCPAC!$B$10:$B$8000,$A16,BCPAC!$F$10:$F$8000)/1000-SUMIF(BCPAC!$B$10:$B$8000,$A16,BCPAC!$E$10:$E$8000)/1000 -> 0 | D16: 0 | E16: =+SUMIF(BCPAN!$B$10:$B$8000,$A16,BCPAN!$G$10:$G$8000)/1000-(SUMIF(BCPAN!$B$10:$B$8000,$A16,BCPAN!$D$10:$D$8000)/1000) -> 0 | F16: 0 | G16: 0 | H16: 0
A17: 3.1.4.03. | B17: Diferencias de valor razonable de instrumentos financieros designados como cobertura | C17: =+SUMIF(BCPAC!$B$10:$B$8000,$A17,BCPAC!$F$10:$F$8000)/1000-SUMIF(BCPAC!$B$10:$B$8000,$A17,BCPAC!$E$10:$E$8000)/1000 -> 0 | D17: 0 | E17: =+SUMIF(BCPAN!$B$10:$B$8000,$A17,BCPAN!$G$10:$G$8000)/1000-(SUMIF(BCPAN!$B$10:$B$8000,$A17,BCPAN!$D$10:$D$8000)/1000) -> 0 | F17: 0 | G17: 0 | H17: 0
A18: 3.1.4.99. | B18: Otras variaciones no asignables a reservas | C18: =+SUMIF(BCPAC!$B$10:$B$8000,$A18,BCPAC!$F$10:$F$8000)/1000-SUMIF(BCPAC!$B$10:$B$8000,$A18,BCPAC!$E$10:$E$8000)/1000 -> 0 | D18: 0 | E18: =+SUMIF(BCPAN!$B$10:$B$8000,$A18,BCPAN!$G$10:$G$8000)/1000-(SUMIF(BCPAN!$B$10:$B$8000,$A18,BCPAN!$D$10:$D$8000)/1000) -> 0 | F18: 0 | G18: 0 | H18: 0
A19: 3.1.5.01. | B19: Resultados acumulados de ejercicios anteriores | C19: =+SUMIF(BCPAC!$B$10:$B$8000,$A19,BCPAC!$F$10:$F$8000)/1000-SUMIF(BCPAC!$B$10:$B$8000,$A19,BCPAC!$E$10:$E$8000)/1000 -> -84662.84103 | D19: -0.0005070848939 | E19: =+SUMIF(BCPAN!$B$10:$B$8000,$A19,BCPAN!$G$10:$G$8000)/1000-(SUMIF(BCPAN!$B$10:$B$8000,$A19,BCPAN!$D$10:$D$8000)/1000) -> -334762.1063 | F19: -0.002019596187 | G19: 250099.2653 | H19: -0.7470955063
A20: 3.1.5.02. | B20: Resultado del ejercicio | C20: =+((SUMIF(BCPAC!B:B,"4.",BCPAC!G:G)-SUMIF(BCPAC!B:B,"5.",BCPAC!G:G))/1000) -> 2910239.362 | D20: 0.01743076892 | E20: =(+SUMIF(BCPAN!$B$10:$B$8000,$A20,BCPAN!$G$10:$G$8000)/1000-(SUMIF(BCPAN!$B$10:$B$8000,$A20,BCPAN!$D$10:$D$8000)/1000))+((SUMIF(BCPAN!B:B,"4.",BCPAN!G:G)-SUMIF(BCPAN!B:B,"5.",BCPAN!G:G))/1000) -> 2563398.969 | F20: 0.01546480527 | G20: 346840.3923 | H20: 0.1353048809
A21: 3.2.1.01. | B21: Intereses minoritarios - Participaciones en el patrimonio de entidades del sector gobierno general | C21: =+SUMIF(BCPAC!$B$10:$B$8000,$A21,BCPAC!$F$10:$F$8000)/1000-SUMIF(BCPAC!$B$10:$B$8000,$A21,BCPAC!$E$10:$E$8000)/1000 -> 0 | D21: 0 | E21: =+SUMIF(BCPAN!$B$10:$B$8000,$A21,BCPAN!$G$10:$G$8000)/1000-(SUMIF(BCPAN!$B$10:$B$8000,$A21,BCPAN!$D$10:$D$8000)/1000) -> 0 | F21: 0 | G21: 0 | H21: 0
A22: 3.2.1.02. | B22: Intereses minoritarios - Participaciones en el patrimonio de empresas públicas e instituciones públicas financieras | C22: =+SUMIF(BCPAC!$B$10:$B$8000,$A22,BCPAC!$F$10:$F$8000)/1000-SUMIF(BCPAC!$B$10:$B$8000,$A22,BCPAC!$E$10:$E$8000)/1000 -> 0 | D22: 0 | E22: =+SUMIF(BCPAN!$B$10:$B$8000,$A22,BCPAN!$G$10:$G$8000)/1000-(SUMIF(BCPAN!$B$10:$B$8000,$A22,BCPAN!$D$10:$D$8000)/1000) -> 0 | F22: 0 | G22: 0 | H22: 0
A23: 3.2.2.01. | B23: Intereses minoritarios - Evolución por reservas | C23: =+SUMIF(BCPAC!$B$10:$B$8000,$A23,BCPAC!$F$10:$F$8000)/1000-SUMIF(BCPAC!$B$10:$B$8000,$A23,BCPAC!$E$10:$E$8000)/1000 -> 0 | D23: 0 | E23: =+SUMIF(BCPAN!$B$10:$B$8000,$A23,BCPAN!$G$10:$G$8000)/1000-(SUMIF(BCPAN!$B$10:$B$8000,$A23,BCPAN!$D$10:$D$8000)/1000) -> 0 | F23: 0 | G23: 0 | H23: 0
A24: 3.2.2.02. | B24: Intereses minoritarios - Evolución por variaciones no asignables a reservas | C24: =+SUMIF(BCPAC!$B$10:$B$8000,$A24,BCPAC!$F$10:$F$8000)/1000-SUMIF(BCPAC!$B$10:$B$8000,$A24,BCPAC!$E$10:$E$8000)/1000 -> 0 | D24: 0 | E24: =+SUMIF(BCPAN!$B$10:$B$8000,$A24,BCPAN!$G$10:$G$8000)/1000-(SUMIF(BCPAN!$B$10:$B$8000,$A24,BCPAN!$D$10:$D$8000)/1000) -> 0 | F24: 0 | G24: 0 | H24: 0
A25: 3.2.2.03. | B25: Intereses minoritarios - Evolución por resultados acumulados | C25: =+SUMIF(BCPAC!$B$10:$B$8000,$A25,BCPAC!$F$10:$F$8000)/1000-SUMIF(BCPAC!$B$10:$B$8000,$A25,BCPAC!$E$10:$E$8000)/1000 -> 0 | D25: 0 | E25: =+SUMIF(BCPAN!$B$10:$B$8000,$A25,BCPAN!$G$10:$G$8000)/1000-(SUMIF(BCPAN!$B$10:$B$8000,$A25,BCPAN!$D$10:$D$8000)/1000) -> 0 | F25: 0 | G25: 0 | H25: 0
A26: 3.2.2.99. | B26: Intereses minoritarios - Evolución por otros componentes del patrimonio | C26: =+SUMIF(BCPAC!$B$10:$B$8000,$A26,BCPAC!$F$10:$F$8000)/1000-SUMIF(BCPAC!$B$10:$B$8000,$A26,BCPAC!$E$10:$E$8000)/1000 -> 0 | D26: =+IFERROR(C26/$C$28,0) -> 0 | E26: =+SUMIF(BCPAN!$B$10:$B$8000,$A26,BCPAN!$G$10:$G$8000)/1000-(SUMIF(BCPAN!$B$10:$B$8000,$A26,BCPAN!$D$10:$D$8000)/1000) -> 0 | F26: 0 | G26: 0 | H26: 0
B27: Total de variaciones del ejercicio | C27: =SUM(C9:C26) -> 2825576.521 | D27: =+IFERROR(C27/$C$28,0) -> 0.01692368402 | E27: =SUM(E9:E26) -> 2228636.863 | F27: =+IFERROR(E27/$E$28,0) -> 0.01344520908 | G27: 596939.6576
A28: 84 | B28: Saldos del período | C28: =+C7+C27 -> 166959895.8 | D28: =+IFERROR(C28/$C$28,0) -> 1 | E28: =+E7+E27 -> 165756951 | F28: =+IFERROR(E28/$E$28,0) -> 1 | G28: 1202944.719 | H28: =+IFERROR(G28/E28,0) -> 0.007257280683 | J28: =+H28 -> 0.007257280683 | K28: =+FIXED(G28,2) -> 1 202 944,72 | L28: =IF(G28 < 0, "Disminución", "Aumento") -> Aumento | M28: =+CONCATENATE("En el Estado de Cambios al Patrimonio, el Saldo del periodo al ",K24,", comparado al periodo anterior genera una variación absoluta de ¢",K28," que corresponde a un(a) ",L28," del ",J28,"% de recursos disponibles, producto de:") -> En el Estado de Cambios al Patrimonio, el Saldo del periodo al , comparado al periodo anterior genera una variación absoluta de ¢1 202 944,72 que corresponde a un(a) Aumento del 0,00725728068253145% de recursos disponibles, producto de:
B29: (*) De uso exclusivo en Estados Contables consolidados

Sheet BCPAC
A10: 3.1 | B10: 1. | C10: ACTIVO | D10: 1.658328453e+11 | E10: 7763840507 | F10: 4790372789 | G10: 1.68806313e+11
A11: 3.1 | B11: 1.1. | C11: Activo Corriente | D11: 2822037062 | E11: 7714329497 | F11: 4695547543 | G11: 5840819016
A12: 3.1 | B12: 1.1.1. | C12: Efectivo equivalentes de efectivo | D12: 2106811911 | E12: 2696557183 | F12: 3007127537 | G12: 1796241557
A13: 3.1 | B13: 1.1.1.01. | C13: Efectivo | D13: 2106811911 | E13: 2030414766 | F13: 3007127537 | G13: 1130099140
A14: 3.1 | B14: 1.1.1.01.02. | C14: Depósitos bancarios | D14: 2103561911 | E14: 2030414766 | F14: 3007127537 | G14: 1126849140
A15: 3.1 | B15: 1.1.1.01.02.02. | C15: Depósitos bancarios en el sector público interno | D15: 2103561911 | E15: 2030414766 | F15: 3007127537 | G15: 1126849140
A16: 3.1 | B16: 1.1.1.01.02.02.2. | C16: Cuentas corrientes en el sector público interno | D16: 687233539.5 | E16: 809798738.9 | F16: 1396673822 | G16: 100358456.8
A17: 3.1 | B17: 1.1.1.01.02.02.2.21101 | C17: Banco Costa Rica | D17: 372598001.7 | E17: 97718134.73 | F17: 469637823.3 | G17: 678313.05
A18: 3.1 | B18: 1.1.1.01.02.02.2.21103 | C18: Banco Nacional de Costa Rica | D18: 314635537.9 | E18: 712080604.1 | F18: 927035998.3 | G18: 99680143.75
A19: 3.1 | B19: 1.1.1.01.02.02.3. | C19: Caja Única | D19: 1416328372 | E19: 1220616028 | F19: 1610453716 | G19: 1026490683
A20: 3.1 | B20: 1.1.1.01.02.02.3.11206 | C20: Ministerio de Hacienda | D20: 1416328372 | E20: 1220616028 | F20: 1610453716 | G20: 1026490683
A21: 3.1 | B21: 1.1.1.01.03. | C21: Cajas chicas fondos rotatorios | D21: 3250000 | E21: 0 | F21: 0 | G21: 3250000
A22: 3.1 | B22: 1.1.1.01.03.01. | C22: Cajas chicas | D22: 2250000 | E22: 0 | F22: 0 | G22: 2250000
A23: 3.1 | B23: 1.1.1.01.03.01.2. | C23: Cajas chicas en el país | D23: 2250000 | E23: 0 | F23: 0 | G23: 2250000
A24: 3.1 | B24: 1.1.1.01.03.01.2.99999 | C24: Cajas chicas en el país | D24: 2250000 | E24: 0 | F24: 0 | G24: 2250000
A25: 3.1 | B25: 1.1.1.01.03.02. | C25: Fondos rotatorios | D25: 1000000 | E25: 0 | F25: 0 | G25: 1000000
A26: 3.1 | B26: 1.1.1.01.03.02.2. | C26: Fondos rotatorios en el sector público interno | D26: 1000000 | E26: 0 | F26: 0 | G26: 1000000
A27: 3.1 | B27: 1.1.1.01.03.02.2.99999 | C27: Fondos rotatorios en el sector público interno | D27: 1000000 | E27: 0 | F27: 0 | G27: 1000000
A28: 3.1 | B28: 1.1.1.02. | C28: Equivalentes de efectivo | D28: 0 | E28: 666142416.5 | F28: 0 | G28: 666142416.5
A29: 3.1 | B29: 1.1.1.02.99. | C29: Otros equivalentes de efectivo | D29: 0 | E29: 666142416.5 | F29: 0 | G29: 666142416.5
A30: 3.1 | B30: 1.1.1.02.99.02. | C30: Otros equivalentes de efectivo en el sector público interno | D30: 0 | E30: 666142416.5 | F30: 0 | G30: 666142416.5
A31: 3.1 | B31: 1.1.1.02.99.02.0. | C31: Otros equivalentes de efectivo en el sector público interno | D31: 0 | E31: 666142416.5 | F31: 0 | G31: 666142416.5
A32: 3.1 | B32: 1.1.1.02.99.02.0.21101 | C32: Banco Costa Rica | D32: 0 | E32: 333113543.3 | F32: 0 | G32: 333113543.3
A33: 3.1 | B33: 1.1.1.02.99.02.0.21103 | C33: Banco Nacional de Costa Rica | D33: 0 | E33: 333028873.2 | F33: 0 | G33: 333028873.2
A34: 3.1 | B34: 1.1.3. | C34: Cuentas a cobrar a c/p | D34: 495942436.4 | E34: 4967745603 | F34: 1647369242 | G34: 3816318798
A35: 3.1 | B35: 1.1.3.01. | C35: Impuestos a cobrar a c/p | D35: 488369513.4 | E35: 746681273 | F35: 699638445.4 | G35: 535412341
A36: 3.1 | B36: 1.1.3.01.02. | C36: Impuestos sobre la propiedad a cobrar c/p | D36: 454864572.4 | E36: 576428574.9 | F36: 553754016.6 | G36: 477539130.7
A37: 3.1 | B37: 1.1.3.01.02.01. | C37: Impuesto sobre la propiedad de bienes inmuebles a cobrar c/p | D37: 454864572.4 | E37: 576428574.9 | F37: 553754016.6 | G37: 477539130.7
A38: 3.1 | B38: 1.1.3.01.02.01.0. | C38: Impuesto sobre la propiedad de bienes inmuebles a cobrar c/p | D38: 454864572.4 | E38: 576428574.9 | F38: 553754016.6 | G38: 477539130.7
A39: 3.1 | B39: 1.1.3.01.02.01.0.99999 | C39: Impuesto sobre la propiedad de bienes inmuebles a cobrar c/p | D39: 454864572.4 | E39: 576428574.9 | F39: 553754016.6 | G39: 477539130.7
A40: 3.1 | B40: 1.1.3.01.03. | C40: Impuestos sobre bienes y servicios a cobrar c/p | D40: 33504940.95 | E40: 170252698.2 | F40: 145884428.8 | G40: 57873210.33
A41: 3.1 | B41: 1.1.3.01.03.99. | C41: Otros Impuestos sobre bienes y servicios a cobrar c/p | D41: 33504940.95 | E41: 170252698.2 | F41: 145884428.8 | G41: 57873210.33
A42: 3.1 | B42: 1.1.3.01.03.99.1. | C42: Licencias profesionales, comerciales y otros permisos a cobrar c/p | D42: 30044160.51 | E42: 162077559.9 | F42: 139699922.5 | G42: 52421797.91
A43: 3.1 | B43: 1.1.3.01.03.99.1.99999 | C43: Licencias profesionales, comerciales y otros permisos a cobrar c/p | D43: 30044160.51 | E43: 162077559.9 | F43: 139699922.5 | G43: 52421797.91
A44: 3.1 | B44: 1.1.3.01.03.99.9. | C44: Otros impuestos varios sobre bienes y servicios a cobrar c/p | D44: 3460780.44 | E44: 8175138.3 | F44: 6184506.32 | G44: 5451412.42
A45: 3.1 | B45: 1.1.3.01.03.99.9.99999 | C45: Otros impuestos varios sobre bienes y servicios a cobrar c/p | D45: 3460780.44 | E45: 8175138.3 | F45: 6184506.32 | G45: 5451412.42
A46: 3.1 | B46: 1.1.3.04. | C46: Servicios y derechos a cobrar a corto plazo | D46: 180183637.8 | E46: 432483470.9 | F46: 313134546.5 | G46: 299532562.2
A47: 3.1 | B47: 1.1.3.04.01. | C47: Servicios a cobrar c/p | D47: 179741182.8 | E47: 431903992.6 | F47: 312585051.5 | G47: 299060123.9
A48: 3.1 | B48: 1.1.3.04.01.04. | C48: Servicios comunitarios a cobrar c/p | D48: 179741182.8 | E48: 431903992.6 | F48: 312585051.5 | G48: 299060123.9
A49: 3.1 | B49: 1.1.3.04.01.04.0. | C49: Servicios comunitarios a cobrar c/p | D49: 179741182.8 | E49: 431903992.6 | F49: 312585051.5 | G49: 299060123.9
A50: 3.1 | B50: 1.1.3.04.01.04.0.99999 | C50: Servicios comunitarios a cobrar c/p | D50: 179741182.8 | E50: 431903992.6 | F50: 312585051.5 | G50: 299060123.9
A51: 3.1 | B51: 1.1.3.04.02. | C51: Derechos administrativos a cobrar c/p | D51: 442455 | E51: 579478.33 | F51: 549495 | G51: 472438.33
A52: 3.1 | B52: 1.1.3.04.02.01. | C52: Derechos administrativos a los servicios de transporte a cobrar c/p | D52: 50000 | E52: 350000 | F52: 380000 | G52: 20000
A53: 3.1 | B53: 1.1.3.04.02.01.0. | C53: Derechos administrativos a los servicios de transporte a cobrar c/p | D53: 50000 | E53: 350000 | F53: 380000 | G53: 20000
A54: 3.1 | B54: 1.1.3.04.02.01.0.99999 | C54: Derechos administrativos a los servicios de transporte a cobrar c/p Derecho de piso uso terminal | D54: 50000 | E54: 350000 | F54: 380000 | G54: 20000
A55: 3.1 | B55: 1.1.3.04.02.99. | C55: Otros derechos administrativos a cobrar c/p | D55: 392455 | E55: 229478.33 | F55: 169495 | G55: 452438.33
A56: 3.1 | B56: 1.1.3.04.02.99.0. | C56: Otros derechos administrativos a cobrar c/p | D56: 392455 | E56: 229478.33 | F56: 169495 | G56: 452438.33
A57: 3.1 | B57: 1.1.3.04.02.99.0.99999 | C57: Otros derechos administrativos a cobrar c/p Derecho cementerio | D57: 392455 | E57: 229478.33 | F57: 169495 | G57: 452438.33
A58: 3.1 | B58: 1.1.3.06. | C58: Transferencias a cobrar a c/p | D58: 0 | E58: 3784139549 | F58: 632570054.6 | G58: 3151569494
A59: 3.1 | B59: 1.1.3.06.02. | C59: Transferencias del sector público interno a cobrar c/p | D59: 0 | E59: 3784139549 | F59: 632570054.6 | G59: 3151569494
A60: 3.1 | B60: 1.1.3.06.02.01. | C60: Transferencias del Gobierno Central a cobrar c/p | D60: 0 | E60: 3772816719 | F60: 628802786.5 | G60: 3144013933
A61: 3.1 | B61: 1.1.3.06.02.01.0. | C61: Transferencias del Gobierno Central a cobrar c/p | D61: 0 | E61: 3772816719 | F61: 628802786.5 | G61: 3144013933
A62: 3.1 | B62: 1.1.3.06.02.01.0.11206 | C62: Ministerio de Hacienda | D62: 0 | E62: 3772816719 | F62: 628802786.5 | G62: 3144013933
A63: 3.1 | B63: 1.1.3.06.02.03. | C63: Transferencias de Instituciones Descentralizadas no Empresariales a cobrar c/p | D63: 0 | E63: 11322830.07 | F63: 3767268.13 | G63: 7555561.94
A64: 3.1 | B64: 1.1.3.06.02.03.0. | C64: Transferencias de Instituciones Descentralizadas no Empresariales a cobrar c/p | D64: 0 | E64: 11322830.07 | F64: 3767268.13 | G64: 7555561.94
A65: 3.1 | B65: 1.1.3.06.02.03.0.14226 | C65: Transferencias de Instituciones Descentralizadas no Empresariales a cobrar c/p (Aporte IFAM Licores Nacionales y Ext) | D65: 0 | E65: 11322830.07 | F65: 3767268.13 | G65: 7555561.94
A66: 3.1 | B66: 1.1.3.98. | C66: Otras cuentas a cobrar a corto plazo | D66: 2767182.6 | E66: 4441310.1 | F66: 2026195.1 | G66: 5182297.6
A67: 3.1 | B67: 1.1.3.98.01. | C67: Multas, sanciones, remates y confiscaciones de origen no tributario a cobrar c/p | D67: 2267182.6 | E67: 4441310.1 | F67: 2026195.1 | G67: 4682297.6
A68: 3.1 | B68: 1.1.3.98.01.01. | C68: Multas y sanciones administrativas a cobrar c/p | D68: 2267182.6 | E68: 4441310.1 | F68: 2026195.1 | G68: 4682297.6
A69: 3.1 | B69: 1.1.3.98.01.01.0. | C69: Multas y sanciones administrativas a cobrar c/p | D69: 2267182.6 | E69: 4441310.1 | F69: 2026195.1 | G69: 4682297.6
A70: 3.1 | B70: 1.1.3.98.01.01.0.99999 | C70: Multas y sanciones administrativas a cobrar c/p | D70: 2267182.6 | E70: 4441310.1 | F70: 2026195.1 | G70: 4682297.6
A71: 3.1 | B71: 1.1.3.98.03. | C71: Depósitos en garantía c/p | D71: 500000 | E71: 0 | F71: 0 | G71: 500000
A72: 3.1 | B72: 1.1.3.98.03.02. | C72: Depósitos en garantía en el sector público interno c/p | D72: 500000 | E72: 0 | F72: 0 | G72: 500000
A73: 3.1 | B73: 1.1.3.98.03.02.0. | C73: Depósitos en garantía en el sector público interno c/p | D73: 500000 | E73: 0 | F73: 0 | G73: 500000
A74: 3.1 | B74: 1.1.3.98.03.02.0.99999 | C74: Depósitos en garantía en el sector público interno c/p | D74: 500000 | E74: 0 | F74: 0 | G74: 500000
A75: 3.1 | B75: 1.1.3.99. | C75: Previsiones para deterioro de cuentas a cobrar a corto plazo * | D75: -175377897.4 | E75: 0 | F75: 0 | G75: -175377897.4
A76: 3.1 | B76: 1.1.3.99.01. | C76: Previsiones para impuestos a cobrar c/p * | D76: -116983004.6 | E76: 0 | F76: 0 | G76: -116983004.6
A77: 3.1 | B77: 1.1.3.99.01.02. | C77: Previsiones para impuestos sobre la propiedad a cobrar c/p * | D77: -106283608.3 | E77: 0 | F77: 0 | G77: -106283608.3
A78: 3.1 | B78: 1.1.3.99.01.02.0. | C78: Previsiones para impuestos sobre la propiedad a cobrar c/p * | D78: -106283608.3 | E78: 0 | F78: 0 | G78: -106283608.3
A79: 3.1 | B79: 1.1.3.99.01.02.0.99999 | C79: Previsiones para impuestos sobre la propiedad a cobrar c/p * | D79: -106283608.3 | E79: 0 | F79: 0 | G79: -106283608.3
A80: 3.1 | B80: 1.1.3.99.01.03. | C80: Previsiones para impuestos sobre bienes y servicios a cobrar c/p * | D80: -9270015.01 | E80: 0 | F80: 0 | G80: -9270015.01
A81: 3.1 | B81: 1.1.3.99.01.03.0. | C81: Previsiones para impuestos sobre bienes y servicios a cobrar c/p * | D81: -9270015.01 | E81: 0 | F81: 0 | G81: -9270015.01
A82: 3.1 | B82: 1.1.3.99.01.03.0.99999 | C82: Previsiones para impuestos sobre bienes y servicios a cobrar c/p * | D82: -9270015.01 | E82: 0 | F82: 0 | G82: -9270015.01
A83: 3.1 | B83: 1.1.3.99.01.99. | C83: Previsiones para otros impuestos a cobrar c/p * | D83: -1429381.33 | E83: 0 | F83: 0 | G83: -1429381.33
A84: 3.1 | B84: 1.1.3.99.01.99.0. | C84: Previsiones para otros impuestos a cobrar c/p * | D84: -1429381.33 | E84: 0 | F84: 0 | G84: -1429381.33
A85: 3.1 | B85: 1.1.3.99.01.99.0.99999 | C85: Previsiones para otros impuestos a cobrar c/p * | D85: -1429381.33 | E85: 0 | F85: 0 | G85: -1429381.33
A86: 3.1 | B86: 1.1.3.99.04. | C86: Previsiones para servicios a cobrar c/p * | D86: -51378929.55 | E86: 0 | F86: 0 | G86: -51378929.55
A87: 3.1 | B87: 1.1.3.99.04.01. | C87: Previsiones para ventas de servicios a cobrar c/p * | D87: -50738208.69 | E87: 0 | F87: 0 | G87: -50738208.69
A88: 3.1 | B88: 1.1.3.99.04.01.0. | C88: Previsiones para ventas de servicios a cobrar c/p * | D88: -50738208.69 | E88: 0 | F88: 0 | G88: -50738208.69
A89: 3.1 | B89: 1.1.3.99.04.01.0.99999 | C89: Previsiones para ventas de servicios a cobrar c/p * | D89: -50738208.69 | E89: 0 | F89: 0 | G89: -50738208.69
A90: 3.1 | B90: 1.1.3.99.04.02. | C90: Previsiones para derechos administrativos a cobrar c/p * | D90: -640720.86 | E90: 0 | F90: 0 | G90: -640720.86
A91: 3.1 | B91: 1.1.3.99.04.02.0. | C91: Previsiones para derechos administrativos a cobrar c/p * | D91: -640720.86 | E91: 0 | F91: 0 | G91: -640720.86
A92: 3.1 | B92: 1.1.3.99.04.02.0.99999 | C92: Previsiones para derechos administrativos a cobrar c/p * | D92: -640720.86 | E92: 0 | F92: 0 | G92: -640720.86
A93: 3.1 | B93: 1.1.3.99.05. | C93: Previsiones para ingresos de la propiedad a cobrar c/p * | D93: -7015963.19 | E93: 0 | F93: 0 | G93: -7015963.19
A94: 3.1 | B94: 1.1.3.99.05.01. | C94: Previsiones para alquileres y derechos sobre bienes a cobrar c/p * | D94: -7015963.19 | E94: 0 | F94: 0 | G94: -7015963.19
A95: 3.1 | B95: 1.1.3.99.05.01.0. | C95: Previsiones para alquileres y derechos sobre bienes a cobrar c/p * | D95: -7015963.19 | E95: 0 | F95: 0 | G95: -7015963.19
A96: 3.1 | B96: 1.1.3.99.05.01.0.99999 | C96: Previsiones para alquileres y derechos sobre bienes a cobrar c/p * | D96: -7015963.19 | E96: 0 | F96: 0 | G96: -7015963.19
A97: 3.1 | B97: 1.1.4. | C97: Inventarios | D97: 192987092.2 | E97: 27548452.78 | F97: 17501072.39 | G97: 203034472.6
A98: 3.1 | B98: 1.1.4.01. | C98: Materiales y suministros para consumo y prestación de servicios | D98: 192987092.2 | E98: 27548452.78 | F98: 17501072.39 | G98: 203034472.6
A99: 3.1 | B99: 1.1.4.01.01. | C99: Productos químicos y conexos | D99: 21280495.09 | E99: 647974.38 | F99: 5487128.33 | G99: 16441341.14
A100: 3.1 | B100: 1.1.4.01.01.01. | C100: Combustibles y lubricantes | D100: 17684339.46 | E100: 0 | F100: 4830212.83 | G100: 12854126.63
A101: 3.1 | B101: 1.1.4.01.01.01.0. | C101: Combustibles y lubricantes | D101: 17684339.46 | E101: 0 | F101: 4830212.83 | G101: 12854126.63
A102: 3.1 | B102: 1.1.4.01.01.01.0.99999 | C102: Combustibles y lubricantes | D102: 17684339.46 | E102: 0 | F102: 4830212.83 | G102: 12854126.63
A103: 3.1 | B103: 1.1.4.01.01.02. | C103: Productos farmacéuticos y medicinales | D103: 6400 | E103: 0 | F103: 6400 | G103: 0
A104: 3.1 | B104: 1.1.4.01.01.02.0. | C104: Productos farmacéuticos y medicinales | D104: 6400 | E104: 0 | F104: 6400 | G104: 0
A105: 3.1 | B105: 1.1.4.01.01.02.0.99999 | C105: Productos farmacéuticos y medicinales | D105: 6400 | E105: 0 | F105: 6400 | G105: 0
A106: 3.1 | B106: 1.1.4.01.01.04. | C106: Tintas, pinturas y diluyentes | D106: 2775593.63 | E106: 647974.38 | F106: 379675.6 | G106: 3043892.41
A107: 3.1 | B107: 1.1.4.01.01.04.0. | C107: Tintas, pinturas y diluyentes | D107: 2775593.63 | E107: 647974.38 | F107: 379675.6 | G107: 3043892.41
A108: 3.1 | B108: 1.1.4.01.01.04.0.99999 | C108: Tintas, pinturas y diluyentes | D108: 2775593.63 | E108: 647974.38 | F108: 379675.6 | G108: 3043892.41
A109: 3.1 | B109: 1.1.4.01.01.99. | C109: Otros productos químicos y conexos | D109: 814162 | E109: 0 | F109: 270839.9 | G109: 543322.1
A110: 3.1 | B110: 1.1.4.01.01.99.0. | C110: Otros productos químicos y conexos | D110: 814162 | E110: 0 | F110: 270839.9 | G110: 543322.1
A111: 3.1 | B111: 1.1.4.01.01.99.0.99999 | C111: Otros productos químicos y conexos | D111: 814162 | E111: 0 | F111: 270839.9 | G111: 543322.1
A112: 3.1 | B112: 1.1.4.01.03. | C112: Materiales y productos de uso en la construcción y mantenimiento | D112: 30127789.25 | E112: 3332210.2 | F112: 1294948.79 | G112: 32165050.66
A113: 3.1 | B113: 1.1.4.01.03.01. | C113: Materiales y productos metálicos | D113: 25238704.2 | E113: 263620 | F113: 559316.38 | G113: 24943007.82
A114: 3.1 | B114: 1.1.4.01.03.01.0. | C114: Materiales y productos metálicos | D114: 25238704.2 | E114: 263620 | F114: 559316.38 | G114: 24943007.82
A115: 3.1 | B115: 1.1.4.01.03.01.0.99999 | C115: Materiales y productos metálicos | D115: 25238704.2 | E115: 263620 | F115: 559316.38 | G115: 24943007.82
A116: 3.1 | B116: 1.1.4.01.03.02. | C116: Materiales y productos minerales y asfálticos | D116: 3708677 | E116: 3004645.2 | F116: 575220 | G116: 6138102.2
A117: 3.1 | B117: 1.1.4.01.03.02.0. | C117: Materiales y productos minerales y asfálticos | D117: 3708677 | E117: 3004645.2 | F117: 575220 | G117: 6138102.2
A118: 3.1 | B118: 1.1.4.01.03.02.0.99999 | C118: Materiales y productos minerales y asfálticos | D118: 3708677 | E118: 3004645.2 | F118: 575220 | G118: 6138102.2
A119: 3.1 | B119: 1.1.4.01.03.03. | C119: Madera y sus derivados | D119: 896515 | E119: 63945 | F119: 146160 | G119: 814300
A120: 3.1 | B120: 1.1.4.01.03.03.0. | C120: Madera y sus derivados | D120: 896515 | E120: 63945 | F120: 146160 | G120: 814300
A121: 3.1 | B121: 1.1.4.01.03.03.0.99999 | C121: Madera y sus derivados | D121: 896515 | E121: 63945 | F121: 146160 | G121: 814300
A122: 3.1 | B122: 1.1.4.01.03.04. | C122: Materiales y productos eléctricos, telefónicos y de cómputo | D122: 135171.56 | E122: 0 | F122: 14252.41 | G122: 120919.15
A123: 3.1 | B123: 1.1.4.01.03.04.0. | C123: Materiales y productos eléctricos, telefónicos y de cómputo | D123: 135171.56 | E123: 0 | F123: 14252.41 | G123: 120919.15
A124: 3.1 | B124: 1.1.4.01.03.04.0.99999 | C124: Materiales y productos eléctricos, telefónicos y de cómputo | D124: 135171.56 | E124: 0 | F124: 14252.41 | G124: 120919.15
A125: 3.1 | B125: 1.1.4.01.03.06. | C125: Materiales y productos de plástico | D125: 148721.49 | E125: 0 | F125: 0 | G125: 148721.49
A126: 3.1 | B126: 1.1.4.01.03.06.0. | C126: Materiales y productos de plástico | D126: 148721.49 | E126: 0 | F126: 0 | G126: 148721.49
A127: 3.1 | B127: 1.1.4.01.03.06.0.99999 | C127: Materiales y productos de plástico | D127: 148721.49 | E127: 0 | F127: 0 | G127: 148721.49
A128: 3.1 | B128: 1.1.4.01.04. | C128: Herramientas, repuestos y accesorios | D128: 131278007.8 | E128: 10867615.91 | F128: 5714741.8 | G128: 136430881.9
A129: 3.1 | B129: 1.1.4.01.04.01. | C129: Herramientas e instrumentos | D129: 1233641.5 | E129: 0 | F129: 53150.93 | G129: 1180490.57
A130: 3.1 | B130: 1.1.4.01.04.01.0. | C130: Herramientas e instrumentos | D130: 1233641.5 | E130: 0 | F130: 53150.93 | G130: 1180490.57
A131: 3.1 | B131: 1.1.4.01.04.01.0.99999 | C131: Herramientas e instrumentos | D131: 1233641.5 | E131: 0 | F131: 53150.93 | G131: 1180490.57
A132: 3.1 | B132: 1.1.4.01.04.02. | C132: Repuestos y accesorios Nuevos | D132: 130044366.3 | E132: 10867615.91 | F132: 5661590.87 | G132: 135250391.3
A133: 3.1 | B133: 1.1.4.01.04.02.0. | C133: Repuestos y accesorios Nuevos | D133: 130044366.3 | E133: 10867615.91 | F133: 5661590.87 | G133: 135250391.3
A134: 3.1 | B134: 1.1.4.01.04.02.0.99999 | C134: Repuestos y accesorios Nuevos | D134: 130044366.3 | E134: 10867615.91 | F134: 5661590.87 | G134: 135250391.3
A135: 3.1 | B135: 1.1.4.01.99. | C135: Útiles, materiales y suministros diversos | D135: 10300800.1 | E135: 12700652.29 | F135: 5004253.47 | G135: 17997198.92
A136: 3.1 | B136: 1.1.4.01.99.01. | C136: Útiles y materiales de oficina y cómputo | D136: 1943168.61 | E136: 293056.44 | F136: 443988.98 | G136: 1792236.07
A137: 3.1 | B137: 1.1.4.01.99.01.0. | C137: Útiles y materiales de oficina y cómputo | D137: 1943168.61 | E137: 293056.44 | F137: 443988.98 | G137: 1792236.07
A138: 3.1 | B138: 1.1.4.01.99.01.0.99999 | C138: Útiles y materiales de oficina y cómputo | D138: 1943168.61 | E138: 293056.44 | F138: 443988.98 | G138: 1792236.07
A139: 3.1 | B139: 1.1.4.01.99.02. | C139: Útiles y materiales médico, hospitalario y de investigación | D139: 0 | E139: 675000 | F139: 0 | G139: 675000
A140: 3.1 | B140: 1.1.4.01.99.02.0. | C140: Útiles y materiales médico, hospitalario y de investigación | D140: 0 | E140: 675000 | F140: 0 | G140: 675000
A141: 3.1 | B141: 1.1.4.01.99.02.0.99999 | C141: Útiles y materiales médico, hospitalario y de investigación | D141: 0 | E141: 675000 | F141: 0 | G141: 675000
A142: 3.1 | B142: 1.1.4.01.99.03. | C142: Productos de papel, cartón e impresos | D142: 2730589.18 | E142: 476667.61 | F142: 517696.77 | G142: 2689560.02
A143: 3.1 | B143: 1.1.4.01.99.03.0. | C143: Productos de papel, cartón e impresos | D143: 2730589.18 | E143: 476667.61 | F143: 517696.77 | G143: 2689560.02
A144: 3.1 | B144: 1.1.4.01.99.03.0.99999 | C144: Productos de papel, cartón e impresos | D144: 2730589.18 | E144: 476667.61 | F144: 517696.77 | G144: 2689560.02
A145: 3.1 | B145: 1.1.4.01.99.04. | C145: Textiles y vestuario | D145: 306936.35 | E145: 5217922 | F145: 1485856 | G145: 4039002.35
A146: 3.1 | B146: 1.1.4.01.99.04.0. | C146: Textiles y vestuario | D146: 306936.35 | E146: 5217922 | F146: 1485856 | G146: 4039002.35
A147: 3.1 | B147: 1.1.4.01.99.04.0.99999 | C147: Textiles y vestuario | D147: 306936.35 | E147: 5217922 | F147: 1485856 | G147: 4039002.35
A148: 3.1 | B148: 1.1.4.01.99.05. | C148: Útiles y materiales de limpieza | D148: 2737377.74 | E148: 1191919.12 | F148: 840772.92 | G148: 3088523.94
A149: 3.1 | B149: 1.1.4.01.99.05.0. | C149: Útiles y materiales de limpieza | D149: 2737377.74 | E149: 1191919.12 | F149: 840772.92 | G149: 3088523.94
A150: 3.1 | B150: 1.1.4.01.99.05.0.99999 | C150: Útiles y materiales de limpieza | D150: 2737377.74 | E150: 1191919.12 | F150: 840772.92 | G150: 3088523.94
A151: 3.1 | B151: 1.1.4.01.99.06. | C151: Útiles y materiales de resguardo y seguridad | D151: 2042904.22 | E151: 4589052.12 | F151: 1647568.8 | G151: 4984387.54
A152: 3.1 | B152: 1.1.4.01.99.06.0. | C152: Útiles y materiales de resguardo y seguridad | D152: 2042904.22 | E152: 4589052.12 | F152: 1647568.8 | G152: 4984387.54
A153: 3.1 | B153: 1.1.4.01.99.06.0.99999 | C153: Útiles y materiales de resguardo y seguridad | D153: 2042904.22 | E153: 4589052.12 | F153: 1647568.8 | G153: 4984387.54
A154: 3.1 | B154: 1.1.4.01.99.99. | C154: Otros útiles, materiales y suministros diversos | D154: 539824 | E154: 257035 | F154: 68370 | G154: 728489
A155: 3.1 | B155: 1.1.4.01.99.99.0. | C155: Otros útiles, materiales y suministros diversos | D155: 539824 | E155: 257035 | F155: 68370 | G155: 728489
A156: 3.1 | B156: 1.1.4.01.99.99.0.99999 | C156: Otros útiles, materiales y suministros diversos | D156: 539824 | E156: 257035 | F156: 68370 | G156: 728489
A157: 3.1 | B157: 1.1.9. | C157: Otros activos a corto plazo | D157: 26295622.24 | E157: 22478258 | F157: 23549691.18 | G157: 25224189.06
A158: 3.1 | B158: 1.1.9.01. | C158: Gastos a devengar a corto plazo | D158: 26295622.24 | E158: 22478258 | F158: 23549691.18 | G158: 25224189.06
A159: 3.1 | B159: 1.1.9.01.01. | C159: Servicios a devengar c/p | D159: 26295622.24 | E159: 22478258 | F159: 23549691.18 | G159: 25224189.06
A160: 3.1 | B160: 1.1.9.01.01.01. | C160: Primas y gastos de seguros a devengar c/p | D160: 26295622.24 | E160: 22478258 | F160: 23549691.18 | G160: 25224189.06
A161: 3.1 | B161: 1.1.9.01.01.01.0. | C161: Primas y gastos de seguros a devengar c/p | D161: 26295622.24 | E161: 22478258 | F161: 23549691.18 | G161: 25224189.06
A162: 3.1 | B162: 1.1.9.01.01.01.0.99999 | C162: Primas y gastos de seguros a devengar c/p | D162: 26295622.24 | E162: 22478258 | F162: 23549691.18 | G162: 25224189.06
A163: 3.1 | B163: 1.2. | C163: Activo No Corriente | D163: 1.630108083e+11 | E163: 49511010.66 | F163: 94825246.07 | G163: 1.62965494e+11
A164: 3.1 | B164: 1.2.5. | C164: Bienes no concesionados | D164: 1.630108083e+11 | E164: 49511010.66 | F164: 94825246.07 | G164: 1.62965494e+11
A165: 3.1 | B165: 1.2.5.01. | C165: Propiedades, planta y equipos explotados | D165: 2155163988 | E165: 48981250.66 | F165: 84737487.51 | G165: 2119407752
A166: 3.1 | B166: 1.2.5.01.02. | C166: Edificios | D166: 1250873081 | E166: 26865869.46 | F166: 28347121.82 | G166: 1249391828
A167: 3.1 | B167: 1.2.5.01.02.01. | C167: Edificios de oficinas atención al públ | D167: 439702157.1 | E167: 0 | F167: 3724248.14 | G167: 435977908.9
A168: 3.1 | B168: 1.2.5.01.02.01.1. | C168: Edificios de oficinas y atención público Valores Origen | D168: 258127776.8 | E168: 0 | F168: 0 | G168: 258127776.8
A169: 3.1 | B169: 1.2.5.01.02.01.1.99999 | C169: Edificios de oficinas y atención público Valores Origen | D169: 258127776.8 | E169: 0 | F169: 0 | G169: 258127776.8
A170: 3.1 | B170: 1.2.5.01.02.01.3. | C170: Edificios oficinas y atención público Depreciación Acumulada | D170: -9149119.74 | E170: 0 | F170: 3724248.14 | G170: -12873367.88
A171: 3.1 | B171: 1.2.5.01.02.01.3.99999 | C171: Edificios oficinas y atención público Depreciación Acumulada | D171: -9149119.74 | E171: 0 | F171: 3724248.14 | G171: -12873367.88
A172: 3.1 | B172: 1.2.5.01.02.01.6. | C172: Edificios oficinas y atención público Porción Terreno Valores Origen | D172: 190723500 | E172: 0 | F172: 0 | G172: 190723500
A173: 3.1 | B173: 1.2.5.01.02.01.6.99999 | C173: Edificios oficinas y atención público Porción Terreno Valores Origen | D173: 190723500 | E173: 0 | F173: 0 | G173: 190723500
A174: 3.1 | B174: 1.2.5.01.02.05. | C174: Locales | D174: 297585392.3 | E174: 6660319.46 | F174: 1762483.87 | G174: 302483227.9
A175: 3.1 | B175: 1.2.5.01.02.05.1. | C175: Locales Valores de origen | D175: 198576095.4 | E175: 0 | F175: 0 | G175: 198576095.4
A176: 3.1 | B176: 1.2.5.01.02.05.1.99999 | C176: Locales Valores de origen | D176: 198576095.4 | E176: 0 | F176: 0 | G176: 198576095.4
A177: 3.1 | B177: 1.2.5.01.02.05.3. | C177: Locales Depreciaciones acumuladas * | D177: -6823353.09 | E177: 1090169.46 | F177: 1762483.87 | G177: -7495667.5
A178: 3.1 | B178: 1.2.5.01.02.05.3.99999 | C178: Locales Depreciaciones acumuladas * | D178: -6823353.09 | E178: 1090169.46 | F178: 1762483.87 | G178: -7495667.5
A179: 3.1 | B179: 1.2.5.01.02.05.5. | C179: Locales Mejoras | D179: 0 | E179: 5570150 | F179: 0 | G179: 5570150
A180: 3.1 | B180: 1.2.5.01.02.05.5.99999 | C180: Locales Mejoras | D180: 0 | E180: 5570150 | F180: 0 | G180: 5570150
A181: 3.1 | B181: 1.2.5.01.02.05.6. | C181: Locales Porción terreno: valores de origen | D181: 105832650 | E181: 0 | F181: 0 | G181: 105832650
A182: 3.1 | B182: 1.2.5.01.02.05.6.99999 | C182: Locales Porción terreno: valores de origen | D182: 105832650 | E182: 0 | F182: 0 | G182: 105832650
A183: 3.1 | B183: 1.2.5.01.02.99. | C183: Otros edificios | D183: 513585531.3 | E183: 20205550 | F183: 22860389.81 | G183: 510930691.5
A184: 3.1 | B184: 1.2.5.01.02.99.1. | C184: Otros edificios Valores de origen | D184: 362322050.9 | E184: 20205550 | F184: 20205550 | G184: 362322050.9
A185: 3.1 | B185: 1.2.5.01.02.99.1.99999 | C185: Otros edificios Valores de origen | D185: 362322050.9 | E185: 20205550 | F185: 20205550 | G185: 362322050.9
A186: 3.1 | B186: 1.2.5.01.02.99.3. | C186: Otros edificios Depreciaciones acumuladas * | D186: -10193719.61 | E186: 0 | F186: 2654839.81 | G186: -12848559.42
A187: 3.1 | B187: 1.2.5.01.02.99.3.99999 | C187: Otros edificios Depreciaciones acumuladas * | D187: -10193719.61 | E187: 0 | F187: 2654839.81 | G187: -12848559.42
A188: 3.1 | B188: 1.2.5.01.02.99.6. | C188: Otros edificios Porción terreno: valores de origen | D188: 161457200 | E188: 0 | F188: 0 | G188: 161457200
A189: 3.1 | B189: 1.2.5.01.02.99.6.99999 | C189: Otros edificios Porción terreno: valores de origen | D189: 161457200 | E189: 0 | F189: 0 | G189: 161457200
A190: 3.1 | B190: 1.2.5.01.03. | C190: Maquinaria equipos para la producción | D190: 786374546 | E190: 36650.02 | F190: 45415587.59 | G190: 740995608.4
A191: 3.1 | B191: 1.2.5.01.03.01. | C191: Maquinaria para la construcción | D191: 754306983.3 | E191: 0 | F191: 43960388.16 | G191: 710346595.2
A192: 3.1 | B192: 1.2.5.01.03.01.1. | C192: Maquinaria para la construcción Valores de origen | D192: 1997638164 | E192: 0 | F192: 0 | G192: 1997638164
A193: 3.1 | B193: 1.2.5.01.03.01.1.99999 | C193: Maquinaria para la construcción Valores de origen | D193: 1997638164 | E193: 0 | F193: 0 | G193: 1997638164 | H193: =D193-F193 -> 1997638164
A194: 3.1 | B194: 1.2.5.01.03.01.3. | C194: Maq para la construcción Depreciaciones acumuladas | D194: -1243331181 | E194: 0 | F194: 43960388.16 | G194: -1287291569 | H194: =D194+E194-F194 -> -1287291569
A195: 3.1 | B195: 1.2.5.01.03.01.3.99999 | C195: Maq para la construcción Depreciaciones acumuladas | D195: -1243331181 | E195: 0 | F195: 43960388.16 | G195: -1287291569
A196: 3.1 | B196: 1.2.5.01.03.03. | C196: Planta eléctrica | D196: 3500057.28 | E196: 0 | F196: 115326.32 | G196: 3384730.96
A197: 3.1 | B197: 1.2.5.01.03.03.1. | C197: Planta eléctrica Valores de origen | D197: 5189684.8 | E197: 0 | F197: 0 | G197: 5189684.8
A198: 3.1 | B198: 1.2.5.01.03.03.1.99999 | C198: Planta eléctrica Valores de origen | D198: 5189684.8 | E198: 0 | F198: 0 | G198: 5189684.8
A199: 3.1 | B199: 1.2.5.01.03.03.3. | C199: Planta eléctrica Depreciaciones acumuladas * | D199: -1689627.52 | E199: 0 | F199: 115326.32 | G199: -1804953.84
A200: 3.1 | B200: 1.2.5.01.03.03.3.99999 | C200: Planta eléctrica Depreciaciones acumuladas * | D200: -1689627.52 | E200: 0 | F200: 115326.32 | G200: -1804953.84
A201: 3.1 | B201: 1.2.5.01.03.06. | C201: Equipos hidráulicos | D201: 181634.5 | E201: 0 | F201: 7053.76 | G201: 174580.74
A202: 3.1 | B202: 1.2.5.01.03.06.1. | C202: Equipos hidráulicos Valores de origen | D202: 280058 | E202: 0 | F202: 0 | G202: 280058
A203: 3.1 | B203: 1.2.5.01.03.06.1.99999 | C203: Equipos hidráulicos Valores de origen | D203: 280058 | E203: 0 | F203: 0 | G203: 280058
A204: 3.1 | B204: 1.2.5.01.03.06.3. | C204: Equipos hidráulicos Depreciaciones acumuladas * | D204: -98423.5 | E204: 0 | F204: 7053.76 | G204: -105477.26
A205: 3.1 | B205: 1.2.5.01.03.06.3.99999 | C205: Equipos hidráulicos Depreciaciones acumuladas * | D205: -98423.5 | E205: 0 | F205: 7053.76 | G205: -105477.26
A206: 3.1 | B206: 1.2.5.01.03.08. | C206: Equipos de medición | D206: 948171.86 | E206: 0 | F206: 212279.13 | G206: 735892.73
A207: 3.1 | B207: 1.2.5.01.03.08.1. | C207: Equipos de medición Valores de origen | D207: 6734898.73 | E207: 0 | F207: 0 | G207: 6734898.73
A208: 3.1 | B208: 1.2.5.01.03.08.1.99999 | C208: Equipos de medición Valores de origen | D208: 6734898.73 | E208: 0 | F208: 0 | G208: 6734898.73
A209: 3.1 | B209: 1.2.5.01.03.08.3. | C209: Equipos de medición Depreciaciones acumuladas * | D209: -5786726.87 | E209: 0 | F209: 212279.13 | G209: -5999006
... 736 more rows

Sheet BCPAN
A10: 3.1 | B10: 1. | C10: ACTIVO | D10: 1.662327302e+11 | E10: 7279302013 | F10: 5017522366 | G10: 1.684945099e+11
A11: 3.1 | B11: 1.1. | C11: Activo Corriente | D11: 3349699858 | E11: 7236473375 | F11: 4797031169 | G11: 5789142064
A12: 3.1 | B12: 1.1.1. | C12: Efectivo equivalentes de efectivo | D12: 2705767389 | E12: 2137754890 | F12: 2867616410 | G12: 1975905869
A13: 3.1 | B13: 1.1.1.01. | C13: Efectivo | D13: 2705767389 | E13: 1680036520 | F13: 2867616410 | G13: 1518187498
A14: 3.1 | B14: 1.1.1.01.02. | C14: Depósitos bancarios | D14: 2704317389 | E14: 1676286520 | F14: 2865666410 | G14: 1514937498
A15: 3.1 | B15: 1.1.1.01.02.02. | C15: Depósitos bancarios en el sector público interno | D15: 2704317389 | E15: 1676286520 | F15: 2865666410 | G15: 1514937498
A16: 3.1 | B16: 1.1.1.01.02.02.2. | C16: Cuentas corrientes en el sector público interno | D16: 600136255.9 | E16: 760062062.3 | F16: 1122126277 | G16: 238072041.6
A17: 3.1 | B17: 1.1.1.01.02.02.2.21101 | C17: Banco Costa Rica | D17: 478691142.3 | E17: 80244700.32 | F17: 461616815.1 | G17: 97319027.48
A18: 3.1 | B18: 1.1.1.01.02.02.2.21103 | C18: Banco Nacional de Costa Rica | D18: 121445113.7 | E18: 679817362 | F18: 660509461.5 | G18: 140753014.1
A19: 3.1 | B19: 1.1.1.01.02.02.3. | C19: Caja Única | D19: 2104181133 | E19: 916224457.3 | F19: 1743540134 | G19: 1276865457
A20: 3.1 | B20: 1.1.1.01.02.02.3.11206 | C20: Ministerio de Hacienda | D20: 2104181133 | E20: 916224457.3 | F20: 1743540134 | G20: 1276865457
A21: 3.1 | B21: 1.1.1.01.02.02.9. | C21: Otros depósitos bancarios sector público interno | D21: 0 | E21: 0 | F21: 0 | G21: 0
A22: 3.1 | B22: 1.1.1.01.02.02.9.99999 | C22: Otros depósitos bancarios sector público interno | D22: 0 | E22: 0 | F22: 0 | G22: 0
A23: 3.1 | B23: 1.1.1.01.03. | C23: Cajas chicas fondos rotatorios | D23: 1450000 | E23: 3750000 | F23: 1950000 | G23: 3250000
A24: 3.1 | B24: 1.1.1.01.03.01. | C24: Cajas chicas | D24: 450000 | E24: 3750000 | F24: 1950000 | G24: 2250000
A25: 3.1 | B25: 1.1.1.01.03.01.2. | C25: Cajas chicas en el país | D25: 450000 | E25: 3750000 | F25: 1950000 | G25: 2250000
A26: 3.1 | B26: 1.1.1.01.03.01.2.99999 | C26: Cajas chicas en el país | D26: 450000 | E26: 3750000 | F26: 1950000 | G26: 2250000
A27: 3.1 | B27: 1.1.1.01.03.02. | C27: Fondos rotatorios | D27: 1000000 | E27: 0 | F27: 0 | G27: 1000000
A28: 3.1 | B28: 1.1.1.01.03.02.2. | C28: Fondos rotatorios en el sector público interno | D28: 1000000 | E28: 0 | F28: 0 | G28: 1000000
A29: 3.1 | B29: 1.1.1.01.03.02.2.99999 | C29: Fondos rotatorios en el sector público interno | D29: 1000000 | E29: 0 | F29: 0 | G29: 1000000
A30: 3.1 | B30: 1.1.1.02. | C30: Equivalentes de efectivo | D30: 0 | E30: 457718370.2 | F30: 0 | G30: 457718370.2
A31: 3.1 | B31: 1.1.1.02.99. | C31: Otros equivalentes de efectivo | D31: 0 | E31: 457718370.2 | F31: 0 | G31: 457718370.2
A32: 3.1 | B32: 1.1.1.02.99.02. | C32: Otros equivalentes de efectivo en el sector público interno | D32: 0 | E32: 457718370.2 | F32: 0 | G32: 457718370.2
A33: 3.1 | B33: 1.1.1.02.99.02.0. | C33: Otros equivalentes de efectivo en el sector público interno | D33: 0 | E33: 457718370.2 | F33: 0 | G33: 457718370.2
A34: 3.1 | B34: 1.1.1.02.99.02.0.21101 | C34: Banco Costa Rica | D34: 0 | E34: 229001292.2 | F34: 0 | G34: 229001292.2
A35: 3.1 | B35: 1.1.1.02.99.02.0.21103 | C35: Banco Nacional de Costa Rica | D35: 0 | E35: 228717078 | F35: 0 | G35: 228717078
A36: 3.1 | B36: 1.1.2. | C36: Inversiones a corto plazo | D36: 0 | E36: 0 | F36: 0 | G36: 0
A37: 3.1 | B37: 1.1.2.01. | C37: Títulos y valores a valor razonable a corto plazo | D37: 0 | E37: 0 | F37: 0 | G37: 0
A38: 3.1 | B38: 1.1.2.01.02. | C38: Títulos y valores a valor razonable del sector público interno c/p | D38: 0 | E38: 0 | F38: 0 | G38: 0
A39: 3.1 | B39: 1.1.2.01.02.06. | C39: Títulos y valores a valor razonable de Instituciones Públicas Financieras c/p | D39: 0 | E39: 0 | F39: 0 | G39: 0
A40: 3.1 | B40: 1.1.2.01.02.06.0. | C40: Títulos y valores a valor razonable de Instituciones Públicas Financieras c/p | D40: 0 | E40: 0 | F40: 0 | G40: 0
A41: 3.1 | B41: 1.1.2.01.02.06.0.21101 | C41: Títulos y valores a valor razonable de Instituciones Públicas Financieras c/p Banco de Costa Rica | D41: 0 | E41: 0 | F41: 0 | G41: 0
A42: 3.1 | B42: 1.1.2.01.02.06.0.21103 | C42: Titulos y valores a Valores a valor de Instituciones Públicas Dinancieras del Banco Nacional de Costa Rica | D42: 0 | E42: 0 | F42: 0 | G42: 0
A43: 3.1 | B43: 1.1.2.98. | C43: Otras inversiones a corto plazo | D43: 0 | E43: 0 | F43: 0 | G43: 0
A44: 3.1 | B44: 1.1.2.98.01. | C44: Rentas a cobrar por títulos y valores c/p | D44: 0 | E44: 0 | F44: 0 | G44: 0
A45: 3.1 | B45: 1.1.2.98.01.02. | C45: Rentas a cobrar por títulos y valores del sector público interno c/p | D45: 0 | E45: 0 | F45: 0 | G45: 0
A46: 3.1 | B46: 1.1.2.98.01.02.0. | C46: Rentas a cobrar por títulos y valores del sector público interno c/p | D46: 0 | E46: 0 | F46: 0 | G46: 0
A47: 3.1 | B47: 1.1.2.98.01.02.0.21101 | C47: Banco De Costa Rica | D47: 0 | E47: 0 | F47: 0 | G47: 0
A48: 3.1 | B48: 1.1.2.98.01.02.0.21103 | C48: Banco Nacional De Costa Rica | D48: 0 | E48: 0 | F48: 0 | G48: 0
A49: 3.1 | B49: 1.1.3. | C49: Cuentas a cobrar a c/p | D49: 616617332.2 | E49: 5069891112 | F49: 1907800596 | G49: 3778707848
A50: 3.1 | B50: 1.1.3.01. | C50: Impuestos a cobrar a c/p | D50: 619441745.8 | E50: 943619123.9 | F50: 1010530007 | G50: 552530862.6
A51: 3.1 | B51: 1.1.3.01.02. | C51: Impuestos sobre la propiedad a cobrar c/p | D51: 583097545.6 | E51: 775445449.2 | F51: 874099561 | G51: 484443433.7
A52: 3.1 | B52: 1.1.3.01.02.01. | C52: Impuesto sobre la propiedad de bienes inmuebles a cobrar c/p | D52: 583097545.6 | E52: 775445449.2 | F52: 874099561 | G52: 484443433.7
A53: 3.1 | B53: 1.1.3.01.02.01.0. | C53: Impuesto sobre la propiedad de bienes inmuebles a cobrar c/p | D53: 583097545.6 | E53: 775445449.2 | F53: 874099561 | G53: 484443433.7
A54: 3.1 | B54: 1.1.3.01.02.01.0.99999 | C54: Impuesto sobre la propiedad de bienes inmuebles a cobrar c/p | D54: 583097545.6 | E54: 775445449.2 | F54: 874099561 | G54: 484443433.7
A55: 3.1 | B55: 1.1.3.01.03. | C55: Impuestos sobre bienes y servicios a cobrar c/p | D55: 36344200.19 | E55: 168173674.7 | F55: 136430446 | G55: 68087428.84
A56: 3.1 | B56: 1.1.3.01.03.02. | C56: Impuestos específicos sobre la producción y consumo de bienes y servicios a cobrar c/p | D56: 0 | E56: 0 | F56: 0 | G56: 0
A57: 3.1 | B57: 1.1.3.01.03.02.2. | C57: Impuestos específicos sobre la producción y consumo de servicios a cobrar c/p | D57: 0 | E57: 0 | F57: 0 | G57: 0
A58: 3.1 | B58: 1.1.3.01.03.02.2.99999 | C58: Impuestos específicos sobre la producción y consumo de servicios a cobrar c/p | D58: 0 | E58: 0 | F58: 0 | G58: 0
A59: 3.1 | B59: 1.1.3.01.03.99. | C59: Otros Impuestos sobre bienes y servicios a cobrar c/p | D59: 36344200.19 | E59: 168173674.7 | F59: 136430446 | G59: 68087428.84
A60: 3.1 | B60: 1.1.3.01.03.99.1. | C60: Licencias profesionales, comerciales y otros permisos a cobrar c/p | D60: 34052862.94 | E60: 161166962.4 | F60: 130824165.5 | G60: 64395659.84
A61: 3.1 | B61: 1.1.3.01.03.99.1.99999 | C61: Licencias profesionales, comerciales y otros permisos a cobrar c/p | D61: 34052862.94 | E61: 161166962.4 | F61: 130824165.5 | G61: 64395659.84
A62: 3.1 | B62: 1.1.3.01.03.99.9. | C62: Otros impuestos varios sobre bienes y servicios a cobrar c/p | D62: 2291337.25 | E62: 7006712.25 | F62: 5606280.5 | G62: 3691769
A63: 3.1 | B63: 1.1.3.01.03.99.9.99999 | C63: Otros impuestos varios sobre bienes y servicios a cobrar c/p | D63: 2291337.25 | E63: 7006712.25 | F63: 5606280.5 | G63: 3691769
A64: 3.1 | B64: 1.1.3.04. | C64: Servicios y derechos a cobrar a corto plazo | D64: 171480251.5 | E64: 305202331.3 | F64: 254194589.1 | G64: 222487993.7
A65: 3.1 | B65: 1.1.3.04.01. | C65: Servicios a cobrar c/p | D65: 170633251.5 | E65: 304668331.3 | F65: 253449589.1 | G65: 221851993.7
A66: 3.1 | B66: 1.1.3.04.01.04. | C66: Servicios comunitarios a cobrar c/p | D66: 170633251.5 | E66: 304668331.3 | F66: 253449589.1 | G66: 221851993.7
A67: 3.1 | B67: 1.1.3.04.01.04.0. | C67: Servicios comunitarios a cobrar c/p | D67: 170633251.5 | E67: 304668331.3 | F67: 253449589.1 | G67: 221851993.7
A68: 3.1 | B68: 1.1.3.04.01.04.0.99999 | C68: Servicios comunitarios a cobrar c/p | D68: 170633251.5 | E68: 304668331.3 | F68: 253449589.1 | G68: 221851993.7
A69: 3.1 | B69: 1.1.3.04.01.99. | C69: Otras ventas de servicios a cobrar c/p | D69: 0 | E69: 0 | F69: 0 | G69: 0
A70: 3.1 | B70: 1.1.3.04.01.99.0. | C70: Otras ventas de servicios a cobrar c/p | D70: 0 | E70: 0 | F70: 0 | G70: 0
A71: 3.1 | B71: 1.1.3.04.01.99.0.99999 | C71: Otras ventas de servicios a cobrar c/p | D71: 0 | E71: 0 | F71: 0 | G71: 0
A72: 3.1 | B72: 1.1.3.04.02. | C72: Derechos administrativos a cobrar c/p | D72: 847000 | E72: 534000 | F72: 745000 | G72: 636000
A73: 3.1 | B73: 1.1.3.04.02.01. | C73: Derechos administrativos a los servicios de transporte a cobrar c/p | D73: 340000 | E73: 310000 | F73: 570000 | G73: 80000
A74: 3.1 | B74: 1.1.3.04.02.01.0. | C74: Derechos administrativos a los servicios de transporte a cobrar c/p | D74: 340000 | E74: 310000 | F74: 570000 | G74: 80000
A75: 3.1 | B75: 1.1.3.04.02.01.0.99999 | C75: Derechos administrativos a los servicios de transporte a cobrar c/p Derecho de piso uso terminal | D75: 340000 | E75: 310000 | F75: 570000 | G75: 80000
A76: 3.1 | B76: 1.1.3.04.02.99. | C76: Otros derechos administrativos a cobrar c/p | D76: 507000 | E76: 224000 | F76: 175000 | G76: 556000
A77: 3.1 | B77: 1.1.3.04.02.99.0. | C77: Otros derechos administrativos a cobrar c/p | D77: 507000 | E77: 224000 | F77: 175000 | G77: 556000
A78: 3.1 | B78: 1.1.3.04.02.99.0.99999 | C78: Otros derechos administrativos a cobrar c/p Derecho cementerio | D78: 507000 | E78: 224000 | F78: 175000 | G78: 556000
A79: 3.1 | B79: 1.1.3.05. | C79: Ingresos de la propiedad a cobrar a corto plazo | D79: 0 | E79: 0 | F79: 0 | G79: 0
A80: 3.1 | B80: 1.1.3.05.01. | C80: Alquileres y derechos sobre bienes a cobrar c/p | D80: 0 | E80: 0 | F80: 0 | G80: 0
A81: 3.1 | B81: 1.1.3.05.01.01. | C81: Alquileres a cobrar c/p | D81: 0 | E81: 0 | F81: 0 | G81: 0
A82: 3.1 | B82: 1.1.3.05.01.01.0. | C82: Alquileres a cobrar c/p | D82: 0 | E82: 0 | F82: 0 | G82: 0
A83: 3.1 | B83: 1.1.3.05.01.01.0.99999 | C83: Alquileres a cobrar c/p | D83: 0 | E83: 0 | F83: 0 | G83: 0
A84: 3.1 | B84: 1.1.3.06. | C84: Transferencias a cobrar a c/p | D84: 0 | E84: 3811623854 | F84: 636416152.1 | G84: 3175207702
A85: 3.1 | B85: 1.1.3.06.02. | C85: Transferencias del sector público interno a cobrar c/p | D85: 0 | E85: 3811623854 | F85: 636416152.1 | G85: 3175207702
A86: 3.1 | B86: 1.1.3.06.02.01. | C86: Transferencias del Gobierno Central a cobrar c/p | D86: 0 | E86: 3799661728 | F86: 633276954.7 | G86: 3166384773
A87: 3.1 | B87: 1.1.3.06.02.01.0. | C87: Transferencias del Gobierno Central a cobrar c/p | D87: 0 | E87: 3799661728 | F87: 633276954.7 | G87: 3166384773
A88: 3.1 | B88: 1.1.3.06.02.01.0.11206 | C88: Ministerio de Hacienda | D88: 0 | E88: 3799661728 | F88: 633276954.7 | G88: 3166384773
A89: 3.1 | B89: 1.1.3.06.02.02. | C89: Transferencias de Órganos Desconcentrados a cobrar c/p | D89: 0 | E89: 0 | F89: 0 | G89: 0
A90: 3.1 | B90: 1.1.3.06.02.02.0. | C90: Transferencias de Órganos Desconcentrados a cobrar c/p | D90: 0 | E90: 0 | F90: 0 | G90: 0
A91: 3.1 | B91: 1.1.3.06.02.02.0.12583 | C91: Transfrencias de Organos desconcentrados a cobrar.Consejo Nacional de la Política Pública de la Persona Joven (CPJ) | D91: 0 | E91: 0 | F91: 0 | G91: 0
A92: 3.1 | B92: 1.1.3.06.02.03. | C92: Transferencias de Instituciones Descentralizadas no Empresariales a cobrar c/p | D92: 0 | E92: 11962125.78 | F92: 3139197.43 | G92: 8822928.35
A93: 3.1 | B93: 1.1.3.06.02.03.0. | C93: Transferencias de Instituciones Descentralizadas no Empresariales a cobrar c/p | D93: 0 | E93: 11962125.78 | F93: 3139197.43 | G93: 8822928.35
A94: 3.1 | B94: 1.1.3.06.02.03.0.14226 | C94: Transferencias de Instituciones Descentralizadas no Empresariales a cobrar c/p (Aporte IFAM Licores Nacionales y Ext) | D94: 0 | E94: 11962125.78 | F94: 3139197.43 | G94: 8822928.35
A95: 3.1 | B95: 1.1.3.98. | C95: Otras cuentas a cobrar a corto plazo | D95: 1073232.35 | E95: 9445802.65 | F95: 6659847.5 | G95: 3859187.5
A96: 3.1 | B96: 1.1.3.98.01. | C96: Multas, sanciones, remates y confiscaciones de origen no tributario a cobrar c/p | D96: 1073232.35 | E96: 9445802.65 | F96: 6659847.5 | G96: 3859187.5
A97: 3.1 | B97: 1.1.3.98.01.01. | C97: Multas y sanciones administrativas a cobrar c/p | D97: 1073232.35 | E97: 9445802.65 | F97: 6659847.5 | G97: 3859187.5
A98: 3.1 | B98: 1.1.3.98.01.01.0. | C98: Multas y sanciones administrativas a cobrar c/p | D98: 1073232.35 | E98: 9445802.65 | F98: 6659847.5 | G98: 3859187.5
A99: 3.1 | B99: 1.1.3.98.01.01.0.99999 | C99: Multas y sanciones administrativas a cobrar c/p | D99: 1073232.35 | E99: 9445802.65 | F99: 6659847.5 | G99: 3859187.5
A100: 3.1 | B100: 1.1.3.99. | C100: Previsiones para deterioro de cuentas a cobrar a corto plazo * | D100: -175377897.4 | E100: 0 | F100: 0 | G100: -175377897.4
A101: 3.1 | B101: 1.1.3.99.01. | C101: Previsiones para impuestos a cobrar c/p * | D101: -116983004.6 | E101: 0 | F101: 0 | G101: -116983004.6
A102: 3.1 | B102: 1.1.3.99.01.02. | C102: Previsiones para impuestos sobre la propiedad a cobrar c/p * | D102: -106283608.3 | E102: 0 | F102: 0 | G102: -106283608.3
A103: 3.1 | B103: 1.1.3.99.01.02.0. | C103: Previsiones para impuestos sobre la propiedad a cobrar c/p * | D103: -106283608.3 | E103: 0 | F103: 0 | G103: -106283608.3
A104: 3.1 | B104: 1.1.3.99.01.02.0.99999 | C104: Previsiones para impuestos sobre la propiedad a cobrar c/p * | D104: -106283608.3 | E104: 0 | F104: 0 | G104: -106283608.3
A105: 3.1 | B105: 1.1.3.99.01.03. | C105: Previsiones para impuestos sobre bienes y servicios a cobrar c/p * | D105: -9270015.01 | E105: 0 | F105: 0 | G105: -9270015.01
A106: 3.1 | B106: 1.1.3.99.01.03.0. | C106: Previsiones para impuestos sobre bienes y servicios a cobrar c/p * | D106: -9270015.01 | E106: 0 | F106: 0 | G106: -9270015.01
A107: 3.1 | B107: 1.1.3.99.01.03.0.99999 | C107: Previsiones para impuestos sobre bienes y servicios a cobrar c/p * | D107: -9270015.01 | E107: 0 | F107: 0 | G107: -9270015.01
A108: 3.1 | B108: 1.1.3.99.01.99. | C108: Previsiones para otros impuestos a cobrar c/p * | D108: -1429381.33 | E108: 0 | F108: 0 | G108: -1429381.33
A109: 3.1 | B109: 1.1.3.99.01.99.0. | C109: Previsiones para otros impuestos a cobrar c/p * | D109: -1429381.33 | E109: 0 | F109: 0 | G109: -1429381.33
A110: 3.1 | B110: 1.1.3.99.01.99.0.99999 | C110: Previsiones para otros impuestos a cobrar c/p * | D110: -1429381.33 | E110: 0 | F110: 0 | G110: -1429381.33
A111: 3.1 | B111: 1.1.3.99.04. | C111: Previsiones para servicios a cobrar c/p * | D111: -51378929.55 | E111: 0 | F111: 0 | G111: -51378929.55
A112: 3.1 | B112: 1.1.3.99.04.01. | C112: Previsiones para ventas de servicios a cobrar c/p * | D112: -50738208.69 | E112: 0 | F112: 0 | G112: -50738208.69
A113: 3.1 | B113: 1.1.3.99.04.01.0. | C113: Previsiones para ventas de servicios a cobrar c/p * | D113: -50738208.69 | E113: 0 | F113: 0 | G113: -50738208.69
A114: 3.1 | B114: 1.1.3.99.04.01.0.99999 | C114: Previsiones para ventas de servicios a cobrar c/p * | D114: -50738208.69 | E114: 0 | F114: 0 | G114: -50738208.69
A115: 3.1 | B115: 1.1.3.99.04.02. | C115: Previsiones para derechos administrativos a cobrar c/p * | D115: -640720.86 | E115: 0 | F115: 0 | G115: -640720.86
A116: 3.1 | B116: 1.1.3.99.04.02.0. | C116: Previsiones para derechos administrativos a cobrar c/p * | D116: -640720.86 | E116: 0 | F116: 0 | G116: -640720.86
A117: 3.1 | B117: 1.1.3.99.04.02.0.99999 | C117: Previsiones para derechos administrativos a cobrar c/p * | D117: -640720.86 | E117: 0 | F117: 0 | G117: -640720.86
A118: 3.1 | B118: 1.1.3.99.05. | C118: Previsiones para ingresos de la propiedad a cobrar c/p * | D118: -7015963.19 | E118: 0 | F118: 0 | G118: -7015963.19
A119: 3.1 | B119: 1.1.3.99.05.01. | C119: Previsiones para alquileres y derechos sobre bienes a cobrar c/p * | D119: -7015963.19 | E119: 0 | F119: 0 | G119: -7015963.19
A120: 3.1 | B120: 1.1.3.99.05.01.0. | C120: Previsiones para alquileres y derechos sobre bienes a cobrar c/p * | D120: -7015963.19 | E120: 0 | F120: 0 | G120: -7015963.19
A121: 3.1 | B121: 1.1.3.99.05.01.0.99999 | C121: Previsiones para alquileres y derechos sobre bienes a cobrar c/p * | D121: -7015963.19 | E121: 0 | F121: 0 | G121: -7015963.19
A122: 3.1 | B122: 1.1.4. | C122: Inventarios | D122: 4559673.55 | E122: 24846 | F122: 602245.96 | G122: 3982273.59
A123: 3.1 | B123: 1.1.4.01. | C123: Materiales y suministros para consumo y prestación de servicios | D123: 4559673.55 | E123: 24846 | F123: 602245.96 | G123: 3982273.59
A124: 3.1 | B124: 1.1.4.01.01. | C124: Productos químicos y conexos | D124: 1195234.05 | E124: 24846 | F124: 15891.6 | G124: 1204188.45
A125: 3.1 | B125: 1.1.4.01.01.01. | C125: Combustibles y lubricantes | D125: 0 | E125: 0 | F125: 0 | G125: 0
A126: 3.1 | B126: 1.1.4.01.01.01.0. | C126: Combustibles y lubricantes | D126: 0 | E126: 0 | F126: 0 | G126: 0
A127: 3.1 | B127: 1.1.4.01.01.01.0.99999 | C127: Combustibles y lubricantes | D127: 0 | E127: 0 | F127: 0 | G127: 0
A128: 3.1 | B128: 1.1.4.01.01.02. | C128: Productos farmacéuticos y medicinales | D128: 0 | E128: 0 | F128: 0 | G128: 0
A129: 3.1 | B129: 1.1.4.01.01.02.0. | C129: Productos farmacéuticos y medicinales | D129: 0 | E129: 0 | F129: 0 | G129: 0
A130: 3.1 | B130: 1.1.4.01.01.02.0.99999 | C130: Productos farmacéuticos y medicinales | D130: 0 | E130: 0 | F130: 0 | G130: 0
A131: 3.1 | B131: 1.1.4.01.01.03. | C131: Productos veterinarios | D131: 0 | E131: 0 | F131: 0 | G131: 0
A132: 3.1 | B132: 1.1.4.01.01.03.0. | C132: Productos veterinarios | D132: 0 | E132: 0 | F132: 0 | G132: 0
A133: 3.1 | B133: 1.1.4.01.01.03.0.99999 | C133: Productos veterinarios | D133: 0 | E133: 0 | F133: 0 | G133: 0
A134: 3.1 | B134: 1.1.4.01.01.04. | C134: Tintas, pinturas y diluyentes | D134: 1195234.05 | E134: 24846 | F134: 15891.6 | G134: 1204188.45
A135: 3.1 | B135: 1.1.4.01.01.04.0. | C135: Tintas, pinturas y diluyentes | D135: 1195234.05 | E135: 24846 | F135: 15891.6 | G135: 1204188.45
A136: 3.1 | B136: 1.1.4.01.01.04.0.99999 | C136: Tintas, pinturas y diluyentes | D136: 1195234.05 | E136: 24846 | F136: 15891.6 | G136: 1204188.45
A137: 3.1 | B137: 1.1.4.01.03. | C137: Materiales y productos de uso en la construcción y mantenimiento | D137: 0 | E137: 0 | F137: 0 | G137: 0
A138: 3.1 | B138: 1.1.4.01.03.01. | C138: Materiales y productos metálicos | D138: 0 | E138: 0 | F138: 0 | G138: 0
A139: 3.1 | B139: 1.1.4.01.03.01.0. | C139: Materiales y productos metálicos | D139: 0 | E139: 0 | F139: 0 | G139: 0
A140: 3.1 | B140: 1.1.4.01.03.01.0.99999 | C140: Materiales y productos metálicos | D140: 0 | E140: 0 | F140: 0 | G140: 0
A141: 3.1 | B141: 1.1.4.01.03.02. | C141: Materiales y productos minerales y asfálticos | D141: 0 | E141: 0 | F141: 0 | G141: 0
A142: 3.1 | B142: 1.1.4.01.03.02.0. | C142: Materiales y productos minerales y asfálticos | D142: 0 | E142: 0 | F142: 0 | G142: 0
A143: 3.1 | B143: 1.1.4.01.03.02.0.99999 | C143: Materiales y productos minerales y asfálticos | D143: 0 | E143: 0 | F143: 0 | G143: 0
A144: 3.1 | B144: 1.1.4.01.03.03. | C144: Madera y sus derivados | D144: 0 | E144: 0 | F144: 0 | G144: 0
A145: 3.1 | B145: 1.1.4.01.03.03.0. | C145: Madera y sus derivados | D145: 0 | E145: 0 | F145: 0 | G145: 0
A146: 3.1 | B146: 1.1.4.01.03.03.0.99999 | C146: Madera y sus derivados | D146: 0 | E146: 0 | F146: 0 | G146: 0
A147: 3.1 | B147: 1.1.4.01.03.04. | C147: Materiales y productos eléctricos, telefónicos y de cómputo | D147: 0 | E147: 0 | F147: 0 | G147: 0
A148: 3.1 | B148: 1.1.4.01.03.04.0. | C148: Materiales y productos eléctricos, telefónicos y de cómputo | D148: 0 | E148: 0 | F148: 0 | G148: 0
A149: 3.1 | B149: 1.1.4.01.03.04.0.99999 | C149: Materiales y productos eléctricos, telefónicos y de cómputo | D149: 0 | E149: 0 | F149: 0 | G149: 0
A150: 3.1 | B150: 1.1.4.01.03.06. | C150: Materiales y productos de plástico | D150: 0 | E150: 0 | F150: 0 | G150: 0
A151: 3.1 | B151: 1.1.4.01.03.06.0. | C151: Materiales y productos de plástico | D151: 0 | E151: 0 | F151: 0 | G151: 0
A152: 3.1 | B152: 1.1.4.01.03.06.0.99999 | C152: Materiales y productos de plástico | D152: 0 | E152: 0 | F152: 0 | G152: 0
A153: 3.1 | B153: 1.1.4.01.04. | C153: Herramientas, repuestos y accesorios | D153: 0 | E153: 0 | F153: 0 | G153: 0
A154: 3.1 | B154: 1.1.4.01.04.01. | C154: Herramientas e instrumentos | D154: 0 | E154: 0 | F154: 0 | G154: 0
A155: 3.1 | B155: 1.1.4.01.04.01.0. | C155: Herramientas e instrumentos | D155: 0 | E155: 0 | F155: 0 | G155: 0
A156: 3.1 | B156: 1.1.4.01.04.01.0.99999 | C156: Herramientas e instrumentos | D156: 0 | E156: 0 | F156: 0 | G156: 0
A157: 3.1 | B157: 1.1.4.01.99. | C157: Útiles, materiales y suministros diversos | D157: 3364439.5 | E157: 0 | F157: 586354.36 | G157: 2778085.14
A158: 3.1 | B158: 1.1.4.01.99.01. | C158: Útiles y materiales de oficina y cómputo | D158: 788819.78 | E158: 0 | F158: 109071.58 | G158: 679748.2
A159: 3.1 | B159: 1.1.4.01.99.01.0. | C159: Útiles y materiales de oficina y cómputo | D159: 788819.78 | E159: 0 | F159: 109071.58 | G159: 679748.2
A160: 3.1 | B160: 1.1.4.01.99.01.0.99999 | C160: Útiles y materiales de oficina y cómputo | D160: 788819.78 | E160: 0 | F160: 109071.58 | G160: 679748.2
A161: 3.1 | B161: 1.1.4.01.99.02. | C161: Útiles y materiales médico, hospitalario y de investigación | D161: 0 | E161: 0 | F161: 0 | G161: 0
A162: 3.1 | B162: 1.1.4.01.99.02.0. | C162: Útiles y materiales médico, hospitalario y de investigación | D162: 0 | E162: 0 | F162: 0 | G162: 0
A163: 3.1 | B163: 1.1.4.01.99.02.0.99999 | C163: Útiles y materiales médico, hospitalario y de investigación | D163: 0 | E163: 0 | F163: 0 | G163: 0
A164: 3.1 | B164: 1.1.4.01.99.03. | C164: Productos de papel, cartón e impresos | D164: 2511724.72 | E164: 0 | F164: 466180.98 | G164: 2045543.74
A165: 3.1 | B165: 1.1.4.01.99.03.0. | C165: Productos de papel, cartón e impresos | D165: 2511724.72 | E165: 0 | F165: 466180.98 | G165: 2045543.74
A166: 3.1 | B166: 1.1.4.01.99.03.0.99999 | C166: Productos de papel, cartón e impresos | D166: 2511724.72 | E166: 0 | F166: 466180.98 | G166: 2045543.74
A167: 3.1 | B167: 1.1.4.01.99.04. | C167: Textiles y vestuario | D167: 0 | E167: 0 | F167: 0 | G167: 0
A168: 3.1 | B168: 1.1.4.01.99.04.0. | C168: Textiles y vestuario | D168: 0 | E168: 0 | F168: 0 | G168: 0
A169: 3.1 | B169: 1.1.4.01.99.04.0.99999 | C169: Textiles y vestuario | D169: 0 | E169: 0 | F169: 0 | G169: 0
A170: 3.1 | B170: 1.1.4.01.99.05. | C170: Útiles y materiales de limpieza | D170: 0 | E170: 0 | F170: 0 | G170: 0
A171: 3.1 | B171: 1.1.4.01.99.05.0. | C171: Útiles y materiales de limpieza | D171: 0 | E171: 0 | F171: 0 | G171: 0
A172: 3.1 | B172: 1.1.4.01.99.05.0.99999 | C172: Útiles y materiales de limpieza | D172: 0 | E172: 0 | F172: 0 | G172: 0
A173: 3.1 | B173: 1.1.4.01.99.06. | C173: Útiles y materiales de resguardo y seguridad | D173: 0 | E173: 0 | F173: 0 | G173: 0
A174: 3.1 | B174: 1.1.4.01.99.06.0. | C174: Útiles y materiales de resguardo y seguridad | D174: 0 | E174: 0 | F174: 0 | G174: 0
A175: 3.1 | B175: 1.1.4.01.99.06.0.99999 | C175: Útiles y materiales de resguardo y seguridad | D175: 0 | E175: 0 | F175: 0 | G175: 0
A176: 3.1 | B176: 1.1.4.01.99.99. | C176: Otros útiles, materiales y suministros diversos | D176: 63895 | E176: 0 | F176: 11101.8 | G176: 52793.2
A177: 3.1 | B177: 1.1.4.01.99.99.0. | C177: Otros útiles, materiales y suministros diversos | D177: 63895 | E177: 0 | F177: 11101.8 | G177: 52793.2
A178: 3.1 | B178: 1.1.4.01.99.99.0.99999 | C178: Otros útiles, materiales y suministros diversos | D178: 63895 | E178: 0 | F178: 11101.8 | G178: 52793.2
A179: 3.1 | B179: 1.1.9. | C179: Otros activos a corto plazo | D179: 22755462.51 | E179: 28802528 | F179: 21011916.44 | G179: 30546074.07
A180: 3.1 | B180: 1.1.9.01. | C180: Gastos a devengar a corto plazo | D180: 22755462.51 | E180: 28802528 | F180: 21011916.44 | G180: 30546074.07
A181: 3.1 | B181: 1.1.9.01.01. | C181: Servicios a devengar c/p | D181: 22755462.51 | E181: 28802528 | F181: 21011916.44 | G181: 30546074.07
A182: 3.1 | B182: 1.1.9.01.01.01. | C182: Primas y gastos de seguros a devengar c/p | D182: 22755462.51 | E182: 28802528 | F182: 21011916.44 | G182: 30546074.07
A183: 3.1 | B183: 1.1.9.01.01.01.0. | C183: Primas y gastos de seguros a devengar c/p | D183: 22755462.51 | E183: 28802528 | F183: 21011916.44 | G183: 30546074.07
A184: 3.1 | B184: 1.1.9.01.01.01.0.99999 | C184: Primas y gastos de seguros a devengar c/p | D184: 22755462.51 | E184: 28802528 | F184: 21011916.44 | G184: 30546074.07
A185: 3.1 | B185: 1.1.9.99. | C185: Activos a corto plazo sujetos a depuración contable | D185: 0 | E185: 0 | F185: 0 | G185: 0
A186: 3.1 | B186: 1.1.9.99.03. | C186: Cuentas a cobrar a corto plazo sujetas a depuración | D186: 0 | E186: 0 | F186: 0 | G186: 0
A187: 3.1 | B187: 1.1.9.99.03.98. | C187: Otras cuentas a cobrar a corto plazo sujetas a depuración | D187: 0 | E187: 0 | F187: 0 | G187: 0
A188: 3.1 | B188: 1.1.9.99.03.98.0. | C188: Otras cuentas a cobrar a corto plazo sujetas a depuración | D188: 0 | E188: 0 | F188: 0 | G188: 0
A189: 3.1 | B189: 1.1.9.99.03.98.0.99999 | C189: Otras cuentas a cobrar a corto plazo sujetas a depuración | D189: 0 | E189: 0 | F189: 0 | G189: 0
A190: 3.1 | B190: 1.2. | C190: Activo No Corriente | D190: 1.628830304e+11 | E190: 42828637.97 | F190: 220491197.2 | G190: 1.627053678e+11
A191: 3.1 | B191: 1.2.5. | C191: Bienes no concesionados | D191: 1.628830304e+11 | E191: 42828637.97 | F191: 220491197.2 | G191: 1.627053678e+11
A192: 3.1 | B192: 1.2.5.01. | C192: Propiedades, planta y equipos explotados | D192: 2087610295 | E192: 14621533.85 | F192: 195420299.7 | G192: 1906811530
A193: 3.1 | B193: 1.2.5.01.02. | C193: Edificios | D193: 1191815588 | E193: 0 | F193: 78413449.64 | G193: 1113402139
A194: 3.1 | B194: 1.2.5.01.02.01. | C194: Edificios de oficinas atención al públ | D194: 421403917.5 | E194: 0 | F194: 27447359.32 | G194: 393956558.1
A195: 3.1 | B195: 1.2.5.01.02.01.1. | C195: Edificios de oficinas y atención público Valores Origen | D195: 258127776.8 | E195: 0 | F195: 0 | G195: 258127776.8
A196: 3.1 | B196: 1.2.5.01.02.01.1.99999 | C196: Edificios de oficinas y atención público Valores Origen | D196: 258127776.8 | E196: 0 | F196: 0 | G196: 258127776.8
A197: 3.1 | B197: 1.2.5.01.02.01.3. | C197: Edificios oficinas y atención público Depreciación Acumulada | D197: -27447359.32 | E197: 0 | F197: 27447359.32 | G197: -54894718.64
A198: 3.1 | B198: 1.2.5.01.02.01.3.99999 | C198: Edificios oficinas y atención público Depreciación Acumulada | D198: -27447359.32 | E198: 0 | F198: 27447359.32 | G198: -54894718.64
A199: 3.1 | B199: 1.2.5.01.02.01.6. | C199: Edificios oficinas y atención público Porción Terreno Valores Origen | D199: 190723500 | E199: 0 | F199: 0 | G199: 190723500
A200: 3.1 | B200: 1.2.5.01.02.01.6.99999 | C200: Edificios oficinas y atención público Porción Terreno Valores Origen | D200: 190723500 | E200: 0 | F200: 0 | G200: 190723500
A201: 3.1 | B201: 1.2.5.01.02.05. | C201: Locales | D201: 283938685.9 | E201: 0 | F201: 20470059.48 | G201: 263468626.4
A202: 3.1 | B202: 1.2.5.01.02.05.1. | C202: Locales Valores de origen | D202: 198576095.4 | E202: 0 | F202: 0 | G202: 198576095.4
A203: 3.1 | B203: 1.2.5.01.02.05.1.99999 | C203: Locales Valores de origen | D203: 198576095.4 | E203: 0 | F203: 0 | G203: 198576095.4
A204: 3.1 | B204: 1.2.5.01.02.05.3. | C204: Locales Depreciaciones acumuladas * | D204: -20470059.48 | E204: 0 | F204: 20470059.48 | G204: -40940118.96
A205: 3.1 | B205: 1.2.5.01.02.05.3.99999 | C205: Locales Depreciaciones acumuladas * | D205: -20470059.48 | E205: 0 | F205: 20470059.48 | G205: -40940118.96
A206: 3.1 | B206: 1.2.5.01.02.05.6. | C206: Locales Porción terreno: valores de origen | D206: 105832650 | E206: 0 | F206: 0 | G206: 105832650
A207: 3.1 | B207: 1.2.5.01.02.05.6.99999 | C207: Locales Porción terreno: valores de origen | D207: 105832650 | E207: 0 | F207: 0 | G207: 105832650
A208: 3.1 | B208: 1.2.5.01.02.99. | C208: Otros edificios | D208: 486472985.1 | E208: 0 | F208: 30496030.84 | G208: 455976954.2
A209: 3.1 | B209: 1.2.5.01.02.99.1. | C209: Otros edificios Valores de origen | D209: 355511815.9 | E209: 0 | F209: 0 | G209: 355511815.9
... 952 more rows

Sheet Notas BS
A1: Notas Estado de Situación Financiera o Balance General Comparativo
A2: ACTIVO
A4: Cuenta | B4: Descripción | C4: Nota | D4: Periodo Actual | E4: Periodo Anterior | F4: Diferencia
F5: %
A6: 1.1.1. | B6: =+AnalisisBS!$B$10 -> Efectivo y equivalentes de efectivo | C6: =+AnalisisBS!C10 -> 03 | D6: =SUMIF(AnalisisBS!$A$10:$A$8003,$A6,AnalisisBS!$D$10:$D$8003) -> 1796241.557 | E6: =SUMIF(AnalisisBS!$A$10:$A$8003,$A6,AnalisisBS!$F$10:$F$8003) -> 1975905.869 | F6: =SUMIF(AnalisisBS!$A$10:$A$8003,$A6,AnalisisBS!$I$10:$I$8003) -> -0.09092756629
A8: Cuenta | B8: Descripción | C8: Nota | D8: Periodo Actual | E8: Periodo Anterior | F8: Diferencia
F9: %
A10: 1.1.2. | B10: =+AnalisisBS!$B$13 -> Inversiones a corto plazo | C10: =+AnalisisBS!C13 -> 04 | D10: =SUMIF(AnalisisBS!$A$10:$A$8003,$A10,AnalisisBS!$D$10:$D$8003) -> 0 | E10: =SUMIF(AnalisisBS!$A$10:$A$8003,$A10,AnalisisBS!$F$10:$F$8003) -> 0 | F10: =SUMIF(AnalisisBS!$A$10:$A$8003,$A10,AnalisisBS!$I$10:$I$8003)*100 -> 0
A12: Cuenta | B12: Descripción | C12: Nota | D12: Periodo Actual | E12: Periodo Anterior | F12: Diferencia
F13: %
A14: 1.1.3. | B14: =+AnalisisBS!$B$19 -> Cuentas a cobrar a corto plazo | C14: =+AnalisisBS!C19 -> 05 | D14: =SUMIF(AnalisisBS!$A$10:$A$8003,$A14,AnalisisBS!$D$10:$D$8003) -> 3816318.798 | E14: =SUMIF(AnalisisBS!$A$10:$A$8003,$A14,AnalisisBS!$F$10:$F$8003) -> 3778707.848 | F14: =SUMIF(AnalisisBS!$A$10:$A$8003,$A14,AnalisisBS!$I$10:$I$8003) -> 0.009953389188
A16: Cuenta | B16: Descripción | C16: Nota | D16: Periodo Actual | E16: Periodo Anterior | F16: Diferencia
F17: %
A18: 1.1.4. | B18: =+AnalisisBS!$B$37 -> Inventarios | C18: =+AnalisisBS!C37 -> 06 | D18: =SUMIF(AnalisisBS!$A$10:$A$8003,$A18,AnalisisBS!$D$10:$D$8003) -> 203034.4726 | E18: =SUMIF(AnalisisBS!$A$10:$A$8003,$A18,AnalisisBS!$F$10:$F$8003) -> 3982.27359 | F18: =SUMIF(AnalisisBS!$A$10:$A$8003,$A18,AnalisisBS!$I$10:$I$8003) -> 49.98456146
A20: Cuenta | B20: Descripción | C20: Nota | D20: Periodo Actual | E20: Periodo Anterior | F20: Diferencia
F21: %
A22: 1.1.9. | B22: =+AnalisisBS!$B$43 -> Otros activos a corto plazo | C22: =+AnalisisBS!C43 -> 07 | D22: =SUMIF(AnalisisBS!$A$10:$A$8003,$A22,AnalisisBS!$D$10:$D$8003) -> 25224.18906 | E22: =SUMIF(AnalisisBS!$A$10:$A$8003,$A22,AnalisisBS!$F$10:$F$8003) -> 30546.07407 | F22: =SUMIF(AnalisisBS!$A$10:$A$8003,$A22,AnalisisBS!$I$10:$I$8003) -> -0.1742248447
A24: Cuenta | B24: Descripción | C24: Nota | D24: Periodo Actual | E24: Periodo Anterior | F24: Diferencia
F25: %
A26: 1.2.2. | B26: =+AnalisisBS!$B$50 -> Inversiones a largo plazo | C26: =+AnalisisBS!C50 -> 08 | D26: =SUMIF(AnalisisBS!$A$10:$A$8003,$A26,AnalisisBS!$D$10:$D$8003) -> 0 | E26: =SUMIF(AnalisisBS!$A$10:$A$8003,$A26,AnalisisBS!$F$10:$F$8003) -> 0 | F26: =SUMIF(AnalisisBS!$A$10:$A$8003,$A26,AnalisisBS!$I$10:$I$8003) -> 0
A28: Cuenta | B28: Descripción | C28: Nota | D28: Periodo Actual | E28: Periodo Anterior | F28: Diferencia
F29: %
A30: 1.2.3. | B30: =+AnalisisBS!$B$56 -> Cuentas a cobrar a largo plazo | C30: =+AnalisisBS!C56 -> 09 | D30: =SUMIF(AnalisisBS!$A$10:$A$8003,$A30,AnalisisBS!$D$10:$D$8003) -> 0 | E30: =SUMIF(AnalisisBS!$A$10:$A$8003,$A30,AnalisisBS!$F$10:$F$8003) -> 0 | F30: =SUMIF(AnalisisBS!$A$10:$A$8003,$A30,AnalisisBS!$I$10:$I$8003) -> 0
A32: Cuenta | B32: Descripción | C32: Nota | D32: Periodo Actual | E32: Periodo Anterior | F32: Diferencia
F33: %
A34: 1.2.5. | B34: =+AnalisisBS!$B$64 -> Bienes no concesionados | C34: =+AnalisisBS!C64 -> 10 | D34: =SUMIF(AnalisisBS!$A$10:$A$8003,$A34,AnalisisBS!$D$10:$D$8003) -> 162965494 | E34: =SUMIF(AnalisisBS!$A$10:$A$8003,$A34,AnalisisBS!$F$10:$F$8003) -> 162705367.8 | F34: =SUMIF(AnalisisBS!$A$10:$A$8003,$A34,AnalisisBS!$I$10:$I$8003) -> 0.001598756277
A36: Cuenta | B36: Descripción | C36: Nota | D36: Periodo Actual | E36: Periodo Anterior | F36: Diferencia
F37: %
A38: 1.2.5.01. | B38: =+AnalisisBS!$B$65 -> Propiedades, planta y equipos explotados | C38: =+AnalisisBS!C64 -> 10 | D38: =SUMIF(AnalisisBS!$A$10:$A$8003,$A38,AnalisisBS!$D$10:$D$8003) -> 2119407.751 | E38: =SUMIF(AnalisisBS!$A$10:$A$8003,$A38,AnalisisBS!$F$10:$F$8003) -> 1906811.53 | F38: =SUMIF(AnalisisBS!$A$10:$A$8003,$A38,AnalisisBS!$I$10:$I$8003) -> 0.111493044
A40: Cuenta | B40: Descripción | C40: Nota | D40: Periodo Actual | E40: Periodo Anterior | F40: Diferencia
F41: %
A42: 1.2.5.02. | B42: =+AnalisisBS!$B$66 -> Propiedades de inversión | C42: =+AnalisisBS!C64 -> 10 | D42: =SUMIF(AnalisisBS!$A$10:$A$8003,$A42,AnalisisBS!$D$10:$D$8003) -> 0 | E42: =SUMIF(AnalisisBS!$A$10:$A$8003,$A42,AnalisisBS!$F$10:$F$8003) -> 0 | F42: =SUMIF(AnalisisBS!$A$10:$A$8003,$A42,AnalisisBS!$I$10:$I$8003) -> 0
A44: Cuenta | B44: Descripción | C44: Nota | D44: Periodo Actual | E44: Periodo Anterior | F44: Diferencia
F45: %
A46: 1.2.5.03. | B46: =+AnalisisBS!$B$67 -> Activos biológicos no concesionados | C46: =+AnalisisBS!C64 -> 10 | D46: =SUMIF(AnalisisBS!$A$10:$A$8003,$A46,AnalisisBS!$D$10:$D$8003) -> 0 | E46: =SUMIF(AnalisisBS!$A$10:$A$8003,$A46,AnalisisBS!$F$10:$F$8003) -> 0 | F46: =SUMIF(AnalisisBS!$A$10:$A$8003,$A46,AnalisisBS!$I$10:$I$8003) -> 0
A48: Cuenta | B48: Descripción | C48: Nota | D48: Periodo Actual | E48: Periodo Anterior | F48: Diferencia
F49: %
A50: 1.2.5.04. | B50: =+AnalisisBS!$B$68 -> Bienes de infraestructura y de beneficio y uso público en servicio | C50: =+AnalisisBS!C64 -> 10 | D50: =SUMIF(AnalisisBS!$A$10:$A$8003,$A50,AnalisisBS!$D$10:$D$8003) -> 160765498.1 | E50: =SUMIF(AnalisisBS!$A$10:$A$8003,$A50,AnalisisBS!$F$10:$F$8003) -> 160765498.1 | F50: =SUMIF(AnalisisBS!$A$10:$A$8003,$A50,AnalisisBS!$I$10:$I$8003) -> 0
A52: Cuenta | B52: Descripción | C52: Nota | D52: Periodo Actual | E52: Periodo Anterior | F52: Diferencia
F53: %
A54: 1.2.5.05. | B54: =+AnalisisBS!$B$69 -> Bienes históricos y culturales | C54: =+AnalisisBS!C64 -> 10 | D54: =SUMIF(AnalisisBS!$A$10:$A$8003,$A54,AnalisisBS!$D$10:$D$8003) -> 0 | E54: =SUMIF(AnalisisBS!$A$10:$A$8003,$A54,AnalisisBS!$F$10:$F$8003) -> 0 | F54: =SUMIF(AnalisisBS!$A$10:$A$8003,$A54,AnalisisBS!$I$10:$I$8003) -> 0
A56: Cuenta | B56: Descripción | C56: Nota | D56: Periodo Actual | E56: Periodo Anterior | F56: Diferencia
F57: %
A58: 1.2.5.06. | B58: =+AnalisisBS!$B$70 -> Recursos naturales en explotación | C58: =+AnalisisBS!C64 -> 10 | D58: =SUMIF(AnalisisBS!$A$10:$A$8003,$A58,AnalisisBS!$D$10:$D$8003) -> 0 | E58: =SUMIF(AnalisisBS!$A$10:$A$8003,$A58,AnalisisBS!$F$10:$F$8003) -> 0 | F58: =SUMIF(AnalisisBS!$A$10:$A$8003,$A58,AnalisisBS!$I$10:$I$8003) -> 0
A60: Cuenta | B60: Descripción | C60: Nota | D60: Periodo Actual | E60: Periodo Anterior | F60: Diferencia
F61: %
A62: 1.2.5.07. | B62: =+AnalisisBS!$B$71 -> Recursos naturales en conservación | C62: =+AnalisisBS!C64 -> 10 | D62: =SUMIF(AnalisisBS!$A$10:$A$8003,$A62,AnalisisBS!$D$10:$D$8003) -> 0 | E62: =SUMIF(AnalisisBS!$A$10:$A$8003,$A62,AnalisisBS!$F$10:$F$8003) -> 0 | F62: =SUMIF(AnalisisBS!$A$10:$A$8003,$A62,AnalisisBS!$I$10:$I$8003) -> 0
A64: Cuenta | B64: Descripción | C64: Nota | D64: Periodo Actual | E64: Periodo Anterior | F64: Diferencia
F65: %
A66: 1.2.5.08. | B66: =+AnalisisBS!$B$72 -> Bienes intangibles no concesionados | C66: =+AnalisisBS!C64 -> 10 | D66: =SUMIF(AnalisisBS!$A$10:$A$8003,$A66,AnalisisBS!$D$10:$D$8003) -> 3007.2369 | E66: =SUMIF(AnalisisBS!$A$10:$A$8003,$A66,AnalisisBS!$F$10:$F$8003) -> 7987.29414 | F66: =SUMIF(AnalisisBS!$A$10:$A$8003,$A66,AnalisisBS!$I$10:$I$8003) -> -0.6234974139
A68: Cuenta | B68: Descripción | C68: Nota | D68: Periodo Actual | E68: Periodo Anterior | F68: Diferencia
F69: %
A70: 1.2.5.99. | B70: =+AnalisisBS!$B$73 -> Bienes no concesionados en proceso de producción | C70: =+AnalisisBS!C64 -> 10 | D70: =SUMIF(AnalisisBS!$A$10:$A$8003,$A70,AnalisisBS!$D$10:$D$8003) -> 77580.96105 | E70: =SUMIF(AnalisisBS!$A$10:$A$8003,$A70,AnalisisBS!$F$10:$F$8003) -> 25070.89757 | F70: =SUMIF(AnalisisBS!$A$10:$A$8003,$A70,AnalisisBS!$I$10:$I$8003) -> 2.094462846
A72: Cuenta | B72: Descripción | C72: Nota | D72: Periodo Actual | E72: Periodo Anterior | F72: Diferencia
F73: %
A74: 1.2.6. | B74: =+AnalisisBS!$B$74 -> Bienes concesionados | C74: =+AnalisisBS!C74 -> 11 | D74: =SUMIF(AnalisisBS!$A$10:$A$8003,$A74,AnalisisBS!$D$10:$D$8003) -> 0 | E74: =SUMIF(AnalisisBS!$A$10:$A$8003,$A74,AnalisisBS!$F$10:$F$8003) -> 0 | F74: =SUMIF(AnalisisBS!$A$10:$A$8003,$A74,AnalisisBS!$I$10:$I$8003) -> 0
A76: Cuenta | B76: Descripción | C76: Nota | D76: Periodo Actual | E76: Periodo Anterior | F76: Diferencia
F77: %
A78: 1.2.6.01. | B78: =+AnalisisBS!$B$75 -> Propiedades, planta y equipos concesionados | C78: =+AnalisisBS!C74 -> 11 | D78: =SUMIF(AnalisisBS!$A$10:$A$8003,$A78,AnalisisBS!$D$10:$D$8003) -> 0 | E78: =SUMIF(AnalisisBS!$A$10:$A$8003,$A78,AnalisisBS!$F$10:$F$8003) -> 0 | F78: =SUMIF(AnalisisBS!$A$10:$A$8003,$A78,AnalisisBS!$I$10:$I$8003) -> 0
A80: Cuenta | B80: Descripción | C80: Nota | D80: Periodo Actual | E80: Periodo Anterior | F80: Diferencia
F81: %
A82: 1.2.6.03. | B82: =+AnalisisBS!$B$76 -> Activos biológicos concesionados | C82: =+AnalisisBS!C74 -> 11 | D82: =SUMIF(AnalisisBS!$A$10:$A$8003,$A82,AnalisisBS!$D$10:$D$8003) -> 0 | E82: =SUMIF(AnalisisBS!$A$10:$A$8003,$A82,AnalisisBS!$F$10:$F$8003) -> 0 | F82: =SUMIF(AnalisisBS!$A$10:$A$8003,$A82,AnalisisBS!$I$10:$I$8003) -> 0
A84: Cuenta | B84: Descripción | C84: Nota | D84: Periodo Actual | E84: Periodo Anterior | F84: Diferencia
F85: %
A86: 1.2.6.04. | B86: =+AnalisisBS!$B$77 -> Bienes de infraestructura y de beneficio y uso público concesionados | C86: =+AnalisisBS!C74 -> 11 | D86: =SUMIF(AnalisisBS!$A$10:$A$8003,$A86,AnalisisBS!$D$10:$D$8003) -> 0 | E86: =SUMIF(AnalisisBS!$A$10:$A$8003,$A86,AnalisisBS!$F$10:$F$8003) -> 0 | F86: =SUMIF(AnalisisBS!$A$10:$A$8003,$A86,AnalisisBS!$I$10:$I$8003) -> 0
A88: Cuenta | B88: Descripción | C88: Nota | D88: Periodo Actual | E88: Periodo Anterior | F88: Diferencia
F89: %
A90: 1.2.6.06. | B90: =+AnalisisBS!$B$78 -> Recursos naturales concesionados | C90: =+AnalisisBS!C74 -> 11 | D90: =SUMIF(AnalisisBS!$A$10:$A$8003,$A90,AnalisisBS!$D$10:$D$8003) -> 0 | E90: =SUMIF(AnalisisBS!$A$10:$A$8003,$A90,AnalisisBS!$F$10:$F$8003) -> 0 | F90: =SUMIF(AnalisisBS!$A$10:$A$8003,$A90,AnalisisBS!$I$10:$I$8003) -> 0
A92: Cuenta | B92: Descripción | C92: Nota | D92: Periodo Actual | E92: Periodo Anterior | F92: Diferencia
F93: %
A94: 1.2.6.08. | B94: =+AnalisisBS!$B$79 -> Bienes intangibles concesionados | C94: =+AnalisisBS!C74 -> 11 | D94: =SUMIF(AnalisisBS!$A$10:$A$8003,$A94,AnalisisBS!$D$10:$D$8003) -> 0 | E94: =SUMIF(AnalisisBS!$A$10:$A$8003,$A94,AnalisisBS!$F$10:$F$8003) -> 0 | F94: =SUMIF(AnalisisBS!$A$10:$A$8003,$A94,AnalisisBS!$I$10:$I$8003) -> 0
A96: Cuenta | B96: Descripción | C96: Nota | D96: Periodo Actual | E96: Periodo Anterior | F96: Diferencia
F97: %
A98: 1.2.6.99. | B98: =+AnalisisBS!$B$80 -> Bienes concesionados en proceso de producción | C98: =+AnalisisBS!C74 -> 11 | D98: =SUMIF(AnalisisBS!$A$10:$A$8003,$A98,AnalisisBS!$D$10:$D$8003) -> 0 | E98: =SUMIF(AnalisisBS!$A$10:$A$8003,$A98,AnalisisBS!$F$10:$F$8003) -> 0 | F98: =SUMIF(AnalisisBS!$A$10:$A$8003,$A98,AnalisisBS!$I$10:$I$8003) -> 0
A100: Cuenta | B100: Descripción | C100: Nota | D100: Periodo Actual | E100: Periodo Anterior | F100: Diferencia
F101: %
A102: 1.2.7. | B102: =+AnalisisBS!$B$81 -> Inversiones patrimoniales - Método de participación | C102: =+AnalisisBS!C81 -> 12 | D102: =SUMIF(AnalisisBS!$A$10:$A$8003,$A102,AnalisisBS!$D$10:$D$8003) -> 0 | E102: =SUMIF(AnalisisBS!$A$10:$A$8003,$A102,AnalisisBS!$F$10:$F$8003) -> 0 | F102: =SUMIF(AnalisisBS!$A$10:$A$8003,$A102,AnalisisBS!$I$10:$I$8003) -> 0
A104: Cuenta | B104: Descripción | C104: Nota | D104: Periodo Actual | E104: Periodo Anterior | F104: Diferencia
F105: %
A106: 1.2.9. | B106: =+AnalisisBS!$B$86 -> Otros activos a largo plazo | C106: =+AnalisisBS!C86 -> 13 | D106: =SUMIF(AnalisisBS!$A$10:$A$8003,$A106,AnalisisBS!$D$10:$D$8003) -> 0 | E106: =SUMIF(AnalisisBS!$A$10:$A$8003,$A106,AnalisisBS!$F$10:$F$8003) -> 0 | F106: =SUMIF(AnalisisBS!$A$10:$A$8003,$A106,AnalisisBS!$I$10:$I$8003) -> 0
A108: Cuenta | B108: Descripción | C108: Nota | D108: Periodo Actual | E108: Periodo Anterior | F108: Diferencia
F109: %
A110: 1.2.9.01. | B110: =+AnalisisBS!B87 -> Gastos a devengar a largo plazo | C110: =+AnalisisBS!C86 -> 13 | D110: =SUMIF(AnalisisBS!$A$10:$A$8003,$A110,AnalisisBS!$D$10:$D$8003) -> 0 | E110: =SUMIF(AnalisisBS!$A$10:$A$8003,$A110,AnalisisBS!$F$10:$F$8003) -> 0 | F110: =SUMIF(AnalisisBS!$A$10:$A$8003,$A110,AnalisisBS!$I$10:$I$8003) -> 0
A113: PASIVO
A115: Cuenta | B115: Descripción | C115: Nota | D115: Periodo Actual | E115: Periodo Anterior | F115: Diferencia
F116: %
A117: 2.1.1. | B117: =+AnalisisBS!$B$95 -> Deudas a corto plazo | C117: =+AnalisisBS!C95 -> 14 | D117: =SUMIF(AnalisisBS!$A$10:$A$8003,$A117,AnalisisBS!$D$10:$D$8003) -> 239029.7017 | E117: =SUMIF(AnalisisBS!$A$10:$A$8003,$A117,AnalisisBS!$F$10:$F$8003) -> 340728.0141 | F117: =SUMIF(AnalisisBS!$A$10:$A$8003,$A117,AnalisisBS!$I$10:$I$8003) -> -0.2984735866
A119: Cuenta | B119: Descripción | C119: Nota | D119: Periodo Actual | E119: Periodo Anterior | F119: Diferencia
F120: %
A121: 2.1.2. | B121: =+AnalisisBS!$B$106 -> Endeudamiento público a corto plazo | C121: =+AnalisisBS!C106 -> 15 | D121: =SUMIF(AnalisisBS!$A$10:$A$8003,$A121,AnalisisBS!$D$10:$D$8003) -> 485546.5996 | E121: =SUMIF(AnalisisBS!$A$10:$A$8003,$A121,AnalisisBS!$F$10:$F$8003) -> 329795.988 | F121: =SUMIF(AnalisisBS!$A$10:$A$8003,$A121,AnalisisBS!$I$10:$I$8003) -> 0.4722635125
A123: Cuenta | B123: Descripción | C123: Nota | D123: Periodo Actual | E123: Periodo Anterior | F123: Diferencia
F124: %
A125: 2.1.3. | B125: =+AnalisisBS!$B$112 -> Fondos de terceros y en garantía | C125: =+AnalisisBS!C112 -> 16 | D125: =SUMIF(AnalisisBS!$A$10:$A$8003,$A125,AnalisisBS!$D$10:$D$8003) -> 51401.59523 | E125: =SUMIF(AnalisisBS!$A$10:$A$8003,$A125,AnalisisBS!$F$10:$F$8003) -> 913377.1952 | F125: =SUMIF(AnalisisBS!$A$10:$A$8003,$A125,AnalisisBS!$I$10:$I$8003) -> -0.9437235838
A127: Cuenta | B127: Descripción | C127: Nota | D127: Periodo Actual | E127: Periodo Anterior | F127: Diferencia
F128: %
A129: 2.1.3.03. | B129: =+AnalisisBS!B115 -> Depósitos en garantía | C129: =+AnalisisBS!C112 -> 16 | D129: =SUMIF(AnalisisBS!$A$10:$A$8003,$A129,AnalisisBS!$D$10:$D$8003) -> 51401.59523 | E129: =SUMIF(AnalisisBS!$A$10:$A$8003,$A129,AnalisisBS!$F$10:$F$8003) -> 72428.85758 | F129: =SUMIF(AnalisisBS!$A$10:$A$8003,$A129,AnalisisBS!$I$10:$I$8003) -> -0.2903160847
A131: Cuenta | B131: Descripción | C131: Nota | D131: Periodo Actual | E131: Periodo Anterior | F131: Diferencia
F132: %
A133: 2.1.4. | B133: =+AnalisisBS!$B$118 -> Provisiones y reservas técnicas a corto plazo | C133: =+AnalisisBS!C118 -> 17 | D133: =SUMIF(AnalisisBS!$A$10:$A$8003,$A133,AnalisisBS!$D$10:$D$8003) -> 0 | E133: =SUMIF(AnalisisBS!$A$10:$A$8003,$A133,AnalisisBS!$F$10:$F$8003) -> 0 | F133: =SUMIF(AnalisisBS!$A$10:$A$8003,$A133,AnalisisBS!$I$10:$I$8003) -> 0
A135: Cuenta | B135: Descripción | C135: Nota | D135: Periodo Actual | E135: Periodo Anterior | F135: Diferencia
F136: %
A137: 2.1.4.01. | B137: =+AnalisisBS!$B$119 -> Provisiones a corto plazo | C137: =+AnalisisBS!C118 -> 17 | D137: =SUMIF(AnalisisER!$A$10:$A$8006,$A137,AnalisisER!$D$10:$D$8006) -> 0 | E137: =SUMIF(AnalisisER!$A$10:$A$8006,$A137,AnalisisER!$F$10:$F$8006) -> 0 | F137: =SUMIF(AnalisisER!$A$10:$A$8006,$A137,AnalisisER!$I$10:$I$8006) -> 0
A139: Cuenta | B139: Descripción | C139: Nota | D139: Periodo Actual | E139: Periodo Anterior | F139: Diferencia
F140: %
A141: 2.1.9. | B141: =+AnalisisBS!$B$121 -> Otros pasivos a corto plazo | C141: =+AnalisisBS!C121 -> 18 | D141: =SUMIF(AnalisisBS!$A$10:$A$8003,$A141,AnalisisBS!$D$10:$D$8003) -> 0 | E141: =SUMIF(AnalisisBS!$A$10:$A$8003,$A141,AnalisisBS!$F$10:$F$8003) -> 556.53649 | F141: =SUMIF(AnalisisBS!$A$10:$A$8003,$A141,AnalisisBS!$I$10:$I$8003) -> -1
A143: Cuenta | B143: Descripción | C143: Nota | D143: Periodo Actual | E143: Periodo Anterior | F143: Diferencia
F144: %
A145: 2.1.9.01. | B145: =+AnalisisBS!B122 -> Ingresos a devengar a corto plazo | C145: =+AnalisisBS!C121 -> 18 | D145: =SUMIF(AnalisisBS!$A$10:$A$8003,$A145,AnalisisBS!$D$10:$D$8003) -> 0 | E145: =SUMIF(AnalisisBS!$A$10:$A$8003,$A145,AnalisisBS!$F$10:$F$8003) -> 0 | F145: =SUMIF(AnalisisBS!$A$10:$A$8003,$A145,AnalisisBS!$I$10:$I$8003) -> 0
A147: Cuenta | B147: Descripción | C147: Nota | D147: Periodo Actual | E147: Periodo Anterior | F147: Diferencia
F148: %
A149: 2.2.1. | B149: =+AnalisisBS!$B$128 -> Deudas a largo plazo | C149: =+AnalisisBS!C128 -> 19 | D149: =SUMIF(AnalisisBS!$A$10:$A$8003,$A149,AnalisisBS!$D$10:$D$8003) -> 0 | E149: =SUMIF(AnalisisBS!$A$10:$A$8003,$A149,AnalisisBS!$F$10:$F$8003) -> 0 | F149: =SUMIF(AnalisisBS!$A$10:$A$8003,$A149,AnalisisBS!$I$10:$I$8003) -> 0
A151: Cuenta | B151: Descripción | C151: Nota | D151: Periodo Actual | E151: Periodo Anterior | F151: Diferencia
F152: %
A153: 2.2.2. | B153: =+AnalisisBS!$B$136 -> Endeudamiento público a largo plazo | C153: =+AnalisisBS!C136 -> 20 | D153: =SUMIF(AnalisisBS!$A$10:$A$8003,$A153,AnalisisBS!$D$10:$D$8003) -> 1034982.149 | E153: =SUMIF(AnalisisBS!$A$10:$A$8003,$A153,AnalisisBS!$F$10:$F$8003) -> 1153101.091 | F153: =SUMIF(AnalisisBS!$A$10:$A$8003,$A153,AnalisisBS!$I$10:$I$8003) -> -0.1024358943
A155: Cuenta | B155: Descripción | C155: Nota | D155: Periodo Actual | E155: Periodo Anterior | F155: Diferencia
F156: %
A157: 2.2.3. | B157: =+AnalisisBS!$B$140 -> Fondos de terceros y en garantía | C157: =+AnalisisBS!C140 -> 21 | D157: =SUMIF(AnalisisBS!$A$10:$A$8003,$A157,AnalisisBS!$D$10:$D$8003) -> 0 | E157: =SUMIF(AnalisisBS!$A$10:$A$8003,$A157,AnalisisBS!$F$10:$F$8003) -> 0 | F157: =SUMIF(AnalisisBS!$A$10:$A$8003,$A157,AnalisisBS!$I$10:$I$8003) -> 0
A159: Cuenta | B159: Descripción | C159: Nota | D159: Periodo Actual | E159: Periodo Anterior | F159: Diferencia
F160: %
A161: 2.2.4. | B161: =+AnalisisBS!$B$143 -> Provisiones y reservas técnicas a largo plazo | C161: =+AnalisisBS!C143 -> 22 | D161: =SUMIF(AnalisisBS!$A$10:$A$8003,$A161,AnalisisBS!$D$10:$D$8003) -> 35457.24 | E161: =SUMIF(AnalisisBS!$A$10:$A$8003,$A161,AnalisisBS!$F$10:$F$8003) -> 0 | F161: =SUMIF(AnalisisBS!$A$10:$A$8003,$A161,AnalisisBS!$I$10:$I$8003) -> 0
A163: Cuenta | B163: Descripción | C163: Nota | D163: Periodo Actual | E163: Periodo Anterior | F163: Diferencia
F164: %
A165: 2.2.4.01. | B165: =+AnalisisBS!B144 -> Provisiones a largo plazo | C165: =+AnalisisBS!C143 -> 22 | D165: =SUMIF(AnalisisBS!$A$10:$A$8003,$A165,AnalisisBS!$D$10:$D$8003) -> 35457.24 | E165: =SUMIF(AnalisisBS!$A$10:$A$8003,$A165,AnalisisBS!$F$10:$F$8003) -> 0 | F165: =SUMIF(AnalisisBS!$A$10:$A$8003,$A165,AnalisisBS!$I$10:$I$8003) -> 0
A167: Cuenta | B167: Descripción | C167: Nota | D167: Periodo Actual | E167: Periodo Anterior | F167: Diferencia
F168: %
A169: 2.2.9. | B169: =+AnalisisBS!$B$146 -> Otros pasivos a largo plazo | C169: =+AnalisisBS!C146 -> 23 | D169: =SUMIF(AnalisisBS!$A$10:$A$8003,$A169,AnalisisBS!$D$10:$D$8003) -> 0 | E169: =SUMIF(AnalisisBS!$A$10:$A$8003,$A169,AnalisisBS!$F$10:$F$8003) -> 0 | F169: =SUMIF(AnalisisBS!$A$10:$A$8003,$A169,AnalisisBS!$I$10:$I$8003) -> 0
A171: Cuenta | B171: Descripción | C171: Nota | D171: Periodo Actual | E171: Periodo Anterior | F171: Diferencia
F172: %
A173: 2.2.9.01. | B173: =+AnalisisBS!B147 -> Ingresos a devengar a largo plazo | C173: =+AnalisisBS!C146 -> 23 | D173: =SUMIF(AnalisisBS!$A$10:$A$8003,$A173,AnalisisBS!$D$10:$D$8003) -> 0 | E173: =SUMIF(AnalisisBS!$A$10:$A$8003,$A173,AnalisisBS!$F$10:$F$8003) -> 0 | F173: =SUMIF(AnalisisBS!$A$10:$A$8003,$A173,AnalisisBS!$I$10:$I$8003) -> 0
A176: PATRIMONIO
A178: Cuenta | B178: Descripción | C178: Nota | D178: Periodo Actual | E178: Periodo Anterior | F178: Diferencia
F179: %
A180: 3.1.1. | B180: =+AnalisisBS!$B$155 -> Capital | C180: =+AnalisisBS!C155 -> 24 | D180: =SUMIF(AnalisisBS!$A$10:$A$8003,$A180,AnalisisBS!$D$10:$D$8003) -> 0.5248 | E180: =SUMIF(AnalisisBS!$A$10:$A$8003,$A180,AnalisisBS!$F$10:$F$8003) -> 0.5248 | F180: =SUMIF(AnalisisBS!$A$10:$A$8003,$A180,AnalisisBS!$I$10:$I$8003) -> 0
A182: Cuenta | B182: Descripción | C182: Nota | D182: Periodo Actual | E182: Periodo Anterior | F182: Diferencia
F183: %
A184: 3.1.1.01. | B184: =+AnalisisBS!$B$156 -> Capital inicial | C184: =+AnalisisBS!C155 -> 24 | D184: =SUMIF(AnalisisBS!$A$10:$A$8003,$A184,AnalisisBS!$D$10:$D$8003) -> 0.5248 | E184: =SUMIF(AnalisisBS!$A$10:$A$8003,$A184,AnalisisBS!$F$10:$F$8003) -> 0.5248 | F184: =SUMIF(AnalisisBS!$A$10:$A$8003,$A184,AnalisisBS!$I$10:$I$8003) -> 0
A186: Cuenta | B186: Descripción | C186: Nota | D186: Periodo Actual | E186: Periodo Anterior | F186: Diferencia
F187: %
A188: 3.1.1.02. | B188: =+AnalisisBS!$B$157 -> Incorporaciones al capital | C188: =+AnalisisBS!C155 -> 24 | D188: =SUMIF(AnalisisBS!$A$10:$A$8003,$A188,AnalisisBS!$D$10:$D$8003) -> 0 | E188: =SUMIF(AnalisisBS!$A$10:$A$8003,$A188,AnalisisBS!$F$10:$F$8003) -> 0 | F188: =SUMIF(AnalisisBS!$A$10:$A$8003,$A188,AnalisisBS!$I$10:$I$8003) -> 0
A190: Cuenta | B190: Descripción | C190: Nota | D190: Periodo Actual | E190: Periodo Anterior | F190: Diferencia
F191: %
A192: 3.1.2. | B192: =+AnalisisBS!$B$158 -> Transferencias de capital | C192: =+AnalisisBS!C158 -> 25 | D192: =SUMIF(AnalisisBS!$A$10:$A$8003,$A192,AnalisisBS!$D$10:$D$8003) -> 0 | E192: =SUMIF(AnalisisBS!$A$10:$A$8003,$A192,AnalisisBS!$F$10:$F$8003) -> 0 | F192: =SUMIF(AnalisisBS!$A$10:$A$8003,$A192,AnalisisBS!$I$10:$I$8003) -> 0
A194: Cuenta | B194: Descripción | C194: Nota | D194: Periodo Actual | E194: Periodo Anterior | F194: Diferencia
F195: %
A196: 3.1.3. | B196: =+AnalisisBS!$B$161 -> Reservas | C196: =+AnalisisBS!C161 -> 26 | D196: =SUMIF(AnalisisBS!$A$10:$A$8003,$A196,AnalisisBS!$D$10:$D$8003) -> 0 | E196: =SUMIF(AnalisisBS!$A$10:$A$8003,$A196,AnalisisBS!$F$10:$F$8003) -> 0 | F196: =SUMIF(AnalisisBS!$A$10:$A$8003,$A196,AnalisisBS!$I$10:$I$8003) -> 0
A198: Cuenta | B198: Descripción | C198: Nota | D198: Periodo Actual | E198: Periodo Anterior | F198: Diferencia
F199: %
A200: 3.1.4. | B200: =+AnalisisBS!$B$164 -> Variaciones no asignables a reservas | C200: =+AnalisisBS!C164 -> 27 | D200: =SUMIF(AnalisisBS!$A$10:$A$8003,$A200,AnalisisBS!$D$10:$D$8003) -> 0 | E200: =SUMIF(AnalisisBS!$A$10:$A$8003,$A200,AnalisisBS!$F$10:$F$8003) -> 0 | F200: =SUMIF(AnalisisBS!$A$10:$A$8003,$A200,AnalisisBS!$I$10:$I$8003) -> 0
A202: Cuenta | B202: Descripción | C202: Nota | D202: Periodo Actual | E202: Periodo Anterior | F202: Diferencia
F203: %
A204: 3.1.5. | B204: =+AnalisisBS!$B$169 -> Resultados acumulados | C204: =+AnalisisBS!C169 -> 28 | D204: =SUMIF(AnalisisBS!$A$10:$A$8003,$A204,AnalisisBS!$D$10:$D$8003) -> 166959895.2 | E204: =SUMIF(AnalisisBS!$A$10:$A$8003,$A204,AnalisisBS!$F$10:$F$8003) -> 165756950.5 | F204: =SUMIF(AnalisisBS!$A$10:$A$8003,$A204,AnalisisBS!$I$10:$I$8003) -> 0.007257280706
A206: Cuenta | B206: Descripción | C206: Nota | D206: Periodo Actual | E206: Periodo Anterior | F206: Diferencia
F207: %
A208: 3.1.5.01. | B208: =+AnalisisBS!$B$170 -> Resultados acumulados de ejercicios anteriores | C208: =+AnalisisBS!C169 -> 28 | D208: =SUMIF(AnalisisBS!$A$10:$A$8003,$A208,AnalisisBS!$D$10:$D$8003) -> 164049655.9 | E208: =SUMIF(AnalisisBS!$A$10:$A$8003,$A208,AnalisisBS!$F$10:$F$8003) -> 163193551.5 | F208: =SUMIF(AnalisisBS!$A$10:$A$8003,$A208,AnalisisBS!$I$10:$I$8003) -> 0.005245944576
A210: Cuenta | B210: Descripción | C210: Nota | D210: Periodo Actual | E210: Periodo Anterior | F210: Diferencia
F211: %
A212: 3.1.5.02. | B212: =+AnalisisBS!$B$171 -> Resultado del ejercicio | C212: =+AnalisisBS!C169 -> 28 | D212: =SUMIF(AnalisisBS!$A$10:$A$8003,$A212,AnalisisBS!$D$10:$D$8003) -> 2910239.362 | E212: =SUMIF(AnalisisBS!$A$10:$A$8003,$A212,AnalisisBS!$F$10:$F$8003) -> 2563398.969 | F212: =SUMIF(AnalisisBS!$A$10:$A$8003,$A212,AnalisisBS!$I$10:$I$8003) -> 0.1353048809
A214: Cuenta | B214: Descripción | C214: Nota | D214: Periodo Actual | E214: Periodo Anterior | F214: Diferencia
F215: %
A216: 3.2.1. | B216: =+AnalisisBS!$B$173 -> Intereses minoritarios - Participaciones en el patrimonio de entidades controladas | C216: =+AnalisisBS!C173 -> 29 | D216: =SUMIF(AnalisisBS!$A$10:$A$8003,$A216,AnalisisBS!$D$10:$D$8003) -> 0 | E216: =SUMIF(AnalisisBS!$A$10:$A$8003,$A216,AnalisisBS!$F$10:$F$8003) -> 0 | F216: =SUMIF(AnalisisBS!$A$10:$A$8003,$A216,AnalisisBS!$I$10:$I$8003) -> 0
A218: Cuenta | B218: Descripción | C218: Nota | D218: Periodo Actual | E218: Periodo Anterior | F218: Diferencia
F219: %
A220: 3.2.2. | B220: =+AnalisisBS!$B$176 -> Intereses minoritarios - Evolución | C220: =+AnalisisBS!C176 -> 30 | D220: =SUMIF(AnalisisBS!$A$10:$A$8003,$A220,AnalisisBS!$D$10:$D$8003) -> 0 | E220: =SUMIF(AnalisisBS!$A$10:$A$8003,$A220,AnalisisBS!$F$10:$F$8003) -> 0 | F220: =SUMIF(AnalisisBS!$A$10:$A$8003,$A220,AnalisisBS!$I$10:$I$8003) -> 0

Sheet Notas ER
A1: Notas Estado de Rendimiento Financiero Comparativo
A2: INGRESOS
A5: Cuenta | B5: Descripción | C5: Nota | D5: Periodo Actual | E5: Periodo Anterior | F5: Diferencia
F6: %
A7: 4.1.1. | B7: =+AnalisisER!$B$10 -> Impuestos sobre los ingresos, las utilidades y las ganancias de capital | C7: =+AnalisisER!C10 -> 31 | D7: =SUMIF(AnalisisER!$A$10:$A$8006,$A7,AnalisisER!$D$10:$D$8006) -> 0 | E7: =SUMIF(AnalisisER!$A$10:$A$8006,$A7,AnalisisER!$F$10:$F$8006) -> 0 | F7: =SUMIF(AnalisisER!$A$10:$A$8006,$A7,AnalisisER!$I$10:$I$8006)*100 -> 0
A9: Cuenta | B9: Descripción | C9: Nota | D9: Periodo Actual | E9: Periodo Anterior | F9: Diferencia
F10: %
A11: 4.1.2. | B11: =+AnalisisER!$B$15 -> Impuestos sobre la propiedad | C11: =+AnalisisER!C15 -> 32 | D11: =SUMIF(AnalisisER!$A$10:$A$8006,$A11,AnalisisER!$D$10:$D$8006) -> 328557.6523 | E11: =SUMIF(AnalisisER!$A$10:$A$8006,$A11,AnalisisER!$F$10:$F$8006) -> 385026.3634 | F11: =SUMIF(AnalisisER!$A$10:$A$8006,$A11,AnalisisER!$I$10:$I$8006) -> -0.1466619341
A13: Cuenta | B13: Descripción | C13: Nota | D13: Periodo Actual | E13: Periodo Anterior | F13: Diferencia
F14: %
A15: 4.1.3. | B15: =+AnalisisER!$B$22 -> Impuestos sobre bienes y servicios | C15: =+AnalisisER!C22 -> 33 | D15: =SUMIF(AnalisisER!$A$10:$A$8006,$A15,AnalisisER!$D$10:$D$8006) -> 178441.6063 | E15: =SUMIF(AnalisisER!$A$10:$A$8006,$A15,AnalisisER!$F$10:$F$8006) -> 170191.7957 | F15: =SUMIF(AnalisisER!$A$10:$A$8006,$A15,AnalisisER!$I$10:$I$8006) -> 0.04847360941
A17: Cuenta | B17: Descripción | C17: Nota | D17: Periodo Actual | E17: Periodo Anterior | F17: Diferencia
F18: %
A19: 4.1.4. | B19: =+AnalisisER!$B$26 -> Impuestos sobre el comercio exterior y transacciones internacionales | C19: =+AnalisisER!C26 -> 34 | D19: =SUMIF(AnalisisER!$A$10:$A$8006,$A19,AnalisisER!$D$10:$D$8006) -> 0 | E19: =SUMIF(AnalisisER!$A$10:$A$8006,$A19,AnalisisER!$F$10:$F$8006) -> 0 | F19: =SUMIF(AnalisisER!$A$10:$A$8006,$A19,AnalisisER!$I$10:$I$8006)*100 -> 0
A21: Cuenta | B21: Descripción | C21: Nota | D21: Periodo Actual | E21: Periodo Anterior | F21: Diferencia
F22: %
A23: 4.1.9. | B23: =+AnalisisER!$B$30 -> Otros impuestos | C23: =+AnalisisER!C30 -> 35 | D23: =SUMIF(AnalisisER!$A$10:$A$8006,$A23,AnalisisER!$D$10:$D$8006) -> 0 | E23: =SUMIF(AnalisisER!$A$10:$A$8006,$A23,AnalisisER!$F$10:$F$8006) -> 0 | F23: =SUMIF(AnalisisER!$A$10:$A$8006,$A23,AnalisisER!$I$10:$I$8006)*100 -> 0
A25: Cuenta | B25: Descripción | C25: Nota | D25: Periodo Actual | E25: Periodo Anterior | F25: Diferencia
F26: %
A27: 4.2.1. | B27: =+AnalisisER!$B$33 -> Contribuciones a la seguridad social | C27: =+AnalisisER!C33 -> 36 | D27: =SUMIF(AnalisisER!$A$10:$A$8006,$A27,AnalisisER!$D$10:$D$8006) -> 0 | E27: =SUMIF(AnalisisER!$A$10:$A$8006,$A27,AnalisisER!$F$10:$F$8006) -> 0 | F27: =SUMIF(AnalisisER!$A$10:$A$8006,$A27,AnalisisER!$I$10:$I$8006)*100 -> 0
A29: Cuenta | B29: Descripción | C29: Nota | D29: Periodo Actual | E29: Periodo Anterior | F29: Diferencia
F30: %
A31: 4.2.9. | B31: =+AnalisisER!$B$37 -> Contribuciones sociales diversas | C31: =+AnalisisER!C37 -> 37 | D31: =SUMIF(AnalisisER!$A$10:$A$8006,$A31,AnalisisER!$D$10:$D$8006) -> 0 | E31: =SUMIF(AnalisisER!$A$10:$A$8006,$A31,AnalisisER!$F$10:$F$8006) -> 0 | F31: =SUMIF(AnalisisER!$A$10:$A$8006,$A31,AnalisisER!$I$10:$I$8006)*100 -> 0
A33: Cuenta | B33: Descripción | C33: Nota | D33: Periodo Actual | E33: Periodo Anterior | F33: Diferencia
F34: %
A35: 4.3.1. | B35: =+AnalisisER!$B$40 -> Multas y sanciones administrativas | C35: =+AnalisisER!C40 -> 38 | D35: =SUMIF(AnalisisER!$A$10:$A$8006,$A35,AnalisisER!$D$10:$D$8006) -> 0 | E35: =SUMIF(AnalisisER!$A$10:$A$8006,$A35,AnalisisER!$F$10:$F$8006) -> 0 | F35: =SUMIF(AnalisisER!$A$10:$A$8006,$A35,AnalisisER!$I$10:$I$8006)*100 -> 0
A37: Cuenta | B37: Descripción | C37: Nota | D37: Periodo Actual | E37: Periodo Anterior | F37: Diferencia
F38: %
A39: 4.3.2. | B39: =+AnalisisER!$B$45 -> Remates y confiscaciones de origen no tributario | C39: =+AnalisisER!C45 -> 39 | D39: =SUMIF(AnalisisER!$A$10:$A$8006,$A39,AnalisisER!$D$10:$D$8006) -> 0 | E39: =SUMIF(AnalisisER!$A$10:$A$8006,$A39,AnalisisER!$F$10:$F$8006) -> 0 | F39: =SUMIF(AnalisisER!$A$10:$A$8006,$A39,AnalisisER!$I$10:$I$8006)*100 -> 0
A41: Cuenta | B41: Descripción | C41: Nota | D41: Periodo Actual | E41: Periodo Anterior | F41: Diferencia
F42: %
A43: 4.3.3. | B43: =+AnalisisER!$B$47 -> Intereses Moratorios | C43: =+AnalisisER!C47 -> 40 | D43: =SUMIF(AnalisisER!$A$10:$A$8006,$A43,AnalisisER!$D$10:$D$8006) -> 0 | E43: =SUMIF(AnalisisER!$A$10:$A$8006,$A43,AnalisisER!$F$10:$F$8006) -> 0 | F43: =SUMIF(AnalisisER!$A$10:$A$8006,$A43,AnalisisER!$I$10:$I$8006)*100 -> 0
A45: Cuenta | B45: Descripción | C45: Nota | D45: Periodo Actual | E45: Periodo Anterior | F45: Diferencia
F46: %
A47: 4.4.1. | B47: =+AnalisisER!$B$51 -> Ventas de bienes y servicios | C47: =+AnalisisER!C51 -> 41 | D47: =SUMIF(AnalisisER!$A$10:$A$8006,$A47,AnalisisER!$D$10:$D$8006) -> 335196.7247 | E47: =SUMIF(AnalisisER!$A$10:$A$8006,$A47,AnalisisER!$F$10:$F$8006) -> 207274.0643 | F47: =SUMIF(AnalisisER!$A$10:$A$8006,$A47,AnalisisER!$I$10:$I$8006) -> 0.6171667494
A49: Cuenta | B49: Descripción | C49: Nota | D49: Periodo Actual | E49: Periodo Anterior | F49: Diferencia
F50: %
A51: 4.4.2. | B51: =+AnalisisER!$B$54 -> Derechos administrativos | C51: =+AnalisisER!C54 -> 42 | D51: =SUMIF(AnalisisER!$A$10:$A$8006,$A51,AnalisisER!$D$10:$D$8006) -> 288.93333 | E51: =SUMIF(AnalisisER!$A$10:$A$8006,$A51,AnalisisER!$F$10:$F$8006) -> 258 | F51: =SUMIF(AnalisisER!$A$10:$A$8006,$A51,AnalisisER!$I$10:$I$8006) -> 0.1198966279
A53: Cuenta | B53: Descripción | C53: Nota | D53: Periodo Actual | E53: Periodo Anterior | F53: Diferencia
F54: %
A55: 4.4.3. | B55: =+AnalisisER!$B$57 -> Comisiones por préstamos | C55: =+AnalisisER!C57 -> 43 | D55: =SUMIF(AnalisisER!$A$10:$A$8006,$A55,AnalisisER!$D$10:$D$8006) -> 0 | E55: =SUMIF(AnalisisER!$A$10:$A$8006,$A55,AnalisisER!$F$10:$F$8006) -> 0 | F55: =SUMIF(AnalisisER!$A$10:$A$8006,$A55,AnalisisER!$I$10:$I$8006)*100 -> 0
A57: Cuenta | B57: Descripción | C57: Nota | D57: Periodo Actual | E57: Periodo Anterior | F57: Diferencia
F58: %
A59: 4.4.4. | B59: =+AnalisisER!$B$61 -> Resultados positivos por ventas de inversiones | C59: =+AnalisisER!C61 -> 44 | D59: =SUMIF(AnalisisER!$A$10:$A$8006,$A59,AnalisisER!$D$10:$D$8006) -> 0 | E59: =SUMIF(AnalisisER!$A$10:$A$8006,$A59,AnalisisER!$F$10:$F$8006) -> 0 | F59: =SUMIF(AnalisisER!$A$10:$A$8006,$A59,AnalisisER!$I$10:$I$8006)*100 -> 0
A61: Cuenta | B61: Descripción | C61: Nota | D61: Periodo Actual | E61: Periodo Anterior | F61: Diferencia
F62: %
A63: 4.4.5. | B63: =+AnalisisER!$B$64 -> Resultados positivos por ventas e intercambio de bienes | C63: =+AnalisisER!C64 -> 45 | D63: =SUMIF(AnalisisER!$A$10:$A$8006,$A63,AnalisisER!$D$10:$D$8006) -> 0 | E63: =SUMIF(AnalisisER!$A$10:$A$8006,$A63,AnalisisER!$F$10:$F$8006) -> 0 | F63: =SUMIF(AnalisisER!$A$10:$A$8006,$A63,AnalisisER!$I$10:$I$8006)*100 -> 0
A65: Cuenta | B65: Descripción | C65: Nota | D65: Periodo Actual | E65: Periodo Anterior | F65: Diferencia
F66: %
A67: 4.4.6. | B67: =+AnalisisER!B75 -> Resultados positivos por la recuperación de dinero mal acreditado de periodos anteriores | C67: =+AnalisisER!C75 -> 46 | D67: =SUMIF(AnalisisER!$A$10:$A$8006,$A67,AnalisisER!$D$10:$D$8006) -> 0 | E67: =SUMIF(AnalisisER!$A$10:$A$8006,$A67,AnalisisER!$F$10:$F$8006) -> 0 | F67: =SUMIF(AnalisisER!$A$10:$A$8006,$A67,AnalisisER!$I$10:$I$8006)*100 -> 0
A69: Cuenta | B69: Descripción | C69: Nota | D69: Periodo Actual | E69: Periodo Anterior | F69: Diferencia
F70: %
A71: 4.5.1. | B71: =+AnalisisER!$B$78 -> Rentas de inversiones y de colocación de efectivo | C71: =+AnalisisER!C78 -> 47 | D71: =SUMIF(AnalisisER!$A$10:$A$8006,$A71,AnalisisER!$D$10:$D$8006) -> 7249.3435 | E71: =SUMIF(AnalisisER!$A$10:$A$8006,$A71,AnalisisER!$F$10:$F$8006) -> 8165.16393 | F71: =SUMIF(AnalisisER!$A$10:$A$8006,$A71,AnalisisER!$I$10:$I$8006) -> -0.1121619159
A73: Cuenta | B73: Descripción | C73: Nota | D73: Periodo Actual | E73: Periodo Anterior | F73: Diferencia
F74: %
A75: 4.5.2. | B75: =+AnalisisER!$B$82 -> Alquileres y derechos sobre bienes | C75: =+AnalisisER!C82 -> 48 | D75: =SUMIF(AnalisisER!$A$10:$A$8006,$A75,AnalisisER!$D$10:$D$8006) -> 14362.71272 | E75: =SUMIF(AnalisisER!$A$10:$A$8006,$A75,AnalisisER!$F$10:$F$8006) -> 13973.56416 | F75: =SUMIF(AnalisisER!$A$10:$A$8006,$A75,AnalisisER!$I$10:$I$8006) -> 0.0278489121
A77: Cuenta | B77: Descripción | C77: Nota | D77: Periodo Actual | E77: Periodo Anterior | F77: Diferencia
F78: %
A79: 4.5.2.01. | B79: =+AnalisisER!$B$83 -> Alquileres | C79: =+AnalisisER!C82 -> 48 | D79: =SUMIF(AnalisisER!$A$10:$A$8006,$A79,AnalisisER!$D$10:$D$8006) -> 14362.71272 | E79: =SUMIF(AnalisisER!$A$10:$A$8006,$A79,AnalisisER!$F$10:$F$8006) -> 13973.56416 | F79: =SUMIF(AnalisisER!$A$10:$A$8006,$A79,AnalisisER!$I$10:$I$8006) -> 0.0278489121
A81: Cuenta | B81: Descripción | C81: Nota | D81: Periodo Actual | E81: Periodo Anterior | F81: Diferencia
F82: %
A83: 4.5.9. | B83: =+AnalisisER!$B$86 -> Otros ingresos de la propiedad | C83: =+AnalisisER!C86 -> 49 | D83: =SUMIF(AnalisisER!$A$10:$A$8006,$A83,AnalisisER!$D$10:$D$8006) -> 0 | E83: =SUMIF(AnalisisER!$A$10:$A$8006,$A83,AnalisisER!$F$10:$F$8006) -> 0 | F83: =SUMIF(AnalisisER!$A$10:$A$8006,$A83,AnalisisER!$I$10:$I$8006)*100 -> 0
A85: Cuenta | B85: Descripción | C85: Nota | D85: Periodo Actual | E85: Periodo Anterior | F85: Diferencia
F86: %
A87: 4.6.1. | B87: =+AnalisisER!$B$94 -> Transferencias corrientes | C87: =+AnalisisER!C94 -> 50 | D87: =SUMIF(AnalisisER!$A$10:$A$8006,$A87,AnalisisER!$D$10:$D$8006) -> 11322.83007 | E87: =SUMIF(AnalisisER!$A$10:$A$8006,$A87,AnalisisER!$F$10:$F$8006) -> 11962.12578 | F87: =SUMIF(AnalisisER!$A$10:$A$8006,$A87,AnalisisER!$I$10:$I$8006) -> -0.0534433195
A89: Cuenta | B89: Descripción | C89: Nota | D89: Periodo Actual | E89: Periodo Anterior | F89: Diferencia
F90: %
A91: 4.6.2. | B91: =+AnalisisER!$B$98 -> Transferencias de capital | C91: =+AnalisisER!C98 -> 51 | D91: =SUMIF(AnalisisER!$A$10:$A$8006,$A91,AnalisisER!$D$10:$D$8006) -> 3772816.719 | E91: =SUMIF(AnalisisER!$A$10:$A$8006,$A91,AnalisisER!$F$10:$F$8006) -> 3799661.728 | F91: =SUMIF(AnalisisER!$A$10:$A$8006,$A91,AnalisisER!$I$10:$I$8006) -> -0.007065104981
A93: Cuenta | B93: Descripción | C93: Nota | D93: Periodo Actual | E93: Periodo Anterior | F93: Diferencia
F94: %
A95: 4.9.1. | B95: =+AnalisisER!$B$103 -> Resultados positivos por tenencia y por exposición a la inflación | C95: =+AnalisisER!C103 -> 52 | D95: =SUMIF(AnalisisER!$A$10:$A$8006,$A95,AnalisisER!$D$10:$D$8006) -> 0 | E95: =SUMIF(AnalisisER!$A$10:$A$8006,$A95,AnalisisER!$F$10:$F$8006) -> 0 | F95: =SUMIF(AnalisisER!$A$10:$A$8006,$A95,AnalisisER!$I$10:$I$8006)*100 -> 0
A97: Cuenta | B97: Descripción | C97: Nota | D97: Periodo Actual | E97: Periodo Anterior | F97: Diferencia
F98: %
A99: 4.9.2. | B99: =+AnalisisER!$B$110 -> Reversión de consumo de bienes | C99: =+AnalisisER!C110 -> 53 | D99: =SUMIF(AnalisisER!$A$10:$A$8006,$A99,AnalisisER!$D$10:$D$8006) -> 0 | E99: =SUMIF(AnalisisER!$A$10:$A$8006,$A99,AnalisisER!$F$10:$F$8006) -> 0 | F99: =SUMIF(AnalisisER!$A$10:$A$8006,$A99,AnalisisER!$I$10:$I$8006)*100 -> 0
A101: Cuenta | B101: Descripción | C101: Nota | D101: Periodo Actual | E101: Periodo Anterior | F101: Diferencia
F102: %
A103: 4.9.3. | B103: =+AnalisisER!$B$113 -> Reversión de pérdidas por deterioro y desvalorización de bienes | C103: =+AnalisisER!C113 -> 54 | D103: =SUMIF(AnalisisER!$A$10:$A$8006,$A103,AnalisisER!$D$10:$D$8006) -> 0 | E103: =SUMIF(AnalisisER!$A$10:$A$8006,$A103,AnalisisER!$F$10:$F$8006) -> 0 | F103: =SUMIF(AnalisisER!$A$10:$A$8006,$A103,AnalisisER!$I$10:$I$8006)*100 -> 0
A105: Cuenta | B105: Descripción | C105: Nota | D105: Periodo Actual | E105: Periodo Anterior | F105: Diferencia
F106: %
A107: 4.9.4. | B107: =+AnalisisER!$B$119 -> Recuperación de previsiones | C107: =+AnalisisER!C119 -> 55 | D107: =SUMIF(AnalisisER!$A$10:$A$8006,$A107,AnalisisER!$D$10:$D$8006) -> 0 | E107: =SUMIF(AnalisisER!$A$10:$A$8006,$A107,AnalisisER!$F$10:$F$8006) -> 0 | F107: =SUMIF(AnalisisER!$A$10:$A$8006,$A107,AnalisisER!$I$10:$I$8006)*100 -> 0
A109: Cuenta | B109: Descripción | C109: Nota | D109: Periodo Actual | E109: Periodo Anterior | F109: Diferencia
F110: %
A111: 4.9.5. | B111: =+AnalisisER!$B$123 -> Recuperación de provisiones y reservas técnicas | C111: =+AnalisisER!C123 -> 56 | D111: =SUMIF(AnalisisER!$A$10:$A$8006,$A111,AnalisisER!$D$10:$D$8006) -> 0 | E111: =SUMIF(AnalisisER!$A$10:$A$8006,$A111,AnalisisER!$F$10:$F$8006) -> 0 | F111: =SUMIF(AnalisisER!$A$10:$A$8006,$A111,AnalisisER!$I$10:$I$8006)*100 -> 0
A113: Cuenta | B113: Descripción | C113: Nota | D113: Periodo Actual | E113: Periodo Anterior | F113: Diferencia
F114: %
A115: 4.9.6. | B115: =+AnalisisER!$B$128 -> Resultados positivos de inversiones patrimoniales y participación de los intereses minoritarios | C115: =+AnalisisER!C128 -> 57 | D115: =SUMIF(AnalisisER!$A$10:$A$8006,$A115,AnalisisER!$D$10:$D$8006) -> 0 | E115: =SUMIF(AnalisisER!$A$10:$A$8006,$A115,AnalisisER!$F$10:$F$8006) -> 0 | F115: =SUMIF(AnalisisER!$A$10:$A$8006,$A115,AnalisisER!$I$10:$I$8006)*100 -> 0
A117: Cuenta | B117: Descripción | C117: Nota | D117: Periodo Actual | E117: Periodo Anterior | F117: Diferencia
F118: %
A119: 4.9.9. | B119: =+AnalisisER!$B$131 -> Otros ingresos y resultados positivos | C119: =+AnalisisER!C131 -> 58 | D119: =SUMIF(AnalisisER!$A$10:$A$8006,$A119,AnalisisER!$D$10:$D$8006) -> 119.89178 | E119: =SUMIF(AnalisisER!$A$10:$A$8006,$A119,AnalisisER!$F$10:$F$8006) -> 67.31947 | F119: =SUMIF(AnalisisER!$A$10:$A$8006,$A119,AnalisisER!$I$10:$I$80060) -> 0.7809376693
A122: GASTOS
A124: Cuenta | B124: Descripción | C124: Nota | D124: Periodo Actual | E124: Periodo Anterior | F124: Diferencia
F125: %
A126: 5.1.1. | B126: =+AnalisisER!$B$137 -> Gastos en personal | C126: =+AnalisisER!C137 -> 59 | D126: =SUMIF(AnalisisER!$A$10:$A$8006,$A126,AnalisisER!$D$10:$D$8006) -> 483805.0675 | E126: =SUMIF(AnalisisER!$A$10:$A$8006,$A126,AnalisisER!$F$10:$F$8006) -> 450855.1102 | F126: =SUMIF(AnalisisER!$A$10:$A$8006,$A126,AnalisisER!$I$10:$I$8006) -> 0.07308325126
A128: Cuenta | B128: Descripción | C128: Nota | D128: Periodo Actual | E128: Periodo Anterior | F128: Diferencia
F129: %
A130: 5.1.2. | B130: =+AnalisisER!$B$146 -> Servicios | C130: =+AnalisisER!C146 -> 60 | D130: =SUMIF(AnalisisER!$A$10:$A$8006,$A130,AnalisisER!$D$10:$D$8006) -> 916890.0539 | E130: =SUMIF(AnalisisER!$A$10:$A$8006,$A130,AnalisisER!$F$10:$F$8006) -> 1270453.382 | F130: =SUMIF(AnalisisER!$A$10:$A$8006,$A130,AnalisisER!$I$10:$I$8006) -> -0.2782969709
A132: Cuenta | B132: Descripción | C132: Nota | D132: Periodo Actual | E132: Periodo Anterior | F132: Diferencia
F133: %
A134: 5.1.2.01. | B134: =+AnalisisER!$B$147 -> Alquileres y derechos sobre bienes | C134: =+AnalisisER!C146 -> 60 | D134: =SUMIF(AnalisisER!$A$10:$A$8006,$A134,AnalisisER!$D$10:$D$8006) -> 50383.23783 | E134: =SUMIF(AnalisisER!$A$10:$A$8006,$A134,AnalisisER!$F$10:$F$8006) -> 57401.00726 | F134: =SUMIF(AnalisisER!$A$10:$A$8006,$A134,AnalisisER!$I$10:$I$8006) -> -0.1222586461
A136: Cuenta | B136: Descripción | C136: Nota | D136: Periodo Actual | E136: Periodo Anterior | F136: Diferencia
F137: %
A138: 5.1.3. | B138: =+AnalisisER!$B$156 -> Materiales y suministros consumidos | C138: =+AnalisisER!C156 -> 61 | D138: =SUMIF(AnalisisER!$A$10:$A$8006,$A138,AnalisisER!$D$10:$D$8006) -> 117643.0277 | E138: =SUMIF(AnalisisER!$A$10:$A$8006,$A138,AnalisisER!$F$10:$F$8006) -> 117171.5003 | F138: =SUMIF(AnalisisER!$A$10:$A$8006,$A138,AnalisisER!$I$10:$I$8006) -> 0.004024249742
A140: Cuenta | B140: Descripción | C140: Nota | D140: Periodo Actual | E140: Periodo Anterior | F140: Diferencia
F141: %
A142: 5.1.4. | B142: =+AnalisisER!$B$162 -> Consumo de bienes distintos de inventarios | C142: =+AnalisisER!C162 -> 62 | D142: =SUMIF(AnalisisER!$A$10:$A$8006,$A142,AnalisisER!$D$10:$D$8006) -> 62646.26226 | E142: =SUMIF(AnalisisER!$A$10:$A$8006,$A142,AnalisisER!$F$10:$F$8006) -> 131874.1343 | F142: =SUMIF(AnalisisER!$A$10:$A$8006,$A142,AnalisisER!$I$10:$I$8006) -> -0.5249541347
A144: Cuenta | B144: Descripción | C144: Nota | D144: Periodo Actual | E144: Periodo Anterior | F144: Diferencia
F145: %
A146: 5.1.5. | B146: =+AnalisisER!$B$165 -> Pérdidas por deterioro y desvalorización de bienes | C146: =+AnalisisER!C165 -> 63 | D146: =SUMIF(AnalisisER!$A$10:$A$8006,$A146,AnalisisER!$D$10:$D$8006) -> 0 | E146: =SUMIF(AnalisisER!$A$10:$A$8006,$A146,AnalisisER!$F$10:$F$8006) -> 0 | F146: =SUMIF(AnalisisER!$A$10:$A$8006,$A146,AnalisisER!$I$10:$I$8006)*100 -> 0
A148: Cuenta | B148: Descripción | C148: Nota | D148: Periodo Actual | E148: Periodo Anterior | F148: Diferencia
F149: %
A150: 5.1.6. | B150: =+AnalisisER!$B$168 -> Deterioro y pérdidas de inventarios | C150: =+AnalisisER!C168 -> 64 | D150: =SUMIF(AnalisisER!$A$10:$A$8006,$A150,AnalisisER!$D$10:$D$8006) -> 0 | E150: =SUMIF(AnalisisER!$A$10:$A$8006,$A150,AnalisisER!$F$10:$F$8006) -> 0 | F150: =SUMIF(AnalisisER!$A$10:$A$8006,$A150,AnalisisER!$I$10:$I$8006)*100 -> 0
A152: Cuenta | B152: Descripción | C152: Nota | D152: Periodo Actual | E152: Periodo Anterior | F152: Diferencia
F153: %
A154: 5.1.7. | B154: =+AnalisisER!$B$172 -> Deterioro de inversiones y cuentas a cobrar | C154: =+AnalisisER!C172 -> 65 | D154: =SUMIF(AnalisisER!$A$10:$A$8006,$A154,AnalisisER!$D$10:$D$8006) -> 0 | E154: =SUMIF(AnalisisER!$A$10:$A$8006,$A154,AnalisisER!$F$10:$F$8006) -> 0 | F154: =SUMIF(AnalisisER!$A$10:$A$8006,$A154,AnalisisER!$I$10:$I$8006)*100 -> 0
A156: Cuenta | B156: Descripción | C156: Nota | D156: Periodo Actual | E156: Periodo Anterior | F156: Diferencia
F157: %
A158: 5.1.8. | B158: =+AnalisisER!$B$175 -> Cargos por provisiones y reservas técnicas | C158: =+AnalisisER!C175 -> 66 | D158: =SUMIF(AnalisisER!$A$10:$A$8006,$A158,AnalisisER!$D$10:$D$8006) -> 0 | E158: =SUMIF(AnalisisER!$A$10:$A$8006,$A158,AnalisisER!$F$10:$F$8006) -> 0 | F158: =SUMIF(AnalisisER!$A$10:$A$8006,$A158,AnalisisER!$I$10:$I$8006)*100 -> 0
A160: Cuenta | B160: Descripción | C160: Nota | D160: Periodo Actual | E160: Periodo Anterior | F160: Diferencia
F161: %
A162: 5.1.8.01 | B162: =+AnalisisER!$B$176 -> Cargos por litigios y demandas | C162: =+AnalisisER!$C$175 -> 66 | D162: =SUMIF(AnalisisER!$A$10:$A$8006,$A162,AnalisisER!$D$10:$D$8006) -> 0 | E162: =SUMIF(AnalisisER!$A$10:$A$8006,$A162,AnalisisER!$F$10:$F$8006) -> 0 | F162: =SUMIF(AnalisisER!$A$10:$A$8006,$A162,AnalisisER!$I$10:$I$8006)*100 -> 0
A164: Cuenta | B164: Descripción | C164: Nota | D164: Periodo Actual | E164: Periodo Anterior | F164: Diferencia
F165: %
A166: 5.2.1. | B166: =+AnalisisER!$B$181 -> Intereses sobre endeudamiento público | C166: =+AnalisisER!C181 -> 67 | D166: =SUMIF(AnalisisER!$A$10:$A$8006,$A166,AnalisisER!$D$10:$D$8006) -> 54399.29999 | E166: =SUMIF(AnalisisER!$A$10:$A$8006,$A166,AnalisisER!$F$10:$F$8006) -> 56507.79962 | F166: =SUMIF(AnalisisER!$A$10:$A$8006,$A166,AnalisisER!$I$10:$I$8006) -> -0.03731342654
A168: Cuenta | B168: Descripción | C168: Nota | D168: Periodo Actual | E168: Periodo Anterior | F168: Diferencia
F169: %
A170: 5.2.9. | B170: =+AnalisisER!$B$186 -> Otros gastos financieros | C170: =+AnalisisER!C186 -> 68 | D170: =SUMIF(AnalisisER!$A$10:$A$8006,$A170,AnalisisER!$D$10:$D$8006) -> 0 | E170: =SUMIF(AnalisisER!$A$10:$A$8006,$A170,AnalisisER!$F$10:$F$8006) -> 0 | F170: =SUMIF(AnalisisER!$A$10:$A$8006,$A170,AnalisisER!$I$10:$I$8006)*100 -> 0
A172: Cuenta | B172: Descripción | C172: Nota | D172: Periodo Actual | E172: Periodo Anterior | F172: Diferencia
F173: %
A174: 5.3.1. | B174: =+AnalisisER!$B$193 -> Costo de ventas de bienes y servicios | C174: =+AnalisisER!C193 -> 69 | D174: =SUMIF(AnalisisER!$A$10:$A$8006,$A174,AnalisisER!$D$10:$D$8006) -> 0 | E174: =SUMIF(AnalisisER!$A$10:$A$8006,$A174,AnalisisER!$F$10:$F$8006) -> 0 | F174: =SUMIF(AnalisisER!$A$10:$A$8006,$A174,AnalisisER!$I$10:$I$8006)*100 -> 0
A176: Cuenta | B176: Descripción | C176: Nota | D176: Periodo Actual | E176: Periodo Anterior | F176: Diferencia
F177: %
A178: 5.3.2. | B178: =+AnalisisER!$B$196 -> Resultados negativos por ventas de inversiones | C178: =+AnalisisER!C196 -> 70 | D178: =SUMIF(AnalisisER!$A$10:$A$8006,$A178,AnalisisER!$D$10:$D$8006) -> 0 | E178: =SUMIF(AnalisisER!$A$10:$A$8006,$A178,AnalisisER!$F$10:$F$8006) -> 0 | F178: =SUMIF(AnalisisER!$A$10:$A$8006,$A178,AnalisisER!$I$10:$I$8006)*100 -> 0
A180: Cuenta | B180: Descripción | C180: Nota | D180: Periodo Actual | E180: Periodo Anterior | F180: Diferencia
F181: %
A182: 5.3.3. | B182: =+AnalisisER!$B$199 -> Resultados negativos por ventas e intercambio de bienes | C182: =+AnalisisER!C199 -> 71 | D182: =SUMIF(AnalisisER!$A$10:$A$8006,$A182,AnalisisER!$D$10:$D$8006) -> 0 | E182: =SUMIF(AnalisisER!$A$10:$A$8006,$A182,AnalisisER!$F$10:$F$8006) -> 0 | F182: =SUMIF(AnalisisER!$A$10:$A$8006,$A182,AnalisisER!$I$10:$I$8006)*100 -> 0
A184: Cuenta | B184: Descripción | C184: Nota | D184: Periodo Actual | E184: Periodo Anterior | F184: Diferencia
F185: %
A186: 5.4.1. | B186: =+AnalisisER!$B$210 -> Transferencias corrientes | C186: =+AnalisisER!C210 -> 72 | D186: =SUMIF(AnalisisER!$A$10:$A$8006,$A186,AnalisisER!$D$10:$D$8006) -> 102733.3353 | E186: =SUMIF(AnalisisER!$A$10:$A$8006,$A186,AnalisisER!$F$10:$F$8006) -> 6319.22909 | F186: =SUMIF(AnalisisER!$A$10:$A$8006,$A186,AnalisisER!$I$10:$I$8006) -> 15.25725763
A188: Cuenta | B188: Descripción | C188: Nota | D188: Periodo Actual | E188: Periodo Anterior | F188: Diferencia
F189: %
A190: 5.4.2. | B190: =+AnalisisER!$B$214 -> Transferencias de capital | C190: =+AnalisisER!C214 -> 73 | D190: =SUMIF(AnalisisER!$A$10:$A$8006,$A190,AnalisisER!$D$10:$D$8006) -> 0 | E190: =SUMIF(AnalisisER!$A$10:$A$8006,$A190,AnalisisER!$F$10:$F$8006) -> 0 | F190: =SUMIF(AnalisisER!$A$10:$A$8006,$A190,AnalisisER!$I$10:$I$8006)*100 -> 0
A192: Cuenta | B192: Descripción | C192: Nota | D192: Periodo Actual | E192: Periodo Anterior | F192: Diferencia
F193: %
A194: 5.9.1. | B194: =+AnalisisER!$B$219 -> Resultados negativos por tenencia y por exposición a la inflación | C194: =+AnalisisER!C219 -> 74 | D194: =SUMIF(AnalisisER!$A$10:$A$8006,$A194,AnalisisER!$D$10:$D$8006) -> 0 | E194: =SUMIF(AnalisisER!$A$10:$A$8006,$A194,AnalisisER!$F$10:$F$8006) -> 0 | F194: =SUMIF(AnalisisER!$A$10:$A$8006,$A194,AnalisisER!$I$10:$I$8006)*100 -> 0
A196: Cuenta | B196: Descripción | C196: Nota | D196: Periodo Actual | E196: Periodo Anterior | F196: Diferencia
F197: %
A198: 5.9.2. | B198: =+AnalisisER!$B$226 -> Resultados negativos de inversiones patrimoniales y participación de los intereses minoritarios | C198: =+AnalisisER!C226 -> 75 | D198: =SUMIF(AnalisisER!$A$10:$A$8006,$A198,AnalisisER!$D$10:$D$8006) -> 0 | E198: =SUMIF(AnalisisER!$A$10:$A$8006,$A198,AnalisisER!$F$10:$F$8006) -> 0 | F198: =SUMIF(AnalisisER!$A$10:$A$8006,$A198,AnalisisER!$I$10:$I$8006)*100 -> 0
A200: Cuenta | B200: Descripción | C200: Nota | D200: Periodo Actual | E200: Periodo Anterior | F200: Diferencia
F201: %
A202: 5.9.9. | B202: =+AnalisisER!$B$229 -> Otros gastos y resultados negativos | C202: =+AnalisisER!C229 -> 76 | D202: =SUMIF(AnalisisER!$A$10:$A$8006,$A202,AnalisisER!$D$10:$D$8006) -> 0.00542 | E202: =SUMIF(AnalisisER!$A$10:$A$8006,$A202,AnalisisER!$F$10:$F$8006) -> 3e-05 | F202: =SUMIF(AnalisisER!$A$10:$A$8006,$A202,AnalisisER!$I$10:$I$8006) -> 179.6666667

Sheet Notas Flujo
A1: Notas Estado de Flujo de Efectivo Comparativo
A3: FLUJOS DE EFECTIVO DE LAS ACTIVIDADES DE OPERACIÓN
A5: Descripción | B5: Nota | C5: Periodo Actual | D5: Periodo Anterior | E5: Diferencia
E6: %
A7: Cobros | B7: =+AnalisisFlujo!C9 -> 77 | C7: =SUMIF(AnalisisFlujo!$C$9:$C$8000,$B7,AnalisisFlujo!$D$9:$D$8000) -> 1337882.139 | D7: =SUMIF(AnalisisFlujo!$C$9:$C$8000,$B7,AnalisisFlujo!$F$9:$F$8000) -> 1366946.308 | E7: =SUMIF(AnalisisFlujo!$C$9:$C$8000,$B7,AnalisisFlujo!$I$9:$I$8000) -> -0.02126211469
A9: Descripción | B9: Nota | C9: Periodo Actual | D9: Periodo Anterior | E9: Diferencia
E10: %
A11: Pagos | B11: =+AnalisisFlujo!C18 -> 78 | C11: =SUMIF(AnalisisFlujo!$C$9:$C$8000,$B11,AnalisisFlujo!$D$9:$D$8000) -> 1564421.955 | D11: =SUMIF(AnalisisFlujo!$C$9:$C$8000,$B11,AnalisisFlujo!$F$9:$F$8000) -> 1628497.101 | E11: =SUMIF(AnalisisFlujo!$C$9:$C$8000,$B11,AnalisisFlujo!$I$9:$I$8000) -> -0.03934618363
A14: FLUJOS DE EFECTIVO DE LAS ACTIVIDADES DE INVERSIÓN
A16: Descripción | B16: Nota | C16: Periodo Actual | D16: Periodo Anterior | E16: Diferencia
E17: %
A18: Cobros | B18: =+AnalisisFlujo!C27 -> 79 | C18: =SUMIF(AnalisisFlujo!$C$9:$C$8000,$B18,AnalisisFlujo!$D$9:$D$8000) -> 0 | D18: =SUMIF(AnalisisFlujo!$C$9:$C$8000,$B18,AnalisisFlujo!$F$9:$F$8000) -> 0 | E18: =SUMIF(AnalisisFlujo!$C$9:$C$8000,$B18,AnalisisFlujo!$I$9:$I$8000) -> 0
A20: Descripción | B20: Nota | C20: Periodo Actual | D20: Periodo Anterior | E20: Diferencia
E21: %
A22: Pagos | B22: =+AnalisisFlujo!C33 -> 80 | C22: =SUMIF(AnalisisFlujo!$C$9:$C$8000,$B22,AnalisisFlujo!$D$9:$D$8000) -> 27234.11012 | D22: =SUMIF(AnalisisFlujo!$C$9:$C$8000,$B22,AnalisisFlujo!$F$9:$F$8000) -> 17147.7506 | E22: =SUMIF(AnalisisFlujo!$C$9:$C$8000,$B22,AnalisisFlujo!$I$9:$I$8000) -> 0.5882030685
A25: FLUJOS DE EFECTIVO DE LAS ACTIVIDADES DE FINANCIACIÓN
A27: Descripción | B27: Nota | C27: Periodo Actual | D27: Periodo Anterior | E27: Diferencia
E28: %
A29: Cobros | B29: =+AnalisisFlujo!C42 -> 81 | C29: =SUMIF(AnalisisFlujo!$C$9:$C$8000,$B29,AnalisisFlujo!$D$9:$D$8000) -> 191813.241 | D29: =SUMIF(AnalisisFlujo!$C$9:$C$8000,$B29,AnalisisFlujo!$F$9:$F$8000) -> 0 | E29: =SUMIF(AnalisisFlujo!$C$9:$C$8000,$B29,AnalisisFlujo!$I$9:$I$8000) -> 0
A31: Descripción | B31: Nota | C31: Periodo Actual | D31: Periodo Anterior | E31: Diferencia
E32: %
A33: Pagos | B33: =+AnalisisFlujo!C46 -> 82 | C33: =SUMIF(AnalisisFlujo!$C$9:$C$8000,$B33,AnalisisFlujo!$D$9:$D$8000) -> 248609.6704 | D33: =SUMIF(AnalisisFlujo!$C$9:$C$8000,$B33,AnalisisFlujo!$F$9:$F$8000) -> 108316.9975 | E33: =SUMIF(AnalisisFlujo!$C$9:$C$8000,$B33,AnalisisFlujo!$I$9:$I$8000) -> 1.295204596
A35: Descripción | B35: Nota | C35: Periodo Actual | D35: Periodo Anterior | E35: Diferencia
E36: %
A37: =+AnalisisFlujo!A56 -> Efectivo y equivalentes de efectivo al final del ejercicio | B37: =+AnalisisFlujo!C56 -> 83 | C37: =SUMIF(AnalisisFlujo!$C$9:$C$8000,$B37,AnalisisFlujo!$D$9:$D$8000) -> 1796241.555 | D37: =SUMIF(AnalisisFlujo!$C$9:$C$8000,$B37,AnalisisFlujo!$F$9:$F$8000) -> 2318751.848 | E37: =SUMIF(AnalisisFlujo!$C$9:$C$8000,$B37,AnalisisFlujo!$I$9:$I$8000) -> -0.2253411865

Sheet Notas ECP
A1: Notas Estado de Cambios en el Patrimonio Comparativo
A3: Descripción | B3: Nota | C3: Periodo Actual | D3: Periodo Anterior | E3: Diferencia
E4: %
A5: =+AnalisisECP!B28 -> Saldos del período | B5: =+AnalisisECP!A28 -> 84 | C5: =SUMIF(AnalisisECP!$A$9:$A$8000,$B5,AnalisisECP!$C$9:$C$8000) -> 166959895.8 | D5: =SUMIF(AnalisisECP!$A$9:$A$8000,$B5,AnalisisECP!$E$9:$E$8000) -> 165756951 | E5: =SUMIF(AnalisisECP!$A$9:$A$8000,$B5,AnalisisECP!$H$9:$H$8000)*100 -> 0.7257280683

Sheet Texto
B2: La cuenta Efectivo y Equivalentes de Efectivo, representa el (indicar % análisis vertical) % del total de activos, que comparado al periodo anterior genera una variación absoluta de ¢(indicar monto de la variación) que corresponde a un (indicar el aumento o disminución) del (indicar % variación relativa) % de recursos disponibles, producto de
B4: La cuenta
B6: , representa el
B8: % del total de
B12: , que comparado al periodo anterior genera una variación absoluta de ¢
B14: que corresponde a un(a)
B16: del
B18: % de recursos disponibles.
